Workbook

Sheet Introduction
C4: Joint Monitoring Programme for Water Supply, Sanitation and Hygiene
C6: Estimates on household water, sanitation and hygiene by wealth quintile and sub-national region in
C7: =+Water!B5 -> Niger
C9: Updated May 2021
C11: Follow the links below to find the following information:
C13: JMP Estimates
C14: WASH status and trends by wealth quintile (customized quintiles made without water and sanitation assets)
C15: Water
C16: Sanitation
C17: Hygiene
C19: Data inputs
C20: customized wealth quintiles and subnational data:
C21: =IF(INDIRECT(CONCATENATE("Water","!B105"))=0,"",INDIRECT(CONCATENATE("Water","!B105"))) -> DHS06
C22: =IF(INDIRECT(CONCATENATE("Water","!B106"))=0,"",INDIRECT(CONCATENATE("Water","!B106"))) -> DHS12
C23: =IF(INDIRECT(CONCATENATE("Water","!B107"))=0,"",INDIRECT(CONCATENATE("Water","!B107"))) -> 
C24: =IF(INDIRECT(CONCATENATE("Water","!B108"))=0,"",INDIRECT(CONCATENATE("Water","!B108"))) -> 
C25: =IF(INDIRECT(CONCATENATE("Water","!B109"))=0,"",INDIRECT(CONCATENATE("Water","!B109"))) -> 
C26: =IF(INDIRECT(CONCATENATE("Water","!B110"))=0,"",INDIRECT(CONCATENATE("Water","!B110"))) -> 
C27: =IF(INDIRECT(CONCATENATE("Water","!B111"))=0,"",INDIRECT(CONCATENATE("Water","!B111"))) -> 
C28: =IF(INDIRECT(CONCATENATE("Water","!B112"))=0,"",INDIRECT(CONCATENATE("Water","!B112"))) -> 
C29: =IF(INDIRECT(CONCATENATE("Water","!B113"))=0,"",INDIRECT(CONCATENATE("Water","!B113"))) -> 
C30: =IF(INDIRECT(CONCATENATE("Water","!B114"))=0,"",INDIRECT(CONCATENATE("Water","!B114"))) -> 
C31: =IF(INDIRECT(CONCATENATE("Water","!B115"))=0,"",INDIRECT(CONCATENATE("Water","!B115"))) -> 
C32: =IF(INDIRECT(CONCATENATE("Water","!B116"))=0,"",INDIRECT(CONCATENATE("Water","!B116"))) -> 
L55: =+IF(ISNUMBER(M48), "", "Insufficient data to estimate safely managed sanitation services at national level") -> Insufficient data to estimate safely managed sanitation services at national level

Sheet Water
A1: BGD
B4: Summary of trends in use of drinking water by wealth quintile (%)
B5: =IF(ISERROR(INDIRECT(CONCATENATE($B105,"!A2"))),"",INDIRECT(CONCATENATE($B105,"!A2"))) -> Niger
B7: =B118 -> National use of drinking water sources, 2000–2018 | J7: =B218 -> Urban use of drinking water sources, 2000–2018 | R7: =B318 -> Rural use of drinking water sources, 2000–2018
B31: =IF(ISERROR(INDIRECT(CONCATENATE($B105,"!A2"))),"",INDIRECT(CONCATENATE($B105,"!A2"))) -> Niger | F31: Poorest | J31: Poor | N31: Middle | R31: Rich | V31: Richest
F32: Basic | G32: Limited | H32: Unimproved | I32: Surface water | J32: Basic | K32: Limited | L32: Unimproved | M32: Surface water | N32: Basic | O32: Limited | P32: Unimproved | Q32: Surface water | R32: Basic | S32: Limited | T32: Unimproved | U32: Surface water | V32: Basic | W32: Limited | X32: Unimproved | Y32: Surface water
B33: NATIONAL | D33: Estimate | E33: =C99 -> 2000 | F33: =E99 -> 27.82199705 | G33: =F99 -> 13.89014245 | H33: 56.92161175 | I33: 1.366248746 | J33: =J99 -> 23.4446272 | K33: =K99 -> 13.01669037 | L33: 62.30431278 | M33: 1.234369653 | N33: =O99 -> 26.41721241 | O33: =P99 -> 14.22465284 | P33: 57.7179108 | Q33: 1.640223944 | R33: =T99 -> 27.42583611 | S33: =U99 -> 11.69803851 | T33: 57.66553941 | U33: 3.210585974 | V33: =Y99 -> 69.25362369 | W33: =Z99 -> 12.41338538 | X33: 18.26982567 | Y33: 0.06316526137
E34: =C100 -> 2018 | F34: =E100 -> 45.0759905 | G34: 22.50420515 | H34: 31.44448459 | I34: 0.9753197489 | J34: =J100 -> 44.45623433 | K34: 24.68254379 | L34: 29.41942539 | M34: 1.441796496 | N34: =O100 -> 43.18403954 | O34: 23.25294437 | P34: 32.53315074 | Q34: 1.029865353 | R34: =T100 -> 46.98406378 | S34: 20.04027828 | T34: 32.43614824 | U34: 0.5395096963 | V34: =Y100 -> 73.05279481 | W34: 13.09436888 | X34: 12.57243554 | Y34: 1.280400764
B36: URBAN | D36: Estimate | E36: =C199 -> 2000 | F36: =E199 -> 65.17477839 | G36: =F199 -> 16.49787623 | H36: 18.32734538 | I36: 0 | J36: =J199 -> 74.53668717 | K36: =K199 -> 14.19746422 | L36: 11.26584861 | M36: 0 | N36: =O199 -> 88.05507157 | O36: =P199 -> 8.815194184 | P36: 3.129734242 | Q36: 0 | R36: =T199 -> 88.30220078 | S36: =U199 -> 6.442649843 | T36: 5.255149373 | U36: 0 | V36: =Y199 -> 94.30128246 | W36: =Z199 -> 2.417981602 | X36: 3.280735936 | Y36: 0
E37: =C200 -> 2018 | F37: =E200 -> 75.91573515 | G37: 19.21676504 | H37: 4.631505869 | I37: 0.2359939387 | J37: =J200 -> 83.74595676 | K37: 15.95161081 | L37: 0 | M37: 0.3024324309 | N37: =O200 -> 90.7507153 | O37: 9.085055107 | P37: 0.1642295929 | Q37: 0 | R37: =T200 -> 93.2 | S37: 6.8 | T37: 0 | U37: 0 | V37: =Y200 -> 96.89335028 | W37: 2.484444879 | X37: 0.6222048375 | Y37: 0
B39: RURAL | D39: Estimate | E39: =C299 -> 2000 | F39: =E299 -> 24.28126575 | G39: =F299 -> 12.62035393 | H39: 61.55398342 | I39: 1.544396906 | J39: =J299 -> 22.54097988 | K39: =K299 -> 13.64036824 | L39: 63.03048168 | M39: 0.7881701888 | N39: =O299 -> 26.42800882 | O39: =P299 -> 13.79727097 | P39: 58.05614176 | Q39: 1.718578451 | R39: =T299 -> 24.42645349 | S39: =U299 -> 12.69581625 | T39: 60.43786749 | U39: 2.439862762 | V39: =Y299 -> 26.78766098 | W39: =Z299 -> 12.66397522 | X39: 57.86558734 | Y39: 2.682776461
E40: =C300 -> 2018 | F40: =E300 -> 43.79270538 | G40: 22.76155811 | H40: 32.51211665 | I40: 0.9336198627 | J40: =J300 -> 42.51171187 | K40: 25.72538583 | L40: 29.99422375 | M40: 1.768678552 | N40: =O300 -> 43.70296471 | O40: 22.81600745 | P40: 32.29165062 | Q40: 1.189377219 | R40: =T300 -> 41.85854323 | S40: 21.75626411 | T40: 35.57353086 | U40: 0.811661808 | V40: =Y300 -> 44.75119121 | W40: 21.15630689 | X40: 32.68129655 | Y40: 1.411205343
A97: NATIONAL | D97: Poorest | I97: Poor | N97: Middle | S97: Rich | X97: Richest
D98: Improved | E98: Basic | F98: Limited | G98: Unimproved | H98: Surface water | I98: Improved | J98: Basic | K98: Limited | L98: Unimproved | M98: Surface water | N98: Improved | O98: Basic | P98: Limited | Q98: Unimproved | R98: Surface water | S98: Improved | T98: Basic | U98: Limited | V98: Unimproved | W98: Surface water | X98: Improved | Y98: Basic | Z98: Limited | AA98: Unimproved | AB98: Surface water
A99: Forecast period: | C99: =MinBase(C105:C116) -> 2000 | D99: =IF((D101+H101)>100,D101*100/(D101+H101),D101) -> 41.7121395 | E99: =D99*AVERAGEIF(E105:E116,">0")/100 -> 27.82199705 | F99: =D99*(100-AVERAGEIF(E105:E116,">0"))/100 -> 13.89014245 | G99: =100-(E99+F99+H99) -> 56.92161175 | H99: =IF((D101+H101)>100,H101*100/(D101+H101),H101) -> 1.366248746 | I99: =IF((I101+M101)>100,I101*100/(I101+M101),I101) -> 36.46131757 | J99: =I99*AVERAGEIF(J105:J116,">0")/100 -> 23.4446272 | K99: =I99*(100-AVERAGEIF(J105:J116,">0"))/100 -> 13.01669037 | L99: =100-(J99+K99+M99) -> 62.30431278 | M99: =IF((I101+M101)>100,M101*100/(I101+M101),M101) -> 1.234369653 | N99: =IF((N101+R101)>100,N101*100/(N101+R101),N101) -> 40.64186525 | O99: =N99*AVERAGEIF(O105:O116,">0")/100 -> 26.41721241 | P99: =N99*(100-AVERAGEIF(O105:O116,">0"))/100 -> 14.22465284 | Q99: =100-(O99+P99+R99) -> 57.7179108 | R99: =IF((N101+R101)>100,R101*100/(N101+R101),R101) -> 1.640223944 | S99: =IF((S101+W101)>100,S101*100/(S101+W101),S101) -> 39.12387462 | T99: =S99*AVERAGEIF(T105:T116,">0")/100 -> 27.42583611 | U99: =S99*(100-AVERAGEIF(T105:T116,">0"))/100 -> 11.69803851 | V99: =100-(T99+U99+W99) -> 57.66553941 | W99: =IF((S101+W101)>100,W101*100/(S101+W101),W101) -> 3.210585974 | X99: =IF((X101+AB101)>100,X101*100/(X101+AB101),X101) -> 81.66700907 | Y99: =X99*AVERAGEIF(Y105:Y116,">0")/100 -> 69.25362369 | Z99: =X99*(100-AVERAGEIF(Y105:Y116,">0"))/100 -> 12.41338538 | AA99: =100-(Y99+Z99+AB99) -> 18.26982567 | AB99: =IF((X101+AB101)>100,AB101*100/(X101+AB101),AB101) -> 0.06316526137
C100: =MaxTarget(C105:C116) -> 2018 | D100: =IF((D102+H102)>100,D102*100/(D102+H102),D102) -> 67.58019566 | E100: =D100*AVERAGEIF(E105:E116,">0")/100 -> 45.0759905 | F100: =D100*(100-AVERAGEIF(E105:E116,">0"))/100 -> 22.50420515 | G100: =100-(E100+F100+H100) -> 31.44448459 | H100: =IF((D102+H102)>100,H102*100/(D102+H102),H102) -> 0.9753197489 | I100: =IF((I102+M102)>100,I102*100/(I102+M102),I102) -> 69.13877811 | J100: =I100*AVERAGEIF(J105:J116,">0")/100 -> 44.45623433 | K100: =I100*(100-AVERAGEIF(J105:J116,">0"))/100 -> 24.68254379 | L100: =100-(J100+K100+M100) -> 29.41942539 | M100: =IF((I102+M102)>100,M102*100/(I102+M102),M102) -> 1.441796496 | N100: =IF((N102+R102)>100,N102*100/(N102+R102),N102) -> 66.4369839 | O100: =N100*AVERAGEIF(O105:O116,">0")/100 -> 43.18403954 | P100: =N100*(100-AVERAGEIF(O105:O116,">0"))/100 -> 23.25294437 | Q100: =100-(O100+P100+R100) -> 32.53315074 | R100: =IF((N102+R102)>100,R102*100/(N102+R102),R102) -> 1.029865353 | S100: =IF((S102+W102)>100,S102*100/(S102+W102),S102) -> 67.02434206 | T100: =S100*AVERAGEIF(T105:T116,">0")/100 -> 46.98406378 | U100: =S100*(100-AVERAGEIF(T105:T116,">0"))/100 -> 20.04027828 | V100: =100-(T100+U100+W100) -> 32.43614824 | W100: =IF((S102+W102)>100,W102*100/(S102+W102),W102) -> 0.5395096963 | X100: =IF((X102+AB102)>100,X102*100/(X102+AB102),X102) -> 86.14716369 | Y100: =X100*AVERAGEIF(Y105:Y116,">0")/100 -> 73.05279481 | Z100: =X100*(100-AVERAGEIF(Y105:Y116,">0"))/100 -> 13.09436888 | AA100: =100-(Y100+Z100+AB100) -> 12.57243554 | AB100: =IF((X102+AB102)>100,AB102*100/(X102+AB102),AB102) -> 1.280400764
A101: Regression period: | C101: =MinRegYear(C99,C105:C116) -> 2004 | D101: =IF(MAX(C105:C116)-MIN(C105:C116)<5,AVERAGEIF(C105:C116,">0",D105:D116), IF(FORECAST($C101,D$105:D$116,$C$105:$C$116)<0,0, IF(FORECAST($C101,D$105:D$116,$C$105:$C$116)>100,100, FORECAST($C101,D$105:D$116,$C$105:$C$116)))) -> 41.7121395 | H101: =IF(MAX(C105:C116)-MIN(C105:C116)<5,AVERAGEIF(C105:C116,">0",H105:H116), IF(FORECAST($C101,H$105:H$116,$C$105:$C$116)<0,0, IF(FORECAST($C101,H$105:H$116,$C$105:$C$116)>100,100, FORECAST($C101,H$105:H$116,$C$105:$C$116)))) -> 1.366248746 | I101: =IF(MAX(C105:C116)-MIN(C105:C116)<5,AVERAGEIF(C105:C116,">0",I105:I116), IF(FORECAST($C101,I$105:I$116,$C$105:$C$116)<0,0, IF(FORECAST($C101,I$105:I$116,$C$105:$C$116)>100,100, FORECAST($C101,I$105:I$116,$C$105:$C$116)))) -> 36.46131757 | M101: =IF(MAX(C105:C116)-MIN(C105:C116)<5,AVERAGEIF(C105:C116,">0",M105:M116), IF(FORECAST($C101,M$105:M$116,$C$105:$C$116)<0,0, IF(FORECAST($C101,M$105:M$116,$C$105:$C$116)>100,100, FORECAST($C101,M$105:M$116,$C$105:$C$116)))) -> 1.234369653 | N101: =IF(MAX(C105:C116)-MIN(C105:C116)<5,AVERAGEIF(C105:C116,">0",N105:N116), IF(FORECAST($C101,N$105:N$116,$C$105:$C$116)<0,0, IF(FORECAST($C101,N$105:N$116,$C$105:$C$116)>100,100, FORECAST($C101,N$105:N$116,$C$105:$C$116)))) -> 40.64186525 | R101: =IF(MAX(C105:C116)-MIN(C105:C116)<5,AVERAGEIF(C105:C116,">0",R105:R116), IF(FORECAST($C101,R$105:R$116,$C$105:$C$116)<0,0, IF(FORECAST($C101,R$105:R$116,$C$105:$C$116)>100,100, FORECAST($C101,R$105:R$116,$C$105:$C$116)))) -> 1.640223944 | S101: =IF(MAX(C105:C116)-MIN(C105:C116)<5,AVERAGEIF(C105:C116,">0",S105:S116), IF(FORECAST($C101,S$105:S$116,$C$105:$C$116)<0,0, IF(FORECAST($C101,S$105:S$116,$C$105:$C$116)>100,100, FORECAST($C101,S$105:S$116,$C$105:$C$116)))) -> 39.12387462 | W101: =IF(MAX(C105:C116)-MIN(C105:C116)<5,AVERAGEIF(C105:C116,">0",W105:W116), IF(FORECAST($C101,W$105:W$116,$C$105:$C$116)<0,0, IF(FORECAST($C101,W$105:W$116,$C$105:$C$116)>100,100, FORECAST($C101,W$105:W$116,$C$105:$C$116)))) -> 3.210585974 | X101: =IF(MAX(C105:C116)-MIN(C105:C116)<5,AVERAGEIF(C105:C116,">0",X105:X116), IF(FORECAST($C101,X$105:X$116,$C$105:$C$116)<0,0, IF(FORECAST($C101,X$105:X$116,$C$105:$C$116)>100,100, FORECAST($C101,X$105:X$116,$C$105:$C$116)))) -> 81.66700907 | AB101: =IF(MAX(C105:C116)-MIN(C105:C116)<5,AVERAGEIF(C105:C116,">0",AB105:AB116), IF(FORECAST($C101,AB$105:AB$116,$C$105:$C$116)<0,0, IF(FORECAST($C101,AB$105:AB$116,$C$105:$C$116)>100,100, FORECAST($C101,AB$105:AB$116,$C$105:$C$116)))) -> 0.06316526137
C102: =MaxRegYear(C100,C105:C116) -> 2014 | D102: =IF(MAX(C105:C116)-MIN(C105:C116)<5,AVERAGEIF(C105:C116,">0",D105:D116), IF(FORECAST($C102,D$105:D$116,$C$105:$C$116)<0,0, IF(FORECAST($C102,D$105:D$116,$C$105:$C$116)>100,100, FORECAST($C102,D$105:D$116,$C$105:$C$116)))) -> 67.58019566 | H102: =IF(MAX(C105:C116)-MIN(C105:C116)<5,AVERAGEIF(C105:C116,">0",H105:H116), IF(FORECAST($C102,H$105:H$116,$C$105:$C$116)<0,0, IF(FORECAST($C102,H$105:H$116,$C$105:$C$116)>100,100, FORECAST($C102,H$105:H$116,$C$105:$C$116)))) -> 0.9753197489 | I102: =IF(MAX(C105:C116)-MIN(C105:C116)<5,AVERAGEIF(C105:C116,">0",I105:I116), IF(FORECAST($C102,I$105:I$116,$C$105:$C$116)<0,0, IF(FORECAST($C102,I$105:I$116,$C$105:$C$116)>100,100, FORECAST($C102,I$105:I$116,$C$105:$C$116)))) -> 69.13877811 | M102: =IF(MAX(C105:C116)-MIN(C105:C116)<5,AVERAGEIF(C105:C116,">0",M105:M116), IF(FORECAST($C102,M$105:M$116,$C$105:$C$116)<0,0, IF(FORECAST($C102,M$105:M$116,$C$105:$C$116)>100,100, FORECAST($C102,M$105:M$116,$C$105:$C$116)))) -> 1.441796496 | N102: =IF(MAX(C105:C116)-MIN(C105:C116)<5,AVERAGEIF(C105:C116,">0",N105:N116), IF(FORECAST($C102,N$105:N$116,$C$105:$C$116)<0,0, IF(FORECAST($C102,N$105:N$116,$C$105:$C$116)>100,100, FORECAST($C102,N$105:N$116,$C$105:$C$116)))) -> 66.4369839 | R102: =IF(MAX(C105:C116)-MIN(C105:C116)<5,AVERAGEIF(C105:C116,">0",R105:R116), IF(FORECAST($C102,R$105:R$116,$C$105:$C$116)<0,0, IF(FORECAST($C102,R$105:R$116,$C$105:$C$116)>100,100, FORECAST($C102,R$105:R$116,$C$105:$C$116)))) -> 1.029865353 | S102: =IF(MAX(C105:C116)-MIN(C105:C116)<5,AVERAGEIF(C105:C116,">0",S105:S116), IF(FORECAST($C102,S$105:S$116,$C$105:$C$116)<0,0, IF(FORECAST($C102,S$105:S$116,$C$105:$C$116)>100,100, FORECAST($C102,S$105:S$116,$C$105:$C$116)))) -> 67.02434206 | W102: =IF(MAX(C105:C116)-MIN(C105:C116)<5,AVERAGEIF(C105:C116,">0",W105:W116), IF(FORECAST($C102,W$105:W$116,$C$105:$C$116)<0,0, IF(FORECAST($C102,W$105:W$116,$C$105:$C$116)>100,100, FORECAST($C102,W$105:W$116,$C$105:$C$116)))) -> 0.5395096963 | X102: =IF(MAX(C105:C116)-MIN(C105:C116)<5,AVERAGEIF(C105:C116,">0",X105:X116), IF(FORECAST($C102,X$105:X$116,$C$105:$C$116)<0,0, IF(FORECAST($C102,X$105:X$116,$C$105:$C$116)>100,100, FORECAST($C102,X$105:X$116,$C$105:$C$116)))) -> 86.14716369 | AB102: =IF(MAX(C105:C116)-MIN(C105:C116)<5,AVERAGEIF(C105:C116,">0",AB105:AB116), IF(FORECAST($C102,AB$105:AB$116,$C$105:$C$116)<0,0, IF(FORECAST($C102,AB$105:AB$116,$C$105:$C$116)>100,100, FORECAST($C102,AB$105:AB$116,$C$105:$C$116)))) -> 1.280400764
B104: Survey | C104: Year | D104: Improved | E104: % Improved < = 30min | H104: Surface water | I104: Improved | J104: % Improved < = 30min | M104: Surface water | N104: Improved | O104: % Improved < = 30min | R104: Surface water | S104: Improved | T104: % Improved < = 30min | W104: Surface water | X104: Improved | Y104: % Improved < = 30min | AB104: Surface water
B105: DHS06 | C105: 2006 | D105: =IF(ISERROR(INDIRECT(CONCATENATE($B105,"!C16"))),"",INDIRECT(CONCATENATE($B105,"!C16"))) -> 46.88575073 | E105: =IF(ISERROR(INDIRECT(CONCATENATE($B105,"!C23"))),"",INDIRECT(CONCATENATE($B105,"!C23"))) -> N/A | H105: =IF(ISERROR(INDIRECT(CONCATENATE($B105,"!C21"))),"",INDIRECT(CONCATENATE($B105,"!C21"))) -> 1.288062947 | I105: =IF(ISERROR(INDIRECT(CONCATENATE($B105,"!D16"))),"",INDIRECT(CONCATENATE($B105,"!D16"))) -> 42.99680968 | J105: =IF(ISERROR(INDIRECT(CONCATENATE($B105,"!D23"))),"",INDIRECT(CONCATENATE($B105,"!D23"))) -> N/A | M105: =IF(ISERROR(INDIRECT(CONCATENATE($B105,"!D21"))),"",INDIRECT(CONCATENATE($B105,"!D21"))) -> 1.275855022 | N105: =IF(ISERROR(INDIRECT(CONCATENATE($B105,"!E16"))),"",INDIRECT(CONCATENATE($B105,"!E16"))) -> 45.80088898 | O105: =IF(ISERROR(INDIRECT(CONCATENATE($B105,"!E23"))),"",INDIRECT(CONCATENATE($B105,"!E23"))) -> N/A | R105: =IF(ISERROR(INDIRECT(CONCATENATE($B105,"!E21"))),"",INDIRECT(CONCATENATE($B105,"!E21"))) -> 1.518152226 | S105: =IF(ISERROR(INDIRECT(CONCATENATE($B105,"!F16"))),"",INDIRECT(CONCATENATE($B105,"!F16"))) -> 44.70396811 | T105: =IF(ISERROR(INDIRECT(CONCATENATE($B105,"!F23"))),"",INDIRECT(CONCATENATE($B105,"!F23"))) -> N/A | W105: =IF(ISERROR(INDIRECT(CONCATENATE($B105,"!F21"))),"",INDIRECT(CONCATENATE($B105,"!F21"))) -> 2.676370719 | X105: =IF(ISERROR(INDIRECT(CONCATENATE($B105,"!G16"))),"",INDIRECT(CONCATENATE($B105,"!G16"))) -> 82.56303999 | Y105: =IF(ISERROR(INDIRECT(CONCATENATE($B105,"!G23"))),"",INDIRECT(CONCATENATE($B105,"!G23"))) -> N/A | AB105: =IF(ISERROR(INDIRECT(CONCATENATE($B105,"!G221"))),"",INDIRECT(CONCATENATE($B105,"!G21"))) -> 0.3066123618
B106: DHS12 | C106: 2012 | D106: 62.40658443 | E106: 66.7 | H106: 1.053505548 | I106: 62.603286 | J106: 64.3 | M106: 1.400311128 | N106: 61.27796017 | O106: 65 | R106: 1.151937072 | S106: 61.44424857 | T106: 70.1 | W106: 1.073724952 | X106: 85.25113277 | Y106: 84.8 | AB106: 1.036953663
D111: =IF(ISERROR(INDIRECT(CONCATENATE($B111,"!C16"))),"",INDIRECT(CONCATENATE($B111,"!C16"))) ->  | E111: =IF(ISERROR(INDIRECT(CONCATENATE($B111,"!C23"))),"",INDIRECT(CONCATENATE($B111,"!C23"))) ->  | H111: =IF(ISERROR(INDIRECT(CONCATENATE($B111,"!C21"))),"",INDIRECT(CONCATENATE($B111,"!C21"))) ->  | I111: =IF(ISERROR(INDIRECT(CONCATENATE($B111,"!D16"))),"",INDIRECT(CONCATENATE($B111,"!D16"))) ->  | J111: =IF(ISERROR(INDIRECT(CONCATENATE($B111,"!D23"))),"",INDIRECT(CONCATENATE($B111,"!D23"))) ->  | M111: =IF(ISERROR(INDIRECT(CONCATENATE($B111,"!D21"))),"",INDIRECT(CONCATENATE($B111,"!D21"))) ->  | N111: =IF(ISERROR(INDIRECT(CONCATENATE($B111,"!E16"))),"",INDIRECT(CONCATENATE($B111,"!E16"))) ->  | O111: =IF(ISERROR(INDIRECT(CONCATENATE($B111,"!E23"))),"",INDIRECT(CONCATENATE($B111,"!E23"))) ->  | R111: =IF(ISERROR(INDIRECT(CONCATENATE($B111,"!E21"))),"",INDIRECT(CONCATENATE($B111,"!E21"))) ->  | S111: =IF(ISERROR(INDIRECT(CONCATENATE($B111,"!F16"))),"",INDIRECT(CONCATENATE($B111,"!F16"))) ->  | T111: =IF(ISERROR(INDIRECT(CONCATENATE($B111,"!F23"))),"",INDIRECT(CONCATENATE($B111,"!F23"))) ->  | W111: =IF(ISERROR(INDIRECT(CONCATENATE($B111,"!F21"))),"",INDIRECT(CONCATENATE($B111,"!F21"))) ->  | X111: =IF(ISERROR(INDIRECT(CONCATENATE($B111,"!G16"))),"",INDIRECT(CONCATENATE($B111,"!G16"))) ->  | Y111: =IF(ISERROR(INDIRECT(CONCATENATE($B111,"!G23"))),"",INDIRECT(CONCATENATE($B111,"!G23"))) ->  | AB111: =IF(ISERROR(INDIRECT(CONCATENATE($B111,"!G221"))),"",INDIRECT(CONCATENATE($B111,"!G21"))) -> 
D112: =IF(ISERROR(INDIRECT(CONCATENATE($B112,"!C16"))),"",INDIRECT(CONCATENATE($B112,"!C16"))) ->  | E112: =IF(ISERROR(INDIRECT(CONCATENATE($B112,"!C23"))),"",INDIRECT(CONCATENATE($B112,"!C23"))) ->  | H112: =IF(ISERROR(INDIRECT(CONCATENATE($B112,"!C21"))),"",INDIRECT(CONCATENATE($B112,"!C21"))) ->  | I112: =IF(ISERROR(INDIRECT(CONCATENATE($B112,"!D16"))),"",INDIRECT(CONCATENATE($B112,"!D16"))) ->  | J112: =IF(ISERROR(INDIRECT(CONCATENATE($B112,"!D23"))),"",INDIRECT(CONCATENATE($B112,"!D23"))) ->  | M112: =IF(ISERROR(INDIRECT(CONCATENATE($B112,"!D21"))),"",INDIRECT(CONCATENATE($B112,"!D21"))) ->  | N112: =IF(ISERROR(INDIRECT(CONCATENATE($B112,"!E16"))),"",INDIRECT(CONCATENATE($B112,"!E16"))) ->  | O112: =IF(ISERROR(INDIRECT(CONCATENATE($B112,"!E23"))),"",INDIRECT(CONCATENATE($B112,"!E23"))) ->  | R112: =IF(ISERROR(INDIRECT(CONCATENATE($B112,"!E21"))),"",INDIRECT(CONCATENATE($B112,"!E21"))) ->  | S112: =IF(ISERROR(INDIRECT(CONCATENATE($B112,"!F16"))),"",INDIRECT(CONCATENATE($B112,"!F16"))) ->  | T112: =IF(ISERROR(INDIRECT(CONCATENATE($B112,"!F23"))),"",INDIRECT(CONCATENATE($B112,"!F23"))) ->  | W112: =IF(ISERROR(INDIRECT(CONCATENATE($B112,"!F21"))),"",INDIRECT(CONCATENATE($B112,"!F21"))) ->  | X112: =IF(ISERROR(INDIRECT(CONCATENATE($B112,"!G16"))),"",INDIRECT(CONCATENATE($B112,"!G16"))) ->  | Y112: =IF(ISERROR(INDIRECT(CONCATENATE($B112,"!G23"))),"",INDIRECT(CONCATENATE($B112,"!G23"))) ->  | AB112: =IF(ISERROR(INDIRECT(CONCATENATE($B112,"!G221"))),"",INDIRECT(CONCATENATE($B112,"!G21"))) -> 
B118: =CONCATENATE("National use of drinking water sources, ",C99,"–",C100) -> National use of drinking water sources, 2000–2018 | S118: Data points used for regression
E153: =IF(ISERROR(INDIRECT(CONCATENATE($B153,"!M18"))),"",INDIRECT(CONCATENATE($B153,"!M18"))) ->  | F153: =IF(ISERROR(INDIRECT(CONCATENATE($B153,"!M19"))),"",INDIRECT(CONCATENATE($B153,"!M19"))) ->  | G153: =IF(ISERROR(INDIRECT(CONCATENATE($B153,"!M20"))),"",INDIRECT(CONCATENATE($B153,"!M20"))) ->  | H153: =IF(ISERROR(INDIRECT(CONCATENATE($B153,"!M21"))),"",INDIRECT(CONCATENATE($B153,"!M21"))) ->  | J153: =IF(ISERROR(INDIRECT(CONCATENATE($B153,"!N18"))),"",INDIRECT(CONCATENATE($B153,"!N18"))) ->  | K153: =IF(ISERROR(INDIRECT(CONCATENATE($B153,"!N19"))),"",INDIRECT(CONCATENATE($B153,"!N19"))) ->  | L153: =IF(ISERROR(INDIRECT(CONCATENATE($B153,"!N20"))),"",INDIRECT(CONCATENATE($B153,"!N20"))) ->  | M153: =IF(ISERROR(INDIRECT(CONCATENATE($B153,"!N21"))),"",INDIRECT(CONCATENATE($B153,"!N21"))) ->  | O153: =IF(ISERROR(INDIRECT(CONCATENATE($B153,"!O18"))),"",INDIRECT(CONCATENATE($B153,"!O18"))) ->  | P153: =IF(ISERROR(INDIRECT(CONCATENATE($B153,"!O19"))),"",INDIRECT(CONCATENATE($B153,"!O19"))) ->  | Q153: =IF(ISERROR(INDIRECT(CONCATENATE($B153,"!O20"))),"",INDIRECT(CONCATENATE($B153,"!O20"))) ->  | R153: =IF(ISERROR(INDIRECT(CONCATENATE($B153,"!O21"))),"",INDIRECT(CONCATENATE($B153,"!O21"))) ->  | T153: =IF(ISERROR(INDIRECT(CONCATENATE($B153,"!P18"))),"",INDIRECT(CONCATENATE($B153,"!P18"))) ->  | U153: =IF(ISERROR(INDIRECT(CONCATENATE($B153,"!P19"))),"",INDIRECT(CONCATENATE($B153,"!P19"))) ->  | V153: =IF(ISERROR(INDIRECT(CONCATENATE($B153,"!P20"))),"",INDIRECT(CONCATENATE($B153,"!P20"))) ->  | W153: =IF(ISERROR(INDIRECT(CONCATENATE($B153,"!P21"))),"",INDIRECT(CONCATENATE($B153,"!P21"))) ->  | Y153: =IF(ISERROR(INDIRECT(CONCATENATE($B153,"!Q18"))),"",INDIRECT(CONCATENATE($B153,"!Q18"))) ->  | Z153: =IF(ISERROR(INDIRECT(CONCATENATE($B153,"!Q19"))),"",INDIRECT(CONCATENATE($B153,"!Q19"))) ->  | AA153: =IF(ISERROR(INDIRECT(CONCATENATE($B153,"!Q20"))),"",INDIRECT(CONCATENATE($B153,"!Q20"))) ->  | AB153: =IF(ISERROR(INDIRECT(CONCATENATE($B153,"!Q21"))),"",INDIRECT(CONCATENATE($B153,"!Q1"))) -> 
A197: URBAN | D197: Poorest | I197: Poor | N197: Middle | S197: Rich | X197: Richest
D198: Improved | E198: Basic | F198: Limited | G198: Unimproved | H198: Surface water | I198: Improved | J198: Basic | K198: Limited | L198: Unimproved | M198: Surface water | N198: Improved | O198: Basic | P198: Limited | Q198: Unimproved | R198: Surface water | S198: Improved | T198: Basic | U198: Limited | V198: Unimproved | W198: Surface water | X198: Improved | Y198: Basic | Z198: Limited | AA198: Unimproved | AB198: Surface water
A199: Forecast period: | C199: =MinBase(C205:C216) -> 2000 | D199: =IF((D201+H201)>100,D201*100/(D201+H201),D201) -> 81.67265462 | E199: =D199*AVERAGEIF(E205:E216,">0")/100 -> 65.17477839 | F199: =D199*(100-AVERAGEIF(E205:E216,">0"))/100 -> 16.49787623 | G199: =100-(E199+F199+H199) -> 18.32734538 | H199: =IF((D201+H201)>100,H201*100/(D201+H201),H201) -> 0 | I199: =IF((I201+M201)>100,I201*100/(I201+M201),I201) -> 88.73415139 | J199: =I199*AVERAGEIF(J205:J216,">0")/100 -> 74.53668717 | K199: =I199*(100-AVERAGEIF(J205:J216,">0"))/100 -> 14.19746422 | L199: =100-(J199+K199+M199) -> 11.26584861 | M199: =IF((I201+M201)>100,M201*100/(I201+M201),M201) -> 0 | N199: =IF((N201+R201)>100,N201*100/(N201+R201),N201) -> 96.87026576 | O199: =N199*AVERAGEIF(O205:O216,">0")/100 -> 88.05507157 | P199: =N199*(100-AVERAGEIF(O205:O216,">0"))/100 -> 8.815194184 | Q199: =100-(O199+P199+R199) -> 3.129734242 | R199: =IF((N201+R201)>100,R201*100/(N201+R201),R201) -> 0 | S199: =IF((S201+W201)>100,S201*100/(S201+W201),S201) -> 94.74485063 | T199: =S199*AVERAGEIF(T205:T216,">0")/100 -> 88.30220078 | U199: =S199*(100-AVERAGEIF(T205:T216,">0"))/100 -> 6.442649843 | V199: =100-(T199+U199+W199) -> 5.255149373 | W199: =IF((S201+W201)>100,W201*100/(S201+W201),W201) -> 0 | X199: =IF((X201+AB201)>100,X201*100/(X201+AB201),X201) -> 96.71926406 | Y199: =X199*AVERAGEIF(Y205:Y216,">0")/100 -> 94.30128246 | Z199: =X199*(100-AVERAGEIF(Y205:Y216,">0"))/100 -> 2.417981602 | AA199: =100-(Y199+Z199+AB199) -> 3.280735936 | AB199: =IF((X201+AB201)>100,AB201*100/(X201+AB201),AB201) -> 0
C200: =MaxTarget(C205:C216) -> 2018 | D200: =IF((D202+H202)>100,D202*100/(D202+H202),D202) -> 95.13250019 | E200: =D200*AVERAGEIF(E205:E216,">0")/100 -> 75.91573515 | F200: =D200*(100-AVERAGEIF(E205:E216,">0"))/100 -> 19.21676504 | G200: =100-(E200+F200+H200) -> 4.631505869 | H200: =IF((D202+H202)>100,H202*100/(D202+H202),H202) -> 0.2359939387 | I200: =IF((I202+M202)>100,I202*100/(I202+M202),I202) -> 99.69756757 | J200: =I200*AVERAGEIF(J205:J216,">0")/100 -> 83.74595676 | K200: =I200*(100-AVERAGEIF(J205:J216,">0"))/100 -> 15.95161081 | L200: =100-(J200+K200+M200) -> 0 | M200: =IF((I202+M202)>100,M202*100/(I202+M202),M202) -> 0.3024324309 | N200: =IF((N202+R202)>100,N202*100/(N202+R202),N202) -> 99.83577041 | O200: =N200*AVERAGEIF(O205:O216,">0")/100 -> 90.7507153 | P200: =N200*(100-AVERAGEIF(O205:O216,">0"))/100 -> 9.085055107 | Q200: =100-(O200+P200+R200) -> 0.1642295929 | R200: =IF((N202+R202)>100,R202*100/(N202+R202),R202) -> 0 | S200: =IF((S202+W202)>100,S202*100/(S202+W202),S202) -> 100 | T200: =S200*AVERAGEIF(T205:T216,">0")/100 -> 93.2 | U200: =S200*(100-AVERAGEIF(T205:T216,">0"))/100 -> 6.8 | V200: =100-(T200+U200+W200) -> 0 | W200: =IF((S202+W202)>100,W202*100/(S202+W202),W202) -> 0 | X200: =IF((X202+AB202)>100,X202*100/(X202+AB202),X202) -> 99.37779516 | Y200: =X200*AVERAGEIF(Y205:Y216,">0")/100 -> 96.89335028 | Z200: =X200*(100-AVERAGEIF(Y205:Y216,">0"))/100 -> 2.484444879 | AA200: =100-(Y200+Z200+AB200) -> 0.6222048375 | AB200: =IF((X202+AB202)>100,AB202*100/(X202+AB202),AB202) -> 0
A201: Regression period: | C201: =MinRegYear(C199,C205:C216) -> 2004 | D201: =IF(MAX(C205:C216)-MIN(C205:C216)<5,AVERAGEIF(C205:C216,">0",D205:D216), IF(FORECAST($C201,D$205:D$216,$C$205:$C$216)<0,0, IF(FORECAST($C201,D$205:D$216,$C$205:$C$216)>100,100, FORECAST($C201,D$205:D$216,$C$205:$C$216)))) -> 81.67265462 | H201: =IF(MAX(C205:C216)-MIN(C205:C216)<5,AVERAGEIF(C205:C216,">0",H205:H216), IF(FORECAST($C201,H$205:H$216,$C$205:$C$216)<0,0, IF(FORECAST($C201,H$205:H$216,$C$205:$C$216)>100,100, FORECAST($C201,H$205:H$216,$C$205:$C$216)))) -> 0 | I201: =IF(MAX(C205:C216)-MIN(C205:C216)<5,AVERAGEIF(C205:C216,">0",I205:I216), IF(FORECAST($C201,I$205:I$216,$C$205:$C$216)<0,0, IF(FORECAST($C201,I$205:I$216,$C$205:$C$216)>100,100, FORECAST($C201,I$205:I$216,$C$205:$C$216)))) -> 88.73415139 | M201: =IF(MAX(C205:C216)-MIN(C205:C216)<5,AVERAGEIF(C205:C216,">0",M205:M216), IF(FORECAST($C201,M$205:M$216,$C$205:$C$216)<0,0, IF(FORECAST($C201,M$205:M$216,$C$205:$C$216)>100,100, FORECAST($C201,M$205:M$216,$C$205:$C$216)))) -> 0 | N201: =IF(MAX(C205:C216)-MIN(C205:C216)<5,AVERAGEIF(C205:C216,">0",N205:N216), IF(FORECAST($C201,N$205:N$216,$C$205:$C$216)<0,0, IF(FORECAST($C201,N$205:N$216,$C$205:$C$216)>100,100, FORECAST($C201,N$205:N$216,$C$205:$C$216)))) -> 96.87026576 | R201: =IF(MAX(C205:C216)-MIN(C205:C216)<5,AVERAGEIF(C205:C216,">0",R205:R216), IF(FORECAST($C201,R$205:R$216,$C$205:$C$216)<0,0, IF(FORECAST($C201,R$205:R$216,$C$205:$C$216)>100,100, FORECAST($C201,R$205:R$216,$C$205:$C$216)))) -> 0 | S201: =IF(MAX(C205:C216)-MIN(C205:C216)<5,AVERAGEIF(C205:C216,">0",S205:S216), IF(FORECAST($C201,S$205:S$216,$C$205:$C$216)<0,0, IF(FORECAST($C201,S$205:S$216,$C$205:$C$216)>100,100, FORECAST($C201,S$205:S$216,$C$205:$C$216)))) -> 94.74485063 | W201: =IF(MAX(C205:C216)-MIN(C205:C216)<5,AVERAGEIF(C205:C216,">0",W205:W216), IF(FORECAST($C201,W$205:W$216,$C$205:$C$216)<0,0, IF(FORECAST($C201,W$205:W$216,$C$205:$C$216)>100,100, FORECAST($C201,W$205:W$216,$C$205:$C$216)))) -> 0 | X201: =IF(MAX(C205:C216)-MIN(C205:C216)<5,AVERAGEIF(C205:C216,">0",X205:X216), IF(FORECAST($C201,X$205:X$216,$C$205:$C$216)<0,0, IF(FORECAST($C201,X$205:X$216,$C$205:$C$216)>100,100, FORECAST($C201,X$205:X$216,$C$205:$C$216)))) -> 96.71926406 | AB201: =IF(MAX(C205:C216)-MIN(C205:C216)<5,AVERAGEIF(C205:C216,">0",AB205:AB216), IF(FORECAST($C201,AB$205:AB$216,$C$205:$C$216)<0,0, IF(FORECAST($C201,AB$205:AB$216,$C$205:$C$216)>100,100, FORECAST($C201,AB$205:AB$216,$C$205:$C$216)))) -> 0
C202: =MaxRegYear(C200,C205:C216) -> 2014 | D202: =IF(MAX(C205:C216)-MIN(C205:C216)<5,AVERAGEIF(C205:C216,">0",D205:D216), IF(FORECAST($C202,D$205:D$216,$C$205:$C$216)<0,0, IF(FORECAST($C202,D$205:D$216,$C$205:$C$216)>100,100, FORECAST($C202,D$205:D$216,$C$205:$C$216)))) -> 95.13250019 | H202: =IF(MAX(C205:C216)-MIN(C205:C216)<5,AVERAGEIF(C205:C216,">0",H205:H216), IF(FORECAST($C202,H$205:H$216,$C$205:$C$216)<0,0, IF(FORECAST($C202,H$205:H$216,$C$205:$C$216)>100,100, FORECAST($C202,H$205:H$216,$C$205:$C$216)))) -> 0.2359939387 | I202: =IF(MAX(C205:C216)-MIN(C205:C216)<5,AVERAGEIF(C205:C216,">0",I205:I216), IF(FORECAST($C202,I$205:I$216,$C$205:$C$216)<0,0, IF(FORECAST($C202,I$205:I$216,$C$205:$C$216)>100,100, FORECAST($C202,I$205:I$216,$C$205:$C$216)))) -> 100 | M202: =IF(MAX(C205:C216)-MIN(C205:C216)<5,AVERAGEIF(C205:C216,">0",M205:M216), IF(FORECAST($C202,M$205:M$216,$C$205:$C$216)<0,0, IF(FORECAST($C202,M$205:M$216,$C$205:$C$216)>100,100, FORECAST($C202,M$205:M$216,$C$205:$C$216)))) -> 0.3033498593 | N202: =IF(MAX(C205:C216)-MIN(C205:C216)<5,AVERAGEIF(C205:C216,">0",N205:N216), IF(FORECAST($C202,N$205:N$216,$C$205:$C$216)<0,0, IF(FORECAST($C202,N$205:N$216,$C$205:$C$216)>100,100, FORECAST($C202,N$205:N$216,$C$205:$C$216)))) -> 99.83577041 | R202: =IF(MAX(C205:C216)-MIN(C205:C216)<5,AVERAGEIF(C205:C216,">0",R205:R216), IF(FORECAST($C202,R$205:R$216,$C$205:$C$216)<0,0, IF(FORECAST($C202,R$205:R$216,$C$205:$C$216)>100,100, FORECAST($C202,R$205:R$216,$C$205:$C$216)))) -> 0 | S202: =IF(MAX(C205:C216)-MIN(C205:C216)<5,AVERAGEIF(C205:C216,">0",S205:S216), IF(FORECAST($C202,S$205:S$216,$C$205:$C$216)<0,0, IF(FORECAST($C202,S$205:S$216,$C$205:$C$216)>100,100, FORECAST($C202,S$205:S$216,$C$205:$C$216)))) -> 100 | W202: =IF(MAX(C205:C216)-MIN(C205:C216)<5,AVERAGEIF(C205:C216,">0",W205:W216), IF(FORECAST($C202,W$205:W$216,$C$205:$C$216)<0,0, IF(FORECAST($C202,W$205:W$216,$C$205:$C$216)>100,100, FORECAST($C202,W$205:W$216,$C$205:$C$216)))) -> 0 | X202: =IF(MAX(C205:C216)-MIN(C205:C216)<5,AVERAGEIF(C205:C216,">0",X205:X216), IF(FORECAST($C202,X$205:X$216,$C$205:$C$216)<0,0, IF(FORECAST($C202,X$205:X$216,$C$205:$C$216)>100,100, FORECAST($C202,X$205:X$216,$C$205:$C$216)))) -> 99.37779516 | AB202: =IF(MAX(C205:C216)-MIN(C205:C216)<5,AVERAGEIF(C205:C216,">0",AB205:AB216), IF(FORECAST($C202,AB$205:AB$216,$C$205:$C$216)<0,0, IF(FORECAST($C202,AB$205:AB$216,$C$205:$C$216)>100,100, FORECAST($C202,AB$205:AB$216,$C$205:$C$216)))) -> 0
B204: Survey | C204: Year | D204: Improved | E204: % Improved < = 30min | H204: Surface water | I204: Improved | J204: % Improved < = 30min | M204: Surface water | N204: Improved | O204: % Improved < = 30min | R204: Surface water | S204: Improved | T204: % Improved < = 30min | W204: Surface water | X204: Improved | Y204: % Improved < = 30min | AB204: Surface water
B205: DHS06 | C205: 2006 | D205: =IF(ISERROR(INDIRECT(CONCATENATE($B205,"!H16"))),"",INDIRECT(CONCATENATE($B205,"!H16"))) -> 84.36462373 | E205: =IF(ISERROR(INDIRECT(CONCATENATE($B205,"!H23"))),"",INDIRECT(CONCATENATE($B205,"!H23"))) -> N/A | H205: =IF(ISERROR(INDIRECT(CONCATENATE($B205,"!H21"))),"",INDIRECT(CONCATENATE($B205,"!H21"))) -> 0.0402791415 | I205: =IF(ISERROR(INDIRECT(CONCATENATE($B205,"!I16"))),"",INDIRECT(CONCATENATE($B205,"!I16"))) -> 91.07842963 | J205: =IF(ISERROR(INDIRECT(CONCATENATE($B205,"!I23"))),"",INDIRECT(CONCATENATE($B205,"!I23"))) -> N/A | M205: =IF(ISERROR(INDIRECT(CONCATENATE($B205,"!I21"))),"",INDIRECT(CONCATENATE($B205,"!I21"))) -> 0.06021503315 | N205: =IF(ISERROR(INDIRECT(CONCATENATE($B205,"!J16"))),"",INDIRECT(CONCATENATE($B205,"!J16"))) -> 97.46336669 | O205: =IF(ISERROR(INDIRECT(CONCATENATE($B205,"!J23"))),"",INDIRECT(CONCATENATE($B205,"!J23"))) -> N/A | R205: =IF(ISERROR(INDIRECT(CONCATENATE($B205,"!J21"))),"",INDIRECT(CONCATENATE($B205,"!J21"))) -> 0 | S205: =IF(ISERROR(INDIRECT(CONCATENATE($B205,"!K16"))),"",INDIRECT(CONCATENATE($B205,"!K16"))) -> 95.84333692 | T205: =IF(ISERROR(INDIRECT(CONCATENATE($B205,"!K23"))),"",INDIRECT(CONCATENATE($B205,"!K23"))) -> N/A | W205: =IF(ISERROR(INDIRECT(CONCATENATE($B205,"!K21"))),"",INDIRECT(CONCATENATE($B205,"!K21"))) -> 0 | X205: =IF(ISERROR(INDIRECT(CONCATENATE($B205,"!L16"))),"",INDIRECT(CONCATENATE($B205,"!L16"))) -> 97.25097028 | Y205: =IF(ISERROR(INDIRECT(CONCATENATE($B205,"!L23"))),"",INDIRECT(CONCATENATE($B205,"!L23"))) -> N/A | AB205: =IF(ISERROR(INDIRECT(CONCATENATE($B205,"!L221"))),"",INDIRECT(CONCATENATE($B205,"!L21"))) -> 0
B206: DHS12 | C206: 2012 | D206: 92.44053108 | E206: 79.8 | H206: 0.1870652394 | I206: 98.11126434 | J206: 84 | M206: 0.2425661527 | N206: 99.24266948 | O206: 90.9 | R206: 0 | S206: 99.13879582 | T206: 93.2 | W206: 0 | X206: 98.84608894 | Y206: 97.5 | AB206: 0
B218: =CONCATENATE("Urban use of drinking water sources, ",C199,"–",C200) -> Urban use of drinking water sources, 2000–2018 | S218: Data points used for regression
E253: =IF(ISERROR(INDIRECT(CONCATENATE($B253,"!M18"))),"",INDIRECT(CONCATENATE($B253,"!M18"))) ->  | F253: =IF(ISERROR(INDIRECT(CONCATENATE($B253,"!M19"))),"",INDIRECT(CONCATENATE($B253,"!M19"))) ->  | G253: =IF(ISERROR(INDIRECT(CONCATENATE($B253,"!M20"))),"",INDIRECT(CONCATENATE($B253,"!M20"))) ->  | H253: =IF(ISERROR(INDIRECT(CONCATENATE($B253,"!M21"))),"",INDIRECT(CONCATENATE($B253,"!M21"))) ->  | J253: =IF(ISERROR(INDIRECT(CONCATENATE($B253,"!N18"))),"",INDIRECT(CONCATENATE($B253,"!N18"))) ->  | K253: =IF(ISERROR(INDIRECT(CONCATENATE($B253,"!N19"))),"",INDIRECT(CONCATENATE($B253,"!N19"))) ->  | L253: =IF(ISERROR(INDIRECT(CONCATENATE($B253,"!N20"))),"",INDIRECT(CONCATENATE($B253,"!N20"))) ->  | M253: =IF(ISERROR(INDIRECT(CONCATENATE($B253,"!N21"))),"",INDIRECT(CONCATENATE($B253,"!N21"))) ->  | O253: =IF(ISERROR(INDIRECT(CONCATENATE($B253,"!O18"))),"",INDIRECT(CONCATENATE($B253,"!O18"))) ->  | P253: =IF(ISERROR(INDIRECT(CONCATENATE($B253,"!O19"))),"",INDIRECT(CONCATENATE($B253,"!O19"))) ->  | Q253: =IF(ISERROR(INDIRECT(CONCATENATE($B253,"!O20"))),"",INDIRECT(CONCATENATE($B253,"!O20"))) ->  | R253: =IF(ISERROR(INDIRECT(CONCATENATE($B253,"!O21"))),"",INDIRECT(CONCATENATE($B253,"!O21"))) ->  | T253: =IF(ISERROR(INDIRECT(CONCATENATE($B253,"!P18"))),"",INDIRECT(CONCATENATE($B253,"!P18"))) ->  | U253: =IF(ISERROR(INDIRECT(CONCATENATE($B253,"!P19"))),"",INDIRECT(CONCATENATE($B253,"!P19"))) ->  | V253: =IF(ISERROR(INDIRECT(CONCATENATE($B253,"!P20"))),"",INDIRECT(CONCATENATE($B253,"!P20"))) ->  | W253: =IF(ISERROR(INDIRECT(CONCATENATE($B253,"!P21"))),"",INDIRECT(CONCATENATE($B253,"!P21"))) ->  | Y253: =IF(ISERROR(INDIRECT(CONCATENATE($B253,"!Q18"))),"",INDIRECT(CONCATENATE($B253,"!Q18"))) ->  | Z253: =IF(ISERROR(INDIRECT(CONCATENATE($B253,"!Q19"))),"",INDIRECT(CONCATENATE($B253,"!Q19"))) ->  | AA253: =IF(ISERROR(INDIRECT(CONCATENATE($B253,"!Q20"))),"",INDIRECT(CONCATENATE($B253,"!Q20"))) ->  | AB253: =IF(ISERROR(INDIRECT(CONCATENATE($B253,"!Q21"))),"",INDIRECT(CONCATENATE($B253,"!Q1"))) -> 
E254: =IF(ISERROR(INDIRECT(CONCATENATE($B254,"!M18"))),"",INDIRECT(CONCATENATE($B254,"!M18"))) ->  | F254: =IF(ISERROR(INDIRECT(CONCATENATE($B254,"!M19"))),"",INDIRECT(CONCATENATE($B254,"!M19"))) ->  | G254: =IF(ISERROR(INDIRECT(CONCATENATE($B254,"!M20"))),"",INDIRECT(CONCATENATE($B254,"!M20"))) ->  | H254: =IF(ISERROR(INDIRECT(CONCATENATE($B254,"!M21"))),"",INDIRECT(CONCATENATE($B254,"!M21"))) ->  | J254: =IF(ISERROR(INDIRECT(CONCATENATE($B254,"!N18"))),"",INDIRECT(CONCATENATE($B254,"!N18"))) ->  | K254: =IF(ISERROR(INDIRECT(CONCATENATE($B254,"!N19"))),"",INDIRECT(CONCATENATE($B254,"!N19"))) ->  | L254: =IF(ISERROR(INDIRECT(CONCATENATE($B254,"!N20"))),"",INDIRECT(CONCATENATE($B254,"!N20"))) ->  | M254: =IF(ISERROR(INDIRECT(CONCATENATE($B254,"!N21"))),"",INDIRECT(CONCATENATE($B254,"!N21"))) ->  | O254: =IF(ISERROR(INDIRECT(CONCATENATE($B254,"!O18"))),"",INDIRECT(CONCATENATE($B254,"!O18"))) ->  | P254: =IF(ISERROR(INDIRECT(CONCATENATE($B254,"!O19"))),"",INDIRECT(CONCATENATE($B254,"!O19"))) ->  | Q254: =IF(ISERROR(INDIRECT(CONCATENATE($B254,"!O20"))),"",INDIRECT(CONCATENATE($B254,"!O20"))) ->  | R254: =IF(ISERROR(INDIRECT(CONCATENATE($B254,"!O21"))),"",INDIRECT(CONCATENATE($B254,"!O21"))) ->  | T254: =IF(ISERROR(INDIRECT(CONCATENATE($B254,"!P18"))),"",INDIRECT(CONCATENATE($B254,"!P18"))) ->  | U254: =IF(ISERROR(INDIRECT(CONCATENATE($B254,"!P19"))),"",INDIRECT(CONCATENATE($B254,"!P19"))) ->  | V254: =IF(ISERROR(INDIRECT(CONCATENATE($B254,"!P20"))),"",INDIRECT(CONCATENATE($B254,"!P20"))) ->  | W254: =IF(ISERROR(INDIRECT(CONCATENATE($B254,"!P21"))),"",INDIRECT(CONCATENATE($B254,"!P21"))) ->  | Y254: =IF(ISERROR(INDIRECT(CONCATENATE($B254,"!Q18"))),"",INDIRECT(CONCATENATE($B254,"!Q18"))) ->  | Z254: =IF(ISERROR(INDIRECT(CONCATENATE($B254,"!Q19"))),"",INDIRECT(CONCATENATE($B254,"!Q19"))) ->  | AA254: =IF(ISERROR(INDIRECT(CONCATENATE($B254,"!Q20"))),"",INDIRECT(CONCATENATE($B254,"!Q20"))) ->  | AB254: =IF(ISERROR(INDIRECT(CONCATENATE($B254,"!Q21"))),"",INDIRECT(CONCATENATE($B254,"!Q1"))) -> 
E255: =IF(ISERROR(INDIRECT(CONCATENATE($B255,"!M18"))),"",INDIRECT(CONCATENATE($B255,"!M18"))) ->  | F255: =IF(ISERROR(INDIRECT(CONCATENATE($B255,"!M19"))),"",INDIRECT(CONCATENATE($B255,"!M19"))) ->  | G255: =IF(ISERROR(INDIRECT(CONCATENATE($B255,"!M20"))),"",INDIRECT(CONCATENATE($B255,"!M20"))) ->  | H255: =IF(ISERROR(INDIRECT(CONCATENATE($B255,"!M21"))),"",INDIRECT(CONCATENATE($B255,"!M21"))) ->  | J255: =IF(ISERROR(INDIRECT(CONCATENATE($B255,"!N18"))),"",INDIRECT(CONCATENATE($B255,"!N18"))) ->  | K255: =IF(ISERROR(INDIRECT(CONCATENATE($B255,"!N19"))),"",INDIRECT(CONCATENATE($B255,"!N19"))) ->  | L255: =IF(ISERROR(INDIRECT(CONCATENATE($B255,"!N20"))),"",INDIRECT(CONCATENATE($B255,"!N20"))) ->  | M255: =IF(ISERROR(INDIRECT(CONCATENATE($B255,"!N21"))),"",INDIRECT(CONCATENATE($B255,"!N21"))) ->  | O255: =IF(ISERROR(INDIRECT(CONCATENATE($B255,"!O18"))),"",INDIRECT(CONCATENATE($B255,"!O18"))) ->  | P255: =IF(ISERROR(INDIRECT(CONCATENATE($B255,"!O19"))),"",INDIRECT(CONCATENATE($B255,"!O19"))) ->  | Q255: =IF(ISERROR(INDIRECT(CONCATENATE($B255,"!O20"))),"",INDIRECT(CONCATENATE($B255,"!O20"))) ->  | R255: =IF(ISERROR(INDIRECT(CONCATENATE($B255,"!O21"))),"",INDIRECT(CONCATENATE($B255,"!O21"))) ->  | T255: =IF(ISERROR(INDIRECT(CONCATENATE($B255,"!P18"))),"",INDIRECT(CONCATENATE($B255,"!P18"))) ->  | U255: =IF(ISERROR(INDIRECT(CONCATENATE($B255,"!P19"))),"",INDIRECT(CONCATENATE($B255,"!P19"))) ->  | V255: =IF(ISERROR(INDIRECT(CONCATENATE($B255,"!P20"))),"",INDIRECT(CONCATENATE($B255,"!P20"))) ->  | W255: =IF(ISERROR(INDIRECT(CONCATENATE($B255,"!P21"))),"",INDIRECT(CONCATENATE($B255,"!P21"))) ->  | Y255: =IF(ISERROR(INDIRECT(CONCATENATE($B255,"!Q18"))),"",INDIRECT(CONCATENATE($B255,"!Q18"))) ->  | Z255: =IF(ISERROR(INDIRECT(CONCATENATE($B255,"!Q19"))),"",INDIRECT(CONCATENATE($B255,"!Q19"))) ->  | AA255: =IF(ISERROR(INDIRECT(CONCATENATE($B255,"!Q20"))),"",INDIRECT(CONCATENATE($B255,"!Q20"))) ->  | AB255: =IF(ISERROR(INDIRECT(CONCATENATE($B255,"!Q21"))),"",INDIRECT(CONCATENATE($B255,"!Q1"))) -> 
E256: =IF(ISERROR(INDIRECT(CONCATENATE($B256,"!M18"))),"",INDIRECT(CONCATENATE($B256,"!M18"))) ->  | F256: =IF(ISERROR(INDIRECT(CONCATENATE($B256,"!M19"))),"",INDIRECT(CONCATENATE($B256,"!M19"))) ->  | G256: =IF(ISERROR(INDIRECT(CONCATENATE($B256,"!M20"))),"",INDIRECT(CONCATENATE($B256,"!M20"))) ->  | H256: =IF(ISERROR(INDIRECT(CONCATENATE($B256,"!M21"))),"",INDIRECT(CONCATENATE($B256,"!M21"))) ->  | J256: =IF(ISERROR(INDIRECT(CONCATENATE($B256,"!N18"))),"",INDIRECT(CONCATENATE($B256,"!N18"))) ->  | K256: =IF(ISERROR(INDIRECT(CONCATENATE($B256,"!N19"))),"",INDIRECT(CONCATENATE($B256,"!N19"))) ->  | L256: =IF(ISERROR(INDIRECT(CONCATENATE($B256,"!N20"))),"",INDIRECT(CONCATENATE($B256,"!N20"))) ->  | M256: =IF(ISERROR(INDIRECT(CONCATENATE($B256,"!N21"))),"",INDIRECT(CONCATENATE($B256,"!N21"))) ->  | O256: =IF(ISERROR(INDIRECT(CONCATENATE($B256,"!O18"))),"",INDIRECT(CONCATENATE($B256,"!O18"))) ->  | P256: =IF(ISERROR(INDIRECT(CONCATENATE($B256,"!O19"))),"",INDIRECT(CONCATENATE($B256,"!O19"))) ->  | Q256: =IF(ISERROR(INDIRECT(CONCATENATE($B256,"!O20"))),"",INDIRECT(CONCATENATE($B256,"!O20"))) ->  | R256: =IF(ISERROR(INDIRECT(CONCATENATE($B256,"!O21"))),"",INDIRECT(CONCATENATE($B256,"!O21"))) ->  | T256: =IF(ISERROR(INDIRECT(CONCATENATE($B256,"!P18"))),"",INDIRECT(CONCATENATE($B256,"!P18"))) ->  | U256: =IF(ISERROR(INDIRECT(CONCATENATE($B256,"!P19"))),"",INDIRECT(CONCATENATE($B256,"!P19"))) ->  | V256: =IF(ISERROR(INDIRECT(CONCATENATE($B256,"!P20"))),"",INDIRECT(CONCATENATE($B256,"!P20"))) ->  | W256: =IF(ISERROR(INDIRECT(CONCATENATE($B256,"!P21"))),"",INDIRECT(CONCATENATE($B256,"!P21"))) ->  | Y256: =IF(ISERROR(INDIRECT(CONCATENATE($B256,"!Q18"))),"",INDIRECT(CONCATENATE($B256,"!Q18"))) ->  | Z256: =IF(ISERROR(INDIRECT(CONCATENATE($B256,"!Q19"))),"",INDIRECT(CONCATENATE($B256,"!Q19"))) ->  | AA256: =IF(ISERROR(INDIRECT(CONCATENATE($B256,"!Q20"))),"",INDIRECT(CONCATENATE($B256,"!Q20"))) ->  | AB256: =IF(ISERROR(INDIRECT(CONCATENATE($B256,"!Q21"))),"",INDIRECT(CONCATENATE($B256,"!Q1"))) -> 
E257: =IF(ISERROR(INDIRECT(CONCATENATE($B257,"!M18"))),"",INDIRECT(CONCATENATE($B257,"!M18"))) ->  | F257: =IF(ISERROR(INDIRECT(CONCATENATE($B257,"!M19"))),"",INDIRECT(CONCATENATE($B257,"!M19"))) ->  | G257: =IF(ISERROR(INDIRECT(CONCATENATE($B257,"!M20"))),"",INDIRECT(CONCATENATE($B257,"!M20"))) ->  | H257: =IF(ISERROR(INDIRECT(CONCATENATE($B257,"!M21"))),"",INDIRECT(CONCATENATE($B257,"!M21"))) ->  | J257: =IF(ISERROR(INDIRECT(CONCATENATE($B257,"!N18"))),"",INDIRECT(CONCATENATE($B257,"!N18"))) ->  | K257: =IF(ISERROR(INDIRECT(CONCATENATE($B257,"!N19"))),"",INDIRECT(CONCATENATE($B257,"!N19"))) ->  | L257: =IF(ISERROR(INDIRECT(CONCATENATE($B257,"!N20"))),"",INDIRECT(CONCATENATE($B257,"!N20"))) ->  | M257: =IF(ISERROR(INDIRECT(CONCATENATE($B257,"!N21"))),"",INDIRECT(CONCATENATE($B257,"!N21"))) ->  | O257: =IF(ISERROR(INDIRECT(CONCATENATE($B257,"!O18"))),"",INDIRECT(CONCATENATE($B257,"!O18"))) ->  | P257: =IF(ISERROR(INDIRECT(CONCATENATE($B257,"!O19"))),"",INDIRECT(CONCATENATE($B257,"!O19"))) ->  | Q257: =IF(ISERROR(INDIRECT(CONCATENATE($B257,"!O20"))),"",INDIRECT(CONCATENATE($B257,"!O20"))) ->  | R257: =IF(ISERROR(INDIRECT(CONCATENATE($B257,"!O21"))),"",INDIRECT(CONCATENATE($B257,"!O21"))) ->  | T257: =IF(ISERROR(INDIRECT(CONCATENATE($B257,"!P18"))),"",INDIRECT(CONCATENATE($B257,"!P18"))) ->  | U257: =IF(ISERROR(INDIRECT(CONCATENATE($B257,"!P19"))),"",INDIRECT(CONCATENATE($B257,"!P19"))) ->  | V257: =IF(ISERROR(INDIRECT(CONCATENATE($B257,"!P20"))),"",INDIRECT(CONCATENATE($B257,"!P20"))) ->  | W257: =IF(ISERROR(INDIRECT(CONCATENATE($B257,"!P21"))),"",INDIRECT(CONCATENATE($B257,"!P21"))) ->  | Y257: =IF(ISERROR(INDIRECT(CONCATENATE($B257,"!Q18"))),"",INDIRECT(CONCATENATE($B257,"!Q18"))) ->  | Z257: =IF(ISERROR(INDIRECT(CONCATENATE($B257,"!Q19"))),"",INDIRECT(CONCATENATE($B257,"!Q19"))) ->  | AA257: =IF(ISERROR(INDIRECT(CONCATENATE($B257,"!Q20"))),"",INDIRECT(CONCATENATE($B257,"!Q20"))) ->  | AB257: =IF(ISERROR(INDIRECT(CONCATENATE($B257,"!Q21"))),"",INDIRECT(CONCATENATE($B257,"!Q1"))) -> 
A297: RURAL | D297: Poorest | I297: Poor | N297: Middle | S297: Rich | X297: Richest
D298: Improved | E298: Basic | F298: Limited | G298: Unimproved | H298: Surface water | I298: Improved | J298: Basic | K298: Limited | L298: Unimproved | M298: Surface water | N298: Improved | O298: Basic | P298: Limited | Q298: Unimproved | R298: Surface water | S298: Improved | T298: Basic | U298: Limited | V298: Unimproved | W298: Surface water | X298: Improved | Y298: Basic | Z298: Limited | AA298: Unimproved | AB298: Surface water
A299: Forecast period: | C299: 2000 | D299: =IF((D301+H301)>100,D301*100/(D301+H301),D301) -> 36.90161968 | E299: =D299*AVERAGEIF(E305:E316,">0")/100 -> 24.28126575 | F299: =D299*(100-AVERAGEIF(E305:E316,">0"))/100 -> 12.62035393 | G299: =100-(E299+F299+H299) -> 61.55398342 | H299: =IF((D301+H301)>100,H301*100/(D301+H301),H301) -> 1.544396906 | I299: =IF((I301+M301)>100,I301*100/(I301+M301),I301) -> 36.18134813 | J299: =I299*AVERAGEIF(J305:J316,">0")/100 -> 22.54097988 | K299: =I299*(100-AVERAGEIF(J305:J316,">0"))/100 -> 13.64036824 | L299: =100-(J299+K299+M299) -> 63.03048168 | M299: =IF((I301+M301)>100,M301*100/(I301+M301),M301) -> 0.7881701888 | N299: =IF((N301+R301)>100,N301*100/(N301+R301),N301) -> 40.22527979 | O299: =N299*AVERAGEIF(O305:O316,">0")/100 -> 26.42800882 | P299: =N299*(100-AVERAGEIF(O305:O316,">0"))/100 -> 13.79727097 | Q299: =100-(O299+P299+R299) -> 58.05614176 | R299: =IF((N301+R301)>100,R301*100/(N301+R301),R301) -> 1.718578451 | S299: =IF((S301+W301)>100,S301*100/(S301+W301),S301) -> 37.12226975 | T299: =S299*AVERAGEIF(T305:T316,">0")/100 -> 24.42645349 | U299: =S299*(100-AVERAGEIF(T305:T316,">0"))/100 -> 12.69581625 | V299: =100-(T299+U299+W299) -> 60.43786749 | W299: =IF((S301+W301)>100,W301*100/(S301+W301),W301) -> 2.439862762 | X299: =IF((X301+AB301)>100,X301*100/(X301+AB301),X301) -> 39.4516362 | Y299: =X299*AVERAGEIF(Y305:Y316,">0")/100 -> 26.78766098 | Z299: =X299*(100-AVERAGEIF(Y305:Y316,">0"))/100 -> 12.66397522 | AA299: =100-(Y299+Z299+AB299) -> 57.86558734 | AB299: =IF((X301+AB301)>100,AB301*100/(X301+AB301),AB301) -> 2.682776461
C300: 2018 | D300: =IF((D302+H302)>100,D302*100/(D302+H302),D302) -> 66.55426349 | E300: =D300*AVERAGEIF(E305:E316,">0")/100 -> 43.79270538 | F300: =D300*(100-AVERAGEIF(E305:E316,">0"))/100 -> 22.76155811 | G300: =100-(E300+F300+H300) -> 32.51211665 | H300: =IF((D302+H302)>100,H302*100/(D302+H302),H302) -> 0.9336198627 | I300: =IF((I302+M302)>100,I302*100/(I302+M302),I302) -> 68.2370977 | J300: =I300*AVERAGEIF(J305:J316,">0")/100 -> 42.51171187 | K300: =I300*(100-AVERAGEIF(J305:J316,">0"))/100 -> 25.72538583 | L300: =100-(J300+K300+M300) -> 29.99422375 | M300: =IF((I302+M302)>100,M302*100/(I302+M302),M302) -> 1.768678552 | N300: =IF((N302+R302)>100,N302*100/(N302+R302),N302) -> 66.51897216 | O300: =N300*AVERAGEIF(O305:O316,">0")/100 -> 43.70296471 | P300: =N300*(100-AVERAGEIF(O305:O316,">0"))/100 -> 22.81600745 | Q300: =100-(O300+P300+R300) -> 32.29165062 | R300: =IF((N302+R302)>100,R302*100/(N302+R302),R302) -> 1.189377219 | S300: =IF((S302+W302)>100,S302*100/(S302+W302),S302) -> 63.61480733 | T300: =S300*AVERAGEIF(T305:T316,">0")/100 -> 41.85854323 | U300: =S300*(100-AVERAGEIF(T305:T316,">0"))/100 -> 21.75626411 | V300: =100-(T300+U300+W300) -> 35.57353086 | W300: =IF((S302+W302)>100,W302*100/(S302+W302),W302) -> 0.811661808 | X300: =IF((X302+AB302)>100,X302*100/(X302+AB302),X302) -> 65.90749811 | Y300: =X300*AVERAGEIF(Y305:Y316,">0")/100 -> 44.75119121 | Z300: =X300*(100-AVERAGEIF(Y305:Y316,">0"))/100 -> 21.15630689 | AA300: =100-(Y300+Z300+AB300) -> 32.68129655 | AB300: =IF((X302+AB302)>100,AB302*100/(X302+AB302),AB302) -> 1.411205343
A301: Regression period: | C301: =MinRegYear(C299,C305:C316) -> 2004 | D301: =IF(MAX(C305:C316)-MIN(C305:C316)<5,AVERAGEIF(C305:C316,">0",D305:D316), IF(FORECAST($C301,D$305:D$316,$C$305:$C$316)<0,0, IF(FORECAST($C301,D$305:D$316,$C$305:$C$316)>100,100, FORECAST($C301,D$305:D$316,$C$305:$C$316)))) -> 36.90161968 | H301: =IF(MAX(C305:C316)-MIN(C305:C316)<5,AVERAGEIF(C305:C316,">0",H305:H316), IF(FORECAST($C301,H$305:H$316,$C$305:$C$316)<0,0, IF(FORECAST($C301,H$305:H$316,$C$305:$C$316)>100,100, FORECAST($C301,H$305:H$316,$C$305:$C$316)))) -> 1.544396906 | I301: =IF(MAX(C305:C316)-MIN(C305:C316)<5,AVERAGEIF(C305:C316,">0",I305:I316), IF(FORECAST($C301,I$305:I$316,$C$305:$C$316)<0,0, IF(FORECAST($C301,I$305:I$316,$C$305:$C$316)>100,100, FORECAST($C301,I$305:I$316,$C$305:$C$316)))) -> 36.18134813 | M301: =IF(MAX(C305:C316)-MIN(C305:C316)<5,AVERAGEIF(C305:C316,">0",M305:M316), IF(FORECAST($C301,M$305:M$316,$C$305:$C$316)<0,0, IF(FORECAST($C301,M$305:M$316,$C$305:$C$316)>100,100, FORECAST($C301,M$305:M$316,$C$305:$C$316)))) -> 0.7881701888 | N301: =IF(MAX(C305:C316)-MIN(C305:C316)<5,AVERAGEIF(C305:C316,">0",N305:N316), IF(FORECAST($C301,N$305:N$316,$C$305:$C$316)<0,0, IF(FORECAST($C301,N$305:N$316,$C$305:$C$316)>100,100, FORECAST($C301,N$305:N$316,$C$305:$C$316)))) -> 40.22527979 | R301: =IF(MAX(C305:C316)-MIN(C305:C316)<5,AVERAGEIF(C305:C316,">0",R305:R316), IF(FORECAST($C301,R$305:R$316,$C$305:$C$316)<0,0, IF(FORECAST($C301,R$305:R$316,$C$305:$C$316)>100,100, FORECAST($C301,R$305:R$316,$C$305:$C$316)))) -> 1.718578451 | S301: =IF(MAX(C305:C316)-MIN(C305:C316)<5,AVERAGEIF(C305:C316,">0",S305:S316), IF(FORECAST($C301,S$305:S$316,$C$305:$C$316)<0,0, IF(FORECAST($C301,S$305:S$316,$C$305:$C$316)>100,100, FORECAST($C301,S$305:S$316,$C$305:$C$316)))) -> 37.12226975 | W301: =IF(MAX(C305:C316)-MIN(C305:C316)<5,AVERAGEIF(C305:C316,">0",W305:W316), IF(FORECAST($C301,W$305:W$316,$C$305:$C$316)<0,0, IF(FORECAST($C301,W$305:W$316,$C$305:$C$316)>100,100, FORECAST($C301,W$305:W$316,$C$305:$C$316)))) -> 2.439862762 | X301: =IF(MAX(C305:C316)-MIN(C305:C316)<5,AVERAGEIF(C305:C316,">0",X305:X316), IF(FORECAST($C301,X$305:X$316,$C$305:$C$316)<0,0, IF(FORECAST($C301,X$305:X$316,$C$305:$C$316)>100,100, FORECAST($C301,X$305:X$316,$C$305:$C$316)))) -> 39.4516362 | AB301: =IF(MAX(C305:C316)-MIN(C305:C316)<5,AVERAGEIF(C305:C316,">0",AB305:AB316), IF(FORECAST($C301,AB$305:AB$316,$C$305:$C$316)<0,0, IF(FORECAST($C301,AB$305:AB$316,$C$305:$C$316)>100,100, FORECAST($C301,AB$305:AB$316,$C$305:$C$316)))) -> 2.682776461
C302: =MaxRegYear(C300,C305:C316) -> 2014 | D302: =IF(MAX(C305:C316)-MIN(C305:C316)<5,AVERAGEIF(C305:C316,">0",D305:D316), IF(FORECAST($C302,D$305:D$316,$C$305:$C$316)<0,0, IF(FORECAST($C302,D$305:D$316,$C$305:$C$316)>100,100, FORECAST($C302,D$305:D$316,$C$305:$C$316)))) -> 66.55426349 | H302: =IF(MAX(C305:C316)-MIN(C305:C316)<5,AVERAGEIF(C305:C316,">0",H305:H316), IF(FORECAST($C302,H$305:H$316,$C$305:$C$316)<0,0, IF(FORECAST($C302,H$305:H$316,$C$305:$C$316)>100,100, FORECAST($C302,H$305:H$316,$C$305:$C$316)))) -> 0.9336198627 | I302: =IF(MAX(C305:C316)-MIN(C305:C316)<5,AVERAGEIF(C305:C316,">0",I305:I316), IF(FORECAST($C302,I$305:I$316,$C$305:$C$316)<0,0, IF(FORECAST($C302,I$305:I$316,$C$305:$C$316)>100,100, FORECAST($C302,I$305:I$316,$C$305:$C$316)))) -> 68.2370977 | M302: =IF(MAX(C305:C316)-MIN(C305:C316)<5,AVERAGEIF(C305:C316,">0",M305:M316), IF(FORECAST($C302,M$305:M$316,$C$305:$C$316)<0,0, IF(FORECAST($C302,M$305:M$316,$C$305:$C$316)>100,100, FORECAST($C302,M$305:M$316,$C$305:$C$316)))) -> 1.768678552 | N302: =IF(MAX(C305:C316)-MIN(C305:C316)<5,AVERAGEIF(C305:C316,">0",N305:N316), IF(FORECAST($C302,N$305:N$316,$C$305:$C$316)<0,0, IF(FORECAST($C302,N$305:N$316,$C$305:$C$316)>100,100, FORECAST($C302,N$305:N$316,$C$305:$C$316)))) -> 66.51897216 | R302: =IF(MAX(C305:C316)-MIN(C305:C316)<5,AVERAGEIF(C305:C316,">0",R305:R316), IF(FORECAST($C302,R$305:R$316,$C$305:$C$316)<0,0, IF(FORECAST($C302,R$305:R$316,$C$305:$C$316)>100,100, FORECAST($C302,R$305:R$316,$C$305:$C$316)))) -> 1.189377219 | S302: =IF(MAX(C305:C316)-MIN(C305:C316)<5,AVERAGEIF(C305:C316,">0",S305:S316), IF(FORECAST($C302,S$305:S$316,$C$305:$C$316)<0,0, IF(FORECAST($C302,S$305:S$316,$C$305:$C$316)>100,100, FORECAST($C302,S$305:S$316,$C$305:$C$316)))) -> 63.61480733 | W302: =IF(MAX(C305:C316)-MIN(C305:C316)<5,AVERAGEIF(C305:C316,">0",W305:W316), IF(FORECAST($C302,W$305:W$316,$C$305:$C$316)<0,0, IF(FORECAST($C302,W$305:W$316,$C$305:$C$316)>100,100, FORECAST($C302,W$305:W$316,$C$305:$C$316)))) -> 0.811661808 | X302: =IF(MAX(C305:C316)-MIN(C305:C316)<5,AVERAGEIF(C305:C316,">0",X305:X316), IF(FORECAST($C302,X$305:X$316,$C$305:$C$316)<0,0, IF(FORECAST($C302,X$305:X$316,$C$305:$C$316)>100,100, FORECAST($C302,X$305:X$316,$C$305:$C$316)))) -> 65.90749811 | AB302: =IF(MAX(C305:C316)-MIN(C305:C316)<5,AVERAGEIF(C305:C316,">0",AB305:AB316), IF(FORECAST($C302,AB$305:AB$316,$C$305:$C$316)<0,0, IF(FORECAST($C302,AB$305:AB$316,$C$305:$C$316)>100,100, FORECAST($C302,AB$305:AB$316,$C$305:$C$316)))) -> 1.411205343
B304: Survey | C304: Year | D304: Improved | E304: % Improved < = 30min | H304: Surface water | I304: Improved | J304: % Improved < = 30min | M304: Surface water | N304: Improved | O304: % Improved < = 30min | R304: Surface water | S304: Improved | T304: % Improved < = 30min | W304: Surface water | X304: Improved | Y304: % Improved < = 30min | AB304: Surface water
B305: DHS06 | C305: 2006 | D305: =IF(ISERROR(INDIRECT(CONCATENATE($B305,"!M16"))),"",INDIRECT(CONCATENATE($B305,"!M16"))) -> 42.83214844 | E305: =IF(ISERROR(INDIRECT(CONCATENATE($B305,"!M23"))),"",INDIRECT(CONCATENATE($B305,"!M23"))) -> N/A | H305: =IF(ISERROR(INDIRECT(CONCATENATE($B305,"!M21"))),"",INDIRECT(CONCATENATE($B305,"!M21"))) -> 1.422241497 | I305: =IF(ISERROR(INDIRECT(CONCATENATE($B305,"!N16"))),"",INDIRECT(CONCATENATE($B305,"!N16"))) -> 42.59249804 | J305: =IF(ISERROR(INDIRECT(CONCATENATE($B305,"!N23"))),"",INDIRECT(CONCATENATE($B305,"!N23"))) -> N/A | M305: =IF(ISERROR(INDIRECT(CONCATENATE($B305,"!N21"))),"",INDIRECT(CONCATENATE($B305,"!N21"))) -> 0.9842718615 | N305: =IF(ISERROR(INDIRECT(CONCATENATE($B305,"!O16"))),"",INDIRECT(CONCATENATE($B305,"!O16"))) -> 45.48401826 | O305: =IF(ISERROR(INDIRECT(CONCATENATE($B305,"!O23"))),"",INDIRECT(CONCATENATE($B305,"!O23"))) -> N/A | R305: =IF(ISERROR(INDIRECT(CONCATENATE($B305,"!O21"))),"",INDIRECT(CONCATENATE($B305,"!O21"))) -> 1.612738204 | S305: =IF(ISERROR(INDIRECT(CONCATENATE($B305,"!P16"))),"",INDIRECT(CONCATENATE($B305,"!P16"))) -> 42.42077726 | T305: =IF(ISERROR(INDIRECT(CONCATENATE($B305,"!P23"))),"",INDIRECT(CONCATENATE($B305,"!P23"))) -> N/A | W305: =IF(ISERROR(INDIRECT(CONCATENATE($B305,"!P21"))),"",INDIRECT(CONCATENATE($B305,"!P21"))) -> 2.114222571 | X305: =IF(ISERROR(INDIRECT(CONCATENATE($B305,"!Q16"))),"",INDIRECT(CONCATENATE($B305,"!Q16"))) -> 44.74280858 | Y305: =IF(ISERROR(INDIRECT(CONCATENATE($B305,"!Q23"))),"",INDIRECT(CONCATENATE($B305,"!Q23"))) -> N/A | AB305: =IF(ISERROR(INDIRECT(CONCATENATE($B305,"!Q221"))),"",INDIRECT(CONCATENATE($B305,"!Q21"))) -> 2.428462238
B306: DHS12 | C306: 2012 | D306: 60.62373473 | E306: 65.8 | H306: 1.055775271 | I306: 61.82594778 | J306: 62.3 | M306: 1.57257688 | N306: 61.26023369 | O306: 65.7 | R306: 1.295217465 | S306: 58.31629982 | T306: 65.8 | W306: 1.137301999 | X306: 60.61632573 | Y306: 67.9 | AB306: 1.665519566
B318: =CONCATENATE("Rural use of drinking water sources, ",C299,"–",C300) -> Rural use of drinking water sources, 2000–2018 | S318: Data points used for regression

Sheet Sanitation
B4: Summary of trends in use of sanitation facilities by wealth quintile (%)
B5: =IF(ISERROR(INDIRECT(CONCATENATE($B105,"!A2"))),"",INDIRECT(CONCATENATE($B105,"!A2"))) -> Niger
B7: =B118 -> National use of sanitation facilities, 2000–2018 | J7: =B218 -> Urban use of sanitation facilities, 2000–2018 | R7: =B318 -> Rural use of sanitation facilities, 2000–2018
B31: =IF(ISERROR(INDIRECT(CONCATENATE($B105,"!A2"))),"",INDIRECT(CONCATENATE($B105,"!A2"))) -> Niger | F31: Poorest | J31: Poor | N31: Middle | R31: Rich | V31: Richest
F32: Basic | G32: Limited | H32: Unimproved | I32: Open defecation | J32: Basic | K32: Limited | L32: Unimproved | M32: Open defecation | N32: Basic | O32: Limited | P32: Unimproved | Q32: Open defecation | R32: Basic | S32: Limited | T32: Unimproved | U32: Open defecation | V32: Basic | W32: Limited | X32: Unimproved | Y32: Open defecation
B33: NATIONAL | D33: Estimate | E33: =C99 -> 2000 | F33: =E99 -> 1.17588941 | G33: =F99 -> 1.06622475 | H33: 3.230845982 | I33: 94.52703986 | J33: =J99 -> 0 | K33: =K99 -> 0 | L33: 0 | M33: 100 | N33: =O99 -> 0.3155119873 | O33: =P99 -> 0.3805872159 | P33: 0.5313342577 | Q33: 98.77256654 | R33: =T99 -> 3.372438623 | S33: =U99 -> 2.220837042 | T33: 2.958565611 | U33: 91.44815872 | V33: =Y99 -> 37.84590299 | W33: =Z99 -> 30.14032162 | X33: 8.007165133 | Y33: 24.00661025
E34: =C100 -> 2018 | F34: =E100 -> 3.056009603 | G34: 2.771002993 | H34: 7.749599021 | I34: 86.42338838 | J34: =J100 -> 3.670695942 | K34: 3.700553435 | L34: 12.5181174 | M34: 80.11063323 | N34: =O100 -> 5.232669158 | O34: 6.311921785 | P34: 9.757631945 | Q34: 78.69777711 | R34: =T100 -> 10.19786014 | S34: 6.715551586 | T34: 9.673659409 | U34: 73.41292887 | V34: =Y100 -> 35.57804096 | W34: 28.33420561 | X34: 7.162000016 | Y34: 28.92575342
B36: URBAN | D36: Estimate | E36: =C199 -> 2000 | F36: =E199 -> 13.26699969 | G36: =F199 -> 17.63801311 | H36: 9.448785443 | I36: 59.64620175 | J36: =J199 -> 28.57533344 | K36: =K199 -> 32.59289636 | L36: 7.90146638 | M36: 30.93030383 | N36: =O199 -> 34.66330314 | O36: =P199 -> 43.71112456 | P36: 11.4401049 | Q36: 10.1854674 | R36: =T199 -> 43.63500754 | S36: =U199 -> 46.4902112 | T36: 7.208359534 | U36: 2.666421731 | V36: =Y199 -> 66.93084475 | W36: =Z199 -> 29.35116789 | X36: 3.428345981 | Y36: 0.2896413843
E37: =C200 -> 2018 | F37: =E200 -> 20.21736479 | G37: 26.87828097 | H37: 15.44307509 | I37: 37.46127915 | J37: =J200 -> 35.06382841 | K37: 39.99364444 | L37: 10.27083812 | M37: 14.67168904 | N37: =O200 -> 37.66674854 | O37: 47.4985298 | P37: 11.81212127 | Q37: 3.022600392 | R37: =T200 -> 45.30382419 | S37: 48.26822484 | T37: 6.205480158 | U37: 0.2224708105 | V37: =Y200 -> 67.38943307 | W37: 29.55227252 | X37: 3.04844221 | Y37: 0.009852199211
B39: RURAL | D39: Estimate | E39: =C299 -> 2000 | F39: =E299 -> 0.09984683707 | G39: =F299 -> 0.08781003165 | H39: 0.3482518732 | I39: 99.46409126 | J39: =J299 -> 0 | K39: =K299 -> 0 | L39: 0 | M39: 100 | N39: =O299 -> 0.4728034303 | O39: =P299 -> 0.5729414138 | P39: 1.372931902 | Q39: 97.58132325 | R39: =T299 -> 0.1086495881 | S39: =U299 -> 0.06998535784 | T39: 0.1527894322 | U39: 99.66857562 | V39: =Y299 -> 9.405226747 | W39: =Z299 -> 4.32626382 | X39: 5.139312056 | Y39: 81.12919738
E40: =C300 -> 2018 | F40: =E300 -> 2.59615789 | G40: 2.283184056 | H40: 7.814148436 | I40: 87.30650962 | J40: =J300 -> 3.045997699 | K40: 2.81952405 | L40: 11.73300701 | M40: 82.40147124 | N40: =O300 -> 3.34335218 | O40: 4.051461564 | P40: 8.753206167 | Q40: 83.85198009 | R40: =T300 -> 7.308536457 | S40: 4.707708039 | T40: 11.7755196 | U40: 76.2082359 | V40: =Y300 -> 13.50595542 | W40: 6.21253776 | X40: 7.632053897 | Y40: 72.64945292
A97: NATIONAL | D97: Poorest | I97: Poor | N97: Middle | S97: Rich | X97: Richest
D98: Improved | E98: Basic | F98: Limited | G98: Unimproved | H98: Open defecation | I98: Improved | J98: Basic | K98: Limited | L98: Unimproved | M98: Open defecation | N98: Improved | O98: Basic | P98: Limited | Q98: Unimproved | R98: Open defecation | S98: Improved | T98: Basic | U98: Limited | V98: Unimproved | W98: Open defecation | X98: Improved | Y98: Basic | Z98: Limited | AA98: Unimproved | AB98: Open defecation
A99: Forecast period: | C99: 2000 | D99: =IF((D101+H101)>100,D101*100/(D101+H101),D101) -> 2.242114161 | E99: =D99*AVERAGEIF(E105:E116,">0")/100 -> 1.17588941 | F99: =D99*(100-AVERAGEIF(E105:E116,">0"))/100 -> 1.06622475 | G99: =100-(E99+F99+H99) -> 3.230845982 | H99: =IF((D101+H101)>100,H101*100/(D101+H101),H101) -> 94.52703986 | I99: =IF((I101+M101)>100,I101*100/(I101+M101),I101) -> 0 | J99: =I99*AVERAGEIF(J105:J116,">0")/100 -> 0 | K99: =I99*(100-AVERAGEIF(J105:J116,">0"))/100 -> 0 | L99: =100-(J99+K99+M99) -> 0 | M99: =IF((I101+M101)>100,M101*100/(I101+M101),M101) -> 100 | N99: =IF((N101+R101)>100,N101*100/(N101+R101),N101) -> 0.6960992032 | O99: =N99*AVERAGEIF(O105:O116,">0")/100 -> 0.3155119873 | P99: =N99*(100-AVERAGEIF(O105:O116,">0"))/100 -> 0.3805872159 | Q99: =100-(O99+P99+R99) -> 0.5313342577 | R99: =IF((N101+R101)>100,R101*100/(N101+R101),R101) -> 98.77256654 | S99: =IF((S101+W101)>100,S101*100/(S101+W101),S101) -> 5.593275665 | T99: =S99*AVERAGEIF(T105:T116,">0")/100 -> 3.372438623 | U99: =S99*(100-AVERAGEIF(T105:T116,">0"))/100 -> 2.220837042 | V99: =100-(T99+U99+W99) -> 2.958565611 | W99: =IF((S101+W101)>100,W101*100/(S101+W101),W101) -> 91.44815872 | X99: =IF((X101+AB101)>100,X101*100/(X101+AB101),X101) -> 67.98622461 | Y99: =X99*AVERAGEIF(Y105:Y116,">0")/100 -> 37.84590299 | Z99: =X99*(100-AVERAGEIF(Y105:Y116,">0"))/100 -> 30.14032162 | AA99: =100-(Y99+Z99+AB99) -> 8.007165133 | AB99: =IF((X101+AB101)>100,AB101*100/(X101+AB101),AB101) -> 24.00661025
C100: 2018 | D100: =IF((D102+H102)>100,D102*100/(D102+H102),D102) -> 5.827012596 | E100: =D100*AVERAGEIF(E105:E116,">0")/100 -> 3.056009603 | F100: =D100*(100-AVERAGEIF(E105:E116,">0"))/100 -> 2.771002993 | G100: =100-(E100+F100+H100) -> 7.749599021 | H100: =IF((D102+H102)>100,H102*100/(D102+H102),H102) -> 86.42338838 | I100: =IF((I102+M102)>100,I102*100/(I102+M102),I102) -> 7.371249377 | J100: =I100*AVERAGEIF(J105:J116,">0")/100 -> 3.670695942 | K100: =I100*(100-AVERAGEIF(J105:J116,">0"))/100 -> 3.700553435 | L100: =100-(J100+K100+M100) -> 12.5181174 | M100: =IF((I102+M102)>100,M102*100/(I102+M102),M102) -> 80.11063323 | N100: =IF((N102+R102)>100,N102*100/(N102+R102),N102) -> 11.54459094 | O100: =N100*AVERAGEIF(O105:O116,">0")/100 -> 5.232669158 | P100: =N100*(100-AVERAGEIF(O105:O116,">0"))/100 -> 6.311921785 | Q100: =100-(O100+P100+R100) -> 9.757631945 | R100: =IF((N102+R102)>100,R102*100/(N102+R102),R102) -> 78.69777711 | S100: =IF((S102+W102)>100,S102*100/(S102+W102),S102) -> 16.91341172 | T100: =S100*AVERAGEIF(T105:T116,">0")/100 -> 10.19786014 | U100: =S100*(100-AVERAGEIF(T105:T116,">0"))/100 -> 6.715551586 | V100: =100-(T100+U100+W100) -> 9.673659409 | W100: =IF((S102+W102)>100,W102*100/(S102+W102),W102) -> 73.41292887 | X100: =IF((X102+AB102)>100,X102*100/(X102+AB102),X102) -> 63.91224657 | Y100: =X100*AVERAGEIF(Y105:Y116,">0")/100 -> 35.57804096 | Z100: =X100*(100-AVERAGEIF(Y105:Y116,">0"))/100 -> 28.33420561 | AA100: =100-(Y100+Z100+AB100) -> 7.162000016 | AB100: =IF((X102+AB102)>100,AB102*100/(X102+AB102),AB102) -> 28.92575342
A101: Regression period: | C101: =MinRegYear(C99,C105:C116) -> 2004 | D101: =IF(MAX(C105:C116)-MIN(C105:C116)<5,AVERAGEIF(C105:C116,">0",D105:D116), IF(FORECAST($C101,D$105:D$116,$C$105:$C$116)<0,0, IF(FORECAST($C101,D$105:D$116,$C$105:$C$116)>100,100, FORECAST($C101,D$105:D$116,$C$105:$C$116)))) -> 2.242114161 | H101: =IF(MAX(C105:C116)-MIN(C105:C116)<5,AVERAGEIF(C105:C116,">0",H105:H116), IF(FORECAST($C101,H$105:H$116,$C$105:$C$116)<0,0, IF(FORECAST($C101,H$105:H$116,$C$105:$C$116)>100,100, FORECAST($C101,H$105:H$116,$C$105:$C$116)))) -> 94.52703986 | I101: =IF(MAX(C105:C116)-MIN(C105:C116)<5,AVERAGEIF(C105:C116,">0",I105:I116), IF(FORECAST($C101,I$105:I$116,$C$105:$C$116)<0,0, IF(FORECAST($C101,I$105:I$116,$C$105:$C$116)>100,100, FORECAST($C101,I$105:I$116,$C$105:$C$116)))) -> 0 | M101: =IF(MAX(C105:C116)-MIN(C105:C116)<5,AVERAGEIF(C105:C116,">0",M105:M116), IF(FORECAST($C101,M$105:M$116,$C$105:$C$116)<0,0, IF(FORECAST($C101,M$105:M$116,$C$105:$C$116)>100,100, FORECAST($C101,M$105:M$116,$C$105:$C$116)))) -> 100 | N101: =IF(MAX(C105:C116)-MIN(C105:C116)<5,AVERAGEIF(C105:C116,">0",N105:N116), IF(FORECAST($C101,N$105:N$116,$C$105:$C$116)<0,0, IF(FORECAST($C101,N$105:N$116,$C$105:$C$116)>100,100, FORECAST($C101,N$105:N$116,$C$105:$C$116)))) -> 0.6960992032 | R101: =IF(MAX(C105:C116)-MIN(C105:C116)<5,AVERAGEIF(C105:C116,">0",R105:R116), IF(FORECAST($C101,R$105:R$116,$C$105:$C$116)<0,0, IF(FORECAST($C101,R$105:R$116,$C$105:$C$116)>100,100, FORECAST($C101,R$105:R$116,$C$105:$C$116)))) -> 98.77256654 | S101: =IF(MAX(C105:C116)-MIN(C105:C116)<5,AVERAGEIF(C105:C116,">0",S105:S116), IF(FORECAST($C101,S$105:S$116,$C$105:$C$116)<0,0, IF(FORECAST($C101,S$105:S$116,$C$105:$C$116)>100,100, FORECAST($C101,S$105:S$116,$C$105:$C$116)))) -> 5.593275665 | W101: =IF(MAX(C105:C116)-MIN(C105:C116)<5,AVERAGEIF(C105:C116,">0",W105:W116), IF(FORECAST($C101,W$105:W$116,$C$105:$C$116)<0,0, IF(FORECAST($C101,W$105:W$116,$C$105:$C$116)>100,100, FORECAST($C101,W$105:W$116,$C$105:$C$116)))) -> 91.44815872 | X101: =IF(MAX(C105:C116)-MIN(C105:C116)<5,AVERAGEIF(C105:C116,">0",X105:X116), IF(FORECAST($C101,X$105:X$116,$C$105:$C$116)<0,0, IF(FORECAST($C101,X$105:X$116,$C$105:$C$116)>100,100, FORECAST($C101,X$105:X$116,$C$105:$C$116)))) -> 67.98622461 | AB101: =IF(MAX(C105:C116)-MIN(C105:C116)<5,AVERAGEIF(C105:C116,">0",AB105:AB116), IF(FORECAST($C101,AB$105:AB$116,$C$105:$C$116)<0,0, IF(FORECAST($C101,AB$105:AB$116,$C$105:$C$116)>100,100, FORECAST($C101,AB$105:AB$116,$C$105:$C$116)))) -> 24.00661025
C102: =MaxRegYear(C100,C105:C116) -> 2014 | D102: =IF(MAX(C105:C116)-MIN(C105:C116)<5,AVERAGEIF(C105:C116,">0",D105:D116), IF(FORECAST($C102,D$105:D$116,$C$105:$C$116)<0,0, IF(FORECAST($C102,D$105:D$116,$C$105:$C$116)>100,100, FORECAST($C102,D$105:D$116,$C$105:$C$116)))) -> 5.827012596 | H102: =IF(MAX(C105:C116)-MIN(C105:C116)<5,AVERAGEIF(C105:C116,">0",H105:H116), IF(FORECAST($C102,H$105:H$116,$C$105:$C$116)<0,0, IF(FORECAST($C102,H$105:H$116,$C$105:$C$116)>100,100, FORECAST($C102,H$105:H$116,$C$105:$C$116)))) -> 86.42338838 | I102: =IF(MAX(C105:C116)-MIN(C105:C116)<5,AVERAGEIF(C105:C116,">0",I105:I116), IF(FORECAST($C102,I$105:I$116,$C$105:$C$116)<0,0, IF(FORECAST($C102,I$105:I$116,$C$105:$C$116)>100,100, FORECAST($C102,I$105:I$116,$C$105:$C$116)))) -> 7.371249377 | M102: =IF(MAX(C105:C116)-MIN(C105:C116)<5,AVERAGEIF(C105:C116,">0",M105:M116), IF(FORECAST($C102,M$105:M$116,$C$105:$C$116)<0,0, IF(FORECAST($C102,M$105:M$116,$C$105:$C$116)>100,100, FORECAST($C102,M$105:M$116,$C$105:$C$116)))) -> 80.11063323 | N102: =IF(MAX(C105:C116)-MIN(C105:C116)<5,AVERAGEIF(C105:C116,">0",N105:N116), IF(FORECAST($C102,N$105:N$116,$C$105:$C$116)<0,0, IF(FORECAST($C102,N$105:N$116,$C$105:$C$116)>100,100, FORECAST($C102,N$105:N$116,$C$105:$C$116)))) -> 11.54459094 | R102: =IF(MAX(C105:C116)-MIN(C105:C116)<5,AVERAGEIF(C105:C116,">0",R105:R116), IF(FORECAST($C102,R$105:R$116,$C$105:$C$116)<0,0, IF(FORECAST($C102,R$105:R$116,$C$105:$C$116)>100,100, FORECAST($C102,R$105:R$116,$C$105:$C$116)))) -> 78.69777711 | S102: =IF(MAX(C105:C116)-MIN(C105:C116)<5,AVERAGEIF(C105:C116,">0",S105:S116), IF(FORECAST($C102,S$105:S$116,$C$105:$C$116)<0,0, IF(FORECAST($C102,S$105:S$116,$C$105:$C$116)>100,100, FORECAST($C102,S$105:S$116,$C$105:$C$116)))) -> 16.91341172 | W102: =IF(MAX(C105:C116)-MIN(C105:C116)<5,AVERAGEIF(C105:C116,">0",W105:W116), IF(FORECAST($C102,W$105:W$116,$C$105:$C$116)<0,0, IF(FORECAST($C102,W$105:W$116,$C$105:$C$116)>100,100, FORECAST($C102,W$105:W$116,$C$105:$C$116)))) -> 73.41292887 | X102: =IF(MAX(C105:C116)-MIN(C105:C116)<5,AVERAGEIF(C105:C116,">0",X105:X116), IF(FORECAST($C102,X$105:X$116,$C$105:$C$116)<0,0, IF(FORECAST($C102,X$105:X$116,$C$105:$C$116)>100,100, FORECAST($C102,X$105:X$116,$C$105:$C$116)))) -> 63.91224657 | AB102: =IF(MAX(C105:C116)-MIN(C105:C116)<5,AVERAGEIF(C105:C116,">0",AB105:AB116), IF(FORECAST($C102,AB$105:AB$116,$C$105:$C$116)<0,0, IF(FORECAST($C102,AB$105:AB$116,$C$105:$C$116)>100,100, FORECAST($C102,AB$105:AB$116,$C$105:$C$116)))) -> 28.92575342
B104: Survey | C104: Year | D104: Improved | E104: Not shared | H104: Open defecation | I104: Improved | J104: Not shared | M104: Open defecation | N104: Improved | O104: Not shared | R104: Open defecation | S104: Improved | T104: Not shared | W104: Open defecation | X104: Improved | Y104: Not shared | AB104: Open defecation
B105: DHS06 | C105: 2006 | D105: =IF(ISERROR(INDIRECT(CONCATENATE($B105,"!C122"))),"",INDIRECT(CONCATENATE($B105,"!C122"))) -> 2.959093848 | E105: =IF(ISERROR(INDIRECT(CONCATENATE($B105,"!C129"))),"",INDIRECT(CONCATENATE($B105,"!C129"))) -> N/A | H105: =IF(ISERROR(INDIRECT(CONCATENATE($B105,"!C127"))),"",INDIRECT(CONCATENATE($B105,"!C127"))) -> 92.90630956 | I105: =IF(ISERROR(INDIRECT(CONCATENATE($B105,"!D122"))),"",INDIRECT(CONCATENATE($B105,"!D122"))) -> 1.250586635 | J105: =IF(ISERROR(INDIRECT(CONCATENATE($B105,"!D129"))),"",INDIRECT(CONCATENATE($B105,"!D129"))) -> N/A | M105: =IF(ISERROR(INDIRECT(CONCATENATE($B105,"!D127"))),"",INDIRECT(CONCATENATE($B105,"!D127"))) -> 96.61081865 | N105: =IF(ISERROR(INDIRECT(CONCATENATE($B105,"!E122"))),"",INDIRECT(CONCATENATE($B105,"!E122"))) -> 2.865797551 | O105: =IF(ISERROR(INDIRECT(CONCATENATE($B105,"!E129"))),"",INDIRECT(CONCATENATE($B105,"!E129"))) -> N/A | R105: =IF(ISERROR(INDIRECT(CONCATENATE($B105,"!E127"))),"",INDIRECT(CONCATENATE($B105,"!E127"))) -> 94.75760865 | S105: =IF(ISERROR(INDIRECT(CONCATENATE($B105,"!F122"))),"",INDIRECT(CONCATENATE($B105,"!F122"))) -> 7.857302877 | T105: =IF(ISERROR(INDIRECT(CONCATENATE($B105,"!F129"))),"",INDIRECT(CONCATENATE($B105,"!F129"))) -> N/A | W105: =IF(ISERROR(INDIRECT(CONCATENATE($B105,"!F127"))),"",INDIRECT(CONCATENATE($B105,"!F127"))) -> 87.84111275 | X105: =IF(ISERROR(INDIRECT(CONCATENATE($B105,"!G122"))),"",INDIRECT(CONCATENATE($B105,"!G122"))) -> 67.171429 | Y105: =IF(ISERROR(INDIRECT(CONCATENATE($B105,"!G129"))),"",INDIRECT(CONCATENATE($B105,"!G129"))) -> N/A | AB105: =IF(ISERROR(INDIRECT(CONCATENATE($B105,"!G2127"))),"",INDIRECT(CONCATENATE($B105,"!G127"))) -> 24.99043889
B106: DHS12 | C106: 2012 | D106: 5.110032909 | E106: 52.4455637 | H106: 88.04411868 | I106: 5.841083692 | J106: 49.79747333 | M106: 84.23567958 | N106: 9.374892595 | O106: 45.32572166 | R106: 82.712735 | S106: 14.64938451 | T106: 60.29451836 | W106: 77.01997484 | X106: 64.72704218 | Y106: 55.66701668 | AB106: 27.94192478
B118: =CONCATENATE("National use of sanitation facilities, ",C99,"–",C100) -> National use of sanitation facilities, 2000–2018 | S118: Data points used for regression
A197: URBAN | D197: Poorest | I197: Poor | N197: Middle | S197: Rich | X197: Richest
D198: Improved | E198: Basic | F198: Limited | G198: Unimproved | H198: Open defecation | I198: Improved | J198: Basic | K198: Limited | L198: Unimproved | M198: Open defecation | N198: Improved | O198: Basic | P198: Limited | Q198: Unimproved | R198: Open defecation | S198: Improved | T198: Basic | U198: Limited | V198: Unimproved | W198: Open defecation | X198: Improved | Y198: Basic | Z198: Limited | AA198: Unimproved | AB198: Open defecation
A199: Forecast period: | C199: =MinBase(C205:C216) -> 2000 | D199: =IF((D201+H201)>100,D201*100/(D201+H201),D201) -> 30.9050128 | E199: =D199*AVERAGEIF(E205:E216,">0")/100 -> 13.26699969 | F199: =D199*(100-AVERAGEIF(E205:E216,">0"))/100 -> 17.63801311 | G199: =100-(E199+F199+H199) -> 9.448785443 | H199: =IF((D201+H201)>100,H201*100/(D201+H201),H201) -> 59.64620175 | I199: =IF((I201+M201)>100,I201*100/(I201+M201),I201) -> 61.16822979 | J199: =I199*AVERAGEIF(J205:J216,">0")/100 -> 28.57533344 | K199: =I199*(100-AVERAGEIF(J205:J216,">0"))/100 -> 32.59289636 | L199: =100-(J199+K199+M199) -> 7.90146638 | M199: =IF((I201+M201)>100,M201*100/(I201+M201),M201) -> 30.93030383 | N199: =IF((N201+R201)>100,N201*100/(N201+R201),N201) -> 78.3744277 | O199: =N199*AVERAGEIF(O205:O216,">0")/100 -> 34.66330314 | P199: =N199*(100-AVERAGEIF(O205:O216,">0"))/100 -> 43.71112456 | Q199: =100-(O199+P199+R199) -> 11.4401049 | R199: =IF((N201+R201)>100,R201*100/(N201+R201),R201) -> 10.1854674 | S199: =IF((S201+W201)>100,S201*100/(S201+W201),S201) -> 90.12521874 | T199: =S199*AVERAGEIF(T205:T216,">0")/100 -> 43.63500754 | U199: =S199*(100-AVERAGEIF(T205:T216,">0"))/100 -> 46.4902112 | V199: =100-(T199+U199+W199) -> 7.208359534 | W199: =IF((S201+W201)>100,W201*100/(S201+W201),W201) -> 2.666421731 | X199: =IF((X201+AB201)>100,X201*100/(X201+AB201),X201) -> 96.28201264 | Y199: =X199*AVERAGEIF(Y205:Y216,">0")/100 -> 66.93084475 | Z199: =X199*(100-AVERAGEIF(Y205:Y216,">0"))/100 -> 29.35116789 | AA199: =100-(Y199+Z199+AB199) -> 3.428345981 | AB199: =IF((X201+AB201)>100,AB201*100/(X201+AB201),AB201) -> 0.2896413843
C200: =MaxTarget(C205:C216) -> 2018 | D200: =IF((D202+H202)>100,D202*100/(D202+H202),D202) -> 47.09564576 | E200: =D200*AVERAGEIF(E205:E216,">0")/100 -> 20.21736479 | F200: =D200*(100-AVERAGEIF(E205:E216,">0"))/100 -> 26.87828097 | G200: =100-(E200+F200+H200) -> 15.44307509 | H200: =IF((D202+H202)>100,H202*100/(D202+H202),H202) -> 37.46127915 | I200: =IF((I202+M202)>100,I202*100/(I202+M202),I202) -> 75.05747284 | J200: =I200*AVERAGEIF(J205:J216,">0")/100 -> 35.06382841 | K200: =I200*(100-AVERAGEIF(J205:J216,">0"))/100 -> 39.99364444 | L200: =100-(J200+K200+M200) -> 10.27083812 | M200: =IF((I202+M202)>100,M202*100/(I202+M202),M202) -> 14.67168904 | N200: =IF((N202+R202)>100,N202*100/(N202+R202),N202) -> 85.16527834 | O200: =N200*AVERAGEIF(O205:O216,">0")/100 -> 37.66674854 | P200: =N200*(100-AVERAGEIF(O205:O216,">0"))/100 -> 47.4985298 | Q200: =100-(O200+P200+R200) -> 11.81212127 | R200: =IF((N202+R202)>100,R202*100/(N202+R202),R202) -> 3.022600392 | S200: =IF((S202+W202)>100,S202*100/(S202+W202),S202) -> 93.57204903 | T200: =S200*AVERAGEIF(T205:T216,">0")/100 -> 45.30382419 | U200: =S200*(100-AVERAGEIF(T205:T216,">0"))/100 -> 48.26822484 | V200: =100-(T200+U200+W200) -> 6.205480158 | W200: =IF((S202+W202)>100,W202*100/(S202+W202),W202) -> 0.2224708105 | X200: =IF((X202+AB202)>100,X202*100/(X202+AB202),X202) -> 96.94170559 | Y200: =X200*AVERAGEIF(Y205:Y216,">0")/100 -> 67.38943307 | Z200: =X200*(100-AVERAGEIF(Y205:Y216,">0"))/100 -> 29.55227252 | AA200: =100-(Y200+Z200+AB200) -> 3.04844221 | AB200: =IF((X202+AB202)>100,AB202*100/(X202+AB202),AB202) -> 0.009852199211
A201: Regression period: | C201: =MinRegYear(C199,C205:C216) -> 2004 | D201: =IF(MAX(C205:C216)-MIN(C205:C216)<5,AVERAGEIF(C205:C216,">0",D205:D216), IF(FORECAST($C201,D$205:D$216,$C$205:$C$216)<0,0, IF(FORECAST($C201,D$205:D$216,$C$205:$C$216)>100,100, FORECAST($C201,D$205:D$216,$C$205:$C$216)))) -> 30.9050128 | H201: =IF(MAX(C205:C216)-MIN(C205:C216)<5,AVERAGEIF(C205:C216,">0",H205:H216), IF(FORECAST($C201,H$205:H$216,$C$205:$C$216)<0,0, IF(FORECAST($C201,H$205:H$216,$C$205:$C$216)>100,100, FORECAST($C201,H$205:H$216,$C$205:$C$216)))) -> 59.64620175 | I201: =IF(MAX(C205:C216)-MIN(C205:C216)<5,AVERAGEIF(C205:C216,">0",I205:I216), IF(FORECAST($C201,I$205:I$216,$C$205:$C$216)<0,0, IF(FORECAST($C201,I$205:I$216,$C$205:$C$216)>100,100, FORECAST($C201,I$205:I$216,$C$205:$C$216)))) -> 61.16822979 | M201: =IF(MAX(C205:C216)-MIN(C205:C216)<5,AVERAGEIF(C205:C216,">0",M205:M216), IF(FORECAST($C201,M$205:M$216,$C$205:$C$216)<0,0, IF(FORECAST($C201,M$205:M$216,$C$205:$C$216)>100,100, FORECAST($C201,M$205:M$216,$C$205:$C$216)))) -> 30.93030383 | N201: =IF(MAX(C205:C216)-MIN(C205:C216)<5,AVERAGEIF(C205:C216,">0",N205:N216), IF(FORECAST($C201,N$205:N$216,$C$205:$C$216)<0,0, IF(FORECAST($C201,N$205:N$216,$C$205:$C$216)>100,100, FORECAST($C201,N$205:N$216,$C$205:$C$216)))) -> 78.3744277 | R201: =IF(MAX(C205:C216)-MIN(C205:C216)<5,AVERAGEIF(C205:C216,">0",R205:R216), IF(FORECAST($C201,R$205:R$216,$C$205:$C$216)<0,0, IF(FORECAST($C201,R$205:R$216,$C$205:$C$216)>100,100, FORECAST($C201,R$205:R$216,$C$205:$C$216)))) -> 10.1854674 | S201: =IF(MAX(C205:C216)-MIN(C205:C216)<5,AVERAGEIF(C205:C216,">0",S205:S216), IF(FORECAST($C201,S$205:S$216,$C$205:$C$216)<0,0, IF(FORECAST($C201,S$205:S$216,$C$205:$C$216)>100,100, FORECAST($C201,S$205:S$216,$C$205:$C$216)))) -> 90.12521874 | W201: =IF(MAX(C205:C216)-MIN(C205:C216)<5,AVERAGEIF(C205:C216,">0",W205:W216), IF(FORECAST($C201,W$205:W$216,$C$205:$C$216)<0,0, IF(FORECAST($C201,W$205:W$216,$C$205:$C$216)>100,100, FORECAST($C201,W$205:W$216,$C$205:$C$216)))) -> 2.666421731 | X201: =IF(MAX(C205:C216)-MIN(C205:C216)<5,AVERAGEIF(C205:C216,">0",X205:X216), IF(FORECAST($C201,X$205:X$216,$C$205:$C$216)<0,0, IF(FORECAST($C201,X$205:X$216,$C$205:$C$216)>100,100, FORECAST($C201,X$205:X$216,$C$205:$C$216)))) -> 96.28201264 | AB201: =IF(MAX(C205:C216)-MIN(C205:C216)<5,AVERAGEIF(C205:C216,">0",AB205:AB216), IF(FORECAST($C201,AB$205:AB$216,$C$205:$C$216)<0,0, IF(FORECAST($C201,AB$205:AB$216,$C$205:$C$216)>100,100, FORECAST($C201,AB$205:AB$216,$C$205:$C$216)))) -> 0.2896413843
C202: =MaxRegYear(C200,C205:C216) -> 2014 | D202: =IF(MAX(C205:C216)-MIN(C205:C216)<5,AVERAGEIF(C205:C216,">0",D205:D216), IF(FORECAST($C202,D$205:D$216,$C$205:$C$216)<0,0, IF(FORECAST($C202,D$205:D$216,$C$205:$C$216)>100,100, FORECAST($C202,D$205:D$216,$C$205:$C$216)))) -> 47.09564576 | H202: =IF(MAX(C205:C216)-MIN(C205:C216)<5,AVERAGEIF(C205:C216,">0",H205:H216), IF(FORECAST($C202,H$205:H$216,$C$205:$C$216)<0,0, IF(FORECAST($C202,H$205:H$216,$C$205:$C$216)>100,100, FORECAST($C202,H$205:H$216,$C$205:$C$216)))) -> 37.46127915 | I202: =IF(MAX(C205:C216)-MIN(C205:C216)<5,AVERAGEIF(C205:C216,">0",I205:I216), IF(FORECAST($C202,I$205:I$216,$C$205:$C$216)<0,0, IF(FORECAST($C202,I$205:I$216,$C$205:$C$216)>100,100, FORECAST($C202,I$205:I$216,$C$205:$C$216)))) -> 75.05747284 | M202: =IF(MAX(C205:C216)-MIN(C205:C216)<5,AVERAGEIF(C205:C216,">0",M205:M216), IF(FORECAST($C202,M$205:M$216,$C$205:$C$216)<0,0, IF(FORECAST($C202,M$205:M$216,$C$205:$C$216)>100,100, FORECAST($C202,M$205:M$216,$C$205:$C$216)))) -> 14.67168904 | N202: =IF(MAX(C205:C216)-MIN(C205:C216)<5,AVERAGEIF(C205:C216,">0",N205:N216), IF(FORECAST($C202,N$205:N$216,$C$205:$C$216)<0,0, IF(FORECAST($C202,N$205:N$216,$C$205:$C$216)>100,100, FORECAST($C202,N$205:N$216,$C$205:$C$216)))) -> 85.16527834 | R202: =IF(MAX(C205:C216)-MIN(C205:C216)<5,AVERAGEIF(C205:C216,">0",R205:R216), IF(FORECAST($C202,R$205:R$216,$C$205:$C$216)<0,0, IF(FORECAST($C202,R$205:R$216,$C$205:$C$216)>100,100, FORECAST($C202,R$205:R$216,$C$205:$C$216)))) -> 3.022600392 | S202: =IF(MAX(C205:C216)-MIN(C205:C216)<5,AVERAGEIF(C205:C216,">0",S205:S216), IF(FORECAST($C202,S$205:S$216,$C$205:$C$216)<0,0, IF(FORECAST($C202,S$205:S$216,$C$205:$C$216)>100,100, FORECAST($C202,S$205:S$216,$C$205:$C$216)))) -> 93.57204903 | W202: =IF(MAX(C205:C216)-MIN(C205:C216)<5,AVERAGEIF(C205:C216,">0",W205:W216), IF(FORECAST($C202,W$205:W$216,$C$205:$C$216)<0,0, IF(FORECAST($C202,W$205:W$216,$C$205:$C$216)>100,100, FORECAST($C202,W$205:W$216,$C$205:$C$216)))) -> 0.2224708105 | X202: =IF(MAX(C205:C216)-MIN(C205:C216)<5,AVERAGEIF(C205:C216,">0",X205:X216), IF(FORECAST($C202,X$205:X$216,$C$205:$C$216)<0,0, IF(FORECAST($C202,X$205:X$216,$C$205:$C$216)>100,100, FORECAST($C202,X$205:X$216,$C$205:$C$216)))) -> 96.94170559 | AB202: =IF(MAX(C205:C216)-MIN(C205:C216)<5,AVERAGEIF(C205:C216,">0",AB205:AB216), IF(FORECAST($C202,AB$205:AB$216,$C$205:$C$216)<0,0, IF(FORECAST($C202,AB$205:AB$216,$C$205:$C$216)>100,100, FORECAST($C202,AB$205:AB$216,$C$205:$C$216)))) -> 0.009852199211
B204: Survey | C204: Year | D204: Improved | E204: Not shared | H204: Open defecation | I204: Improved | J204: Not shared | M204: Open defecation | N204: Improved | O204: Not shared | R204: Open defecation | S204: Improved | T204: Not shared | W204: Open defecation | X204: Improved | Y204: Not shared | AB204: Open defecation
B205: DHS06 | C205: 2006 | D205: =IF(ISERROR(INDIRECT(CONCATENATE($B205,"!H122"))),"",INDIRECT(CONCATENATE($B205,"!H122"))) -> 34.14313939 | E205: =IF(ISERROR(INDIRECT(CONCATENATE($B205,"!H129"))),"",INDIRECT(CONCATENATE($B205,"!H129"))) -> N/A | H205: =IF(ISERROR(INDIRECT(CONCATENATE($B205,"!H127"))),"",INDIRECT(CONCATENATE($B205,"!H127"))) -> 55.20921723 | I205: =IF(ISERROR(INDIRECT(CONCATENATE($B205,"!I122"))),"",INDIRECT(CONCATENATE($B205,"!I122"))) -> 63.9460784 | J205: =IF(ISERROR(INDIRECT(CONCATENATE($B205,"!I129"))),"",INDIRECT(CONCATENATE($B205,"!I129"))) -> N/A | M205: =IF(ISERROR(INDIRECT(CONCATENATE($B205,"!I127"))),"",INDIRECT(CONCATENATE($B205,"!I127"))) -> 27.67858087 | N205: =IF(ISERROR(INDIRECT(CONCATENATE($B205,"!J122"))),"",INDIRECT(CONCATENATE($B205,"!J122"))) -> 79.73259783 | O205: =IF(ISERROR(INDIRECT(CONCATENATE($B205,"!J129"))),"",INDIRECT(CONCATENATE($B205,"!J129"))) -> N/A | R205: =IF(ISERROR(INDIRECT(CONCATENATE($B205,"!J127"))),"",INDIRECT(CONCATENATE($B205,"!J127"))) -> 8.752893997 | S205: =IF(ISERROR(INDIRECT(CONCATENATE($B205,"!K122"))),"",INDIRECT(CONCATENATE($B205,"!K122"))) -> 90.81458479 | T205: =IF(ISERROR(INDIRECT(CONCATENATE($B205,"!K129"))),"",INDIRECT(CONCATENATE($B205,"!K129"))) -> N/A | W205: =IF(ISERROR(INDIRECT(CONCATENATE($B205,"!K127"))),"",INDIRECT(CONCATENATE($B205,"!K127"))) -> 2.177631547 | X205: =IF(ISERROR(INDIRECT(CONCATENATE($B205,"!L122"))),"",INDIRECT(CONCATENATE($B205,"!L122"))) -> 96.41395123 | Y205: =IF(ISERROR(INDIRECT(CONCATENATE($B205,"!L129"))),"",INDIRECT(CONCATENATE($B205,"!L129"))) -> N/A | AB205: =IF(ISERROR(INDIRECT(CONCATENATE($B205,"!L2127"))),"",INDIRECT(CONCATENATE($B205,"!L127"))) -> 0.2336835473
B206: DHS12 | C206: 2012 | D206: 43.85751917 | E206: 42.92830996 | H206: 41.89826367 | I206: 72.27962423 | J206: 46.71597254 | M206: 17.92341199 | N206: 83.80710821 | O206: 44.22782297 | R206: 4.455173793 | S206: 92.88268297 | T206: 48.41597962 | W206: 0.7112609945 | X206: 96.809767 | Y206: 69.51541925 | AB206: 0.06581003624
B218: =CONCATENATE("Urban use of sanitation facilities, ",C199,"–",C200) -> Urban use of sanitation facilities, 2000–2018 | S218: Data points used for regression
A297: RURAL | D297: Poorest | I297: Poor | N297: Middle | S297: Rich | X297: Richest
D298: Improved | E298: Basic | F298: Limited | G298: Unimproved | H298: Open defecation | I298: Improved | J298: Basic | K298: Limited | L298: Unimproved | M298: Open defecation | N298: Improved | O298: Basic | P298: Limited | Q298: Unimproved | R298: Open defecation | S298: Improved | T298: Basic | U298: Limited | V298: Unimproved | W298: Open defecation | X298: Improved | Y298: Basic | Z298: Limited | AA298: Unimproved | AB298: Open defecation
A299: Forecast period: | C299: =MinBase(C305:C316) -> 2000 | D299: =IF((D301+H301)>100,D301*100/(D301+H301),D301) -> 0.1876568687 | E299: =D299*AVERAGEIF(E305:E316,">0")/100 -> 0.09984683707 | F299: =D299*(100-AVERAGEIF(E305:E316,">0"))/100 -> 0.08781003165 | G299: =100-(E299+F299+H299) -> 0.3482518732 | H299: =IF((D301+H301)>100,H301*100/(D301+H301),H301) -> 99.46409126 | I299: =IF((I301+M301)>100,I301*100/(I301+M301),I301) -> 0 | J299: =I299*AVERAGEIF(J305:J316,">0")/100 -> 0 | K299: =I299*(100-AVERAGEIF(J305:J316,">0"))/100 -> 0 | L299: =100-(J299+K299+M299) -> 0 | M299: =IF((I301+M301)>100,M301*100/(I301+M301),M301) -> 100 | N299: =IF((N301+R301)>100,N301*100/(N301+R301),N301) -> 1.045744844 | O299: =N299*AVERAGEIF(O305:O316,">0")/100 -> 0.4728034303 | P299: =N299*(100-AVERAGEIF(O305:O316,">0"))/100 -> 0.5729414138 | Q299: =100-(O299+P299+R299) -> 1.372931902 | R299: =IF((N301+R301)>100,R301*100/(N301+R301),R301) -> 97.58132325 | S299: =IF((S301+W301)>100,S301*100/(S301+W301),S301) -> 0.1786349459 | T299: =S299*AVERAGEIF(T305:T316,">0")/100 -> 0.1086495881 | U299: =S299*(100-AVERAGEIF(T305:T316,">0"))/100 -> 0.06998535784 | V299: =100-(T299+U299+W299) -> 0.1527894322 | W299: =IF((S301+W301)>100,W301*100/(S301+W301),W301) -> 99.66857562 | X299: =IF((X301+AB301)>100,X301*100/(X301+AB301),X301) -> 13.73149057 | Y299: =X299*AVERAGEIF(Y305:Y316,">0")/100 -> 9.405226747 | Z299: =X299*(100-AVERAGEIF(Y305:Y316,">0"))/100 -> 4.32626382 | AA299: =100-(Y299+Z299+AB299) -> 5.139312056 | AB299: =IF((X301+AB301)>100,AB301*100/(X301+AB301),AB301) -> 81.12919738
C300: =MaxTarget(C305:C316) -> 2018 | D300: =IF((D302+H302)>100,D302*100/(D302+H302),D302) -> 4.879341946 | E300: =D300*AVERAGEIF(E305:E316,">0")/100 -> 2.59615789 | F300: =D300*(100-AVERAGEIF(E305:E316,">0"))/100 -> 2.283184056 | G300: =100-(E300+F300+H300) -> 7.814148436 | H300: =IF((D302+H302)>100,H302*100/(D302+H302),H302) -> 87.30650962 | I300: =IF((I302+M302)>100,I302*100/(I302+M302),I302) -> 5.865521749 | J300: =I300*AVERAGEIF(J305:J316,">0")/100 -> 3.045997699 | K300: =I300*(100-AVERAGEIF(J305:J316,">0"))/100 -> 2.81952405 | L300: =100-(J300+K300+M300) -> 11.73300701 | M300: =IF((I302+M302)>100,M302*100/(I302+M302),M302) -> 82.40147124 | N300: =IF((N302+R302)>100,N302*100/(N302+R302),N302) -> 7.394813744 | O300: =N300*AVERAGEIF(O305:O316,">0")/100 -> 3.34335218 | P300: =N300*(100-AVERAGEIF(O305:O316,">0"))/100 -> 4.051461564 | Q300: =100-(O300+P300+R300) -> 8.753206167 | R300: =IF((N302+R302)>100,R302*100/(N302+R302),R302) -> 83.85198009 | S300: =IF((S302+W302)>100,S302*100/(S302+W302),S302) -> 12.0162445 | T300: =S300*AVERAGEIF(T305:T316,">0")/100 -> 7.308536457 | U300: =S300*(100-AVERAGEIF(T305:T316,">0"))/100 -> 4.707708039 | V300: =100-(T300+U300+W300) -> 11.7755196 | W300: =IF((S302+W302)>100,W302*100/(S302+W302),W302) -> 76.2082359 | X300: =IF((X302+AB302)>100,X302*100/(X302+AB302),X302) -> 19.71849318 | Y300: =X300*AVERAGEIF(Y305:Y316,">0")/100 -> 13.50595542 | Z300: =X300*(100-AVERAGEIF(Y305:Y316,">0"))/100 -> 6.21253776 | AA300: =100-(Y300+Z300+AB300) -> 7.632053897 | AB300: =IF((X302+AB302)>100,AB302*100/(X302+AB302),AB302) -> 72.64945292
A301: Regression period: | C301: =MinRegYear(C299,C305:C316) -> 2004 | D301: =IF(MAX(C305:C316)-MIN(C305:C316)<5,AVERAGEIF(C305:C316,">0",D305:D316), IF(FORECAST($C301,D$305:D$316,$C$305:$C$316)<0,0, IF(FORECAST($C301,D$305:D$316,$C$305:$C$316)>100,100, FORECAST($C301,D$305:D$316,$C$305:$C$316)))) -> 0.1876568687 | H301: =IF(MAX(C305:C316)-MIN(C305:C316)<5,AVERAGEIF(C305:C316,">0",H305:H316), IF(FORECAST($C301,H$305:H$316,$C$305:$C$316)<0,0, IF(FORECAST($C301,H$305:H$316,$C$305:$C$316)>100,100, FORECAST($C301,H$305:H$316,$C$305:$C$316)))) -> 99.46409126 | I301: =IF(MAX(C305:C316)-MIN(C305:C316)<5,AVERAGEIF(C305:C316,">0",I305:I316), IF(FORECAST($C301,I$305:I$316,$C$305:$C$316)<0,0, IF(FORECAST($C301,I$305:I$316,$C$305:$C$316)>100,100, FORECAST($C301,I$305:I$316,$C$305:$C$316)))) -> 0 | M301: =IF(MAX(C305:C316)-MIN(C305:C316)<5,AVERAGEIF(C305:C316,">0",M305:M316), IF(FORECAST($C301,M$305:M$316,$C$305:$C$316)<0,0, IF(FORECAST($C301,M$305:M$316,$C$305:$C$316)>100,100, FORECAST($C301,M$305:M$316,$C$305:$C$316)))) -> 100 | N301: =IF(MAX(C305:C316)-MIN(C305:C316)<5,AVERAGEIF(C305:C316,">0",N305:N316), IF(FORECAST($C301,N$305:N$316,$C$305:$C$316)<0,0, IF(FORECAST($C301,N$305:N$316,$C$305:$C$316)>100,100, FORECAST($C301,N$305:N$316,$C$305:$C$316)))) -> 1.045744844 | R301: =IF(MAX(C305:C316)-MIN(C305:C316)<5,AVERAGEIF(C305:C316,">0",R305:R316), IF(FORECAST($C301,R$305:R$316,$C$305:$C$316)<0,0, IF(FORECAST($C301,R$305:R$316,$C$305:$C$316)>100,100, FORECAST($C301,R$305:R$316,$C$305:$C$316)))) -> 97.58132325 | S301: =IF(MAX(C305:C316)-MIN(C305:C316)<5,AVERAGEIF(C305:C316,">0",S305:S316), IF(FORECAST($C301,S$305:S$316,$C$305:$C$316)<0,0, IF(FORECAST($C301,S$305:S$316,$C$305:$C$316)>100,100, FORECAST($C301,S$305:S$316,$C$305:$C$316)))) -> 0.1786349459 | W301: =IF(MAX(C305:C316)-MIN(C305:C316)<5,AVERAGEIF(C305:C316,">0",W305:W316), IF(FORECAST($C301,W$305:W$316,$C$305:$C$316)<0,0, IF(FORECAST($C301,W$305:W$316,$C$305:$C$316)>100,100, FORECAST($C301,W$305:W$316,$C$305:$C$316)))) -> 99.66857562 | X301: =IF(MAX(C305:C316)-MIN(C305:C316)<5,AVERAGEIF(C305:C316,">0",X305:X316), IF(FORECAST($C301,X$305:X$316,$C$305:$C$316)<0,0, IF(FORECAST($C301,X$305:X$316,$C$305:$C$316)>100,100, FORECAST($C301,X$305:X$316,$C$305:$C$316)))) -> 13.73149057 | AB301: =IF(MAX(C305:C316)-MIN(C305:C316)<5,AVERAGEIF(C305:C316,">0",AB305:AB316), IF(FORECAST($C301,AB$305:AB$316,$C$305:$C$316)<0,0, IF(FORECAST($C301,AB$305:AB$316,$C$305:$C$316)>100,100, FORECAST($C301,AB$305:AB$316,$C$305:$C$316)))) -> 81.12919738
C302: =MaxRegYear(C300,C305:C316) -> 2014 | D302: =IF(MAX(C305:C316)-MIN(C305:C316)<5,AVERAGEIF(C305:C316,">0",D305:D316), IF(FORECAST($C302,D$305:D$316,$C$305:$C$316)<0,0, IF(FORECAST($C302,D$305:D$316,$C$305:$C$316)>100,100, FORECAST($C302,D$305:D$316,$C$305:$C$316)))) -> 4.879341946 | H302: =IF(MAX(C305:C316)-MIN(C305:C316)<5,AVERAGEIF(C305:C316,">0",H305:H316), IF(FORECAST($C302,H$305:H$316,$C$305:$C$316)<0,0, IF(FORECAST($C302,H$305:H$316,$C$305:$C$316)>100,100, FORECAST($C302,H$305:H$316,$C$305:$C$316)))) -> 87.30650962 | I302: =IF(MAX(C305:C316)-MIN(C305:C316)<5,AVERAGEIF(C305:C316,">0",I305:I316), IF(FORECAST($C302,I$305:I$316,$C$305:$C$316)<0,0, IF(FORECAST($C302,I$305:I$316,$C$305:$C$316)>100,100, FORECAST($C302,I$305:I$316,$C$305:$C$316)))) -> 5.865521749 | M302: =IF(MAX(C305:C316)-MIN(C305:C316)<5,AVERAGEIF(C305:C316,">0",M305:M316), IF(FORECAST($C302,M$305:M$316,$C$305:$C$316)<0,0, IF(FORECAST($C302,M$305:M$316,$C$305:$C$316)>100,100, FORECAST($C302,M$305:M$316,$C$305:$C$316)))) -> 82.40147124 | N302: =IF(MAX(C305:C316)-MIN(C305:C316)<5,AVERAGEIF(C305:C316,">0",N305:N316), IF(FORECAST($C302,N$305:N$316,$C$305:$C$316)<0,0, IF(FORECAST($C302,N$305:N$316,$C$305:$C$316)>100,100, FORECAST($C302,N$305:N$316,$C$305:$C$316)))) -> 7.394813744 | R302: =IF(MAX(C305:C316)-MIN(C305:C316)<5,AVERAGEIF(C305:C316,">0",R305:R316), IF(FORECAST($C302,R$305:R$316,$C$305:$C$316)<0,0, IF(FORECAST($C302,R$305:R$316,$C$305:$C$316)>100,100, FORECAST($C302,R$305:R$316,$C$305:$C$316)))) -> 83.85198009 | S302: =IF(MAX(C305:C316)-MIN(C305:C316)<5,AVERAGEIF(C305:C316,">0",S305:S316), IF(FORECAST($C302,S$305:S$316,$C$305:$C$316)<0,0, IF(FORECAST($C302,S$305:S$316,$C$305:$C$316)>100,100, FORECAST($C302,S$305:S$316,$C$305:$C$316)))) -> 12.0162445 | W302: =IF(MAX(C305:C316)-MIN(C305:C316)<5,AVERAGEIF(C305:C316,">0",W305:W316), IF(FORECAST($C302,W$305:W$316,$C$305:$C$316)<0,0, IF(FORECAST($C302,W$305:W$316,$C$305:$C$316)>100,100, FORECAST($C302,W$305:W$316,$C$305:$C$316)))) -> 76.2082359 | X302: =IF(MAX(C305:C316)-MIN(C305:C316)<5,AVERAGEIF(C305:C316,">0",X305:X316), IF(FORECAST($C302,X$305:X$316,$C$305:$C$316)<0,0, IF(FORECAST($C302,X$305:X$316,$C$305:$C$316)>100,100, FORECAST($C302,X$305:X$316,$C$305:$C$316)))) -> 19.71849318 | AB302: =IF(MAX(C305:C316)-MIN(C305:C316)<5,AVERAGEIF(C305:C316,">0",AB305:AB316), IF(FORECAST($C302,AB$305:AB$316,$C$305:$C$316)<0,0, IF(FORECAST($C302,AB$305:AB$316,$C$305:$C$316)>100,100, FORECAST($C302,AB$305:AB$316,$C$305:$C$316)))) -> 72.64945292
B304: Survey | C304: Year | D304: Improved | E304: Not shared | H304: Open defecation | I304: Improved | J304: Not shared | M304: Open defecation | N304: Improved | O304: Not shared | R304: Open defecation | S304: Improved | T304: Not shared | W304: Open defecation | X304: Improved | Y304: Not shared | AB304: Open defecation
B305: DHS06 | C305: 2006 | D305: =IF(ISERROR(INDIRECT(CONCATENATE($B305,"!M122"))),"",INDIRECT(CONCATENATE($B305,"!M122"))) -> 1.125993884 | E305: =IF(ISERROR(INDIRECT(CONCATENATE($B305,"!M129"))),"",INDIRECT(CONCATENATE($B305,"!M129"))) -> N/A | H305: =IF(ISERROR(INDIRECT(CONCATENATE($B305,"!M127"))),"",INDIRECT(CONCATENATE($B305,"!M127"))) -> 97.03257493 | I305: =IF(ISERROR(INDIRECT(CONCATENATE($B305,"!N122"))),"",INDIRECT(CONCATENATE($B305,"!N122"))) -> 0.9370558297 | J305: =IF(ISERROR(INDIRECT(CONCATENATE($B305,"!N129"))),"",INDIRECT(CONCATENATE($B305,"!N129"))) -> N/A | M305: =IF(ISERROR(INDIRECT(CONCATENATE($B305,"!N127"))),"",INDIRECT(CONCATENATE($B305,"!N127"))) -> 97.22188449 | N305: =IF(ISERROR(INDIRECT(CONCATENATE($B305,"!O122"))),"",INDIRECT(CONCATENATE($B305,"!O122"))) -> 2.315558624 | O305: =IF(ISERROR(INDIRECT(CONCATENATE($B305,"!O129"))),"",INDIRECT(CONCATENATE($B305,"!O129"))) -> N/A | R305: =IF(ISERROR(INDIRECT(CONCATENATE($B305,"!O127"))),"",INDIRECT(CONCATENATE($B305,"!O127"))) -> 94.83545462 | S305: =IF(ISERROR(INDIRECT(CONCATENATE($B305,"!P122"))),"",INDIRECT(CONCATENATE($B305,"!P122"))) -> 2.546156856 | T305: =IF(ISERROR(INDIRECT(CONCATENATE($B305,"!P129"))),"",INDIRECT(CONCATENATE($B305,"!P129"))) -> N/A | W305: =IF(ISERROR(INDIRECT(CONCATENATE($B305,"!P127"))),"",INDIRECT(CONCATENATE($B305,"!P127"))) -> 94.97650768 | X305: =IF(ISERROR(INDIRECT(CONCATENATE($B305,"!Q122"))),"",INDIRECT(CONCATENATE($B305,"!Q122"))) -> 14.92889109 | Y305: =IF(ISERROR(INDIRECT(CONCATENATE($B305,"!Q129"))),"",INDIRECT(CONCATENATE($B305,"!Q129"))) -> N/A | AB305: =IF(ISERROR(INDIRECT(CONCATENATE($B305,"!Q2127"))),"",INDIRECT(CONCATENATE($B305,"!Q127"))) -> 79.43324848
B306: DHS12 | C306: 2012 | D306: 3.941004931 | E306: 53.20713159 | H306: 89.73802595 | I306: 4.633405269 | J306: 51.9305499 | M306: 86.10657455 | N306: 6.124999964 | O306: 45.21212158 | R306: 86.59784872 | S306: 9.648722586 | T306: 60.82213507 | W306: 80.90030384 | X306: 18.52109266 | Y306: 68.49385142 | AB306: 74.34540181
B318: =CONCATENATE("Rural use of sanitation facilities, ",C299,"–",C300) -> Rural use of sanitation facilities, 2000–2018 | S318: Data points used for regression

Sheet Hygiene
B4: Access to hygiene facilities by wealth quintile (%)
B5: =IF(ISERROR(INDIRECT(CONCATENATE($E$32,"!A2"))),"",INDIRECT(CONCATENATE($E$32,"!A2"))) -> Niger
B7: =CONCATENATE("National ",IF(ISERROR(INDIRECT(CONCATENATE($E$32,"!A2"))),"",INDIRECT(CONCATENATE($E$32,"!A210")))) -> National Access to hygiene facilities | K7: =CONCATENATE("Urban ",IF(ISERROR(INDIRECT(CONCATENATE($E$32,"!A2"))),"",INDIRECT(CONCATENATE($E$32,"!A210")))) -> Urban Access to hygiene facilities | S7: =CONCATENATE("Rural ",IF(ISERROR(INDIRECT(CONCATENATE($E$32,"!A2"))),"",INDIRECT(CONCATENATE($E$32,"!A210")))) -> Rural Access to hygiene facilities
E32: =INDEX(B88:B100,A88) -> DHS06 | G32: =IF(ISERROR(INDIRECT(CONCATENATE($E$32,"!A2"))),"",INDIRECT(CONCATENATE($E$32,"!A2"))) -> Niger | K32: Poorest | N32: Poor | Q32: Middle | T32: Rich | W32: Richest
K33: Basic | L33: Limited | M33: No facility | N33: Basic | O33: Limited | P33: No facility | Q33: Basic | R33: Limited | S33: No facility | T33: Basic | U33: Limited | V33: No facility | W33: Basic | X33: Limited | Y33: No facility
B34: >>> Select Survey : | G34: NATIONAL | J34: =IF(ISERROR(INDIRECT(CONCATENATE(#REF!,"!A2"))),"",INDIRECT(CONCATENATE(#REF!,"!A210"))) ->  | K34: =IF(ISERROR(INDIRECT(CONCATENATE($E$32,"!C222"))),"",INDIRECT(CONCATENATE($E$32,"!C222"))) -> 3.826109232 | L34: =IF(ISERROR(INDIRECT(CONCATENATE($E$32,"!C223"))),"",INDIRECT(CONCATENATE($E$32,"!C223"))) -> 72.66535514 | M34: =IF(ISERROR(INDIRECT(CONCATENATE($E$32,"!C224"))),"",INDIRECT(CONCATENATE($E$32,"!C224"))) -> 23.50853563 | N34: =IF(ISERROR(INDIRECT(CONCATENATE($E$32,"!D222"))),"",INDIRECT(CONCATENATE($E$32,"!D222"))) -> 4.429265694 | O34: =IF(ISERROR(INDIRECT(CONCATENATE($E$32,"!D223"))),"",INDIRECT(CONCATENATE($E$32,"!D223"))) -> 81.519916 | P34: =IF(ISERROR(INDIRECT(CONCATENATE($E$32,"!D224"))),"",INDIRECT(CONCATENATE($E$32,"!D224"))) -> 14.0508183 | Q34: =IF(ISERROR(INDIRECT(CONCATENATE($E$32,"!E222"))),"",INDIRECT(CONCATENATE($E$32,"!E222"))) -> 4.685095682 | R34: =IF(ISERROR(INDIRECT(CONCATENATE($E$32,"!E223"))),"",INDIRECT(CONCATENATE($E$32,"!E223"))) -> 81.52780135 | S34: =IF(ISERROR(INDIRECT(CONCATENATE($E$32,"!E224"))),"",INDIRECT(CONCATENATE($E$32,"!E224"))) -> 13.78710297 | T34: =IF(ISERROR(INDIRECT(CONCATENATE($E$32,"!F222"))),"",INDIRECT(CONCATENATE($E$32,"!F222"))) -> 7.726690102 | U34: =IF(ISERROR(INDIRECT(CONCATENATE($E$32,"!F223"))),"",INDIRECT(CONCATENATE($E$32,"!F223"))) -> 76.23298778 | V34: =IF(ISERROR(INDIRECT(CONCATENATE($E$32,"!F224"))),"",INDIRECT(CONCATENATE($E$32,"!F224"))) -> 16.04032211 | W34: =IF(ISERROR(INDIRECT(CONCATENATE($E$32,"!G222"))),"",INDIRECT(CONCATENATE($E$32,"!G222"))) -> 26.6068819 | X34: =IF(ISERROR(INDIRECT(CONCATENATE($E$32,"!G223"))),"",INDIRECT(CONCATENATE($E$32,"!G223"))) -> 60.62673545 | Y34: =IF(ISERROR(INDIRECT(CONCATENATE($E$32,"!G224"))),"",INDIRECT(CONCATENATE($E$32,"!G224"))) -> 12.76638265
G37: URBAN | J37: =IF(ISERROR(INDIRECT(CONCATENATE(#REF!,"!A2"))),"",INDIRECT(CONCATENATE(#REF!,"!A210"))) ->  | K37: =IF(ISERROR(INDIRECT(CONCATENATE($E$32,"!H222"))),"",INDIRECT(CONCATENATE($E$32,"!H222"))) -> 13.40312044 | L37: =IF(ISERROR(INDIRECT(CONCATENATE($E$32,"!H223"))),"",INDIRECT(CONCATENATE($E$32,"!H223"))) -> 67.01459198 | M37: =IF(ISERROR(INDIRECT(CONCATENATE($E$32,"!H224"))),"",INDIRECT(CONCATENATE($E$32,"!H224"))) -> 19.58228759 | N37: =IF(ISERROR(INDIRECT(CONCATENATE($E$32,"!I222"))),"",INDIRECT(CONCATENATE($E$32,"!I222"))) -> 21.37536325 | O37: =IF(ISERROR(INDIRECT(CONCATENATE($E$32,"!I223"))),"",INDIRECT(CONCATENATE($E$32,"!I223"))) -> 64.67378451 | P37: =IF(ISERROR(INDIRECT(CONCATENATE($E$32,"!I224"))),"",INDIRECT(CONCATENATE($E$32,"!I224"))) -> 13.95085224 | Q37: =IF(ISERROR(INDIRECT(CONCATENATE($E$32,"!J222"))),"",INDIRECT(CONCATENATE($E$32,"!J222"))) -> 26.292692 | R37: =IF(ISERROR(INDIRECT(CONCATENATE($E$32,"!J223"))),"",INDIRECT(CONCATENATE($E$32,"!J223"))) -> 61.88716527 | S37: =IF(ISERROR(INDIRECT(CONCATENATE($E$32,"!J224"))),"",INDIRECT(CONCATENATE($E$32,"!J224"))) -> 11.82014274 | T37: =IF(ISERROR(INDIRECT(CONCATENATE($E$32,"!K222"))),"",INDIRECT(CONCATENATE($E$32,"!K222"))) -> 32.40820584 | U37: =IF(ISERROR(INDIRECT(CONCATENATE($E$32,"!K223"))),"",INDIRECT(CONCATENATE($E$32,"!K223"))) -> 55.17338054 | V37: =IF(ISERROR(INDIRECT(CONCATENATE($E$32,"!K224"))),"",INDIRECT(CONCATENATE($E$32,"!K224"))) -> 12.41841362 | W37: =IF(ISERROR(INDIRECT(CONCATENATE($E$32,"!L222"))),"",INDIRECT(CONCATENATE($E$32,"!L222"))) -> 54.72264096 | X37: =IF(ISERROR(INDIRECT(CONCATENATE($E$32,"!L223"))),"",INDIRECT(CONCATENATE($E$32,"!L223"))) -> 36.59575365 | Y37: =IF(ISERROR(INDIRECT(CONCATENATE($E$32,"!L224"))),"",INDIRECT(CONCATENATE($E$32,"!L224"))) -> 8.681605389
G40: RURAL | J40: =IF(ISERROR(INDIRECT(CONCATENATE(#REF!,"!A2"))),"",INDIRECT(CONCATENATE(#REF!,"!A210"))) ->  | K40: =IF(ISERROR(INDIRECT(CONCATENATE($E$32,"!M222"))),"",INDIRECT(CONCATENATE($E$32,"!M222"))) -> 2.681545561 | L40: =IF(ISERROR(INDIRECT(CONCATENATE($E$32,"!M223"))),"",INDIRECT(CONCATENATE($E$32,"!M223"))) -> 73.48345275 | M40: =IF(ISERROR(INDIRECT(CONCATENATE($E$32,"!M224"))),"",INDIRECT(CONCATENATE($E$32,"!M224"))) -> 23.83500169 | N40: =IF(ISERROR(INDIRECT(CONCATENATE($E$32,"!N222"))),"",INDIRECT(CONCATENATE($E$32,"!N222"))) -> 4.198805722 | O40: =IF(ISERROR(INDIRECT(CONCATENATE($E$32,"!N223"))),"",INDIRECT(CONCATENATE($E$32,"!N223"))) -> 81.90838203 | P40: =IF(ISERROR(INDIRECT(CONCATENATE($E$32,"!N224"))),"",INDIRECT(CONCATENATE($E$32,"!N224"))) -> 13.89281225 | Q40: =IF(ISERROR(INDIRECT(CONCATENATE($E$32,"!O222"))),"",INDIRECT(CONCATENATE($E$32,"!O222"))) -> 4.403347564 | R40: =IF(ISERROR(INDIRECT(CONCATENATE($E$32,"!O223"))),"",INDIRECT(CONCATENATE($E$32,"!O223"))) -> 82.47673695 | S40: =IF(ISERROR(INDIRECT(CONCATENATE($E$32,"!O224"))),"",INDIRECT(CONCATENATE($E$32,"!O224"))) -> 13.11991549 | T40: =IF(ISERROR(INDIRECT(CONCATENATE($E$32,"!P222"))),"",INDIRECT(CONCATENATE($E$32,"!P222"))) -> 5.432326781 | U40: =IF(ISERROR(INDIRECT(CONCATENATE($E$32,"!P223"))),"",INDIRECT(CONCATENATE($E$32,"!P223"))) -> 79.7507613 | V40: =IF(ISERROR(INDIRECT(CONCATENATE($E$32,"!P224"))),"",INDIRECT(CONCATENATE($E$32,"!P224"))) -> 14.81691192 | W40: =IF(ISERROR(INDIRECT(CONCATENATE($E$32,"!Q222"))),"",INDIRECT(CONCATENATE($E$32,"!Q222"))) -> 8.61196624 | X40: =IF(ISERROR(INDIRECT(CONCATENATE($E$32,"!Q223"))),"",INDIRECT(CONCATENATE($E$32,"!Q223"))) -> 74.88972929 | Y40: =IF(ISERROR(INDIRECT(CONCATENATE($E$32,"!Q224"))),"",INDIRECT(CONCATENATE($E$32,"!Q224"))) -> 16.49830447
A88: 1 | B88: DHS06
B89: DHS12
B90: Template

Sheet DHS06
A2: =A1026 -> Niger
A3: =A1034 -> 2006
A4: Use of drinking water sources
A5: by wealth quintile and sub-national region
A6: Notes:
A7: WHO/UNICEF JMP customised wealth index excludes water,
A8: sanitation and hygiene assets.
A9: Survey used for analysis: | B9: =A1025 -> DHS06
A10: Improved springs based on: | B10: DHS12
A11: Time to source based on: | B11: DHS12
A14: Use of drinking water sources | C14: NATIONAL wealth index quintile | H14: URBAN wealth index quintile | M14: RURAL wealth index quintile | R14: SUB-REGIONS: | BA14: Raw numbers of respondents: | BB14: Use of drinking water sources | BC14: NATIONAL wealth index quintile | BH14: URBAN wealth index quintile | BM14: RURAL wealth index quintile | BR14: SUB-REGIONS:
A15: Weighted percentage (used in graphs) | C15: Poorest | D15: Poor | E15: Middle | F15: Rich | G15: Richest | H15: Poorest | I15: Poor | J15: Middle | K15: Rich | L15: Richest | M15: Poorest | N15: Poor | O15: Middle | P15: Rich | Q15: Richest | R15: Agadez | S15: Diffa | T15: Dosso | U15: Maradi | V15: Niamey | W15: Tahoua | X15: Tillabéri | Y15: Zinder | BA15: Water data, raw numbers (weighted) | BC15: Poorest | BD15: Poor | BE15: Middle | BF15: Rich | BG15: Richest | BH15: Poorest | BI15: Poor | BJ15: Middle | BK15: Rich | BL15: Richest | BM15: Poorest | BN15: Poor | BO15: Middle | BP15: Rich | BQ15: Richest | BR15: Agadez | BS15: Diffa | BT15: Dosso | BU15: Maradi | BV15: Niamey | BW15: Tahoua | BX15: Tillabéri | BY15: Zinder
A16: Water | B16: Improved | C16: =C58+C59+C60+(C61+C62)*'DHS12'!C24/100+C63*'DHS12'!C25/100 -> 46.88575073 | D16: =D58+D59+D60+(D61+D62)*'DHS12'!D24/100+D63*'DHS12'!D25/100 -> 42.99680968 | E16: =E58+E59+E60+(E61+E62)*'DHS12'!E24/100+E63*'DHS12'!E25/100 -> 45.80088898 | F16: =F58+F59+F60+(F61+F62)*'DHS12'!F24/100+F63*'DHS12'!F25/100 -> 44.70396811 | G16: =G58+G59+G60+(G61+G62)*'DHS12'!G24/100+G63*'DHS12'!G25/100 -> 82.56303999 | H16: =H58+H59+H60+(H61+H62)*'DHS12'!H24/100+H63*'DHS12'!H25/100 -> 84.36462373 | I16: =I58+I59+I60+(I61+I62)*'DHS12'!I24/100+I63*'DHS12'!I25/100 -> 91.07842963 | J16: =J58+J59+J60+(J61+J62)*'DHS12'!J24/100+J63*'DHS12'!J25/100 -> 97.46336669 | K16: =K58+K59+K60+(K61+K62)*'DHS12'!K24/100+K63*'DHS12'!K25/100 -> 95.84333692 | L16: =L58+L59+L60+(L61+L62)*'DHS12'!L24/100+L63*'DHS12'!L25/100 -> 97.25097028 | M16: =M58+M59+M60+(M61+M62)*'DHS12'!M24/100+M63*'DHS12'!M25/100 -> 42.83214844 | N16: =N58+N59+N60+(N61+N62)*'DHS12'!N24/100+N63*'DHS12'!N25/100 -> 42.59249804 | O16: =O58+O59+O60+(O61+O62)*'DHS12'!O24/100+O63*'DHS12'!O25/100 -> 45.48401826 | P16: =P58+P59+P60+(P61+P62)*'DHS12'!P24/100+P63*'DHS12'!P25/100 -> 42.42077726 | Q16: =Q58+Q59+Q60+(Q61+Q62)*'DHS12'!Q24/100+Q63*'DHS12'!Q25/100 -> 44.74280858 | R16: =R58+R59+R60+(R61+R62)*'DHS12'!R24/100+R63*'DHS12'!R25/100 -> 68.60165337 | S16: =S58+S59+S60+(S61+S62)*'DHS12'!S24/100+S63*'DHS12'!S25/100 -> 66.11983537 | T16: =T58+T59+T60+(T61+T62)*'DHS12'!T24/100+T63*'DHS12'!T25/100 -> 31.83001582 | U16: =U58+U59+U60+(U61+U62)*'DHS12'!U24/100+U63*'DHS12'!U25/100 -> 58.37677522 | V16: =V58+V59+V60+(V61+V62)*'DHS12'!V24/100+V63*'DHS12'!V25/100 -> 94.18418948 | W16: =W58+W59+W60+(W61+W62)*'DHS12'!W24/100+W63*'DHS12'!W25/100 -> 46.82478772 | X16: =X58+X59+X60+(X61+X62)*'DHS12'!X24/100+X63*'DHS12'!X25/100 -> 59.83552704 | Y16: =Y58+Y59+Y60+(Y61+Y62)*'DHS12'!Y24/100+Y63*'DHS12'!Y25/100 -> 46.06136121 | BA16: Water | BB16: Improved | BC16: N/A | BD16: N/A | BE16: N/A | BF16: N/A | BG16: N/A | BH16: N/A | BI16: N/A | BJ16: N/A | BK16: N/A | BL16: N/A | BM16: N/A | BN16: N/A | BO16: N/A | BP16: N/A | BQ16: N/A | BR16: N/A | BS16: N/A | BT16: N/A | BU16: N/A | BV16: N/A | BW16: N/A | BX16: N/A | BY16: N/A
B17: Not Improved | C17: =100-C16 -> 53.11424927 | D17: =100-D16 -> 57.00319032 | E17: 54.19911102 | F17: 55.29603189 | G17: 17.43696001 | H17: 15.63537627 | I17: 8.921570374 | J17: 2.536633313 | K17: 4.156663076 | L17: 2.749029716 | M17: 57.16785156 | N17: 57.40750196 | O17: 54.51598174 | P17: 57.57922274 | Q17: 55.25719142 | R17: 31.39834663 | S17: 33.88016463 | T17: 68.16998418 | U17: 41.62322478 | V17: 5.815810522 | W17: 53.17521228 | X17: 40.16447296 | Y17: 53.93863879 | BB17: Not Improved | BC17: N/A | BD17: N/A | BE17: N/A | BF17: N/A | BG17: N/A | BH17: N/A | BI17: N/A | BJ17: N/A | BK17: N/A | BL17: N/A | BM17: N/A | BN17: N/A | BO17: N/A | BP17: N/A | BQ17: N/A | BR17: N/A | BS17: N/A | BT17: N/A | BU17: N/A | BV17: N/A | BW17: N/A | BX17: N/A | BY17: N/A
A18: Water ladder | B18: Basic | C18: =C16*'DHS12'!C23/100 -> 31.27279574 | D18: =D16*'DHS12'!D23/100 -> 27.64694862 | E18: =E16*'DHS12'!E23/100 -> 29.77057784 | F18: =F16*'DHS12'!F23/100 -> 31.33748164 | G18: =G16*'DHS12'!G23/100 -> 70.01345791 | H18: =H16*'DHS12'!H23/100 -> 67.32296974 | I18: =I16*'DHS12'!I23/100 -> 76.50588089 | J18: =J16*'DHS12'!J23/100 -> 88.59420032 | K18: =K16*'DHS12'!K23/100 -> 89.32599001 | L18: =L16*'DHS12'!L23/100 -> 94.81969603 | M18: =M16*'DHS12'!M23/100 -> 28.18355367 | N18: =N16*'DHS12'!N23/100 -> 26.53512628 | O18: =O16*'DHS12'!O23/100 -> 29.883 | P18: =P16*'DHS12'!P23/100 -> 27.91287144 | Q18: =Q16*'DHS12'!Q23/100 -> 30.38036703 | R18: =R16*'DHS12'!R23/100 -> 62.70191118 | S18: =S16*'DHS12'!S23/100 -> 59.57397166 | T18: =T16*'DHS12'!T23/100 -> 25.7504828 | U18: =U16*'DHS12'!U23/100 -> 30.82293732 | V18: =V16*'DHS12'!V23/100 -> 91.17029541 | W18: =W16*'DHS12'!W23/100 -> 35.96143697 | X18: =X16*'DHS12'!X23/100 -> 46.43236898 | Y18: =Y16*'DHS12'!Y23/100 -> 28.9725962 | BA18: Water ladder | BB18: Basic | BC18: N/A | BD18: N/A | BE18: N/A | BF18: N/A | BG18: N/A | BH18: N/A | BI18: N/A | BJ18: N/A | BK18: N/A | BL18: N/A | BM18: N/A | BN18: N/A | BO18: N/A | BP18: N/A | BQ18: N/A | BR18: N/A | BS18: N/A | BT18: N/A | BU18: N/A | BV18: N/A | BW18: N/A | BX18: N/A | BY18: N/A
B19: Limited | C19: =C16*'DHS12'!C22/100 -> 15.61295499 | D19: =D16*'DHS12'!D22/100 -> 15.34986105 | E19: =E16*'DHS12'!E22/100 -> 16.03031114 | F19: =F16*'DHS12'!F22/100 -> 13.36648646 | G19: =G16*'DHS12'!G22/100 -> 12.54958208 | H19: =H16*'DHS12'!H22/100 -> 17.04165399 | I19: =I16*'DHS12'!I22/100 -> 14.57254874 | J19: =J16*'DHS12'!J22/100 -> 8.869166369 | K19: =K16*'DHS12'!K22/100 -> 6.517346911 | L19: =L16*'DHS12'!L22/100 -> 2.431274257 | M19: =M16*'DHS12'!M22/100 -> 14.64859477 | N19: =N16*'DHS12'!N22/100 -> 16.05737176 | O19: =O16*'DHS12'!O22/100 -> 15.60101826 | P19: =P16*'DHS12'!P22/100 -> 14.50790582 | Q19: =Q16*'DHS12'!Q22/100 -> 14.36244156 | R19: =R16*'DHS12'!R22/100 -> 5.89974219 | S19: =S16*'DHS12'!S22/100 -> 6.545863701 | T19: =T16*'DHS12'!T22/100 -> 6.079533021 | U19: =U16*'DHS12'!U22/100 -> 27.55383791 | V19: =V16*'DHS12'!V22/100 -> 3.013894063 | W19: =W16*'DHS12'!W22/100 -> 10.86335075 | X19: =X16*'DHS12'!X22/100 -> 13.40315806 | Y19: =Y16*'DHS12'!Y22/100 -> 17.08876501 | BB19: Limited | BC19: N/A | BD19: N/A | BE19: N/A | BF19: N/A | BG19: N/A | BH19: N/A | BI19: N/A | BJ19: N/A | BK19: N/A | BL19: N/A | BM19: N/A | BN19: N/A | BO19: N/A | BP19: N/A | BQ19: N/A | BR19: N/A | BS19: N/A | BT19: N/A | BU19: N/A | BV19: N/A | BW19: N/A | BX19: N/A | BY19: N/A
B20: Unimproved | C20: =100-(C18+C19+C21) -> 51.82618632 | D20: =100-(D18+D19+D21) -> 55.7273353 | E20: 52.68095879 | F20: 52.61966117 | G20: 17.13034765 | H20: 15.59509712 | I20: 8.861355341 | J20: 2.536633313 | K20: 4.156663076 | L20: 2.749029716 | M20: 55.74561006 | N20: 56.4232301 | O20: 52.90324354 | P20: 55.46500017 | Q20: 52.82872918 | R20: 31.02561882 | S20: 33.88016463 | T20: 68.16998418 | U20: 41.53708765 | V20: 5.815810522 | W20: 53.17521228 | X20: 30.38485133 | Y20: 53.93863879 | BB20: Unimproved | BC20: N/A | BD20: N/A | BE20: N/A | BF20: N/A | BG20: N/A | BH20: N/A | BI20: N/A | BJ20: N/A | BK20: N/A | BL20: N/A | BM20: N/A | BN20: N/A | BO20: N/A | BP20: N/A | BQ20: N/A | BR20: N/A | BS20: N/A | BT20: N/A | BU20: N/A | BV20: N/A | BW20: N/A | BX20: N/A | BY20: N/A
B21: Surface water | C21: =C64 -> 1.288062947 | D21: 1.275855022 | E21: 1.518152226 | F21: 2.676370719 | G21: 0.3066123618 | H21: 0.0402791415 | I21: 0.06021503315 | J21: 0 | K21: 0 | L21: 0 | M21: 1.422241497 | N21: 0.9842718615 | O21: 1.612738204 | P21: 2.114222571 | Q21: 2.428462238 | R21: 0.372727801 | S21: 0 | T21: 0 | U21: 0.08613713058 | V21: 0 | W21: 0 | X21: 9.779621625 | Y21: 0 | BB21: Surface water | BC21: N/A | BD21: N/A | BE21: N/A | BF21: N/A | BG21: N/A | BH21: N/A | BI21: N/A | BJ21: N/A | BK21: N/A | BL21: N/A | BM21: N/A | BN21: N/A | BO21: N/A | BP21: N/A | BQ21: N/A | BR21: N/A | BS21: N/A | BT21: N/A | BU21: N/A | BV21: N/A | BW21: N/A | BX21: N/A | BY21: N/A
A22: Improved water point at more than 30 minutes | B22: Yes | C22: N/A | D22: N/A | E22: N/A | F22: N/A | G22: N/A | H22: N/A | I22: N/A | J22: N/A | K22: N/A | L22: N/A | M22: N/A | N22: N/A | O22: N/A | P22: N/A | Q22: N/A | R22: N/A | S22: N/A | T22: N/A | U22: N/A | V22: N/A | W22: N/A | X22: N/A | Y22: N/A | BA22: Improved water point at more than 30 minutes | BB22: Yes | BC22: N/A | BD22: N/A | BE22: N/A | BF22: N/A | BG22: N/A | BH22: N/A | BI22: N/A | BJ22: N/A | BK22: N/A | BL22: N/A | BM22: N/A | BN22: N/A | BO22: N/A | BP22: N/A | BQ22: N/A | BR22: N/A | BS22: N/A | BT22: N/A | BU22: N/A | BV22: N/A | BW22: N/A | BX22: N/A | BY22: N/A
B23: No | C23: N/A | D23: N/A | E23: N/A | F23: N/A | G23: N/A | H23: N/A | I23: N/A | J23: N/A | K23: N/A | L23: N/A | M23: N/A | N23: N/A | O23: N/A | P23: N/A | Q23: N/A | R23: N/A | S23: N/A | T23: N/A | U23: N/A | V23: N/A | W23: N/A | X23: N/A | Y23: N/A | BB23: No | BC23: N/A | BD23: N/A | BE23: N/A | BF23: N/A | BG23: N/A | BH23: N/A | BI23: N/A | BJ23: N/A | BK23: N/A | BL23: N/A | BM23: N/A | BN23: N/A | BO23: N/A | BP23: N/A | BQ23: N/A | BR23: N/A | BS23: N/A | BT23: N/A | BU23: N/A | BV23: N/A | BW23: N/A | BX23: N/A | BY23: N/A
A24: Manually calculated ratios | B24: Improved wells
B25: Improved springs
B26: Other
C27: NATIONAL wealth index quintile | H27: URBAN wealth index quintile | M27: RURAL wealth index quintile | R27: SUB-REGIONS: | BA27: Raw numbers of respondents: | BB27: Use of drinking water sources | BC27: NATIONAL wealth index quintile | BH27: URBAN wealth index quintile | BM27: RURAL wealth index quintile | BR27: SUB-REGIONS:
A28: Percentage based on weighted population | C28: Poorest | D28: Poor | E28: Middle | F28: Rich | G28: Richest | H28: Poorest | I28: Poor | J28: Middle | K28: Rich | L28: Richest | M28: Poorest | N28: Poor | O28: Middle | P28: Rich | Q28: Richest | R28: Agadez | S28: Diffa | T28: Dosso | U28: Maradi | V28: Niamey | W28: Tahoua | X28: Tillabéri | Y28: Zinder | BA28: Water data, raw numbers (weighted) | BC28: Poorest | BD28: Poor | BE28: Middle | BF28: Rich | BG28: Richest | BH28: Poorest | BI28: Poor | BJ28: Middle | BK28: Rich | BL28: Richest | BM28: Poorest | BN28: Poor | BO28: Middle | BP28: Rich | BQ28: Richest | BR28: Agadez | BS28: Diffa | BT28: Dosso | BU28: Maradi | BV28: Niamey | BW28: Tahoua | BX28: Tillabéri | BY28: Zinder
A29: Piped water | B29: Yes | C29: 13.04849052 | D29: 6.451644882 | E29: 9.586782885 | F29: 14.23411658 | G29: 71.57070889 | H29: 78.36993164 | I29: 88.53099167 | J29: 94.58823277 | K29: 95.84333692 | L29: 96.72131653 | M29: 5.914264238 | N29: 5.171917734 | O29: 9.081073652 | P29: 7.763893153 | Q29: 12.68124253 | R29: 52.35414013 | S29: 25.68463177 | T29: 13.58912695 | U29: 15.26788356 | V29: 91.25507495 | W29: 20.31584573 | X29: 6.030121686 | Y29: 22.75560504 | BA29: Piped water | BB29: Yes | BC29: N/A | BD29: N/A | BE29: N/A | BF29: N/A | BG29: N/A | BH29: N/A | BI29: N/A | BJ29: N/A | BK29: N/A | BL29: N/A | BM29: N/A | BN29: N/A | BO29: N/A | BP29: N/A | BQ29: N/A | BR29: N/A | BS29: N/A | BT29: N/A | BU29: N/A | BV29: N/A | BW29: N/A | BX29: N/A | BY29: N/A
B30: No | C30: 86.95150948 | D30: 93.54835512 | E30: 90.41321711 | F30: 85.76588342 | G30: 28.42929111 | H30: 21.63006836 | I30: 11.46900833 | J30: 5.411767228 | K30: 4.156663076 | L30: 3.278683475 | M30: 94.08573576 | N30: 94.82808227 | O30: 90.91892635 | P30: 92.23610685 | Q30: 87.31875747 | R30: 47.64585987 | S30: 74.31536823 | T30: 86.41087305 | U30: 84.73211644 | V30: 8.744925054 | W30: 79.68415427 | X30: 93.96987831 | Y30: 77.24439496 | BB30: No | BC30: N/A | BD30: N/A | BE30: N/A | BF30: N/A | BG30: N/A | BH30: N/A | BI30: N/A | BJ30: N/A | BK30: N/A | BL30: N/A | BM30: N/A | BN30: N/A | BO30: N/A | BP30: N/A | BQ30: N/A | BR30: N/A | BS30: N/A | BT30: N/A | BU30: N/A | BV30: N/A | BW30: N/A | BX30: N/A | BY30: N/A
A31: Piped water on premises | B31: Yes | C31: 0.559783089 | D31: 0.1655621508 | E31: 0.3527739384 | F31: 0.9000889335 | G31: 34.58200144 | H31: 8.764506751 | I31: 19.96882585 | J31: 33.51963138 | K31: 56.34772271 | L31: 82.09102214 | M31: 0 | N31: 0.04775879696 | O31: 0 | P31: 0.02589548574 | Q31: 0.5017670064 | R31: 27.8287566 | S31: 7.560061568 | T31: 3.324826279 | U31: 4.559835362 | V31: 43.57876449 | W31: 3.772397224 | X31: 2.542902304 | Y31: 3.713538222 | BA31: Piped water on premises | BB31: Yes | BC31: N/A | BD31: N/A | BE31: N/A | BF31: N/A | BG31: N/A | BH31: N/A | BI31: N/A | BJ31: N/A | BK31: N/A | BL31: N/A | BM31: N/A | BN31: N/A | BO31: N/A | BP31: N/A | BQ31: N/A | BR31: N/A | BS31: N/A | BT31: N/A | BU31: N/A | BV31: N/A | BW31: N/A | BX31: N/A | BY31: N/A
B32: No | C32: 99.44021691 | D32: 99.83443785 | E32: 99.64722606 | F32: 99.09991107 | G32: 65.41799856 | H32: 91.23549325 | I32: 80.03117415 | J32: 66.48036862 | K32: 43.65227729 | L32: 17.90897786 | M32: 100 | N32: 99.9522412 | O32: 100 | P32: 99.97410451 | Q32: 99.49823299 | R32: 72.1712434 | S32: 92.43993843 | T32: 96.67517372 | U32: 95.44016464 | V32: 56.42123551 | W32: 96.22760278 | X32: 97.4570977 | Y32: 96.28646178 | BB32: No | BC32: N/A | BD32: N/A | BE32: N/A | BF32: N/A | BG32: N/A | BH32: N/A | BI32: N/A | BJ32: N/A | BK32: N/A | BL32: N/A | BM32: N/A | BN32: N/A | BO32: N/A | BP32: N/A | BQ32: N/A | BR32: N/A | BS32: N/A | BT32: N/A | BU32: N/A | BV32: N/A | BW32: N/A | BX32: N/A | BY32: N/A
A33: Piped water into dwelling | B33: Yes | C33: N/A | D33: N/A | E33: N/A | F33: N/A | G33: N/A | H33: N/A | I33: N/A | J33: N/A | K33: N/A | L33: N/A | M33: N/A | N33: N/A | O33: N/A | P33: N/A | Q33: N/A | R33: N/A | S33: N/A | T33: N/A | U33: N/A | V33: N/A | W33: N/A | X33: N/A | Y33: N/A | BA33: Piped water into dwelling | BB33: Yes | BC33: N/A | BD33: N/A | BE33: N/A | BF33: N/A | BG33: N/A | BH33: N/A | BI33: N/A | BJ33: N/A | BK33: N/A | BL33: N/A | BM33: N/A | BN33: N/A | BO33: N/A | BP33: N/A | BQ33: N/A | BR33: N/A | BS33: N/A | BT33: N/A | BU33: N/A | BV33: N/A | BW33: N/A | BX33: N/A | BY33: N/A
B34: No | C34: N/A | D34: N/A | E34: N/A | F34: N/A | G34: N/A | H34: N/A | I34: N/A | J34: N/A | K34: N/A | L34: N/A | M34: N/A | N34: N/A | O34: N/A | P34: N/A | Q34: N/A | R34: N/A | S34: N/A | T34: N/A | U34: N/A | V34: N/A | W34: N/A | X34: N/A | Y34: N/A | BB34: No | BC34: N/A | BD34: N/A | BE34: N/A | BF34: N/A | BG34: N/A | BH34: N/A | BI34: N/A | BJ34: N/A | BK34: N/A | BL34: N/A | BM34: N/A | BN34: N/A | BO34: N/A | BP34: N/A | BQ34: N/A | BR34: N/A | BS34: N/A | BT34: N/A | BU34: N/A | BV34: N/A | BW34: N/A | BX34: N/A | BY34: N/A
A35: Water source on premises | B35: Yes | C35: 5.941462418 | D35: 5.499276031 | E35: 4.867861456 | F35: 10.7235681 | G35: 46.51688016 | H35: 23.44490769 | I35: 32.24841638 | J35: 43.03763871 | K35: 65.47393441 | L35: 87.30229724 | M35: 4.397820401 | N35: 4.098393319 | O35: 5.289926891 | P35: 6.166106374 | Q35: 14.56447868 | R35: 33.17825135 | S35: 10.2297384 | T35: 8.487726577 | U35: 11.9462609 | V35: 54.9106586 | W35: 7.315520059 | X35: 17.87097459 | Y35: 10.13771207 | BA35: Water source on premises | BB35: Yes | BC35: N/A | BD35: N/A | BE35: N/A | BF35: N/A | BG35: N/A | BH35: N/A | BI35: N/A | BJ35: N/A | BK35: N/A | BL35: N/A | BM35: N/A | BN35: N/A | BO35: N/A | BP35: N/A | BQ35: N/A | BR35: N/A | BS35: N/A | BT35: N/A | BU35: N/A | BV35: N/A | BW35: N/A | BX35: N/A | BY35: N/A
B36: No | C36: 94.05853758 | D36: 94.50072397 | E36: 95.13213854 | F36: 89.2764319 | G36: 53.48311984 | H36: 76.55509231 | I36: 67.75158362 | J36: 56.96236129 | K36: 34.52606559 | L36: 12.69770276 | M36: 95.6021796 | N36: 95.90160668 | O36: 94.71007311 | P36: 93.83389363 | Q36: 85.43552132 | R36: 66.82174865 | S36: 89.7702616 | T36: 91.51227342 | U36: 88.0537391 | V36: 45.0893414 | W36: 92.68447994 | X36: 82.12902541 | Y36: 89.86228793 | BB36: No | BC36: N/A | BD36: N/A | BE36: N/A | BF36: N/A | BG36: N/A | BH36: N/A | BI36: N/A | BJ36: N/A | BK36: N/A | BL36: N/A | BM36: N/A | BN36: N/A | BO36: N/A | BP36: N/A | BQ36: N/A | BR36: N/A | BS36: N/A | BT36: N/A | BU36: N/A | BV36: N/A | BW36: N/A | BX36: N/A | BY36: N/A
A37: Improved Water source on premises | B37: Yes | C37: N/A | D37: N/A | E37: N/A | F37: N/A | G37: N/A | H37: N/A | I37: N/A | J37: N/A | K37: N/A | L37: N/A | M37: N/A | N37: N/A | O37: N/A | P37: N/A | Q37: N/A | R37: N/A | S37: N/A | T37: N/A | U37: N/A | V37: N/A | W37: N/A | X37: N/A | Y37: N/A | BA37: Improved water source on premises | BB37: Yes | BC37: N/A | BD37: N/A | BE37: N/A | BF37: N/A | BG37: N/A | BH37: N/A | BI37: N/A | BJ37: N/A | BK37: N/A | BL37: N/A | BM37: N/A | BN37: N/A | BO37: N/A | BP37: N/A | BQ37: N/A | BR37: N/A | BS37: N/A | BT37: N/A | BU37: N/A | BV37: N/A | BW37: N/A | BX37: N/A | BY37: N/A
B38: No | C38: N/A | D38: N/A | E38: N/A | F38: N/A | G38: N/A | H38: N/A | I38: N/A | J38: N/A | K38: N/A | L38: N/A | M38: N/A | N38: N/A | O38: N/A | P38: N/A | Q38: N/A | R38: N/A | S38: N/A | T38: N/A | U38: N/A | V38: N/A | W38: N/A | X38: N/A | Y38: N/A | BB38: No | BC38: N/A | BD38: N/A | BE38: N/A | BF38: N/A | BG38: N/A | BH38: N/A | BI38: N/A | BJ38: N/A | BK38: N/A | BL38: N/A | BM38: N/A | BN38: N/A | BO38: N/A | BP38: N/A | BQ38: N/A | BR38: N/A | BS38: N/A | BT38: N/A | BU38: N/A | BV38: N/A | BW38: N/A | BX38: N/A | BY38: N/A
A39: Piped water on premises available when needed | B39: Yes | C39: N/A | D39: N/A | E39: N/A | F39: N/A | G39: N/A | H39: N/A | I39: N/A | J39: N/A | K39: N/A | L39: N/A | M39: N/A | N39: N/A | O39: N/A | P39: N/A | Q39: N/A | R39: N/A | S39: N/A | T39: N/A | U39: N/A | V39: N/A | W39: N/A | X39: N/A | Y39: N/A | BA39: Piped water on premises available when needed | BB39: Yes | BC39: N/A | BD39: N/A | BE39: N/A | BF39: N/A | BG39: N/A | BH39: N/A | BI39: N/A | BJ39: N/A | BK39: N/A | BL39: N/A | BM39: N/A | BN39: N/A | BO39: N/A | BP39: N/A | BQ39: N/A | BR39: N/A | BS39: N/A | BT39: N/A | BU39: N/A | BV39: N/A | BW39: N/A | BX39: N/A | BY39: N/A
B40: No | C40: N/A | D40: N/A | E40: N/A | F40: N/A | G40: N/A | H40: N/A | I40: N/A | J40: N/A | K40: N/A | L40: N/A | M40: N/A | N40: N/A | O40: N/A | P40: N/A | Q40: N/A | R40: N/A | S40: N/A | T40: N/A | U40: N/A | V40: N/A | W40: N/A | X40: N/A | Y40: N/A | BB40: No | BC40: N/A | BD40: N/A | BE40: N/A | BF40: N/A | BG40: N/A | BH40: N/A | BI40: N/A | BJ40: N/A | BK40: N/A | BL40: N/A | BM40: N/A | BN40: N/A | BO40: N/A | BP40: N/A | BQ40: N/A | BR40: N/A | BS40: N/A | BT40: N/A | BU40: N/A | BV40: N/A | BW40: N/A | BX40: N/A | BY40: N/A
A41: Water point at more than 30 minutes | B41: Yes | C41: 35.31176301 | D41: 33.8024775 | E41: 32.91595419 | F41: 25.94630798 | G41: 5.51452585 | H41: 9.810280851 | I41: 3.022399466 | J41: 1.32526052 | K41: 0.6956309176 | L41: 0.2372622854 | M41: 38.14443655 | N41: 33.34555249 | O41: 37.17560307 | P41: 28.94302911 | Q41: 21.36599515 | R41: 22.19591504 | S41: 14.98409668 | T41: 22.43196689 | U41: 22.76470136 | V41: 0.5594828471 | W41: 34.52992887 | X41: 35.21271924 | Y41: 31.81017565 | BA41: Water point at more than 30 minutes | BB41: Yes | BC41: N/A | BD41: N/A | BE41: N/A | BF41: N/A | BG41: N/A | BH41: N/A | BI41: N/A | BJ41: N/A | BK41: N/A | BL41: N/A | BM41: N/A | BN41: N/A | BO41: N/A | BP41: N/A | BQ41: N/A | BR41: N/A | BS41: N/A | BT41: N/A | BU41: N/A | BV41: N/A | BW41: N/A | BX41: N/A | BY41: N/A
B42: No | C42: 64.68823699 | D42: 66.1975225 | E42: 67.08404581 | F42: 74.05369202 | G42: 94.48547415 | H42: 90.18971915 | I42: 96.97760053 | J42: 98.67473948 | K42: 99.30436908 | L42: 99.76273771 | M42: 61.85556345 | N42: 66.65444751 | O42: 62.82439693 | P42: 71.05697089 | Q42: 78.63400485 | R42: 77.80408496 | S42: 85.01590332 | T42: 77.56803311 | U42: 77.23529864 | V42: 99.44051715 | W42: 65.47007113 | X42: 64.78728076 | Y42: 68.18982435 | BB42: No | BC42: N/A | BD42: N/A | BE42: N/A | BF42: N/A | BG42: N/A | BH42: N/A | BI42: N/A | BJ42: N/A | BK42: N/A | BL42: N/A | BM42: N/A | BN42: N/A | BO42: N/A | BP42: N/A | BQ42: N/A | BR42: N/A | BS42: N/A | BT42: N/A | BU42: N/A | BV42: N/A | BW42: N/A | BX42: N/A | BY42: N/A
A43: Water source available when needed | B43: Yes | C43: N/A | D43: N/A | E43: N/A | F43: N/A | G43: N/A | H43: N/A | I43: N/A | J43: N/A | K43: N/A | L43: N/A | M43: N/A | N43: N/A | O43: N/A | P43: N/A | Q43: N/A | R43: N/A | S43: N/A | T43: N/A | U43: N/A | V43: N/A | W43: N/A | X43: N/A | Y43: N/A | BA43: Water source available when needed | BB43: Yes | BC43: N/A | BD43: N/A | BE43: N/A | BF43: N/A | BG43: N/A | BH43: N/A | BI43: N/A | BJ43: N/A | BK43: N/A | BL43: N/A | BM43: N/A | BN43: N/A | BO43: N/A | BP43: N/A | BQ43: N/A | BR43: N/A | BS43: N/A | BT43: N/A | BU43: N/A | BV43: N/A | BW43: N/A | BX43: N/A | BY43: N/A
B44: No | C44: N/A | D44: N/A | E44: N/A | F44: N/A | G44: N/A | H44: N/A | I44: N/A | J44: N/A | K44: N/A | L44: N/A | M44: N/A | N44: N/A | O44: N/A | P44: N/A | Q44: N/A | R44: N/A | S44: N/A | T44: N/A | U44: N/A | V44: N/A | W44: N/A | X44: N/A | Y44: N/A | BB44: No | BC44: N/A | BD44: N/A | BE44: N/A | BF44: N/A | BG44: N/A | BH44: N/A | BI44: N/A | BJ44: N/A | BK44: N/A | BL44: N/A | BM44: N/A | BN44: N/A | BO44: N/A | BP44: N/A | BQ44: N/A | BR44: N/A | BS44: N/A | BT44: N/A | BU44: N/A | BV44: N/A | BW44: N/A | BX44: N/A | BY44: N/A
A45: Improved water source available when needed | B45: Yes | C45: N/A | D45: N/A | E45: N/A | F45: N/A | G45: N/A | H45: N/A | I45: N/A | J45: N/A | K45: N/A | L45: N/A | M45: N/A | N45: N/A | O45: N/A | P45: N/A | Q45: N/A | R45: N/A | S45: N/A | T45: N/A | U45: N/A | V45: N/A | W45: N/A | X45: N/A | Y45: N/A | BA45: Improved water source available when needed | BB45: Yes | BC45: N/A | BD45: N/A | BE45: N/A | BF45: N/A | BG45: N/A | BH45: N/A | BI45: N/A | BJ45: N/A | BK45: N/A | BL45: N/A | BM45: N/A | BN45: N/A | BO45: N/A | BP45: N/A | BQ45: N/A | BR45: N/A | BS45: N/A | BT45: N/A | BU45: N/A | BV45: N/A | BW45: N/A | BX45: N/A | BY45: N/A
B46: No | C46: N/A | D46: N/A | E46: N/A | F46: N/A | G46: N/A | H46: N/A | I46: N/A | J46: N/A | K46: N/A | L46: N/A | M46: N/A | N46: N/A | O46: N/A | P46: N/A | Q46: N/A | R46: N/A | S46: N/A | T46: N/A | U46: N/A | V46: N/A | W46: N/A | X46: N/A | Y46: N/A | BB46: No | BC46: N/A | BD46: N/A | BE46: N/A | BF46: N/A | BG46: N/A | BH46: N/A | BI46: N/A | BJ46: N/A | BK46: N/A | BL46: N/A | BM46: N/A | BN46: N/A | BO46: N/A | BP46: N/A | BQ46: N/A | BR46: N/A | BS46: N/A | BT46: N/A | BU46: N/A | BV46: N/A | BW46: N/A | BX46: N/A | BY46: N/A
A47: Microbiological quality at point of collection | B47: Not contaminated (No E. coli in 100 mL) | C47: N/A | D47: N/A | E47: N/A | F47: N/A | G47: N/A | H47: N/A | I47: N/A | J47: N/A | K47: N/A | L47: N/A | M47: N/A | N47: N/A | O47: N/A | P47: N/A | Q47: N/A | R47: N/A | S47: N/A | T47: N/A | U47: N/A | V47: N/A | W47: N/A | X47: N/A | Y47: N/A | BA47: Microbiological quality at point of collection | BB47: Not contaminated (No E. coli in 100 mL) | BC47: N/A | BD47: N/A | BE47: N/A | BF47: N/A | BG47: N/A | BH47: N/A | BI47: N/A | BJ47: N/A | BK47: N/A | BL47: N/A | BM47: N/A | BN47: N/A | BO47: N/A | BP47: N/A | BQ47: N/A | BR47: N/A | BS47: N/A | BT47: N/A | BU47: N/A | BV47: N/A | BW47: N/A | BX47: N/A | BY47: N/A
B48: Contaminated (E. coli detected in 100 mL) | C48: N/A | D48: N/A | E48: N/A | F48: N/A | G48: N/A | H48: N/A | I48: N/A | J48: N/A | K48: N/A | L48: N/A | M48: N/A | N48: N/A | O48: N/A | P48: N/A | Q48: N/A | R48: N/A | S48: N/A | T48: N/A | U48: N/A | V48: N/A | W48: N/A | X48: N/A | Y48: N/A | BB48: Contaminated (E. coli detected in 100 mL) | BC48: N/A | BD48: N/A | BE48: N/A | BF48: N/A | BG48: N/A | BH48: N/A | BI48: N/A | BJ48: N/A | BK48: N/A | BL48: N/A | BM48: N/A | BN48: N/A | BO48: N/A | BP48: N/A | BQ48: N/A | BR48: N/A | BS48: N/A | BT48: N/A | BU48: N/A | BV48: N/A | BW48: N/A | BX48: N/A | BY48: N/A
B49: Highly contaminated (>100 CFU/100 mL) | C49: N/A | D49: N/A | E49: N/A | F49: N/A | G49: N/A | H49: N/A | I49: N/A | J49: N/A | K49: N/A | L49: N/A | M49: N/A | N49: N/A | O49: N/A | P49: N/A | Q49: N/A | R49: N/A | S49: N/A | T49: N/A | U49: N/A | V49: N/A | W49: N/A | X49: N/A | Y49: N/A | BB49: Highly contaminated (>100 CFU/100 mL) | BC49: N/A | BD49: N/A | BE49: N/A | BF49: N/A | BG49: N/A | BH49: N/A | BI49: N/A | BJ49: N/A | BK49: N/A | BL49: N/A | BM49: N/A | BN49: N/A | BO49: N/A | BP49: N/A | BQ49: N/A | BR49: N/A | BS49: N/A | BT49: N/A | BU49: N/A | BV49: N/A | BW49: N/A | BX49: N/A | BY49: N/A
A50: Microbiological quality of improved water sources at point of collection | B50: Not contaminated (No E. coli in 100 mL) | C50: N/A | D50: N/A | E50: N/A | F50: N/A | G50: N/A | H50: N/A | I50: N/A | J50: N/A | K50: N/A | L50: N/A | M50: N/A | N50: N/A | O50: N/A | P50: N/A | Q50: N/A | R50: N/A | S50: N/A | T50: N/A | U50: N/A | V50: N/A | W50: N/A | X50: N/A | Y50: N/A | BA50: Microbiological quality of improved water sources at point of collection | BB50: Not contaminated (No E. coli in 100 mL) | BC50: N/A | BD50: N/A | BE50: N/A | BF50: N/A | BG50: N/A | BH50: N/A | BI50: N/A | BJ50: N/A | BK50: N/A | BL50: N/A | BM50: N/A | BN50: N/A | BO50: N/A | BP50: N/A | BQ50: N/A | BR50: N/A | BS50: N/A | BT50: N/A | BU50: N/A | BV50: N/A | BW50: N/A | BX50: N/A | BY50: N/A
B51: Contaminated (E. coli detected in 100 mL) | C51: N/A | D51: N/A | E51: N/A | F51: N/A | G51: N/A | H51: N/A | I51: N/A | J51: N/A | K51: N/A | L51: N/A | M51: N/A | N51: N/A | O51: N/A | P51: N/A | Q51: N/A | R51: N/A | S51: N/A | T51: N/A | U51: N/A | V51: N/A | W51: N/A | X51: N/A | Y51: N/A | BB51: Contaminated (E. coli detected in 100 mL) | BC51: N/A | BD51: N/A | BE51: N/A | BF51: N/A | BG51: N/A | BH51: N/A | BI51: N/A | BJ51: N/A | BK51: N/A | BL51: N/A | BM51: N/A | BN51: N/A | BO51: N/A | BP51: N/A | BQ51: N/A | BR51: N/A | BS51: N/A | BT51: N/A | BU51: N/A | BV51: N/A | BW51: N/A | BX51: N/A | BY51: N/A
B52: Highly contaminated (>100 CFU/100 mL) | C52: N/A | D52: N/A | E52: N/A | F52: N/A | G52: N/A | H52: N/A | I52: N/A | J52: N/A | K52: N/A | L52: N/A | M52: N/A | N52: N/A | O52: N/A | P52: N/A | Q52: N/A | R52: N/A | S52: N/A | T52: N/A | U52: N/A | V52: N/A | W52: N/A | X52: N/A | Y52: N/A | BB52: Highly contaminated (>100 CFU/100 mL) | BC52: N/A | BD52: N/A | BE52: N/A | BF52: N/A | BG52: N/A | BH52: N/A | BI52: N/A | BJ52: N/A | BK52: N/A | BL52: N/A | BM52: N/A | BN52: N/A | BO52: N/A | BP52: N/A | BQ52: N/A | BR52: N/A | BS52: N/A | BT52: N/A | BU52: N/A | BV52: N/A | BW52: N/A | BX52: N/A | BY52: N/A
A53: Microbiological quality of piped on premises at point of collection | B53: Not contaminated (No E. coli in 100 mL) | C53: N/A | D53: N/A | E53: N/A | F53: N/A | G53: N/A | H53: N/A | I53: N/A | J53: N/A | K53: N/A | L53: N/A | M53: N/A | N53: N/A | O53: N/A | P53: N/A | Q53: N/A | R53: N/A | S53: N/A | T53: N/A | U53: N/A | V53: N/A | W53: N/A | X53: N/A | Y53: N/A | BA53: Microbiological quality of piped on premises at point of collection | BB53: Not contaminated (No E. coli in 100 mL) | BC53: N/A | BD53: N/A | BE53: N/A | BF53: N/A | BG53: N/A | BH53: N/A | BI53: N/A | BJ53: N/A | BK53: N/A | BL53: N/A | BM53: N/A | BN53: N/A | BO53: N/A | BP53: N/A | BQ53: N/A | BR53: N/A | BS53: N/A | BT53: N/A | BU53: N/A | BV53: N/A | BW53: N/A | BX53: N/A | BY53: N/A
B54: Contaminated (E. coli detected in 100 mL) | C54: N/A | D54: N/A | E54: N/A | F54: N/A | G54: N/A | H54: N/A | I54: N/A | J54: N/A | K54: N/A | L54: N/A | M54: N/A | N54: N/A | O54: N/A | P54: N/A | Q54: N/A | R54: N/A | S54: N/A | T54: N/A | U54: N/A | V54: N/A | W54: N/A | X54: N/A | Y54: N/A | BB54: Contaminated (E. coli detected in 100 mL) | BC54: N/A | BD54: N/A | BE54: N/A | BF54: N/A | BG54: N/A | BH54: N/A | BI54: N/A | BJ54: N/A | BK54: N/A | BL54: N/A | BM54: N/A | BN54: N/A | BO54: N/A | BP54: N/A | BQ54: N/A | BR54: N/A | BS54: N/A | BT54: N/A | BU54: N/A | BV54: N/A | BW54: N/A | BX54: N/A | BY54: N/A
B55: Highly contaminated (>100 CFU/100 mL) | C55: N/A | D55: N/A | E55: N/A | F55: N/A | G55: N/A | H55: N/A | I55: N/A | J55: N/A | K55: N/A | L55: N/A | M55: N/A | N55: N/A | O55: N/A | P55: N/A | Q55: N/A | R55: N/A | S55: N/A | T55: N/A | U55: N/A | V55: N/A | W55: N/A | X55: N/A | Y55: N/A | BB55: Highly contaminated (>100 CFU/100 mL) | BC55: N/A | BD55: N/A | BE55: N/A | BF55: N/A | BG55: N/A | BH55: N/A | BI55: N/A | BJ55: N/A | BK55: N/A | BL55: N/A | BM55: N/A | BN55: N/A | BO55: N/A | BP55: N/A | BQ55: N/A | BR55: N/A | BS55: N/A | BT55: N/A | BU55: N/A | BV55: N/A | BW55: N/A | BX55: N/A | BY55: N/A
C56: NATIONAL wealth index quintile | H56: URBAN wealth index quintile | M56: RURAL wealth index quintile | R56: SUB-REGIONS: | BA56: Raw numbers of respondents: | BB56: Use of drinking water sources | BC56: NATIONAL wealth index quintile | BH56: URBAN wealth index quintile | BM56: RURAL wealth index quintile | BR56: SUB-REGIONS:
A57: Percentage based on weighted population | C57: Poorest | D57: Poor | E57: Middle | F57: Rich | G57: Richest | H57: Poorest | I57: Poor | J57: Middle | K57: Rich | L57: Richest | M57: Poorest | N57: Poor | O57: Middle | P57: Rich | Q57: Richest | R57: Agadez | S57: Diffa | T57: Dosso | U57: Maradi | V57: Niamey | W57: Tahoua | X57: Tillabéri | Y57: Zinder | BA57: Water data, raw numbers (weighted) | BC57: Poorest | BD57: Poor | BE57: Middle | BF57: Rich | BG57: Richest | BH57: Poorest | BI57: Poor | BJ57: Middle | BK57: Rich | BL57: Richest | BM57: Poorest | BN57: Poor | BO57: Middle | BP57: Rich | BQ57: Richest | BR57: Agadez | BS57: Diffa | BT57: Dosso | BU57: Maradi | BV57: Niamey | BW57: Tahoua | BX57: Tillabéri | BY57: Zinder
A58: Source of drinking water | B58: Piped into dwelling | C58: 0.1098680554 | D58: 0.04652566053 | E58: 0.3118963507 | F58: 0.7579852137 | G58: 25.84944232 | H58: 4.847406883 | I58: 13.97055993 | J58: 22.51894965 | K58: 39.81918749 | L58: 67.31642264 | M58: 0 | N58: 0.04775879696 | O58: 0 | P58: 0 | Q58: 0.4181855422 | R58: 24.82095601 | S58: 3.657179882 | T58: 1.646804384 | U58: 3.762302917 | V58: 31.59316856 | W58: 2.12471608 | X58: 2.328982176 | Y58: 3.215919011
B59: Piped into yard/plot | C59: 0.4499150336 | D59: 0.1190364902 | E59: 0.0408775877 | F59: 0.143460235 | G59: 8.732559118 | H59: 3.929862675 | I59: 6.034855049 | J59: 11.00068173 | K59: 16.52853522 | L59: 14.77459949 | M59: 0 | N59: 0 | O59: 0 | P59: 0.02592429991 | Q59: 0.08358146425 | R59: 3.065157894 | S59: 3.902881686 | T59: 1.682440974 | U59: 0.7975324444 | V59: 12.02488774 | W59: 1.647681144 | X59: 0.2139201272 | Y59: 0.4976192116
B60: Public tap | C60: 12.48870744 | D60: 6.286082731 | E60: 9.234008947 | F60: 13.35412323 | G60: 36.98870746 | H60: 69.70678376 | I60: 68.68779316 | J60: 61.06860139 | K60: 39.49561422 | L60: 14.63029439 | M60: 5.914264238 | N60: 5.124158938 | O60: 9.081073652 | P60: 7.746607817 | Q60: 12.17947552 | R60: 24.57593231 | S60: 18.12457021 | T60: 10.27794311 | U60: 10.7080482 | V60: 47.71929673 | W60: 16.5434485 | X60: 3.487219383 | Y60: 19.04206682
B61: Protected well | C61: 18.57684846 | D61: 21.86599521 | E61: 18.9721275 | F61: 25.86432093 | G61: 8.070704507 | H61: 4.939171025 | I61: 2.898784479 | J61: 1.90076836 | K61: 1.74910275 | L61: 0.7545746164 | M61: 20.15381945 | N61: 21.54137682 | O61: 21.07639574 | P61: 21.94730454 | Q61: 26.47289105 | R61: 17.55660914 | S61: 30.34734639 | T61: 20.63339422 | U61: 24.23505303 | V61: 2.826167349 | W61: 14.60568447 | X61: 18.55775298 | Y61: 19.85637128
B62: Open well | C62: 66.68465126 | D62: 70.31215172 | E62: 69.92293739 | F62: 56.7413982 | G62: 19.06135944 | H62: 15.06262178 | I62: 7.156336985 | J62: 2.466427376 | K62: 1.009794093 | L62: 0.7487093574 | M62: 72.32052979 | N62: 72.26932406 | O62: 68.1445742 | P62: 68.09123241 | Q62: 57.94552653 | R62: 27.84198838 | S62: 43.85009337 | T62: 65.60954859 | U62: 60.0233567 | V62: 4.531302352 | W62: 65.00976313 | X62: 65.44492831 | Y62: 56.85929107
B63: Spring | C63: 0.06731184895 | D63: 0.09435315915 | E63: 0 | F63: 0.1859811511 | G63: 0 | H63: 0.3786099578 | I63: 0 | J63: 0 | K63: 0 | L63: 0 | M63: 0 | N63: 0.03310953066 | O63: 0.0852182055 | P63: 0.0747083614 | Q63: 0.1515747554 | R63: 0.5358808755 | S63: 0 | T63: 0 | U63: 0 | V63: 0 | W63: 0 | X63: 0.1217511445 | Y63: 0.1883306578
B64: Surface water | C64: 1.288062947 | D64: 1.275855022 | E64: 1.518152226 | F64: 2.676370719 | G64: 0.3066123618 | H64: 0.0402791415 | I64: 0.06021503315 | J64: 0 | K64: 0 | L64: 0 | M64: 1.422241497 | N64: 0.9842718615 | O64: 1.612738204 | P64: 2.114222571 | Q64: 2.428462238 | R64: 0.372727801 | S64: 0 | T64: 0 | U64: 0.08613713058 | V64: 0 | W64: 0 | X64: 9.779621625 | Y64: 0
B65: Bottled water | C65: 0 | D65: 0 | E65: 0 | F65: 0 | G65: 0.05214799016 | H65: 0 | I65: 0 | J65: 0 | K65: 0 | L65: 0.2899839492 | M65: 0 | N65: 0 | O65: 0 | P65: 0 | Q65: 0 | R65: 0 | S65: 0 | T65: 0 | U65: 0 | V65: 0.1425160396 | W65: 0 | X65: 0 | Y65: 0
B66: Other | C66: 0.3346349664 | D66: 0 | E66: 0 | F66: 0.2763603226 | G66: 0.938466811 | H66: 1.095264775 | I66: 1.191455367 | J66: 1.044571492 | K66: 1.397766233 | L66: 1.485415552 | M66: 0.1891450171 | N66: 0 | O66: 0 | P66: 0 | Q66: 0.3203028921 | R66: 1.230747582 | S66: 0.1179284584 | T66: 0.1498687221 | U66: 0.3875695727 | V66: 1.162661224 | W66: 0.06870667626 | X66: 0.06582426169 | Y66: 0.3404019498
A108: =A1026 -> Niger
A109: =A1034 -> 2006
A110: Use of sanitation facilities
A111: by wealth quintile and sub-national region
A112: Notes:
A113: WHO/UNICEF JMP customised wealth index excludes water,
A114: sanitation and hygiene assets.
A115: Survey used for analysis: | B115: =A1025 -> DHS06
A116: =B1030 -> Ratio of Improved latrines based on: | B116: DHS12
A117: =B1029 -> Ratio of Shared improved based on: | B117: DHS12
A120: Use of sanitation facilities | C120: NATIONAL wealth index quintile | H120: URBAN wealth index quintile | M120: RURAL wealth index quintile | R120: SUB-REGIONS: | BA120: Raw numbers of respondents: | BB120: Use of sanitation facilities | BC120: NATIONAL wealth index quintile | BH120: URBAN wealth index quintile | BM120: RURAL wealth index quintile | BR120: SUB-REGIONS:
A121: Weighted percentage (used in graphs) | C121: Poorest | D121: Poor | E121: Middle | F121: Rich | G121: Richest | H121: Poorest | I121: Poor | J121: Middle | K121: Rich | L121: Richest | M121: Poorest | N121: Poor | O121: Middle | P121: Rich | Q121: Richest | R121: Agadez | S121: Diffa | T121: Dosso | U121: Maradi | V121: Niamey | W121: Tahoua | X121: Tillabéri | Y121: Zinder | BA121: Sanitation data, raw numbers (weighted) | BC121: Poorest | BD121: Poor | BE121: Middle | BF121: Rich | BG121: Richest | BH121: Poorest | BI121: Poor | BJ121: Middle | BK121: Rich | BL121: Richest | BM121: Poorest | BN121: Poor | BO121: Middle | BP121: Rich | BQ121: Richest | BR121: Agadez | BS121: Diffa | BT121: Dosso | BU121: Maradi | BV121: Niamey | BW121: Tahoua | BX121: Tillabéri | BY121: Zinder
A122: Sanitation | B122: Improved | C122: =C153+(C155+C154)*'DHS12'!C130/100 -> 2.959093848 | D122: =D153+(D155+D154)*'DHS12'!D130/100 -> 1.250586635 | E122: =E153+(E155+E154)*'DHS12'!E130/100 -> 2.865797551 | F122: =F153+(F155+F154)*'DHS12'!F130/100 -> 7.857302877 | G122: =G153+(G155+G154)*'DHS12'!G130/100 -> 67.171429 | H122: =H153+(H155+H154)*'DHS12'!H130/100 -> 34.14313939 | I122: =I153+(I155+I154)*'DHS12'!I130/100 -> 63.9460784 | J122: =J153+(J155+J154)*'DHS12'!J130/100 -> 79.73259783 | K122: =K153+(K155+K154)*'DHS12'!K130/100 -> 90.81458479 | L122: =L153+(L155+L154)*'DHS12'!L130/100 -> 96.41395123 | M122: =M153+(M155+M154)*'DHS12'!M130/100 -> 1.125993884 | N122: =N153+(N155+N154)*'DHS12'!N130/100 -> 0.9370558297 | O122: =O153+(O155+O154)*'DHS12'!O130/100 -> 2.315558624 | P122: =P153+(P155+P154)*'DHS12'!P130/100 -> 2.546156856 | Q122: =Q153+(Q155+Q154)*'DHS12'!Q130/100 -> 14.92889109 | R122: =R153+(R155+R154)*'DHS12'!R130/100 -> 39.93685655 | S122: =S153+(S155+S154)*'DHS12'!S130/100 -> 12.3684804 | T122: =T153+(T155+T154)*'DHS12'!T130/100 -> 10.44485596 | U122: =U153+(U155+U154)*'DHS12'!U130/100 -> 15.08156249 | V122: =V153+(V155+V154)*'DHS12'!V130/100 -> 79.66112401 | W122: =W153+(W155+W154)*'DHS12'!W130/100 -> 6.527682325 | X122: =X153+(X155+X154)*'DHS12'!X130/100 -> 2.782150754 | Y122: =Y153+(Y155+Y154)*'DHS12'!Y130/100 -> 10.32482334 | BA122: Sanitation | BB122: Improved | BC122: N/A | BD122: N/A | BE122: N/A | BF122: N/A | BG122: N/A | BH122: N/A | BI122: N/A | BJ122: N/A | BK122: N/A | BL122: N/A | BM122: N/A | BN122: N/A | BO122: N/A | BP122: N/A | BQ122: N/A | BR122: N/A | BS122: N/A | BT122: N/A | BU122: N/A | BV122: N/A | BW122: N/A | BX122: N/A | BY122: N/A
B123: Not Improved | C123: =100-C122 -> 97.04090615 | D123: =100-D122 -> 98.74941337 | E123: 97.13420245 | F123: 92.14269712 | G123: 32.828571 | H123: 65.85686061 | I123: 36.0539216 | J123: 20.26740217 | K123: 9.185415205 | L123: 3.586048774 | M123: 98.87400612 | N123: 99.06294417 | O123: 97.68444138 | P123: 97.45384314 | Q123: 85.07110891 | R123: 60.06314345 | S123: 87.6315196 | T123: 89.55514404 | U123: 84.91843751 | V123: 20.33887599 | W123: 93.47231767 | X123: 97.21784925 | Y123: 89.67517666 | BB123: Not Improved | BC123: N/A | BD123: N/A | BE123: N/A | BF123: N/A | BG123: N/A | BH123: N/A | BI123: N/A | BJ123: N/A | BK123: N/A | BL123: N/A | BM123: N/A | BN123: N/A | BO123: N/A | BP123: N/A | BQ123: N/A | BR123: N/A | BS123: N/A | BT123: N/A | BU123: N/A | BV123: N/A | BW123: N/A | BX123: N/A | BY123: N/A
A124: Sanitation ladder | B124: Basic | C124: =C122*'DHS12'!C129/100 -> 1.551913449 | D124: =D122*'DHS12'!D129/100 -> 0.6227605458 | E124: =E122*'DHS12'!E129/100 -> 1.298943421 | F124: =F122*'DHS12'!F129/100 -> 4.737522926 | G124: =G122*'DHS12'!G129/100 -> 37.39233059 | H124: =H122*'DHS12'!H129/100 -> 14.65707271 | I124: =I122*'DHS12'!I129/100 -> 29.87303243 | J124: =J122*'DHS12'!J129/100 -> 35.26399222 | K124: =K122*'DHS12'!K129/100 -> 43.96877087 | L124: =L122*'DHS12'!L129/100 -> 67.02256241 | M124: =M122*'DHS12'!M129/100 -> 0.5991090476 | N124: =N122*'DHS12'!N129/100 -> 0.4866182452 | O124: =O122*'DHS12'!O129/100 -> 1.04691318 | P124: =P122*'DHS12'!P129/100 -> 1.548626962 | Q124: =Q122*'DHS12'!Q129/100 -> 10.22537248 | R124: =R122*'DHS12'!R129/100 -> 25.46272406 | S124: =S122*'DHS12'!S129/100 -> 11.81377418 | T124: =T122*'DHS12'!T129/100 -> 5.166693213 | U124: =U122*'DHS12'!U129/100 -> 7.635234302 | V124: =V122*'DHS12'!V129/100 -> 32.14117516 | W124: =W122*'DHS12'!W129/100 -> 4.157298607 | X124: =X122*'DHS12'!X129/100 -> 1.275239339 | Y124: =Y122*'DHS12'!Y129/100 -> 7.543602882 | BA124: Sanitation ladder | BB124: Basic | BC124: N/A | BD124: N/A | BE124: N/A | BF124: N/A | BG124: N/A | BH124: N/A | BI124: N/A | BJ124: N/A | BK124: N/A | BL124: N/A | BM124: N/A | BN124: N/A | BO124: N/A | BP124: N/A | BQ124: N/A | BR124: N/A | BS124: N/A | BT124: N/A | BU124: N/A | BV124: N/A | BW124: N/A | BX124: N/A | BY124: N/A
B125: Limited | C125: =C122*'DHS12'!C128/100 -> 1.407180399 | D125: =D122*'DHS12'!D128/100 -> 0.6278260888 | E125: =E122*'DHS12'!E128/100 -> 1.56685413 | F125: =F122*'DHS12'!F128/100 -> 3.119779951 | G125: =G122*'DHS12'!G128/100 -> 29.77909842 | H125: =H122*'DHS12'!H128/100 -> 19.48606669 | I125: =I122*'DHS12'!I128/100 -> 34.07304597 | J125: =J122*'DHS12'!J128/100 -> 44.46860561 | K125: =K122*'DHS12'!K128/100 -> 46.84581393 | L125: =L122*'DHS12'!L128/100 -> 29.39138881 | M125: =M122*'DHS12'!M128/100 -> 0.5268848366 | N125: =N122*'DHS12'!N128/100 -> 0.4504375844 | O125: =O122*'DHS12'!O128/100 -> 1.268645444 | P125: =P122*'DHS12'!P128/100 -> 0.9975298941 | Q125: =Q122*'DHS12'!Q128/100 -> 4.703518608 | R125: =R122*'DHS12'!R128/100 -> 14.4741325 | S125: =S122*'DHS12'!S128/100 -> 0.5547062205 | T125: =T122*'DHS12'!T128/100 -> 5.278162748 | U125: =U122*'DHS12'!U128/100 -> 7.446328185 | V125: =V122*'DHS12'!V128/100 -> 47.51994885 | W125: =W122*'DHS12'!W128/100 -> 2.370383719 | X125: =X122*'DHS12'!X128/100 -> 1.506911415 | Y125: =Y122*'DHS12'!Y128/100 -> 2.78122046 | BB125: Limited | BC125: N/A | BD125: N/A | BE125: N/A | BF125: N/A | BG125: N/A | BH125: N/A | BI125: N/A | BJ125: N/A | BK125: N/A | BL125: N/A | BM125: N/A | BN125: N/A | BO125: N/A | BP125: N/A | BQ125: N/A | BR125: N/A | BS125: N/A | BT125: N/A | BU125: N/A | BV125: N/A | BW125: N/A | BX125: N/A | BY125: N/A
B126: Unimproved | C126: =100-(C124+C125+C127) -> 4.13459659 | D126: =100-(D124+D125+D127) -> 2.13859472 | E126: 2.376593795 | F126: 4.301584371 | G126: 7.838132109 | H126: 10.64764337 | I126: 8.375340728 | J126: 11.51450817 | K126: 7.007783658 | L126: 3.352365227 | M126: 1.841431186 | N126: 1.841059676 | O126: 2.848986755 | P126: 2.477335466 | Q126: 5.637860424 | R126: 2.74501983 | S126: 9.281793039 | T126: 2.584521521 | U126: 5.317588112 | V126: 9.087386195 | W126: 5.706882786 | X126: 4.268060222 | Y126: 5.306887439 | BB126: Unimproved | BC126: N/A | BD126: N/A | BE126: N/A | BF126: N/A | BG126: N/A | BH126: N/A | BI126: N/A | BJ126: N/A | BK126: N/A | BL126: N/A | BM126: N/A | BN126: N/A | BO126: N/A | BP126: N/A | BQ126: N/A | BR126: N/A | BS126: N/A | BT126: N/A | BU126: N/A | BV126: N/A | BW126: N/A | BX126: N/A | BY126: N/A
B127: Open defecation | C127: =C156 -> 92.90630956 | D127: =D156 -> 96.61081865 | E127: 94.75760865 | F127: 87.84111275 | G127: 24.99043889 | H127: 55.20921723 | I127: 27.67858087 | J127: 8.752893997 | K127: 2.177631547 | L127: 0.2336835473 | M127: 97.03257493 | N127: 97.22188449 | O127: 94.83545462 | P127: 94.97650768 | Q127: 79.43324848 | R127: 57.31812362 | S127: 78.34972656 | T127: 86.97062252 | U127: 79.6008494 | V127: 11.25148979 | W127: 87.76543489 | X127: 92.94978902 | Y127: 84.36828922 | BB127: Open defecation | BC127: N/A | BD127: N/A | BE127: N/A | BF127: N/A | BG127: N/A | BH127: N/A | BI127: N/A | BJ127: N/A | BK127: N/A | BL127: N/A | BM127: N/A | BN127: N/A | BO127: N/A | BP127: N/A | BQ127: N/A | BR127: N/A | BS127: N/A | BT127: N/A | BU127: N/A | BV127: N/A | BW127: N/A | BX127: N/A | BY127: N/A
A128: Shared among Improved Sanitation | B128: Yes | C128: N/A | D128: N/A | E128: N/A | F128: N/A | G128: N/A | H128: N/A | I128: N/A | J128: N/A | K128: N/A | L128: N/A | M128: N/A | N128: N/A | O128: N/A | P128: N/A | Q128: N/A | R128: N/A | S128: N/A | T128: N/A | U128: N/A | V128: N/A | W128: N/A | X128: N/A | Y128: N/A | BA128: Shared among improved sanitation facilities | BB128: Yes | BC128: N/A | BD128: N/A | BE128: N/A | BF128: N/A | BG128: N/A | BH128: N/A | BI128: N/A | BJ128: N/A | BK128: N/A | BL128: N/A | BM128: N/A | BN128: N/A | BO128: N/A | BP128: N/A | BQ128: N/A | BR128: N/A | BS128: N/A | BT128: N/A | BU128: N/A | BV128: N/A | BW128: N/A | BX128: N/A | BY128: N/A
B129: No | C129: N/A | D129: N/A | E129: N/A | F129: N/A | G129: N/A | H129: N/A | I129: N/A | J129: N/A | K129: N/A | L129: N/A | M129: N/A | N129: N/A | O129: N/A | P129: N/A | Q129: N/A | R129: N/A | S129: N/A | T129: N/A | U129: N/A | V129: N/A | W129: N/A | X129: N/A | Y129: N/A | BB129: No | BC129: N/A | BD129: N/A | BE129: N/A | BF129: N/A | BG129: N/A | BH129: N/A | BI129: N/A | BJ129: N/A | BK129: N/A | BL129: N/A | BM129: N/A | BN129: N/A | BO129: N/A | BP129: N/A | BQ129: N/A | BR129: N/A | BS129: N/A | BT129: N/A | BU129: N/A | BV129: N/A | BW129: N/A | BX129: N/A | BY129: N/A
A130: Manually calculated ratios | B130: Improved latrines
B131: Other
B132: Other
C133: NATIONAL wealth index quintile | H133: URBAN wealth index quintile | M133: RURAL wealth index quintile | R133: SUB-REGIONS: | BA133: Raw numbers of respondents: | BB133: Use of sanitation facilities | BC133: NATIONAL wealth index quintile | BH133: URBAN wealth index quintile | BM133: RURAL wealth index quintile | BR133: SUB-REGIONS:
A134: Percentage based on weighted population | C134: Poorest | D134: Poor | E134: Middle | F134: Rich | G134: Richest | H134: Poorest | I134: Poor | J134: Middle | K134: Rich | L134: Richest | M134: Poorest | N134: Poor | O134: Middle | P134: Rich | Q134: Richest | R134: Agadez | S134: Diffa | T134: Dosso | U134: Maradi | V134: Niamey | W134: Tahoua | X134: Tillabéri | Y134: Zinder | BA134: Sanitation data, raw numbers (weighted) | BC134: Poorest | BD134: Poor | BE134: Middle | BF134: Rich | BG134: Richest | BH134: Poorest | BI134: Poor | BJ134: Middle | BK134: Rich | BL134: Richest | BM134: Poorest | BN134: Poor | BO134: Middle | BP134: Rich | BQ134: Richest | BR134: Agadez | BS134: Diffa | BT134: Dosso | BU134: Maradi | BV134: Niamey | BW134: Tahoua | BX134: Tillabéri | BY134: Zinder
A135: Sanitation type | B135: Sewer connection | C135: N/A | D135: N/A | E135: N/A | F135: N/A | G135: N/A | H135: N/A | I135: N/A | J135: N/A | K135: N/A | L135: N/A | M135: N/A | N135: N/A | O135: N/A | P135: N/A | Q135: N/A | R135: N/A | S135: N/A | T135: N/A | U135: N/A | V135: N/A | W135: N/A | X135: N/A | Y135: N/A | BA135: Sanitation type | BB135: Sewer connection | BC135: N/A | BD135: N/A | BE135: N/A | BF135: N/A | BG135: N/A | BH135: N/A | BI135: N/A | BJ135: N/A | BK135: N/A | BL135: N/A | BM135: N/A | BN135: N/A | BO135: N/A | BP135: N/A | BQ135: N/A | BR135: N/A | BS135: N/A | BT135: N/A | BU135: N/A | BV135: N/A | BW135: N/A | BX135: N/A | BY135: N/A
B136: Septic tank connection | C136: N/A | D136: N/A | E136: N/A | F136: N/A | G136: N/A | H136: N/A | I136: N/A | J136: N/A | K136: N/A | L136: N/A | M136: N/A | N136: N/A | O136: N/A | P136: N/A | Q136: N/A | R136: N/A | S136: N/A | T136: N/A | U136: N/A | V136: N/A | W136: N/A | X136: N/A | Y136: N/A | BB136: Septic tank connection | BC136: N/A | BD136: N/A | BE136: N/A | BF136: N/A | BG136: N/A | BH136: N/A | BI136: N/A | BJ136: N/A | BK136: N/A | BL136: N/A | BM136: N/A | BN136: N/A | BO136: N/A | BP136: N/A | BQ136: N/A | BR136: N/A | BS136: N/A | BT136: N/A | BU136: N/A | BV136: N/A | BW136: N/A | BX136: N/A | BY136: N/A
B137: Improved latrines | C137: N/A | D137: N/A | E137: N/A | F137: N/A | G137: N/A | H137: N/A | I137: N/A | J137: N/A | K137: N/A | L137: N/A | M137: N/A | N137: N/A | O137: N/A | P137: N/A | Q137: N/A | R137: N/A | S137: N/A | T137: N/A | U137: N/A | V137: N/A | W137: N/A | X137: N/A | Y137: N/A | BB137: Improved latrines | BC137: N/A | BD137: N/A | BE137: N/A | BF137: N/A | BG137: N/A | BH137: N/A | BI137: N/A | BJ137: N/A | BK137: N/A | BL137: N/A | BM137: N/A | BN137: N/A | BO137: N/A | BP137: N/A | BQ137: N/A | BR137: N/A | BS137: N/A | BT137: N/A | BU137: N/A | BV137: N/A | BW137: N/A | BX137: N/A | BY137: N/A
B138: Unimproved facilities | C138: N/A | D138: N/A | E138: N/A | F138: N/A | G138: N/A | H138: N/A | I138: N/A | J138: N/A | K138: N/A | L138: N/A | M138: N/A | N138: N/A | O138: N/A | P138: N/A | Q138: N/A | R138: N/A | S138: N/A | T138: N/A | U138: N/A | V138: N/A | W138: N/A | X138: N/A | Y138: N/A | BB138: Unimproved facilities | BC138: N/A | BD138: N/A | BE138: N/A | BF138: N/A | BG138: N/A | BH138: N/A | BI138: N/A | BJ138: N/A | BK138: N/A | BL138: N/A | BM138: N/A | BN138: N/A | BO138: N/A | BP138: N/A | BQ138: N/A | BR138: N/A | BS138: N/A | BT138: N/A | BU138: N/A | BV138: N/A | BW138: N/A | BX138: N/A | BY138: N/A
B139: Open defecation | C139: 92.75100695 | D139: 96.61081865 | E139: 94.75760865 | F139: 87.84111275 | G139: 24.98377835 | H139: 55.20921723 | I139: 27.6376847 | J139: 8.752893997 | K139: 2.177631547 | L139: 0.2336835473 | M139: 96.85247705 | N139: 97.22188449 | O139: 94.83545462 | P139: 94.97650768 | Q139: 79.43324848 | R139: 57.31812362 | S139: 78.34972656 | T139: 86.75706488 | U139: 79.6008494 | V139: 11.24330175 | W139: 87.76543489 | X139: 92.94978902 | Y139: 84.36828922 | BB139: Open defecation | BC139: N/A | BD139: N/A | BE139: N/A | BF139: N/A | BG139: N/A | BH139: N/A | BI139: N/A | BJ139: N/A | BK139: N/A | BL139: N/A | BM139: N/A | BN139: N/A | BO139: N/A | BP139: N/A | BQ139: N/A | BR139: N/A | BS139: N/A | BT139: N/A | BU139: N/A | BV139: N/A | BW139: N/A | BX139: N/A | BY139: N/A
A140: Septic tank emptying practices | B140: Not emptied/treated and disposed in situ | C140: N/A | D140: N/A | E140: N/A | F140: N/A | G140: N/A | H140: N/A | I140: N/A | J140: N/A | K140: N/A | L140: N/A | M140: N/A | N140: N/A | O140: N/A | P140: N/A | Q140: N/A | R140: N/A | S140: N/A | T140: N/A | U140: N/A | V140: N/A | W140: N/A | X140: N/A | Y140: N/A | BA140: Septic tank emptying practices | BB140: Not emptied/treated and disposed in situ | BC140: N/A | BD140: N/A | BE140: N/A | BF140: N/A | BG140: N/A | BH140: N/A | BI140: N/A | BJ140: N/A | BK140: N/A | BL140: N/A | BM140: N/A | BN140: N/A | BO140: N/A | BP140: N/A | BQ140: N/A | BR140: N/A | BS140: N/A | BT140: N/A | BU140: N/A | BV140: N/A | BW140: N/A | BX140: N/A | BY140: N/A
B141: Emptied and buried on site | C141: N/A | D141: N/A | E141: N/A | F141: N/A | G141: N/A | H141: N/A | I141: N/A | J141: N/A | K141: N/A | L141: N/A | M141: N/A | N141: N/A | O141: N/A | P141: N/A | Q141: N/A | R141: N/A | S141: N/A | T141: N/A | U141: N/A | V141: N/A | W141: N/A | X141: N/A | Y141: N/A | BB141: Emptied and buried on site | BC141: N/A | BD141: N/A | BE141: N/A | BF141: N/A | BG141: N/A | BH141: N/A | BI141: N/A | BJ141: N/A | BK141: N/A | BL141: N/A | BM141: N/A | BN141: N/A | BO141: N/A | BP141: N/A | BQ141: N/A | BR141: N/A | BS141: N/A | BT141: N/A | BU141: N/A | BV141: N/A | BW141: N/A | BX141: N/A | BY141: N/A
B142: Emptied and discharged locally | C142: N/A | D142: N/A | E142: N/A | F142: N/A | G142: N/A | H142: N/A | I142: N/A | J142: N/A | K142: N/A | L142: N/A | M142: N/A | N142: N/A | O142: N/A | P142: N/A | Q142: N/A | R142: N/A | S142: N/A | T142: N/A | U142: N/A | V142: N/A | W142: N/A | X142: N/A | Y142: N/A | BB142: Emptied and discharged locally | BC142: N/A | BD142: N/A | BE142: N/A | BF142: N/A | BG142: N/A | BH142: N/A | BI142: N/A | BJ142: N/A | BK142: N/A | BL142: N/A | BM142: N/A | BN142: N/A | BO142: N/A | BP142: N/A | BQ142: N/A | BR142: N/A | BS142: N/A | BT142: N/A | BU142: N/A | BV142: N/A | BW142: N/A | BX142: N/A | BY142: N/A
B143: Emptied and removed offsite | C143: N/A | D143: N/A | E143: N/A | F143: N/A | G143: N/A | H143: N/A | I143: N/A | J143: N/A | K143: N/A | L143: N/A | M143: N/A | N143: N/A | O143: N/A | P143: N/A | Q143: N/A | R143: N/A | S143: N/A | T143: N/A | U143: N/A | V143: N/A | W143: N/A | X143: N/A | Y143: N/A | BB143: Emptied and removed offsite | BC143: N/A | BD143: N/A | BE143: N/A | BF143: N/A | BG143: N/A | BH143: N/A | BI143: N/A | BJ143: N/A | BK143: N/A | BL143: N/A | BM143: N/A | BN143: N/A | BO143: N/A | BP143: N/A | BQ143: N/A | BR143: N/A | BS143: N/A | BT143: N/A | BU143: N/A | BV143: N/A | BW143: N/A | BX143: N/A | BY143: N/A
A144: Latrine emptying practices | B144: Not emptied/treated and disposed in situ | C144: N/A | D144: N/A | E144: N/A | F144: N/A | G144: N/A | H144: N/A | I144: N/A | J144: N/A | K144: N/A | L144: N/A | M144: N/A | N144: N/A | O144: N/A | P144: N/A | Q144: N/A | R144: N/A | S144: N/A | T144: N/A | U144: N/A | V144: N/A | W144: N/A | X144: N/A | Y144: N/A | BA144: Latrine emptying practices | BB144: Not emptied/treated and disposed in situ | BC144: N/A | BD144: N/A | BE144: N/A | BF144: N/A | BG144: N/A | BH144: N/A | BI144: N/A | BJ144: N/A | BK144: N/A | BL144: N/A | BM144: N/A | BN144: N/A | BO144: N/A | BP144: N/A | BQ144: N/A | BR144: N/A | BS144: N/A | BT144: N/A | BU144: N/A | BV144: N/A | BW144: N/A | BX144: N/A | BY144: N/A
B145: Emptied and buried on site | C145: N/A | D145: N/A | E145: N/A | F145: N/A | G145: N/A | H145: N/A | I145: N/A | J145: N/A | K145: N/A | L145: N/A | M145: N/A | N145: N/A | O145: N/A | P145: N/A | Q145: N/A | R145: N/A | S145: N/A | T145: N/A | U145: N/A | V145: N/A | W145: N/A | X145: N/A | Y145: N/A | BB145: Emptied and buried on site | BC145: N/A | BD145: N/A | BE145: N/A | BF145: N/A | BG145: N/A | BH145: N/A | BI145: N/A | BJ145: N/A | BK145: N/A | BL145: N/A | BM145: N/A | BN145: N/A | BO145: N/A | BP145: N/A | BQ145: N/A | BR145: N/A | BS145: N/A | BT145: N/A | BU145: N/A | BV145: N/A | BW145: N/A | BX145: N/A | BY145: N/A
B146: Emptied and discharged locally | C146: N/A | D146: N/A | E146: N/A | F146: N/A | G146: N/A | H146: N/A | I146: N/A | J146: N/A | K146: N/A | L146: N/A | M146: N/A | N146: N/A | O146: N/A | P146: N/A | Q146: N/A | R146: N/A | S146: N/A | T146: N/A | U146: N/A | V146: N/A | W146: N/A | X146: N/A | Y146: N/A | BB146: Emptied and discharged locally | BC146: N/A | BD146: N/A | BE146: N/A | BF146: N/A | BG146: N/A | BH146: N/A | BI146: N/A | BJ146: N/A | BK146: N/A | BL146: N/A | BM146: N/A | BN146: N/A | BO146: N/A | BP146: N/A | BQ146: N/A | BR146: N/A | BS146: N/A | BT146: N/A | BU146: N/A | BV146: N/A | BW146: N/A | BX146: N/A | BY146: N/A
B147: Emptied and removed offsite | C147: N/A | D147: N/A | E147: N/A | F147: N/A | G147: N/A | H147: N/A | I147: N/A | J147: N/A | K147: N/A | L147: N/A | M147: N/A | N147: N/A | O147: N/A | P147: N/A | Q147: N/A | R147: N/A | S147: N/A | T147: N/A | U147: N/A | V147: N/A | W147: N/A | X147: N/A | Y147: N/A | BB147: Emptied and removed offsite | BC147: N/A | BD147: N/A | BE147: N/A | BF147: N/A | BG147: N/A | BH147: N/A | BI147: N/A | BJ147: N/A | BK147: N/A | BL147: N/A | BM147: N/A | BN147: N/A | BO147: N/A | BP147: N/A | BQ147: N/A | BR147: N/A | BS147: N/A | BT147: N/A | BU147: N/A | BV147: N/A | BW147: N/A | BX147: N/A | BY147: N/A
A148: Shared among improved sanitation facilities | B148: Yes | C148: N/A | D148: N/A | E148: N/A | F148: N/A | G148: N/A | H148: N/A | I148: N/A | J148: N/A | K148: N/A | L148: N/A | M148: N/A | N148: N/A | O148: N/A | P148: N/A | Q148: N/A | R148: N/A | S148: N/A | T148: N/A | U148: N/A | V148: N/A | W148: N/A | X148: N/A | Y148: N/A | BA148: Shared among improved sanitation facilities | BB148: Yes | BC148: N/A | BD148: N/A | BE148: N/A | BF148: N/A | BG148: N/A | BH148: N/A | BI148: N/A | BJ148: N/A | BK148: N/A | BL148: N/A | BM148: N/A | BN148: N/A | BO148: N/A | BP148: N/A | BQ148: N/A | BR148: N/A | BS148: N/A | BT148: N/A | BU148: N/A | BV148: N/A | BW148: N/A | BX148: N/A | BY148: N/A
B149: No | C149: N/A | D149: N/A | E149: N/A | F149: N/A | G149: N/A | H149: N/A | I149: N/A | J149: N/A | K149: N/A | L149: N/A | M149: N/A | N149: N/A | O149: N/A | P149: N/A | Q149: N/A | R149: N/A | S149: N/A | T149: N/A | U149: N/A | V149: N/A | W149: N/A | X149: N/A | Y149: N/A | BB149: No | BC149: N/A | BD149: N/A | BE149: N/A | BF149: N/A | BG149: N/A | BH149: N/A | BI149: N/A | BJ149: N/A | BK149: N/A | BL149: N/A | BM149: N/A | BN149: N/A | BO149: N/A | BP149: N/A | BQ149: N/A | BR149: N/A | BS149: N/A | BT149: N/A | BU149: N/A | BV149: N/A | BW149: N/A | BX149: N/A | BY149: N/A
B150: DK/missing | C150: N/A | D150: N/A | E150: N/A | F150: N/A | G150: N/A | H150: N/A | I150: N/A | J150: N/A | K150: N/A | L150: N/A | M150: N/A | N150: N/A | O150: N/A | P150: N/A | Q150: N/A | R150: N/A | S150: N/A | T150: N/A | U150: N/A | V150: N/A | W150: N/A | X150: N/A | Y150: N/A | BB150: DK/missing | BC150: N/A | BD150: N/A | BE150: N/A | BF150: N/A | BG150: N/A | BH150: N/A | BI150: N/A | BJ150: N/A | BK150: N/A | BL150: N/A | BM150: N/A | BN150: N/A | BO150: N/A | BP150: N/A | BQ150: N/A | BR150: N/A | BS150: N/A | BT150: N/A | BU150: N/A | BV150: N/A | BW150: N/A | BX150: N/A | BY150: N/A
A151: Shared among all sanitation facilities | B151: Yes | C151: 39.5227176 | D151: 36.73768271 | E151: 22.11439755 | F151: 35.0958612 | G151: 39.0866504 | H151: 42.70502714 | I151: 57.21570335 | J151: 49.98492977 | K151: 46.74159829 | L151: 23.99418561 | M151: 27.96391133 | N151: 20.3752057 | O151: 31.02898186 | P151: 27.56662744 | Q151: 21.31441397 | R151: 27.56358038 | S151: 13.24855991 | T151: 43.79023409 | U151: 29.02628416 | V151: 55.81583796 | W151: 35.99968392 | X151: 39.00777841 | Y151: 17.29206599 | BA151: Shared among all sanitation facilities | BB151: Yes | BC151: N/A | BD151: N/A | BE151: N/A | BF151: N/A | BG151: N/A | BH151: N/A | BI151: N/A | BJ151: N/A | BK151: N/A | BL151: N/A | BM151: N/A | BN151: N/A | BO151: N/A | BP151: N/A | BQ151: N/A | BR151: N/A | BS151: N/A | BT151: N/A | BU151: N/A | BV151: N/A | BW151: N/A | BX151: N/A | BY151: N/A
B152: No | C152: 56.49072529 | D152: 63.26231729 | E152: 75.60126508 | F152: 64.54831419 | G152: 59.62597473 | H152: 55.76735204 | I152: 42.03646375 | J152: 48.70687764 | K152: 52.09987401 | L152: 75.630404 | M152: 66.13921063 | N152: 79.6247943 | O152: 66.03347236 | P152: 72.43337256 | Q152: 76.16225515 | R152: 71.41986623 | S152: 86.75144009 | T152: 53.8905437 | U152: 69.0178434 | V152: 44.18416204 | W152: 62.56065696 | X152: 59.58231843 | Y152: 79.4831301 | BB152: No | BC152: N/A | BD152: N/A | BE152: N/A | BF152: N/A | BG152: N/A | BH152: N/A | BI152: N/A | BJ152: N/A | BK152: N/A | BL152: N/A | BM152: N/A | BN152: N/A | BO152: N/A | BP152: N/A | BQ152: N/A | BR152: N/A | BS152: N/A | BT152: N/A | BU152: N/A | BV152: N/A | BW152: N/A | BX152: N/A | BY152: N/A
A153: Type of toilet facility | B153: Flush toilet | C153: 0.02829900653 | D153: 0.02485749224 | E153: 0.1087255404 | F153: 0.1972085975 | G153: 6.010728621 | H153: 1.292330734 | I153: 1.388043451 | J153: 2.517750396 | K153: 3.205966318 | L153: 26.04498963 | M153: 0 | N153: 0 | O153: 0 | P153: 0 | Q153: 0.2116473993 | R153: 12.36654797 | S153: 0.1903169097 | T153: 0.008802345963 | U153: 0.142150025 | V153: 10.66156454 | W153: 0.3271579318 | X153: 0.1119860775 | Y153: 0.3260041107 | BA153: Type of toilet facility | BB153: Flush toilet | BC153: 2.684052 | BD153: 2.300616 | BE153: 10.312742 | BF153: 18.543236 | BG153: 565.616813 | BH153: 21.860064 | BI153: 23.532511 | BJ153: 42.677528 | BK153: 54.195968 | BL153: 440.858033 | BM153: 0 | BN153: 0 | BO153: 0 | BP153: 0 | BQ153: 16.333355 | BR153: 147.880958 | BS153: 2.410296 | BT153: 0.567895 | BU153: 13.576311 | BV153: 367.266196 | BW153: 28.997704 | BX153: 7.465068 | BY153: 31.293031
B154: Traditional pit toilet | C154: 4.437932804 | D154: 1.753835158 | E154: 3.167391188 | F154: 7.647616654 | G154: 39.27985369 | H154: 27.5503091 | I154: 43.72129109 | J154: 51.7523392 | K154: 46.94189645 | L154: 31.2839414 | M154: 1.933094434 | N154: 1.504764442 | O154: 3.372838058 | P154: 2.711235789 | Q154: 14.999433 | R154: 18.97566289 | S154: 19.60025134 | T154: 7.681718701 | U154: 10.90753785 | V154: 43.96525983 | W154: 5.138297484 | X154: 4.916134839 | Y154: 10.30230535 | BB154: Traditional pit toilet | BC154: 420.920869 | BD154: 162.321331 | BE154: 300.430681 | BF154: 719.094209 | BG154: 3696.281609 | BH154: 466.019653 | BI154: 741.238873 | BJ154: 877.236246 | BK154: 793.53969 | BL154: 529.536662 | BM154: 165.095435 | BN154: 106.90269 | BO154: 252.528856 | BP154: 209.407129 | BQ154: 1157.543465 | BR154: 226.913704 | BS154: 248.230215 | BT154: 495.596249 | BU154: 1041.74534 | BV154: 1514.501335 | BW154: 455.433951 | BX154: 327.712888 | BY154: 988.915017
B155: Ventilated improved pit latrine | C155: 2.627458627 | D155: 1.610488704 | E155: 1.966274618 | F155: 4.314061996 | G155: 29.7189788 | H155: 15.94814293 | I155: 27.21208459 | J155: 36.9770164 | K155: 47.67450568 | L155: 42.43738543 | M155: 1.034330636 | N155: 1.273351064 | O155: 1.791707321 | P155: 2.312256533 | Q155: 5.355671117 | R155: 11.33966552 | S155: 1.859705185 | T155: 5.338856434 | U155: 9.349462723 | V155: 34.12168583 | W155: 6.769109695 | X155: 2.022090059 | Y155: 5.003401321 | BB155: Ventilated improved pit latrine | BC155: 249.204352 | BD155: 149.054299 | BE155: 186.503399 | BF155: 405.64494 | BG155: 2796.59175 | BH155: 269.766412 | BI155: 461.346278 | BJ155: 626.78479 | BK155: 805.924245 | BL155: 718.328651 | BM155: 88.336743 | BN155: 90.462434 | BO155: 134.147502 | BP155: 178.591255 | BQ155: 413.31043 | BR155: 135.60135 | BS155: 23.552505 | BT155: 344.443389 | BU155: 892.938384 | BV155: 1175.413018 | BW155: 599.981294 | BX155: 134.793897 | BY155: 480.274903
B156: No facility, bush, field | C156: 92.90630956 | D156: 96.61081865 | E156: 94.75760865 | F156: 87.84111275 | G156: 24.99043889 | H156: 55.20921723 | I156: 27.67858087 | J156: 8.752893997 | K156: 2.177631547 | L156: 0.2336835473 | M156: 97.03257493 | N156: 97.22188449 | O156: 94.83545462 | P156: 94.97650768 | Q156: 79.43324848 | R156: 57.31812362 | S156: 78.34972656 | T156: 86.97062252 | U156: 79.6008494 | V156: 11.25148979 | W156: 87.76543489 | X156: 92.94978902 | Y156: 84.36828922 | BB156: No facility, bush, field | BC156: 8811.806371 | BD156: 8941.54539 | BE156: 8987.867683 | BF156: 8259.571361 | BG156: 2351.630441 | BH156: 933.876283 | BI156: 469.255129 | BJ156: 148.36732 | BK156: 36.812255 | BL156: 3.955512 | BM156: 8287.042207 | BN156: 6906.915587 | BO156: 7100.456189 | BP156: 7335.679868 | BQ156: 6130.060896 | BR156: 685.41836 | BS156: 992.271432 | BT156: 5611.02482 | BU156: 7602.431919 | BV156: 387.587754 | BW156: 7779.105608 | BX156: 6196.096079 | BY156: 8098.485274
BB157: Total | BC157: 9484.615644 | BD157: 9255.221636 | BE157: 9485.114505 | BF157: 9402.853746 | BG157: 9410.120613 | BH157: 1691.522412 | BI157: 1695.372791 | BJ157: 1695.065884 | BK157: 1690.472158 | BL157: 1692.678858 | BM157: 8540.474385 | BN157: 7104.280711 | BO157: 7487.132547 | BP157: 7723.678252 | BQ157: 7717.248146 | BR157: 1195.814372 | BS157: 1266.464448 | BT157: 6451.632353 | BU157: 9550.691954 | BV157: 3444.768303 | BW157: 8863.518557 | BX157: 6666.067932 | BY157: 9598.968225
A208: =A1026 -> Niger
A209: =A1034 -> 2006
A210: Access to hygiene facilities
A211: by wealth quintile and sub-national region
A212: Notes:
A213: WHO/UNICEF JMP customised wealth index excludes water,
A214: sanitation and hygiene assets.
A215: Survey used for analysis: | B215: =A1025 -> DHS06
A220: Access to handwashing | C220: NATIONAL wealth index quintile | H220: URBAN wealth index quintile | M220: RURAL wealth index quintile | R220: SUB-REGIONS: | BA220: Raw numbers of respondents: | BB220: Access to handwashing | BC220: NATIONAL wealth index quintile | BH220: URBAN wealth index quintile | BM220: RURAL wealth index quintile | BR220: SUB-REGIONS:
A221: Weighted percentage (used in graphs) | C221: Poorest | D221: Poor | E221: Middle | F221: Rich | G221: Richest | H221: Poorest | I221: Poor | J221: Middle | K221: Rich | L221: Richest | M221: Poorest | N221: Poor | O221: Middle | P221: Rich | Q221: Richest | R221: Agadez | S221: Diffa | T221: Dosso | U221: Maradi | V221: Niamey | W221: Tahoua | X221: Tillabéri | Y221: Zinder | BA221: Hygiene data, raw numbers (weighted) | BC221: Poorest | BD221: Poor | BE221: Middle | BF221: Rich | BG221: Richest | BH221: Poorest | BI221: Poor | BJ221: Middle | BK221: Rich | BL221: Richest | BM221: Poorest | BN221: Poor | BO221: Middle | BP221: Rich | BQ221: Richest | BR221: Agadez | BS221: Diffa | BT221: Dosso | BU221: Maradi | BV221: Niamey | BW221: Tahoua | BX221: Tillabéri | BY221: Zinder
A222: Hygiene ladder | B222: Basic | C222: 3.826109232 | D222: 4.429265694 | E222: 4.685095682 | F222: 7.726690102 | G222: 26.6068819 | H222: 13.40312044 | I222: 21.37536325 | J222: 26.292692 | K222: 32.40820584 | L222: 54.72264096 | M222: 2.681545561 | N222: 4.198805722 | O222: 4.403347564 | P222: 5.432326781 | Q222: 8.61196624 | R222: 19.38010568 | S222: 8.801428984 | T222: 7.515284303 | U222: 10.00687005 | V222: 30.94169312 | W222: 4.89902548 | X222: 3.830450124 | Y222: 9.430710737 | BA222: Hygiene ladder | BB222: Basic | BC222: 363 | BD222: 409 | BE222: 444 | BF222: 725 | BG222: 2500 | BH222: 225 | BI222: 363 | BJ222: 446 | BK222: 543 | BL222: 925 | BM222: 229 | BN222: 298 | BO222: 330 | BP222: 419 | BQ222: 665 | BR222: 232 | BS222: 111 | BT222: 485 | BU222: 954 | BV222: 1065 | BW222: 433 | BX222: 255 | BY222: 905
B223: Limited | C223: 72.66535514 | D223: 81.519916 | E223: 81.52780135 | F223: 76.23298778 | G223: 60.62673545 | H223: 67.01459198 | I223: 64.67378451 | J223: 61.88716527 | K223: 55.17338054 | L223: 36.59575365 | M223: 73.48345275 | N223: 81.90838203 | O223: 82.47673695 | P223: 79.7507613 | Q223: 74.88972929 | R223: 68.27193494 | S223: 66.22284418 | T223: 82.52038087 | U223: 76.3943575 | V223: 53.97734603 | W223: 67.61880647 | X223: 73.96253719 | Y223: 83.16292993 | BB223: Limited | BC223: 6904 | BD223: 7534 | BE223: 7731 | BF223: 7154 | BG223: 5696 | BH223: 1125 | BI223: 1098 | BJ223: 1049 | BK223: 925 | BL223: 618 | BM223: 6288 | BN223: 5808 | BO223: 6173 | BP223: 6156 | BQ223: 5779 | BR223: 816 | BS223: 839 | BT223: 5330 | BU223: 7286 | BV223: 1858 | BW223: 5978 | BX223: 4928 | BY223: 7983
B224: No facility | C224: 23.50853563 | D224: 14.0508183 | E224: 13.78710297 | F224: 16.04032211 | G224: 12.76638265 | H224: 19.58228759 | I224: 13.95085224 | J224: 11.82014274 | K224: 12.41841362 | L224: 8.681605389 | M224: 23.83500169 | N224: 13.89281225 | O224: 13.11991549 | P224: 14.81691192 | Q224: 16.49830447 | R224: 12.34795939 | S224: 24.97572684 | T224: 9.964334826 | U224: 13.59877244 | V224: 15.08096086 | W224: 27.48216805 | X224: 22.20701269 | Y224: 7.406359333 | BB224: No facility | BC224: 2233 | BD224: 1299 | BE224: 1307 | BF224: 1505 | BG224: 1199 | BH224: 329 | BI224: 237 | BJ224: 200 | BK224: 208 | BL224: 147 | BM224: 2039 | BN224: 985 | BO224: 982 | BP224: 1144 | BQ224: 1273 | BR224: 148 | BS224: 316 | BT224: 644 | BU224: 1297 | BV224: 519 | BW224: 2430 | BX224: 1480 | BY224: 711
A225: Place for hand washing | B225: Inside dewelling/cour | C225: 76.49146437 | D225: 85.8280412 | E225: 86.18640321 | F225: 83.79995863 | G225: 87.07012752 | H225: 79.79786756 | I225: 86.04914776 | J225: 88.17985726 | K225: 86.8262507 | L225: 91.15322802 | M225: 76.16499831 | N225: 85.94907979 | O225: 86.84626092 | P225: 85.12960472 | Q225: 83.50169553 | R225: 87.65204061 | S225: 75.02427316 | T225: 89.91201139 | U225: 86.28321737 | V225: 84.8151394 | W225: 72.33553544 | X225: 77.75725927 | Y225: 92.59364067 | BA225: Observed handwashing place | BB225: Fixed | BC225: N/A | BD225: N/A | BE225: N/A | BF225: N/A | BG225: N/A | BH225: N/A | BI225: N/A | BJ225: N/A | BK225: N/A | BL225: N/A | BM225: N/A | BN225: N/A | BO225: N/A | BP225: N/A | BQ225: N/A | BR225: N/A | BS225: N/A | BT225: N/A | BU225: N/A | BV225: N/A | BW225: N/A | BX225: N/A | BY225: N/A
B226: Elsewhere | C226: 18.66215904 | D226: 10.82465824 | E226: 11.6724413 | F226: 11.17717653 | G226: 10.07211427 | H226: 17.27695932 | I226: 12.13510766 | J226: 9.773733373 | K226: 10.95375006 | L226: 7.559713846 | M226: 18.68504747 | N226: 10.73553517 | O226: 10.78607194 | P226: 11.22943996 | Q226: 11.2422374 | R226: 8.089575294 | S226: 21.5668752 | T226: 4.426847153 | U226: 10.44377046 | V226: 13.86772559 | W226: 25.46710981 | X226: 11.86668159 | Y226: 7.302850708 | BB226: Mobile | BC226: N/A | BD226: N/A | BE226: N/A | BF226: N/A | BG226: N/A | BH226: N/A | BI226: N/A | BJ226: N/A | BK226: N/A | BL226: N/A | BM226: N/A | BN226: N/A | BO226: N/A | BP226: N/A | BQ226: N/A | BR226: N/A | BS226: N/A | BT226: N/A | BU226: N/A | BV226: N/A | BW226: N/A | BX226: N/A | BY226: N/A
B227: Nowhere | C227: 4.846376591 | D227: 3.206356235 | E227: 2.110424791 | F227: 4.832631553 | G227: 2.670342123 | H227: 2.154391614 | I227: 1.815744587 | J227: 2.046409365 | K227: 1.357562613 | L227: 1.106189217 | M227: 5.14995422 | N227: 3.131767438 | O227: 2.328735786 | P227: 3.578168963 | Q227: 5.256067076 | R227: 4.258384093 | S227: 3.408851632 | T227: 5.523802788 | U227: 3.136428245 | V227: 1.194783481 | W227: 1.945973113 | X227: 10.33013207 | Y227: 0.1035086248 | BA227: Water / Soap | BB227: Water and soap | BC227: N/A | BD227: N/A | BE227: N/A | BF227: N/A | BG227: N/A | BH227: N/A | BI227: N/A | BJ227: N/A | BK227: N/A | BL227: N/A | BM227: N/A | BN227: N/A | BO227: N/A | BP227: N/A | BQ227: N/A | BR227: N/A | BS227: N/A | BT227: N/A | BU227: N/A | BV227: N/A | BW227: N/A | BX227: N/A | BY227: N/A
B228: missing | C228: 0 | D228: 0.1409443287 | E228: 0.03073069912 | F228: 0.1902332896 | G228: 0.1874160815 | H228: 0.7707815106 | I228: 0 | J228: 0 | K228: 0.8624366235 | L228: 0.1808689218 | M228: 0 | N228: 0.1836176037 | O228: 0.03893135298 | P228: 0.0627863544 | Q228: 0 | R228: 0 | S228: 0 | T228: 0.1373386712 | U228: 0.1365839257 | V228: 0.122351526 | W228: 0.2513816365 | X228: 0.04592707472 | Y228: 0 | BB228: Water only | BC228: N/A | BD228: N/A | BE228: N/A | BF228: N/A | BG228: N/A | BH228: N/A | BI228: N/A | BJ228: N/A | BK228: N/A | BL228: N/A | BM228: N/A | BN228: N/A | BO228: N/A | BP228: N/A | BQ228: N/A | BR228: N/A | BS228: N/A | BT228: N/A | BU228: N/A | BV228: N/A | BW228: N/A | BX228: N/A | BY228: N/A
BB229: Soap only | BC229: N/A | BD229: N/A | BE229: N/A | BF229: N/A | BG229: N/A | BH229: N/A | BI229: N/A | BJ229: N/A | BK229: N/A | BL229: N/A | BM229: N/A | BN229: N/A | BO229: N/A | BP229: N/A | BQ229: N/A | BR229: N/A | BS229: N/A | BT229: N/A | BU229: N/A | BV229: N/A | BW229: N/A | BX229: N/A | BY229: N/A
BB230: Neither | BC230: N/A | BD230: N/A | BE230: N/A | BF230: N/A | BG230: N/A | BH230: N/A | BI230: N/A | BJ230: N/A | BK230: N/A | BL230: N/A | BM230: N/A | BN230: N/A | BO230: N/A | BP230: N/A | BQ230: N/A | BR230: N/A | BS230: N/A | BT230: N/A | BU230: N/A | BV230: N/A | BW230: N/A | BX230: N/A | BY230: N/A
BA231: Place for hand washing | BB231: Inside dewelling/cour | BC231: 7267 | BD231: 7944 | BE231: 8175 | BF231: 7880 | BG231: 8196 | BH231: 1350 | BI231: 1461 | BJ231: 1495 | BK231: 1468 | BL231: 1543 | BM231: 6517 | BN231: 6106 | BO231: 6502 | BP231: 6575 | BQ231: 6444 | BR231: 1048 | BS231: 950 | BT231: 5815 | BU231: 8241 | BV231: 2924 | BW231: 6411 | BX231: 5183 | BY231: 8888
BB232: Elsewhere | BC232: 1773 | BD232: 1002 | BE232: 1107 | BF232: 1051 | BG232: 948 | BH232: 292 | BI232: 206 | BJ232: 166 | BK232: 185 | BL232: 128 | BM232: 1599 | BN232: 763 | BO232: 808 | BP232: 867 | BQ232: 868 | BR232: 97 | BS232: 273 | BT232: 286 | BU232: 997 | BV232: 478 | BW232: 2257 | BX232: 791 | BY232: 701
BB233: Nowhere | BC233: 460 | BD233: 297 | BE233: 200 | BF233: 454 | BG233: 251 | BH233: 36 | BI233: 31 | BJ233: 35 | BK233: 23 | BL233: 19 | BM233: 441 | BN233: 222 | BO233: 174 | BP233: 276 | BQ233: 406 | BR233: 51 | BS233: 43 | BT233: 357 | BU233: 300 | BV233: 41 | BW233: 172 | BX233: 689 | BY233: 10
BB234: missing | BC234: 0 | BD234: 13 | BE234: 3 | BF234: 18 | BG234: 18 | BH234: 13 | BI234: 0 | BJ234: 0 | BK234: 15 | BL234: 3 | BM234: 0 | BN234: 13 | BO234: 3 | BP234: 5 | BQ234: 0 | BR234: 0 | BS234: 0 | BT234: 9 | BU234: 13 | BV234: 4 | BW234: 22 | BX234: 3 | BY234: 0
BB235: Total | BC235: 9500 | BD235: 9255 | BE235: 9485 | BF235: 9403 | BG235: 9413 | BH235: 1692 | BI235: 1698 | BJ235: 1695 | BK235: 1690 | BL235: 1693 | BM235: 8556 | BN235: 7104 | BO235: 7487 | BP235: 7724 | BQ235: 7717 | BR235: 1196 | BS235: 1266 | BT235: 6468 | BU235: 9551 | BV235: 3447 | BW235: 8864 | BX235: 6666 | BY235: 9599
BA259: Raw numbers of respondents: | BB259: Menstrual health and hygiene | BC259: NATIONAL wealth index quintile | BH259: URBAN wealth index quintile | BM259: RURAL wealth index quintile | BR259: SUB-REGIONS:
BA260: MHH data, raw numbers (weighted) | BC260: Poorest | BD260: Poor | BE260: Middle | BF260: Rich | BG260: Richest | BH260: Poorest | BI260: Poor | BJ260: Middle | BK260: Rich | BL260: Richest | BM260: Poorest | BN260: Poor | BO260: Middle | BP260: Rich | BQ260: Richest | BR260: Agadez | BS260: Diffa | BT260: Dosso | BU260: Maradi | BV260: Niamey | BW260: Tahoua | BX260: Tillabéri | BY260: Zinder
BA261: Private place to wash and change | BB261: Yes | BC261: N/A | BD261: N/A | BE261: N/A | BF261: N/A | BG261: N/A | BH261: N/A | BI261: N/A | BJ261: N/A | BK261: N/A | BL261: N/A | BM261: N/A | BN261: N/A | BO261: N/A | BP261: N/A | BQ261: N/A | BR261: N/A | BS261: N/A | BT261: N/A | BU261: N/A | BV261: N/A | BW261: N/A | BX261: N/A | BY261: N/A
BB262: No | BC262: N/A | BD262: N/A | BE262: N/A | BF262: N/A | BG262: N/A | BH262: N/A | BI262: N/A | BJ262: N/A | BK262: N/A | BL262: N/A | BM262: N/A | BN262: N/A | BO262: N/A | BP262: N/A | BQ262: N/A | BR262: N/A | BS262: N/A | BT262: N/A | BU262: N/A | BV262: N/A | BW262: N/A | BX262: N/A | BY262: N/A
BB263: DK/not sure/missing | BC263: N/A | BD263: N/A | BE263: N/A | BF263: N/A | BG263: N/A | BH263: N/A | BI263: N/A | BJ263: N/A | BK263: N/A | BL263: N/A | BM263: N/A | BN263: N/A | BO263: N/A | BP263: N/A | BQ263: N/A | BR263: N/A | BS263: N/A | BT263: N/A | BU263: N/A | BV263: N/A | BW263: N/A | BX263: N/A | BY263: N/A
BA264: Use of menstrual materials | BB264: Materials reusable | BC264: N/A | BD264: N/A | BE264: N/A | BF264: N/A | BG264: N/A | BH264: N/A | BI264: N/A | BJ264: N/A | BK264: N/A | BL264: N/A | BM264: N/A | BN264: N/A | BO264: N/A | BP264: N/A | BQ264: N/A | BR264: N/A | BS264: N/A | BT264: N/A | BU264: N/A | BV264: N/A | BW264: N/A | BX264: N/A | BY264: N/A
BB265: Materials not reusable | BC265: N/A | BD265: N/A | BE265: N/A | BF265: N/A | BG265: N/A | BH265: N/A | BI265: N/A | BJ265: N/A | BK265: N/A | BL265: N/A | BM265: N/A | BN265: N/A | BO265: N/A | BP265: N/A | BQ265: N/A | BR265: N/A | BS265: N/A | BT265: N/A | BU265: N/A | BV265: N/A | BW265: N/A | BX265: N/A | BY265: N/A
BB266: No materials used | BC266: N/A | BD266: N/A | BE266: N/A | BF266: N/A | BG266: N/A | BH266: N/A | BI266: N/A | BJ266: N/A | BK266: N/A | BL266: N/A | BM266: N/A | BN266: N/A | BO266: N/A | BP266: N/A | BQ266: N/A | BR266: N/A | BS266: N/A | BT266: N/A | BU266: N/A | BV266: N/A | BW266: N/A | BX266: N/A | BY266: N/A
BB267: DK/not sure/missing | BC267: N/A | BD267: N/A | BE267: N/A | BF267: N/A | BG267: N/A | BH267: N/A | BI267: N/A | BJ267: N/A | BK267: N/A | BL267: N/A | BM267: N/A | BN267: N/A | BO267: N/A | BP267: N/A | BQ267: N/A | BR267: N/A | BS267: N/A | BT267: N/A | BU267: N/A | BV267: N/A | BW267: N/A | BX267: N/A | BY267: N/A
BA268: Use of menstrual materials with private place to wash and change | BB268: Materials reusable | BC268: N/A | BD268: N/A | BE268: N/A | BF268: N/A | BG268: N/A | BH268: N/A | BI268: N/A | BJ268: N/A | BK268: N/A | BL268: N/A | BM268: N/A | BN268: N/A | BO268: N/A | BP268: N/A | BQ268: N/A | BR268: N/A | BS268: N/A | BT268: N/A | BU268: N/A | BV268: N/A | BW268: N/A | BX268: N/A | BY268: N/A
BB269: Materials not reusable | BC269: N/A | BD269: N/A | BE269: N/A | BF269: N/A | BG269: N/A | BH269: N/A | BI269: N/A | BJ269: N/A | BK269: N/A | BL269: N/A | BM269: N/A | BN269: N/A | BO269: N/A | BP269: N/A | BQ269: N/A | BR269: N/A | BS269: N/A | BT269: N/A | BU269: N/A | BV269: N/A | BW269: N/A | BX269: N/A | BY269: N/A
BB270: No materials used | BC270: N/A | BD270: N/A | BE270: N/A | BF270: N/A | BG270: N/A | BH270: N/A | BI270: N/A | BJ270: N/A | BK270: N/A | BL270: N/A | BM270: N/A | BN270: N/A | BO270: N/A | BP270: N/A | BQ270: N/A | BR270: N/A | BS270: N/A | BT270: N/A | BU270: N/A | BV270: N/A | BW270: N/A | BX270: N/A | BY270: N/A
BA271: Awareness of menstruation before menarche | BB271: Yes | BC271: N/A | BD271: N/A | BE271: N/A | BF271: N/A | BG271: N/A | BH271: N/A | BI271: N/A | BJ271: N/A | BK271: N/A | BL271: N/A | BM271: N/A | BN271: N/A | BO271: N/A | BP271: N/A | BQ271: N/A | BR271: N/A | BS271: N/A | BT271: N/A | BU271: N/A | BV271: N/A | BW271: N/A | BX271: N/A | BY271: N/A
BB272: No | BC272: N/A | BD272: N/A | BE272: N/A | BF272: N/A | BG272: N/A | BH272: N/A | BI272: N/A | BJ272: N/A | BK272: N/A | BL272: N/A | BM272: N/A | BN272: N/A | BO272: N/A | BP272: N/A | BQ272: N/A | BR272: N/A | BS272: N/A | BT272: N/A | BU272: N/A | BV272: N/A | BW272: N/A | BX272: N/A | BY272: N/A
BB273: DK/not sure/missing | BC273: N/A | BD273: N/A | BE273: N/A | BF273: N/A | BG273: N/A | BH273: N/A | BI273: N/A | BJ273: N/A | BK273: N/A | BL273: N/A | BM273: N/A | BN273: N/A | BO273: N/A | BP273: N/A | BQ273: N/A | BR273: N/A | BS273: N/A | BT273: N/A | BU273: N/A | BV273: N/A | BW273: N/A | BX273: N/A | BY273: N/A
BA274: Participation in (all) activities during menstruation | BB274: Yes | BC274: N/A | BD274: N/A | BE274: N/A | BF274: N/A | BG274: N/A | BH274: N/A | BI274: N/A | BJ274: N/A | BK274: N/A | BL274: N/A | BM274: N/A | BN274: N/A | BO274: N/A | BP274: N/A | BQ274: N/A | BR274: N/A | BS274: N/A | BT274: N/A | BU274: N/A | BV274: N/A | BW274: N/A | BX274: N/A | BY274: N/A
BB275: No | BC275: N/A | BD275: N/A | BE275: N/A | BF275: N/A | BG275: N/A | BH275: N/A | BI275: N/A | BJ275: N/A | BK275: N/A | BL275: N/A | BM275: N/A | BN275: N/A | BO275: N/A | BP275: N/A | BQ275: N/A | BR275: N/A | BS275: N/A | BT275: N/A | BU275: N/A | BV275: N/A | BW275: N/A | BX275: N/A | BY275: N/A
BB276: DK/not sure/missing/no such activity | BC276: N/A | BD276: N/A | BE276: N/A | BF276: N/A | BG276: N/A | BH276: N/A | BI276: N/A | BJ276: N/A | BK276: N/A | BL276: N/A | BM276: N/A | BN276: N/A | BO276: N/A | BP276: N/A | BQ276: N/A | BR276: N/A | BS276: N/A | BT276: N/A | BU276: N/A | BV276: N/A | BW276: N/A | BX276: N/A | BY276: N/A
BA277: Participation in specific activities during menstruation | BB277: Did not go to school (amongst those usually attending school) | BC277: N/A | BD277: N/A | BE277: N/A | BF277: N/A | BG277: N/A | BH277: N/A | BI277: N/A | BJ277: N/A | BK277: N/A | BL277: N/A | BM277: N/A | BN277: N/A | BO277: N/A | BP277: N/A | BQ277: N/A | BR277: N/A | BS277: N/A | BT277: N/A | BU277: N/A | BV277: N/A | BW277: N/A | BX277: N/A | BY277: N/A
BB278: Did not go to work (amongst those who usually work) | BC278: N/A | BD278: N/A | BE278: N/A | BF278: N/A | BG278: N/A | BH278: N/A | BI278: N/A | BJ278: N/A | BK278: N/A | BL278: N/A | BM278: N/A | BN278: N/A | BO278: N/A | BP278: N/A | BQ278: N/A | BR278: N/A | BS278: N/A | BT278: N/A | BU278: N/A | BV278: N/A | BW278: N/A | BX278: N/A | BY278: N/A
BB279: Did not participate in social activities | BC279: N/A | BD279: N/A | BE279: N/A | BF279: N/A | BG279: N/A | BH279: N/A | BI279: N/A | BJ279: N/A | BK279: N/A | BL279: N/A | BM279: N/A | BN279: N/A | BO279: N/A | BP279: N/A | BQ279: N/A | BR279: N/A | BS279: N/A | BT279: N/A | BU279: N/A | BV279: N/A | BW279: N/A | BX279: N/A | BY279: N/A
BB280: Did not cook food | BC280: N/A | BD280: N/A | BE280: N/A | BF280: N/A | BG280: N/A | BH280: N/A | BI280: N/A | BJ280: N/A | BK280: N/A | BL280: N/A | BM280: N/A | BN280: N/A | BO280: N/A | BP280: N/A | BQ280: N/A | BR280: N/A | BS280: N/A | BT280: N/A | BU280: N/A | BV280: N/A | BW280: N/A | BX280: N/A | BY280: N/A
BB281: Did not eat with others | BC281: N/A | BD281: N/A | BE281: N/A | BF281: N/A | BG281: N/A | BH281: N/A | BI281: N/A | BJ281: N/A | BK281: N/A | BL281: N/A | BM281: N/A | BN281: N/A | BO281: N/A | BP281: N/A | BQ281: N/A | BR281: N/A | BS281: N/A | BT281: N/A | BU281: N/A | BV281: N/A | BW281: N/A | BX281: N/A | BY281: N/A
BB282: Did not bathe in regular place | BC282: N/A | BD282: N/A | BE282: N/A | BF282: N/A | BG282: N/A | BH282: N/A | BI282: N/A | BJ282: N/A | BK282: N/A | BL282: N/A | BM282: N/A | BN282: N/A | BO282: N/A | BP282: N/A | BQ282: N/A | BR282: N/A | BS282: N/A | BT282: N/A | BU282: N/A | BV282: N/A | BW282: N/A | BX282: N/A | BY282: N/A
BB283: Did not participate in other activities | BC283: N/A | BD283: N/A | BE283: N/A | BF283: N/A | BG283: N/A | BH283: N/A | BI283: N/A | BJ283: N/A | BK283: N/A | BL283: N/A | BM283: N/A | BN283: N/A | BO283: N/A | BP283: N/A | BQ283: N/A | BR283: N/A | BS283: N/A | BT283: N/A | BU283: N/A | BV283: N/A | BW283: N/A | BX283: N/A | BY283: N/A
BB284: DK/not sure/missing/no such activity | BC284: N/A | BD284: N/A | BE284: N/A | BF284: N/A | BG284: N/A | BH284: N/A | BI284: N/A | BJ284: N/A | BK284: N/A | BL284: N/A | BM284: N/A | BN284: N/A | BO284: N/A | BP284: N/A | BQ284: N/A | BR284: N/A | BS284: N/A | BT284: N/A | BU284: N/A | BV284: N/A | BW284: N/A | BX284: N/A | BY284: N/A
BA339: Raw numbers of respondents: | BB339: Basic water, sanitation and hygiene | BC339: NATIONAL wealth index quintile | BH339: URBAN wealth index quintile | BM339: RURAL wealth index quintile | BR339: SUB-REGIONS:
BA340: WatSan data, raw numbers (weighted) | BC340: Poorest | BD340: Poor | BE340: Middle | BF340: Rich | BG340: Richest | BH340: Poorest | BI340: Poor | BJ340: Middle | BK340: Rich | BL340: Richest | BM340: Poorest | BN340: Poor | BO340: Middle | BP340: Rich | BQ340: Richest | BR340: Agadez | BS340: Diffa | BT340: Dosso | BU340: Maradi | BV340: Niamey | BW340: Tahoua | BX340: Tillabéri | BY340: Zinder
BA341: Use of Basic Water Sanitation and Hygiene | BB341: Yes | BC341: N/A | BD341: N/A | BE341: N/A | BF341: N/A | BG341: N/A | BH341: N/A | BI341: N/A | BJ341: N/A | BK341: N/A | BL341: N/A | BM341: N/A | BN341: N/A | BO341: N/A | BP341: N/A | BQ341: N/A | BR341: N/A | BS341: N/A | BT341: N/A | BU341: N/A | BV341: N/A | BW341: N/A | BX341: N/A | BY341: N/A
BB342: No | BC342: N/A | BD342: N/A | BE342: N/A | BF342: N/A | BG342: N/A | BH342: N/A | BI342: N/A | BJ342: N/A | BK342: N/A | BL342: N/A | BM342: N/A | BN342: N/A | BO342: N/A | BP342: N/A | BQ342: N/A | BR342: N/A | BS342: N/A | BT342: N/A | BU342: N/A | BV342: N/A | BW342: N/A | BX342: N/A | BY342: N/A
BA343: Use of Basic Water and Sanitation | BB343: Yes | BC343: N/A | BD343: N/A | BE343: N/A | BF343: N/A | BG343: N/A | BH343: N/A | BI343: N/A | BJ343: N/A | BK343: N/A | BL343: N/A | BM343: N/A | BN343: N/A | BO343: N/A | BP343: N/A | BQ343: N/A | BR343: N/A | BS343: N/A | BT343: N/A | BU343: N/A | BV343: N/A | BW343: N/A | BX343: N/A | BY343: N/A
BB344: No | BC344: N/A | BD344: N/A | BE344: N/A | BF344: N/A | BG344: N/A | BH344: N/A | BI344: N/A | BJ344: N/A | BK344: N/A | BL344: N/A | BM344: N/A | BN344: N/A | BO344: N/A | BP344: N/A | BQ344: N/A | BR344: N/A | BS344: N/A | BT344: N/A | BU344: N/A | BV344: N/A | BW344: N/A | BX344: N/A | BY344: N/A
BA345: Use of Basic Water and Hygiene | BB345: Yes | BC345: N/A | BD345: N/A | BE345: N/A | BF345: N/A | BG345: N/A | BH345: N/A | BI345: N/A | BJ345: N/A | BK345: N/A | BL345: N/A | BM345: N/A | BN345: N/A | BO345: N/A | BP345: N/A | BQ345: N/A | BR345: N/A | BS345: N/A | BT345: N/A | BU345: N/A | BV345: N/A | BW345: N/A | BX345: N/A | BY345: N/A
BB346: No | BC346: N/A | BD346: N/A | BE346: N/A | BF346: N/A | BG346: N/A | BH346: N/A | BI346: N/A | BJ346: N/A | BK346: N/A | BL346: N/A | BM346: N/A | BN346: N/A | BO346: N/A | BP346: N/A | BQ346: N/A | BR346: N/A | BS346: N/A | BT346: N/A | BU346: N/A | BV346: N/A | BW346: N/A | BX346: N/A | BY346: N/A
BA347: Use of Basic Sanitation and Hygiene | BB347: Yes | BC347: N/A | BD347: N/A | BE347: N/A | BF347: N/A | BG347: N/A | BH347: N/A | BI347: N/A | BJ347: N/A | BK347: N/A | BL347: N/A | BM347: N/A | BN347: N/A | BO347: N/A | BP347: N/A | BQ347: N/A | BR347: N/A | BS347: N/A | BT347: N/A | BU347: N/A | BV347: N/A | BW347: N/A | BX347: N/A | BY347: N/A
BB348: No | BC348: N/A | BD348: N/A | BE348: N/A | BF348: N/A | BG348: N/A | BH348: N/A | BI348: N/A | BJ348: N/A | BK348: N/A | BL348: N/A | BM348: N/A | BN348: N/A | BO348: N/A | BP348: N/A | BQ348: N/A | BR348: N/A | BS348: N/A | BT348: N/A | BU348: N/A | BV348: N/A | BW348: N/A | BX348: N/A | BY348: N/A
BA349: Use of Basic Water | BB349: Yes | BC349: N/A | BD349: N/A | BE349: N/A | BF349: N/A | BG349: N/A | BH349: N/A | BI349: N/A | BJ349: N/A | BK349: N/A | BL349: N/A | BM349: N/A | BN349: N/A | BO349: N/A | BP349: N/A | BQ349: N/A | BR349: N/A | BS349: N/A | BT349: N/A | BU349: N/A | BV349: N/A | BW349: N/A | BX349: N/A | BY349: N/A
BB350: No | BC350: N/A | BD350: N/A | BE350: N/A | BF350: N/A | BG350: N/A | BH350: N/A | BI350: N/A | BJ350: N/A | BK350: N/A | BL350: N/A | BM350: N/A | BN350: N/A | BO350: N/A | BP350: N/A | BQ350: N/A | BR350: N/A | BS350: N/A | BT350: N/A | BU350: N/A | BV350: N/A | BW350: N/A | BX350: N/A | BY350: N/A
BA351: Use of Basic Sanitation | BB351: Yes | BC351: N/A | BD351: N/A | BE351: N/A | BF351: N/A | BG351: N/A | BH351: N/A | BI351: N/A | BJ351: N/A | BK351: N/A | BL351: N/A | BM351: N/A | BN351: N/A | BO351: N/A | BP351: N/A | BQ351: N/A | BR351: N/A | BS351: N/A | BT351: N/A | BU351: N/A | BV351: N/A | BW351: N/A | BX351: N/A | BY351: N/A
BB352: No | BC352: N/A | BD352: N/A | BE352: N/A | BF352: N/A | BG352: N/A | BH352: N/A | BI352: N/A | BJ352: N/A | BK352: N/A | BL352: N/A | BM352: N/A | BN352: N/A | BO352: N/A | BP352: N/A | BQ352: N/A | BR352: N/A | BS352: N/A | BT352: N/A | BU352: N/A | BV352: N/A | BW352: N/A | BX352: N/A | BY352: N/A
BA353: Access to Basic Hygiene | BB353: Yes | BC353: N/A | BD353: N/A | BE353: N/A | BF353: N/A | BG353: N/A | BH353: N/A | BI353: N/A | BJ353: N/A | BK353: N/A | BL353: N/A | BM353: N/A | BN353: N/A | BO353: N/A | BP353: N/A | BQ353: N/A | BR353: N/A | BS353: N/A | BT353: N/A | BU353: N/A | BV353: N/A | BW353: N/A | BX353: N/A | BY353: N/A
BB354: No | BC354: N/A | BD354: N/A | BE354: N/A | BF354: N/A | BG354: N/A | BH354: N/A | BI354: N/A | BJ354: N/A | BK354: N/A | BL354: N/A | BM354: N/A | BN354: N/A | BO354: N/A | BP354: N/A | BQ354: N/A | BR354: N/A | BS354: N/A | BT354: N/A | BU354: N/A | BV354: N/A | BW354: N/A | BX354: N/A | BY354: N/A
C399: INITIAL (national) Wealth Index | H399: URBAN Wealth Index | M399: RURAL Wealth Index
C400: Component Matrix | H400: Component Matrix | M400: Component Matrix
E401: Component | J401: Component | O401: Component
B402: Note: The INITIAL (national) Wealth Index is based on the first component of the Principal Component Analysis (PCA) which has been obtained at national level. The final national-level (NATIONAL) Wealth Index is based on the URBAN and RURAL specific wealth indexes. Regression procedures are used to establish the relationships between the two sets of scores (urban and rural) and the initial (national) wealth factors. This allows best use of the available information for each area and a better precision of the FINAL (NATIONAL) Wealth Index. For dependency reasons, all WASH variables (contained in the generic MICS and DHS scripts) have been excluded from the sets of asset variables used in the PCAs. The PCA can extracts as many components as there are asset variables in the input. Only the first of the components is used to represent the Wealth Index. The scores represent the weights of the asset variables on the Wealth Index (correlations between the variables and the component). The communalities are the proportion of each variable's variance that can be explained by the component. Proportion of explained variance is the part of the model's total variance that is explained by the component. For more information on the procedure used: The DHS Wealth Index, DHS Comparative Reports No. 6, Shea Oscar Rutstein, Kiersten Johnson, ORC Macro International Inc., 2004. The DHS Wealth Index: Approaches for Rural and Urban Areas, Shea O. Rutstein, ORC Macro International Inc., 2008. MICS Methodological Paper No. 4, Review of options for reporting water, sanitation and hygiene coverage by wealth quintile, UNICEF, 2016. | E402: 1 | J402: 1 | O402: 1
C403: Has television | E403: 0.8346441011 | H403: Has television | J403: 0.7862205188 | M403: if has a floor made of dirt, dung | O403: -0.6379083472
C404: Has electricity | E404: 0.8029505547 | H404: If hh has a cell phone | J404: 0.7296771518 | M404: Has television | O404: 0.6260248096
C405: If hh has a cell phone | E405: 0.7958325527 | H405: Has electricity | J405: 0.725364285 | M405: if has a finished floor - cemt, vinyl/asphalt strips | O405: 0.6239656473
C406: if has a floor made of dirt, dung | E406: -0.7861769832 | H406: Has refrigerator | J406: 0.7183804756 | M406: Has electricity | O406: 0.5133579767
C407: Has refrigerator | E407: 0.7400253004 | H407: If hh has own personal car | J407: 0.6773130973 | M407: Has refrigerator | O407: 0.4980440853
C408: if has a finished floor - cemt, vinyl/asphalt strips | E408: 0.6624364419 | H408: Has car/truck | J408: 0.6699419463 | M408: Has car/truck | O408: 0.4722591166
C409: If hh has own personal car | E409: 0.6616101314 | H409: if has a floor made of dirt, dung | J409: -0.6511774919 | M409: If hh has own personal car | O409: 0.4607866269
C410: Has car/truck | E410: 0.6590105432 | H410: if has a finished floor - cemt, vinyl/asphalt strips | J410: 0.4403093509 | M410: If hh has a cell phone | O410: 0.4334204607
C411: If hh has a landline phone | E411: 0.4469795579 | H411: If hh has a landline phone | J411: 0.4394238189 | M411: Has motorcycle/scooter | O411: 0.4072108214
C412: if has a nicely finished floor - parquet, ceramic tile, carpet | E412: 0.442466111 | H412: if has a nicely finished floor - parquet, ceramic tile, carpet | J412: 0.427364296 | M412: If hh has a landline phone | O412: 0.3886242405
C413: Has motorcycle/scooter | E413: 0.4181470096 | H413: if cooking fuel is wood/straw | J413: -0.391702131 | M413: Has radio | O413: 0.2459853716
C414: if cooking fuel is wood/straw | E414: -0.4025452301 | H414: Has radio | J414: 0.3795768946 | M414: Has bicycle | O414: 0.230473482
C415: if cooking fuel is nat gas | E415: 0.3789050388 | H415: Has motorcycle/scooter | J415: 0.3795661491 | M415: If hh has a car/truck | O415: 0.173373688
C416: Has bicycle | E416: 0.3626069173 | H416: if cooking fuel is nat gas | J416: 0.3664039187 | M416: Has an animal-drawn cart | O416: 0.1265984159
C417: Has radio | E417: 0.3571330664 | H417: Has bicycle | J417: 0.3304796409 | M417: if has a nicely finished floor - parquet, ceramic tile, carpet | O417: 0.1149298565
C418: if cooking fuel is electric | E418: 0.2976281528 | H418: if cooking fuel is electric | J418: 0.2949361771 | M418: if cooking fuel is nat gas | O418: 0.1124434173
C419: if cooking fuel is charcoal | E419: 0.2142912452 | H419: memsleep | J419: -0.2669857988 | M419: if cooking fuel is charcoal | O419: 0.09021323806
C420: memsleep | E420: -0.1579927377 | H420: if cooking fuel is charcoal | J420: 0.1133324081 | M420: memsleep | O420: -0.08542009619
C421: Has an animal-drawn cart | E421: -0.1301198804 | H421: Has an animal-drawn cart | J421: -0.07085304083 | M421: if cooking fuel is wood/straw | O421: -0.04819139694
... 105 more rows

Sheet DHS12
A2: =A1026 -> Niger
A3: =A1034 -> 2012
A4: Use of drinking water sources
A5: by wealth quintile and sub-national region
A6: Notes:
A7: WHO/UNICEF JMP customised wealth index excludes water,
A8: sanitation and hygiene assets.
A9: Survey used for analysis: | B9: =A1025 -> DHS12
A10: =B1028 -> 
A11: =B1027 -> 
A14: Use of drinking water sources | C14: NATIONAL wealth index quintile | H14: URBAN wealth index quintile | M14: RURAL wealth index quintile | R14: SUB-REGIONS: | BA14: Raw numbers of respondents: | BB14: Use of drinking water sources | BC14: NATIONAL wealth index quintile | BH14: URBAN wealth index quintile | BM14: RURAL wealth index quintile | BR14: SUB-REGIONS:
A15: Weighted percentage (used in graphs) | C15: Poorest | D15: Poor | E15: Middle | F15: Rich | G15: Richest | H15: Poorest | I15: Poor | J15: Middle | K15: Rich | L15: Richest | M15: Poorest | N15: Poor | O15: Middle | P15: Rich | Q15: Richest | R15: Agadez | S15: Diffa | T15: Dosso | U15: Maradi | V15: Niamey | W15: Tahoua | X15: Tillaberi | Y15: Zinder | BA15: Water data, raw numbers (weighted) | BC15: Poorest | BD15: Poor | BE15: Middle | BF15: Rich | BG15: Richest | BH15: Poorest | BI15: Poor | BJ15: Middle | BK15: Rich | BL15: Richest | BM15: Poorest | BN15: Poor | BO15: Middle | BP15: Rich | BQ15: Richest | BR15: Agadez | BS15: Diffa | BT15: Dosso | BU15: Maradi | BV15: Niamey | BW15: Tahoua | BX15: Tillaberi | BY15: Zinder
A16: Water | B16: Improved | C16: 62.40658443 | D16: 62.603286 | E16: 61.27796017 | F16: 61.44424857 | G16: 85.25113277 | H16: 92.44053108 | I16: 98.11126434 | J16: 99.24266948 | K16: 99.13879582 | L16: 98.84608894 | M16: 60.62373473 | N16: 61.82594778 | O16: 61.26023369 | P16: 58.31629982 | Q16: 60.61632573 | R16: 75.29318137 | S16: 74.58604135 | T16: 44.7104231 | U16: 72.92172417 | V16: 98.52671881 | W16: 56.32661818 | X16: 73.05747647 | Y16: 67.50967966 | BA16: Water | BB16: Improved | BC16: N/A | BD16: N/A | BE16: N/A | BF16: N/A | BG16: N/A | BH16: N/A | BI16: N/A | BJ16: N/A | BK16: N/A | BL16: N/A | BM16: N/A | BN16: N/A | BO16: N/A | BP16: N/A | BQ16: N/A | BR16: N/A | BS16: N/A | BT16: N/A | BU16: N/A | BV16: N/A | BW16: N/A | BX16: N/A | BY16: N/A
B17: Not Improved | C17: 37.59341557 | D17: 37.396714 | E17: 38.72203983 | F17: 38.55575143 | G17: 14.74886723 | H17: 7.559468922 | I17: 1.88873566 | J17: 0.7573305228 | K17: 0.8612041832 | L17: 1.153911057 | M17: 39.37626527 | N17: 38.17405222 | O17: 38.73976631 | P17: 41.68370018 | Q17: 39.38367427 | R17: 24.70681863 | S17: 25.41395865 | T17: 55.2895769 | U17: 27.07827583 | V17: 1.473281189 | W17: 43.67338182 | X17: 26.94252353 | Y17: 32.49032034 | BB17: Not Improved | BC17: N/A | BD17: N/A | BE17: N/A | BF17: N/A | BG17: N/A | BH17: N/A | BI17: N/A | BJ17: N/A | BK17: N/A | BL17: N/A | BM17: N/A | BN17: N/A | BO17: N/A | BP17: N/A | BQ17: N/A | BR17: N/A | BS17: N/A | BT17: N/A | BU17: N/A | BV17: N/A | BW17: N/A | BX17: N/A | BY17: N/A
A18: Water ladder | B18: Basic | C18: =C16*C23/100 -> 41.62519181 | D18: =D16*D23/100 -> 40.2539129 | E18: =E16*E23/100 -> 39.83067411 | F18: 43.07241825 | G18: 72.29296059 | H18: 73.7675438 | I18: 82.41346205 | J18: 90.21158655 | K18: 92.3973577 | L18: 96.37493672 | M18: 39.89041745 | N18: 38.51756547 | O18: 40.24797353 | P18: 38.37212528 | Q18: 41.15848517 | R18: 68.81796777 | S18: 67.20202326 | T18: 36.17073229 | U18: 38.50267036 | V18: 95.37386381 | W18: 43.25884276 | X18: 56.69260174 | Y18: 42.46358851 | BA18: Water ladder | BB18: Basic | BC18: N/A | BD18: N/A | BE18: N/A | BF18: N/A | BG18: N/A | BH18: N/A | BI18: N/A | BJ18: N/A | BK18: N/A | BL18: N/A | BM18: N/A | BN18: N/A | BO18: N/A | BP18: N/A | BQ18: N/A | BR18: N/A | BS18: N/A | BT18: N/A | BU18: N/A | BV18: N/A | BW18: N/A | BX18: N/A | BY18: N/A
B19: Limited | C19: =C16*C22/100 -> 20.78139261 | D19: =D16*D22/100 -> 22.3493731 | E19: =E16*E22/100 -> 21.44728606 | F19: 18.37183032 | G19: 12.95817218 | H19: 18.67298728 | I19: 15.69780229 | J19: 9.031082922 | K19: 6.741438116 | L19: 2.471152224 | M19: 20.73331728 | N19: 23.30838231 | O19: 21.01226015 | P19: 19.94417454 | Q19: 19.45784056 | R19: 6.475213598 | S19: 7.384018094 | T19: 8.539690812 | U19: 34.41905381 | V19: 3.152855002 | W19: 13.06777542 | X19: 16.36487473 | Y19: 25.04609115 | BB19: Limited | BC19: N/A | BD19: N/A | BE19: N/A | BF19: N/A | BG19: N/A | BH19: N/A | BI19: N/A | BJ19: N/A | BK19: N/A | BL19: N/A | BM19: N/A | BN19: N/A | BO19: N/A | BP19: N/A | BQ19: N/A | BR19: N/A | BS19: N/A | BT19: N/A | BU19: N/A | BV19: N/A | BW19: N/A | BX19: N/A | BY19: N/A
B20: Unimproved | C20: =100-C18-C19-C21 -> 36.53991002 | D20: =100-D18-D19-D21 -> 35.99640287 | E20: =100-E18-E19-E21 -> 37.57010276 | F20: 37.48202648 | G20: 13.71191357 | H20: 7.372403683 | I20: 1.646169507 | J20: 0.7573305228 | K20: 0.8612041832 | L20: 1.153911057 | M20: 38.32049 | N20: 36.60147534 | O20: 37.44454885 | P20: 40.54639818 | Q20: 37.71815471 | R20: 24.70681863 | S20: 25.22202321 | T20: 55.22780338 | U20: 27.0273271 | V20: 1.473281189 | W20: 42.99315551 | X20: 20.49614389 | Y20: 31.46121595 | BB20: Unimproved | BC20: N/A | BD20: N/A | BE20: N/A | BF20: N/A | BG20: N/A | BH20: N/A | BI20: N/A | BJ20: N/A | BK20: N/A | BL20: N/A | BM20: N/A | BN20: N/A | BO20: N/A | BP20: N/A | BQ20: N/A | BR20: N/A | BS20: N/A | BT20: N/A | BU20: N/A | BV20: N/A | BW20: N/A | BX20: N/A | BY20: N/A
B21: Surface water | C21: 1.053505548 | D21: 1.400311128 | E21: 1.151937072 | F21: 1.073724952 | G21: 1.036953663 | H21: 0.1870652394 | I21: 0.2425661527 | J21: 0 | K21: 0 | L21: 0 | M21: 1.055775271 | N21: 1.57257688 | O21: 1.295217465 | P21: 1.137301999 | Q21: 1.665519566 | R21: 0 | S21: 0.191935438 | T21: 0.06177352337 | U21: 0.05094872875 | V21: 0 | W21: 0.6802263159 | X21: 6.446379643 | Y21: 1.029104386 | BB21: Surface water | BC21: N/A | BD21: N/A | BE21: N/A | BF21: N/A | BG21: N/A | BH21: N/A | BI21: N/A | BJ21: N/A | BK21: N/A | BL21: N/A | BM21: N/A | BN21: N/A | BO21: N/A | BP21: N/A | BQ21: N/A | BR21: N/A | BS21: N/A | BT21: N/A | BU21: N/A | BV21: N/A | BW21: N/A | BX21: N/A | BY21: N/A
A22: Improved water point at more than 30 minutes | B22: Yes | C22: 33.3 | D22: 35.7 | E22: 35 | F22: 29.9 | G22: 15.2 | H22: 20.2 | I22: 16 | J22: 9.1 | K22: 6.8 | L22: 2.5 | M22: 34.2 | N22: 37.7 | O22: 34.3 | P22: 34.2 | Q22: 32.1 | R22: 8.6 | S22: 9.9 | T22: 19.1 | U22: 47.2 | V22: 3.2 | W22: 23.2 | X22: 22.4 | Y22: 37.1 | BA22: Improved water point at more than 30 minutes | BB22: Yes | BC22: N/A | BD22: N/A | BE22: N/A | BF22: N/A | BG22: N/A | BH22: N/A | BI22: N/A | BJ22: N/A | BK22: N/A | BL22: N/A | BM22: N/A | BN22: N/A | BO22: N/A | BP22: N/A | BQ22: N/A | BR22: N/A | BS22: N/A | BT22: N/A | BU22: N/A | BV22: N/A | BW22: N/A | BX22: N/A | BY22: N/A
B23: No | C23: 66.7 | D23: 64.3 | E23: 65 | F23: 70.1 | G23: 84.8 | H23: 79.8 | I23: 84 | J23: 90.9 | K23: 93.2 | L23: 97.5 | M23: 65.8 | N23: 62.3 | O23: 65.7 | P23: 65.8 | Q23: 67.9 | R23: 91.4 | S23: 90.1 | T23: 80.9 | U23: 52.8 | V23: 96.8 | W23: 76.8 | X23: 77.6 | Y23: 62.9 | BB23: No | BC23: N/A | BD23: N/A | BE23: N/A | BF23: N/A | BG23: N/A | BH23: N/A | BI23: N/A | BJ23: N/A | BK23: N/A | BL23: N/A | BM23: N/A | BN23: N/A | BO23: N/A | BP23: N/A | BQ23: N/A | BR23: N/A | BS23: N/A | BT23: N/A | BU23: N/A | BV23: N/A | BW23: N/A | BX23: N/A | BY23: N/A
A24: Manually calculated ratios | B24: Improved wells | C24: =C62/(C62+C63)*100 -> 39.68644737 | D24: 39.63540956 | E24: 40.73803888 | F24: 36.83207994 | G24: 40.51417217 | H24: 29.40021662 | I24: 23.72145875 | J24: 65.83478482 | K24: 0 | L24: 35.23311416 | M24: 39.92229683 | N24: 39.88685279 | O24: 40.78478114 | P24: 38.45972049 | Q24: 37.97934973 | R24: 34.80052688 | S24: 54.49676393 | T24: 21.12964465 | U24: 51.16271693 | V24: 38.69314531 | W24: 33.29622931 | X24: 64.03911609 | Y24: 30.35479745
B25: Improved springs | C25: =C64/(C64+C65)*100 -> 0 | D25: 10.57593896 | E25: 17.18221444 | F25: 12.36411342 | G25: 0 | H25: 0 | I25: 50 | J25: 50 | K25: 50 | L25: 50 | M25: =M64/(M64+M65)*100 -> 0 | N25: 7.38200969 | O25: 16.85941279 | P25: 26.33640769 | Q25: 0 | R25: 63.56935659 | S25: 50 | T25: =T64/(T64+T65)*100 -> 36.12660078 | U25: =U64/(U64+U65)*100 -> 0 | V25: 50 | W25: =W64/(W64+W65)*100 -> 12.19949858 | X25: =X64/(X64+X65)*100 -> 8.895823763 | Y25: =Y64/(Y64+Y65)*100 -> 10.02080629
B26: Other
C27: NATIONAL wealth index quintile | H27: URBAN wealth index quintile | M27: RURAL wealth index quintile | R27: SUB-REGIONS: | BA27: Raw numbers of respondents: | BB27: Use of drinking water sources | BC27: NATIONAL wealth index quintile | BH27: URBAN wealth index quintile | BM27: RURAL wealth index quintile | BR27: SUB-REGIONS:
A28: Percentage based on weighted population | C28: Poorest | D28: Poor | E28: Middle | F28: Rich | G28: Richest | H28: Poorest | I28: Poor | J28: Middle | K28: Rich | L28: Richest | M28: Poorest | N28: Poor | O28: Middle | P28: Rich | Q28: Richest | R28: Agadez | S28: Diffa | T28: Dosso | U28: Maradi | V28: Niamey | W28: Tahoua | X28: Tillaberi | Y28: Zinder | BA28: Water data, raw numbers (weighted) | BC28: Poorest | BD28: Poor | BE28: Middle | BF28: Rich | BG28: Richest | BH28: Poorest | BI28: Poor | BJ28: Middle | BK28: Rich | BL28: Richest | BM28: Poorest | BN28: Poor | BO28: Middle | BP28: Rich | BQ28: Richest | BR28: Agadez | BS28: Diffa | BT28: Dosso | BU28: Maradi | BV28: Niamey | BW28: Tahoua | BX28: Tillaberi | BY28: Zinder
A29: Piped water | B29: Yes | C29: 21.8 | D29: 21.4 | E29: 20.1 | F29: 26 | G29: 70.9 | H29: 86.1 | I29: 94.5 | J29: 95.5 | K29: 97.4 | L29: 97.1 | M29: 18.3 | N29: 19.8 | O29: 18.2 | P29: 18.3 | Q29: 24.6 | R29: 55.2 | S29: 39.8 | T29: 18.9 | U29: 36 | V29: 95 | W29: 29.9 | X29: 16.4 | Y29: 22.8 | BA29: Piped water | BB29: Yes | BC29: N/A | BD29: N/A | BE29: N/A | BF29: N/A | BG29: N/A | BH29: N/A | BI29: N/A | BJ29: N/A | BK29: N/A | BL29: N/A | BM29: N/A | BN29: N/A | BO29: N/A | BP29: N/A | BQ29: N/A | BR29: N/A | BS29: N/A | BT29: N/A | BU29: N/A | BV29: N/A | BW29: N/A | BX29: N/A | BY29: N/A
B30: No | C30: 78.2 | D30: 78.6 | E30: 79.9 | F30: 74 | G30: 29.1 | H30: 13.9 | I30: 5.5 | J30: 4.5 | K30: 2.6 | L30: 2.9 | M30: 81.7 | N30: 80.2 | O30: 81.8 | P30: 81.7 | Q30: 75.4 | R30: 44.8 | S30: 60.2 | T30: 81.1 | U30: 64 | V30: 5 | W30: 70.1 | X30: 83.6 | Y30: 77.2 | BB30: No | BC30: N/A | BD30: N/A | BE30: N/A | BF30: N/A | BG30: N/A | BH30: N/A | BI30: N/A | BJ30: N/A | BK30: N/A | BL30: N/A | BM30: N/A | BN30: N/A | BO30: N/A | BP30: N/A | BQ30: N/A | BR30: N/A | BS30: N/A | BT30: N/A | BU30: N/A | BV30: N/A | BW30: N/A | BX30: N/A | BY30: N/A
A31: Piped water on premises | B31: Yes | C31: 0.4 | D31: 0.7 | E31: 0.8 | F31: 2.8 | G31: 34.2 | H31: 10.9 | I31: 21.4 | J31: 34.4 | K31: 57.5 | L31: 82.3 | M31: 0.1 | N31: 0.4 | O31: 0.1 | P31: 1.2 | Q31: 4.2 | R31: 31.9 | S31: 7 | T31: 3.6 | U31: 5.9 | V31: 48.7 | W31: 4.6 | X31: 3.8 | Y31: 2.4 | BA31: Piped water on premises | BB31: Yes | BC31: N/A | BD31: N/A | BE31: N/A | BF31: N/A | BG31: N/A | BH31: N/A | BI31: N/A | BJ31: N/A | BK31: N/A | BL31: N/A | BM31: N/A | BN31: N/A | BO31: N/A | BP31: N/A | BQ31: N/A | BR31: N/A | BS31: N/A | BT31: N/A | BU31: N/A | BV31: N/A | BW31: N/A | BX31: N/A | BY31: N/A
B32: No | C32: 99.6 | D32: 99.3 | E32: 99.2 | F32: 97.2 | G32: 65.8 | H32: 89.1 | I32: 78.6 | J32: 65.6 | K32: 42.5 | L32: 17.7 | M32: 99.9 | N32: 99.6 | O32: 99.9 | P32: 98.8 | Q32: 95.8 | R32: 68.1 | S32: 93 | T32: 96.4 | U32: 94.1 | V32: 51.3 | W32: 95.4 | X32: 96.2 | Y32: 97.6 | BB32: No | BC32: N/A | BD32: N/A | BE32: N/A | BF32: N/A | BG32: N/A | BH32: N/A | BI32: N/A | BJ32: N/A | BK32: N/A | BL32: N/A | BM32: N/A | BN32: N/A | BO32: N/A | BP32: N/A | BQ32: N/A | BR32: N/A | BS32: N/A | BT32: N/A | BU32: N/A | BV32: N/A | BW32: N/A | BX32: N/A | BY32: N/A
A33: Piped water into dwelling | B33: Yes | C33: N/A | D33: N/A | E33: N/A | F33: N/A | G33: N/A | H33: N/A | I33: N/A | J33: N/A | K33: N/A | L33: N/A | M33: N/A | N33: N/A | O33: N/A | P33: N/A | Q33: N/A | R33: N/A | S33: N/A | T33: N/A | U33: N/A | V33: N/A | W33: N/A | X33: N/A | Y33: N/A | BA33: Piped water into dwelling | BB33: Yes | BC33: N/A | BD33: N/A | BE33: N/A | BF33: N/A | BG33: N/A | BH33: N/A | BI33: N/A | BJ33: N/A | BK33: N/A | BL33: N/A | BM33: N/A | BN33: N/A | BO33: N/A | BP33: N/A | BQ33: N/A | BR33: N/A | BS33: N/A | BT33: N/A | BU33: N/A | BV33: N/A | BW33: N/A | BX33: N/A | BY33: N/A
B34: No | C34: N/A | D34: N/A | E34: N/A | F34: N/A | G34: N/A | H34: N/A | I34: N/A | J34: N/A | K34: N/A | L34: N/A | M34: N/A | N34: N/A | O34: N/A | P34: N/A | Q34: N/A | R34: N/A | S34: N/A | T34: N/A | U34: N/A | V34: N/A | W34: N/A | X34: N/A | Y34: N/A | BB34: No | BC34: N/A | BD34: N/A | BE34: N/A | BF34: N/A | BG34: N/A | BH34: N/A | BI34: N/A | BJ34: N/A | BK34: N/A | BL34: N/A | BM34: N/A | BN34: N/A | BO34: N/A | BP34: N/A | BQ34: N/A | BR34: N/A | BS34: N/A | BT34: N/A | BU34: N/A | BV34: N/A | BW34: N/A | BX34: N/A | BY34: N/A
A35: Water source on premises | B35: Yes | C35: 2.6 | D35: 2.8 | E35: 2.8 | F35: 5.2 | G35: 42.3 | H35: 21.2 | I35: 31.5 | J35: 49 | K35: 67.5 | L35: 90.3 | M35: 1.8 | N35: 2.2 | O35: 1.7 | P35: 3 | Q35: 7 | R35: 35.4 | S35: 14.2 | T35: 6.4 | U35: 7.6 | V35: 65 | W35: 7.5 | X35: 4.7 | Y35: 5 | BA35: Water source on premises | BB35: Yes | BC35: N/A | BD35: N/A | BE35: N/A | BF35: N/A | BG35: N/A | BH35: N/A | BI35: N/A | BJ35: N/A | BK35: N/A | BL35: N/A | BM35: N/A | BN35: N/A | BO35: N/A | BP35: N/A | BQ35: N/A | BR35: N/A | BS35: N/A | BT35: N/A | BU35: N/A | BV35: N/A | BW35: N/A | BX35: N/A | BY35: N/A
B36: No | C36: 97.4 | D36: 97.2 | E36: 97.2 | F36: 94.8 | G36: 57.7 | H36: 78.8 | I36: 68.5 | J36: 51 | K36: 32.5 | L36: 9.7 | M36: 98.2 | N36: 97.8 | O36: 98.3 | P36: 97 | Q36: 93 | R36: 64.6 | S36: 85.8 | T36: 93.6 | U36: 92.4 | V36: 35 | W36: 92.5 | X36: 95.3 | Y36: 95 | BB36: No | BC36: N/A | BD36: N/A | BE36: N/A | BF36: N/A | BG36: N/A | BH36: N/A | BI36: N/A | BJ36: N/A | BK36: N/A | BL36: N/A | BM36: N/A | BN36: N/A | BO36: N/A | BP36: N/A | BQ36: N/A | BR36: N/A | BS36: N/A | BT36: N/A | BU36: N/A | BV36: N/A | BW36: N/A | BX36: N/A | BY36: N/A
A37: Improved Water source on premises | B37: Yes | C37: 1.8 | D37: 1.9 | E37: 2.3 | F37: 4.5 | G37: 41.5 | H37: 19.9 | I37: 31.2 | J37: 49 | K37: 67.5 | L37: 89.4 | M37: 0.9 | N37: 1.6 | O37: 1 | P37: 2.5 | Q37: 5.9 | R37: 35.3 | S37: 13.8 | T37: 4.4 | U37: 7.1 | V37: 64.6 | W37: 6.8 | X37: 4.5 | Y37: 4.4 | BA37: Improved water source on premises | BB37: Yes | BC37: N/A | BD37: N/A | BE37: N/A | BF37: N/A | BG37: N/A | BH37: N/A | BI37: N/A | BJ37: N/A | BK37: N/A | BL37: N/A | BM37: N/A | BN37: N/A | BO37: N/A | BP37: N/A | BQ37: N/A | BR37: N/A | BS37: N/A | BT37: N/A | BU37: N/A | BV37: N/A | BW37: N/A | BX37: N/A | BY37: N/A
B38: No | C38: 98.2 | D38: 98.1 | E38: 97.7 | F38: 95.5 | G38: 58.5 | H38: 80.1 | I38: 68.8 | J38: 51 | K38: 32.5 | L38: 10.6 | M38: 99.1 | N38: 98.4 | O38: 99 | P38: 97.5 | Q38: 94.1 | R38: 64.7 | S38: 86.2 | T38: 95.6 | U38: 92.9 | V38: 35.4 | W38: 93.2 | X38: 95.5 | Y38: 95.6 | BB38: No | BC38: N/A | BD38: N/A | BE38: N/A | BF38: N/A | BG38: N/A | BH38: N/A | BI38: N/A | BJ38: N/A | BK38: N/A | BL38: N/A | BM38: N/A | BN38: N/A | BO38: N/A | BP38: N/A | BQ38: N/A | BR38: N/A | BS38: N/A | BT38: N/A | BU38: N/A | BV38: N/A | BW38: N/A | BX38: N/A | BY38: N/A
A39: Piped water on premises available when needed | B39: Yes | C39: N/A | D39: N/A | E39: N/A | F39: N/A | G39: N/A | H39: N/A | I39: N/A | J39: N/A | K39: N/A | L39: N/A | M39: N/A | N39: N/A | O39: N/A | P39: N/A | Q39: N/A | R39: N/A | S39: N/A | T39: N/A | U39: N/A | V39: N/A | W39: N/A | X39: N/A | Y39: N/A | BA39: Piped water on premises available when needed | BB39: Yes | BC39: N/A | BD39: N/A | BE39: N/A | BF39: N/A | BG39: N/A | BH39: N/A | BI39: N/A | BJ39: N/A | BK39: N/A | BL39: N/A | BM39: N/A | BN39: N/A | BO39: N/A | BP39: N/A | BQ39: N/A | BR39: N/A | BS39: N/A | BT39: N/A | BU39: N/A | BV39: N/A | BW39: N/A | BX39: N/A | BY39: N/A
B40: No | C40: N/A | D40: N/A | E40: N/A | F40: N/A | G40: N/A | H40: N/A | I40: N/A | J40: N/A | K40: N/A | L40: N/A | M40: N/A | N40: N/A | O40: N/A | P40: N/A | Q40: N/A | R40: N/A | S40: N/A | T40: N/A | U40: N/A | V40: N/A | W40: N/A | X40: N/A | Y40: N/A | BB40: No | BC40: N/A | BD40: N/A | BE40: N/A | BF40: N/A | BG40: N/A | BH40: N/A | BI40: N/A | BJ40: N/A | BK40: N/A | BL40: N/A | BM40: N/A | BN40: N/A | BO40: N/A | BP40: N/A | BQ40: N/A | BR40: N/A | BS40: N/A | BT40: N/A | BU40: N/A | BV40: N/A | BW40: N/A | BX40: N/A | BY40: N/A
A41: Water point at more than 30 minutes | B41: Yes | C41: 38.4 | D41: 39.7 | E41: 38.7 | F41: 36.9 | G41: 19.4 | H41: 19.4 | I41: 16 | J41: 9.4 | K41: 6.8 | L41: 2.5 | M41: 39.5 | N41: 40.3 | O41: 38.6 | P41: 40.2 | Q41: 37.7 | R41: 22.7 | S41: 13.2 | T41: 20.7 | U41: 53.3 | V41: 3.3 | W41: 35.9 | X41: 25.7 | Y41: 40.6 | BA41: Water point at more than 30 minutes | BB41: Yes | BC41: N/A | BD41: N/A | BE41: N/A | BF41: N/A | BG41: N/A | BH41: N/A | BI41: N/A | BJ41: N/A | BK41: N/A | BL41: N/A | BM41: N/A | BN41: N/A | BO41: N/A | BP41: N/A | BQ41: N/A | BR41: N/A | BS41: N/A | BT41: N/A | BU41: N/A | BV41: N/A | BW41: N/A | BX41: N/A | BY41: N/A
B42: No | C42: 61.6 | D42: 60.3 | E42: 61.3 | F42: 63.1 | G42: 80.6 | H42: 80.6 | I42: 84 | J42: 90.6 | K42: 93.2 | L42: 97.5 | M42: 60.5 | N42: 59.7 | O42: 61.4 | P42: 59.8 | Q42: 62.3 | R42: 77.3 | S42: 86.8 | T42: 79.3 | U42: 46.7 | V42: 96.7 | W42: 64.1 | X42: 74.3 | Y42: 59.4 | BB42: No | BC42: N/A | BD42: N/A | BE42: N/A | BF42: N/A | BG42: N/A | BH42: N/A | BI42: N/A | BJ42: N/A | BK42: N/A | BL42: N/A | BM42: N/A | BN42: N/A | BO42: N/A | BP42: N/A | BQ42: N/A | BR42: N/A | BS42: N/A | BT42: N/A | BU42: N/A | BV42: N/A | BW42: N/A | BX42: N/A | BY42: N/A
A43: Water source available when needed | B43: Yes | C43: N/A | D43: N/A | E43: N/A | F43: N/A | G43: N/A | H43: N/A | I43: N/A | J43: N/A | K43: N/A | L43: N/A | M43: N/A | N43: N/A | O43: N/A | P43: N/A | Q43: N/A | R43: N/A | S43: N/A | T43: N/A | U43: N/A | V43: N/A | W43: N/A | X43: N/A | Y43: N/A | BA43: Water source available when needed | BB43: Yes | BC43: N/A | BD43: N/A | BE43: N/A | BF43: N/A | BG43: N/A | BH43: N/A | BI43: N/A | BJ43: N/A | BK43: N/A | BL43: N/A | BM43: N/A | BN43: N/A | BO43: N/A | BP43: N/A | BQ43: N/A | BR43: N/A | BS43: N/A | BT43: N/A | BU43: N/A | BV43: N/A | BW43: N/A | BX43: N/A | BY43: N/A
B44: No | C44: N/A | D44: N/A | E44: N/A | F44: N/A | G44: N/A | H44: N/A | I44: N/A | J44: N/A | K44: N/A | L44: N/A | M44: N/A | N44: N/A | O44: N/A | P44: N/A | Q44: N/A | R44: N/A | S44: N/A | T44: N/A | U44: N/A | V44: N/A | W44: N/A | X44: N/A | Y44: N/A | BB44: No | BC44: N/A | BD44: N/A | BE44: N/A | BF44: N/A | BG44: N/A | BH44: N/A | BI44: N/A | BJ44: N/A | BK44: N/A | BL44: N/A | BM44: N/A | BN44: N/A | BO44: N/A | BP44: N/A | BQ44: N/A | BR44: N/A | BS44: N/A | BT44: N/A | BU44: N/A | BV44: N/A | BW44: N/A | BX44: N/A | BY44: N/A
A45: Improved water source available when needed | B45: Yes | C45: N/A | D45: N/A | E45: N/A | F45: N/A | G45: N/A | H45: N/A | I45: N/A | J45: N/A | K45: N/A | L45: N/A | M45: N/A | N45: N/A | O45: N/A | P45: N/A | Q45: N/A | R45: N/A | S45: N/A | T45: N/A | U45: N/A | V45: N/A | W45: N/A | X45: N/A | Y45: N/A | BA45: Improved water source available when needed | BB45: Yes | BC45: N/A | BD45: N/A | BE45: N/A | BF45: N/A | BG45: N/A | BH45: N/A | BI45: N/A | BJ45: N/A | BK45: N/A | BL45: N/A | BM45: N/A | BN45: N/A | BO45: N/A | BP45: N/A | BQ45: N/A | BR45: N/A | BS45: N/A | BT45: N/A | BU45: N/A | BV45: N/A | BW45: N/A | BX45: N/A | BY45: N/A
B46: No | C46: N/A | D46: N/A | E46: N/A | F46: N/A | G46: N/A | H46: N/A | I46: N/A | J46: N/A | K46: N/A | L46: N/A | M46: N/A | N46: N/A | O46: N/A | P46: N/A | Q46: N/A | R46: N/A | S46: N/A | T46: N/A | U46: N/A | V46: N/A | W46: N/A | X46: N/A | Y46: N/A | BB46: No | BC46: N/A | BD46: N/A | BE46: N/A | BF46: N/A | BG46: N/A | BH46: N/A | BI46: N/A | BJ46: N/A | BK46: N/A | BL46: N/A | BM46: N/A | BN46: N/A | BO46: N/A | BP46: N/A | BQ46: N/A | BR46: N/A | BS46: N/A | BT46: N/A | BU46: N/A | BV46: N/A | BW46: N/A | BX46: N/A | BY46: N/A
A47: Microbiological quality at point of collection | B47: Not contaminated (No E. coli in 100 mL) | C47: N/A | D47: N/A | E47: N/A | F47: N/A | G47: N/A | H47: N/A | I47: N/A | J47: N/A | K47: N/A | L47: N/A | M47: N/A | N47: N/A | O47: N/A | P47: N/A | Q47: N/A | R47: N/A | S47: N/A | T47: N/A | U47: N/A | V47: N/A | W47: N/A | X47: N/A | Y47: N/A | BA47: Microbiological quality at point of collection | BB47: Not contaminated (No E. coli in 100 mL) | BC47: N/A | BD47: N/A | BE47: N/A | BF47: N/A | BG47: N/A | BH47: N/A | BI47: N/A | BJ47: N/A | BK47: N/A | BL47: N/A | BM47: N/A | BN47: N/A | BO47: N/A | BP47: N/A | BQ47: N/A | BR47: N/A | BS47: N/A | BT47: N/A | BU47: N/A | BV47: N/A | BW47: N/A | BX47: N/A | BY47: N/A
B48: Contaminated (E. coli detected in 100 mL) | C48: N/A | D48: N/A | E48: N/A | F48: N/A | G48: N/A | H48: N/A | I48: N/A | J48: N/A | K48: N/A | L48: N/A | M48: N/A | N48: N/A | O48: N/A | P48: N/A | Q48: N/A | R48: N/A | S48: N/A | T48: N/A | U48: N/A | V48: N/A | W48: N/A | X48: N/A | Y48: N/A | BB48: Contaminated (E. coli detected in 100 mL) | BC48: N/A | BD48: N/A | BE48: N/A | BF48: N/A | BG48: N/A | BH48: N/A | BI48: N/A | BJ48: N/A | BK48: N/A | BL48: N/A | BM48: N/A | BN48: N/A | BO48: N/A | BP48: N/A | BQ48: N/A | BR48: N/A | BS48: N/A | BT48: N/A | BU48: N/A | BV48: N/A | BW48: N/A | BX48: N/A | BY48: N/A
B49: Highly contaminated (>100 CFU/100 mL) | C49: N/A | D49: N/A | E49: N/A | F49: N/A | G49: N/A | H49: N/A | I49: N/A | J49: N/A | K49: N/A | L49: N/A | M49: N/A | N49: N/A | O49: N/A | P49: N/A | Q49: N/A | R49: N/A | S49: N/A | T49: N/A | U49: N/A | V49: N/A | W49: N/A | X49: N/A | Y49: N/A | BB49: Highly contaminated (>100 CFU/100 mL) | BC49: N/A | BD49: N/A | BE49: N/A | BF49: N/A | BG49: N/A | BH49: N/A | BI49: N/A | BJ49: N/A | BK49: N/A | BL49: N/A | BM49: N/A | BN49: N/A | BO49: N/A | BP49: N/A | BQ49: N/A | BR49: N/A | BS49: N/A | BT49: N/A | BU49: N/A | BV49: N/A | BW49: N/A | BX49: N/A | BY49: N/A
A50: Microbiological quality of improved water sources at point of collection | B50: Not contaminated (No E. coli in 100 mL) | C50: N/A | D50: N/A | E50: N/A | F50: N/A | G50: N/A | H50: N/A | I50: N/A | J50: N/A | K50: N/A | L50: N/A | M50: N/A | N50: N/A | O50: N/A | P50: N/A | Q50: N/A | R50: N/A | S50: N/A | T50: N/A | U50: N/A | V50: N/A | W50: N/A | X50: N/A | Y50: N/A | BA50: Microbiological quality of improved water sources at point of collection | BB50: Not contaminated (No E. coli in 100 mL) | BC50: N/A | BD50: N/A | BE50: N/A | BF50: N/A | BG50: N/A | BH50: N/A | BI50: N/A | BJ50: N/A | BK50: N/A | BL50: N/A | BM50: N/A | BN50: N/A | BO50: N/A | BP50: N/A | BQ50: N/A | BR50: N/A | BS50: N/A | BT50: N/A | BU50: N/A | BV50: N/A | BW50: N/A | BX50: N/A | BY50: N/A
B51: Contaminated (E. coli detected in 100 mL) | C51: N/A | D51: N/A | E51: N/A | F51: N/A | G51: N/A | H51: N/A | I51: N/A | J51: N/A | K51: N/A | L51: N/A | M51: N/A | N51: N/A | O51: N/A | P51: N/A | Q51: N/A | R51: N/A | S51: N/A | T51: N/A | U51: N/A | V51: N/A | W51: N/A | X51: N/A | Y51: N/A | BB51: Contaminated (E. coli detected in 100 mL) | BC51: N/A | BD51: N/A | BE51: N/A | BF51: N/A | BG51: N/A | BH51: N/A | BI51: N/A | BJ51: N/A | BK51: N/A | BL51: N/A | BM51: N/A | BN51: N/A | BO51: N/A | BP51: N/A | BQ51: N/A | BR51: N/A | BS51: N/A | BT51: N/A | BU51: N/A | BV51: N/A | BW51: N/A | BX51: N/A | BY51: N/A
B52: Highly contaminated (>100 CFU/100 mL) | C52: N/A | D52: N/A | E52: N/A | F52: N/A | G52: N/A | H52: N/A | I52: N/A | J52: N/A | K52: N/A | L52: N/A | M52: N/A | N52: N/A | O52: N/A | P52: N/A | Q52: N/A | R52: N/A | S52: N/A | T52: N/A | U52: N/A | V52: N/A | W52: N/A | X52: N/A | Y52: N/A | BB52: Highly contaminated (>100 CFU/100 mL) | BC52: N/A | BD52: N/A | BE52: N/A | BF52: N/A | BG52: N/A | BH52: N/A | BI52: N/A | BJ52: N/A | BK52: N/A | BL52: N/A | BM52: N/A | BN52: N/A | BO52: N/A | BP52: N/A | BQ52: N/A | BR52: N/A | BS52: N/A | BT52: N/A | BU52: N/A | BV52: N/A | BW52: N/A | BX52: N/A | BY52: N/A
A53: Microbiological quality of piped on premises at point of collection | B53: Not contaminated (No E. coli in 100 mL) | C53: N/A | D53: N/A | E53: N/A | F53: N/A | G53: N/A | H53: N/A | I53: N/A | J53: N/A | K53: N/A | L53: N/A | M53: N/A | N53: N/A | O53: N/A | P53: N/A | Q53: N/A | R53: N/A | S53: N/A | T53: N/A | U53: N/A | V53: N/A | W53: N/A | X53: N/A | Y53: N/A | BA53: Microbiological quality of piped on premises at point of collection | BB53: Not contaminated (No E. coli in 100 mL) | BC53: N/A | BD53: N/A | BE53: N/A | BF53: N/A | BG53: N/A | BH53: N/A | BI53: N/A | BJ53: N/A | BK53: N/A | BL53: N/A | BM53: N/A | BN53: N/A | BO53: N/A | BP53: N/A | BQ53: N/A | BR53: N/A | BS53: N/A | BT53: N/A | BU53: N/A | BV53: N/A | BW53: N/A | BX53: N/A | BY53: N/A
B54: Contaminated (E. coli detected in 100 mL) | C54: N/A | D54: N/A | E54: N/A | F54: N/A | G54: N/A | H54: N/A | I54: N/A | J54: N/A | K54: N/A | L54: N/A | M54: N/A | N54: N/A | O54: N/A | P54: N/A | Q54: N/A | R54: N/A | S54: N/A | T54: N/A | U54: N/A | V54: N/A | W54: N/A | X54: N/A | Y54: N/A | BB54: Contaminated (E. coli detected in 100 mL) | BC54: N/A | BD54: N/A | BE54: N/A | BF54: N/A | BG54: N/A | BH54: N/A | BI54: N/A | BJ54: N/A | BK54: N/A | BL54: N/A | BM54: N/A | BN54: N/A | BO54: N/A | BP54: N/A | BQ54: N/A | BR54: N/A | BS54: N/A | BT54: N/A | BU54: N/A | BV54: N/A | BW54: N/A | BX54: N/A | BY54: N/A
B55: Highly contaminated (>100 CFU/100 mL) | C55: N/A | D55: N/A | E55: N/A | F55: N/A | G55: N/A | H55: N/A | I55: N/A | J55: N/A | K55: N/A | L55: N/A | M55: N/A | N55: N/A | O55: N/A | P55: N/A | Q55: N/A | R55: N/A | S55: N/A | T55: N/A | U55: N/A | V55: N/A | W55: N/A | X55: N/A | Y55: N/A | BB55: Highly contaminated (>100 CFU/100 mL) | BC55: N/A | BD55: N/A | BE55: N/A | BF55: N/A | BG55: N/A | BH55: N/A | BI55: N/A | BJ55: N/A | BK55: N/A | BL55: N/A | BM55: N/A | BN55: N/A | BO55: N/A | BP55: N/A | BQ55: N/A | BR55: N/A | BS55: N/A | BT55: N/A | BU55: N/A | BV55: N/A | BW55: N/A | BX55: N/A | BY55: N/A
C56: NATIONAL wealth index quintile | H56: URBAN wealth index quintile | M56: RURAL wealth index quintile | R56: SUB-REGIONS: | BA56: Raw numbers of respondents: | BB56: Use of drinking water sources | BC56: NATIONAL wealth index quintile | BH56: URBAN wealth index quintile | BM56: RURAL wealth index quintile | BR56: SUB-REGIONS:
A57: Percentage based on weighted population | C57: Poorest | D57: Poor | E57: Middle | F57: Rich | G57: Richest | H57: Poorest | I57: Poor | J57: Middle | K57: Rich | L57: Richest | M57: Poorest | N57: Poor | O57: Middle | P57: Rich | Q57: Richest | R57: Agadez | S57: Diffa | T57: Dosso | U57: Maradi | V57: Niamey | W57: Tahoua | X57: Tillaberi | Y57: Zinder | BA57: Water data, raw numbers (weighted) | BC57: Poorest | BD57: Poor | BE57: Middle | BF57: Rich | BG57: Richest | BH57: Poorest | BI57: Poor | BJ57: Middle | BK57: Rich | BL57: Richest | BM57: Poorest | BN57: Poor | BO57: Middle | BP57: Rich | BQ57: Richest | BR57: Agadez | BS57: Diffa | BT57: Dosso | BU57: Maradi | BV57: Niamey | BW57: Tahoua | BX57: Tillaberi | BY57: Zinder
A58: Source of drinking water | B58: Piped into dwelling | C58: 0.1691185645 | D58: 0.1819095147 | E58: 0.1299270513 | F58: 0.9159436204 | G58: 13.13038171 | H58: 3.714934646 | I58: 6.125733006 | J58: 10.15792864 | K58: 25.09964779 | L58: 35.56479401 | M58: 0.02455873222 | N58: 0.09290412182 | O58: 0.0726148312 | P58: 0.2947777363 | Q58: 1.075937048 | R58: 6.544406827 | S58: 4.770396153 | T58: 0 | U58: 1.236722573 | V58: 24.7384726 | W58: 1.783899905 | X58: 0.7573124959 | Y58: 1.144055619
B59: Piped to yard/plot | C59: 0.2521321961 | D59: 0.4875419243 | E59: 0.6935583357 | F59: 1.876803602 | G59: 21.02373372 | H59: 7.207800714 | I59: 15.28997887 | J59: 24.25526152 | K59: 32.37285856 | L59: 46.7262813 | M59: 0.0299938644 | N59: 0.3117869507 | O59: 0.06069547198 | P59: 0.8585220907 | Q59: 3.171907145 | R59: 25.40472653 | S59: 2.239541101 | T59: 3.567993779 | U59: 4.649227938 | V59: 23.98834569 | W59: 2.860485328 | X59: 3.054788704 | Y59: 1.255470219
B60: Public tap/standpipe | C60: 21.38980613 | D60: 20.6847001 | E60: 19.22681451 | F60: 23.16521273 | G60: 36.79091969 | H60: 75.12932007 | I60: 73.08478724 | J60: 61.0766954 | K60: 39.87773704 | L60: 14.77312431 | M60: 18.29178462 | N60: 19.4044085 | O60: 18.05796711 | P60: 17.18846499 | Q60: 20.35251439 | R60: 23.21477375 | S60: 32.80857905 | T60: 15.35784784 | U60: 30.14158036 | V60: 46.28924214 | W60: 25.20570964 | X60: 12.59879899 | Y60: 20.39453381
B61: Tube well or borehole | C61: 16.77605958 | D61: 17.86854391 | E61: 15.66680755 | F61: 14.04911328 | G61: 4.67128173 | H61: 3.818932327 | I61: 2.613612005 | J61: 1.603761775 | K61: 0.9804553599 | L61: 0.3642671209 | M61: 16.9529948 | N61: 17.99869987 | O61: 17.46175567 | P61: 14.78264912 | Q61: 13.5275166 | R61: 6.458668134 | S61: 4.557632522 | T61: 10.95371699 | U61: 8.889888766 | V61: 1.515997164 | W61: 5.314059484 | X61: 22.08365454 | Y61: 31.19089305
B62: Protected well | C62: 23.77013766 | D62: 23.24953029 | E62: 25.36980356 | F62: 21.29376072 | G62: 9.093911076 | H62: 2.339596855 | I62: 0.3999225992 | J62: 1.202440011 | K62: 0 | L62: 0.4819987792 | M62: 25.27263995 | N62: 23.89200771 | O62: 25.41903938 | P62: 24.9912709 | Q62: 22.48181582 | R62: 12.51136524 | S62: 30.20989252 | T62: 14.76412342 | U62: 27.85599028 | V62: 0.5370839834 | W62: 21.04659117 | X62: 34.43538782 | Y62: 13.4751683
B63: Unprotected well | C63: 36.12471117 | D63: 35.4089535 | E63: 36.90566246 | F63: 36.51932167 | G63: 13.35233573 | H63: 5.618156944 | I63: 1.28598805 | J63: 0.6240108756 | K63: 0.2288309735 | L63: 0.8860289717 | M63: 38.03193406 | N63: 36.00744798 | O63: 36.90577558 | P63: 39.98910488 | Q63: 36.71302553 | R63: 23.44028941 | S63: 25.22439448 | T63: 55.10985538 | U63: 26.5898874 | V63: 0.8509757856 | W63: 42.16354285 | X63: 19.33704054 | Y63: 30.91705116
B64: Protected spring | C64: 0 | D64: 0.05997105006 | E64: 0.1260771024 | F64: 0.1144646578 | G64: 0 | H64: 0 | I64: 0 | J64: 0 | K64: 0 | L64: 0 | M64: 0 | N64: 0.0483946832 | O64: 0.1104456922 | P64: 0.2006149874 | Q64: 0 | R64: 0.2015561575 | S64: 0 | T64: 0.06674107765 | U64: 0 | V64: 0 | W64: 0.1158726454 | X64: 0.1090738075 | Y64: 0.04955865996
B65: Unprotected spring | C65: 0.3155956584 | D65: 0.5070807292 | E65: 0.6076880523 | F65: 0.811316705 | G65: 0.164260708 | H65: 0.1402371687 | I65: 0 | J65: 0 | K65: 0 | L65: 0 | M65: 0.2855697815 | N65: 0.6071813081 | O65: 0.5446524039 | P65: 0.5611251474 | Q65: 0.851235074 | R65: 0.1155088064 | S65: 0 | T65: 0.1180011239 | U65: 0.2749902271 | V65: 0 | W65: 0.8339421742 | X65: 1.117049938 | Y65: 0.4449989486
B66: River/dam/lake/ponds/stream/canal/irrigation channel | C66: 1.045429436 | D66: 1.389586152 | E66: 1.145895003 | F66: 1.065709045 | G66: 1.011303918 | H66: 0.183122416 | I66: 0.2285068804 | J66: 0 | K66: 0 | L66: 0 | M66: 1.047566937 | N66: 1.55942293 | O66: 1.289338328 | P66: 1.13347016 | Q66: 1.656087616 | R66: 0 | S66: 0.1895641677 | T66: 0.06172040175 | U66: 0.0501942334 | V66: 0 | W66: 0.6758968003 | X66: 6.434827576 | Y66: 1.021674864
B67: Rainwater | C67: 0.03249809756 | D67: 0.06501996971 | E67: 0.06497205993 | F67: 0.003388296372 | G67: 0 | H67: 0 | I67: 0 | J67: 0 | K67: 0 | L67: 0 | M67: 0.03888265767 | N67: 0.07774594651 | O67: 0.07771553196 | P67: 0 | Q67: 0.004049830619 | R67: 0 | S67: 0 | T67: 0 | U67: 0.1483142601 | V67: 0 | W67: 0 | X67: 0 | Y67: 0
B68: Tanker truck | C68: 0.01076518337 | D68: 0 | E68: 0 | F68: 0 | G68: 0.002162027594 | H68: 0 | I68: 0 | J68: 0 | K68: 0 | L68: 0 | M68: 0.01288010595 | N68: 0 | O68: 0 | P68: 0 | Q68: 0.002584893 | R68: 0.02235365732 | S68: 0 | T68: 0 | U68: 0 | V68: 0 | W68: 0 | X68: 0.01846010343 | Y68: 0
B69: Cart with small tank | C69: 0 | D69: 0 | E69: 0 | F69: 0 | G69: 0.07223071667 | H69: 0 | I69: 0 | J69: 0.4410036056 | K69: 0 | L69: 0 | M69: 0 | N69: 0 | O69: 0 | P69: 0 | Q69: 0 | R69: 0 | S69: 0 | T69: 0 | U69: 0 | V69: 0.2166432007 | W69: 0 | X69: 0 | Y69: 0
B70: Water vendor | C70: 0.006067019928 | D70: 0.006069239148 | E70: 0 | F70: 0.02556166495 | G70: 0.4559347175 | H70: 0.2299464616 | I70: 0.5972306201 | J70: 0.5055785228 | K70: 0.8080970636 | L70: 0.8710800084 | M70: 0 | N70: 0 | O70: 0 | P70: 0 | Q70: 0 | R70: 0.9353310686 | S70: 0 | T70: 0 | U70: 0 | V70: 1.209209066 | W70: 0 | X70: 0 | Y70: 0
B71: Bottled water | C71: 0 | D71: 0 | E71: 0 | F71: 0 | G71: 0.01057737923 | H71: 0 | I71: 0 | J71: 0 | K71: 0 | L71: 0.06454341555 | M71: 0 | N71: 0 | O71: 0 | P71: 0 | Q71: 0 | R71: 0 | S71: 0 | T71: 0 | U71: 0 | V71: 0.03172496962 | W71: 0 | X71: 0 | Y71: 0
B72: Other | C72: 0.1076793071 | D72: 0.09109361675 | E72: 0.06279430849 | F72: 0.1594040128 | G72: 0.2209668758 | H72: 1.617952394 | I72: 0.3742407294 | J72: 0.1333196472 | K72: 0.6323732098 | L72: 0.2678820855 | M72: 0.01119449043 | N72: 0 | O72: 0 | P72: 0 | Q72: 0.1633260579 | R72: 1.151020411 | S72: 0 | T72: 0 | U72: 0.1632039641 | V72: 0.6223054029 | W72: 0 | X72: 0.05360548277 | Y72: 0.1065953688
A108: =A1026 -> Niger
A109: =A1034 -> 2012
A110: Use of sanitation facilities
A111: by wealth quintile and sub-national region
A112: Notes:
A113: WHO/UNICEF JMP customised wealth index excludes water,
A114: sanitation and hygiene assets.
A115: Survey used for analysis: | B115: =A1025 -> DHS12
A116: =B1030 -> 
A117: =B1029 -> 
A120: Use of sanitation facilities | C120: NATIONAL wealth index quintile | H120: URBAN wealth index quintile | M120: RURAL wealth index quintile | R120: SUB-REGIONS: | BA120: Raw numbers of respondents: | BB120: Use of sanitation facilities | BC120: NATIONAL wealth index quintile | BH120: URBAN wealth index quintile | BM120: RURAL wealth index quintile | BR120: SUB-REGIONS:
A121: Weighted percentage (used in graphs) | C121: Poorest | D121: Poor | E121: Middle | F121: Rich | G121: Richest | H121: Poorest | I121: Poor | J121: Middle | K121: Rich | L121: Richest | M121: Poorest | N121: Poor | O121: Middle | P121: Rich | Q121: Richest | R121: Agadez | S121: Diffa | T121: Dosso | U121: Maradi | V121: Niamey | W121: Tahoua | X121: Tillaberi | Y121: Zinder | BA121: Sanitation data, raw numbers (weighted) | BC121: Poorest | BD121: Poor | BE121: Middle | BF121: Rich | BG121: Richest | BH121: Poorest | BI121: Poor | BJ121: Middle | BK121: Rich | BL121: Richest | BM121: Poorest | BN121: Poor | BO121: Middle | BP121: Rich | BQ121: Richest | BR121: Agadez | BS121: Diffa | BT121: Dosso | BU121: Maradi | BV121: Niamey | BW121: Tahoua | BX121: Tillaberi | BY121: Zinder
A122: Sanitation | B122: Improved | C122: 5.110032909 | D122: 5.841083692 | E122: 9.374892595 | F122: 14.64938451 | G122: 64.72704218 | H122: 43.85751917 | I122: 72.27962423 | J122: 83.80710821 | K122: 92.88268297 | L122: 96.809767 | M122: 3.941004931 | N122: 4.633405269 | O122: 6.124999964 | P122: 9.648722586 | Q122: 18.52109266 | R122: 48.57849013 | S122: 22.84360526 | T122: 12.62316261 | U122: 19.81952301 | V122: 84.42526817 | W122: 12.19945406 | X122: 7.491838889 | Y122: 15.60666134 | BA122: Sanitation | BB122: Improved | BC122: 652.114535 | BD122: 745.134691 | BE122: 1196.817089 | BF122: 1868.592973 | BG122: 8258.610109 | BH122: 917.213593 | BI122: 1510.289307 | BJ122: 1751.385868 | BK122: 1944.169202 | BL122: 2024.261001 | BM122: 420.348167 | BN122: 494.322809 | BO122: 653.711889 | BP122: 1029.023643 | BQ122: 1976.543918 | BR122: 599.484361 | BS122: 431.283473 | BT122: 976.524121 | BU122: 2828.766707 | BV122: 3591.455678 | BW122: 1694.560869 | BX122: 557.539851 | BY122: 2041.654337
B123: Not Improved | C123: 94.88996709 | D123: 94.15891631 | E123: 90.62510741 | F123: 85.35061549 | G123: 35.27295782 | H123: 56.14248083 | I123: 27.72037577 | J123: 16.19289179 | K123: 7.117317027 | L123: 3.190233001 | M123: 96.05899507 | N123: 95.36659473 | O123: 93.87500004 | P123: 90.35127741 | Q123: 81.47890734 | R123: 51.42150987 | S123: 77.15639474 | T123: 87.37683739 | U123: 80.18047699 | V123: 15.57473183 | W123: 87.80054594 | X123: 92.50816111 | Y123: 84.39333866 | BB123: Not Improved | BC123: 12109.34017 | BD123: 12011.65378 | BE123: 11569.37812 | BF123: 10886.84376 | BG123: 4500.523989 | BH123: 1174.134961 | BI123: 579.219767 | BJ123: 338.396139 | BK123: 148.975763 | BL123: 66.706743 | BM123: 10245.66658 | BN123: 10174.34916 | BO123: 10019.13534 | BP123: 9635.845554 | BQ123: 8695.309812 | BR123: 634.568734 | BS123: 1456.699917 | BT123: 6759.446262 | BU123: 11443.86087 | BV123: 662.549972 | BW123: 12195.90391 | BX123: 6884.422787 | BY123: 11040.28736
A124: Sanitation ladder | B124: Basic | C124: =C122*C129/100 -> 2.679985564 | D124: =D122*D129/100 -> 2.908712093 | E124: =E122*E129/100 -> 4.249237724 | F124: 8.832775834 | G124: 36.03161336 | H124: 18.82729177 | I124: 33.76612941 | J124: 37.06605946 | K124: 44.97006086 | L124: 67.29771541 | M124: 2.096895679 | N124: 2.406152835 | O124: 2.76924243 | P124: 5.868559083 | Q124: 12.68580969 | R124: 30.97240985 | S124: 21.81910673 | T124: 6.244222882 | U124: 10.03388754 | V124: 34.06338243 | W124: 7.769491654 | X124: 3.433993523 | Y124: 11.40266052 | BA124: Sanitation ladder | BB124: Basic | BC124: 336.958527 | BD124: 371.058249 | BE124: 525.751121 | BF124: 1111.232639 | BG124: 4585.207192 | BH124: 389.475297 | BI124: 705.546338 | BJ124: 767.964494 | BK124: 940.456354 | BL124: 1403.669095 | BM124: 218.535303 | BN124: 256.704553 | BO124: 278.884045 | BP124: 625.87415 | BQ124: 1343.098099 | BR124: 380.063384 | BS124: 411.941111 | BT124: 474.775157 | BU124: 1423.301072 | BV124: 1443.827977 | BW124: 1068.736944 | BX124: 255.556515 | BY124: 1472.005568
B125: Limited | C125: =C122*C128/100 -> 2.430047344 | D125: =D122*D128/100 -> 2.932371598 | E125: =E122*E128/100 -> 5.125654871 | F125: 5.816608677 | G125: 28.69542881 | H125: 25.0302274 | I125: 38.51349482 | J125: 46.74104875 | K125: 47.91262211 | L125: 29.51205159 | M125: 1.844109251 | N125: 2.227252434 | O125: 3.355757534 | P125: 3.780163503 | Q125: 5.835282972 | R125: 17.60608028 | S125: 1.024498526 | T125: 6.378939729 | U125: 9.785635467 | V125: 50.36188574 | W125: 4.429962401 | X125: 4.057845365 | Y125: 4.204000824 | BB125: Limited | BC125: 305.533427 | BD125: 374.076442 | BE125: 634.188758 | BF125: 731.775099 | BG125: 3651.640165 | BH125: 517.793816 | BI125: 804.742969 | BJ125: 968.41872 | BK125: 1001.993972 | BL125: 615.550684 | BM125: 192.190283 | BN125: 237.618256 | BO125: 337.950634 | BP125: 403.149493 | BQ125: 617.805064 | BR125: 216.044747 | BS125: 19.342362 | BT125: 485.018259 | BU125: 1388.086661 | BV125: 2134.664687 | BW125: 609.366055 | BX125: 301.983336 | BY125: 542.707784
B126: Unimproved | C126: =100-C124-C125-C127 -> 6.845848413 | D126: =100-D124-D125-D127 -> 9.923236728 | E126: =100-E124-E125-E127 -> 7.912372408 | F126: 8.33064065 | G126: 7.331033039 | H126: 14.24421716 | I126: 9.796963772 | J126: 11.73771799 | K126: 6.406056033 | L126: 3.124422964 | M126: 6.320969124 | N126: 9.26002018 | O126: 7.277151314 | P126: 9.450973569 | Q126: 7.133505529 | R126: 3.612648602 | S126: 10.59951348 | T126: 6.451820476 | U126: 6.606450008 | V126: 9.507851157 | W126: 8.789050641 | X126: 10.68664293 | Y126: 7.970747528 | BB126: Unimproved | BC126: 882.101961 | BD126: 1265.886319 | BE126: 1040.611056 | BF126: 1082.315339 | BG126: 941.457268 | BH126: 302.062794 | BI126: 204.708447 | BJ126: 245.961113 | BK126: 134.100265 | BL126: 65.333994 | BM126: 682.830613 | BN126: 987.921177 | BO126: 808.614113 | BP126: 1007.933969 | BQ126: 772.905458 | BR126: 46.196139 | BS126: 200.117054 | BT126: 512.650247 | BU126: 955.700417 | BV126: 405.250976 | BW126: 1233.843593 | BX126: 795.295974 | BY126: 1063.317543
B127: Open defecation | C127: 88.04411868 | D127: 84.23567958 | E127: 82.712735 | F127: 77.01997484 | G127: 27.94192478 | H127: 41.89826367 | I127: 17.92341199 | J127: 4.455173793 | K127: 0.7112609945 | L127: 0.06581003624 | M127: 89.73802595 | N127: 86.10657455 | O127: 86.59784872 | P127: 80.90030384 | Q127: 74.34540181 | R127: 47.80886126 | S127: 66.55688126 | T127: 80.92501691 | U127: 73.57402699 | V127: 6.066880673 | W127: 79.0114953 | X127: 81.82151818 | Y127: 76.42259113 | BB127: Open defecation | BC127: 11227.23821 | BD127: 10745.76746 | BE127: 10528.76706 | BF127: 9804.52842 | BG127: 3559.066721 | BH127: 872.072167 | BI127: 374.51132 | BJ127: 92.435026 | BK127: 14.875498 | BL127: 1.372749 | BM127: 9562.835965 | BN127: 9186.42798 | BO127: 9210.521228 | BP127: 8627.911585 | BQ127: 7922.404354 | BR127: 588.372595 | BS127: 1256.582863 | BT127: 6246.796015 | BU127: 10488.16046 | BV127: 257.298996 | BW127: 10962.06032 | BX127: 6089.126813 | BY127: 9976.969814
A128: Shared among Improved Sanitation | B128: Yes | C128: 47.5544363 | D128: 50.20252667 | E128: 54.67427834 | F128: 39.70548164 | G128: 44.33298332 | H128: 57.07169004 | I128: 53.28402746 | J128: 55.77217703 | K128: 51.58402038 | L128: 30.48458075 | M128: 46.79286841 | N128: 48.0694501 | O128: 54.78787842 | P128: 39.17786493 | Q128: 31.50614858 | R128: 36.24254322 | S128: 4.484837285 | T128: 50.53360972 | U128: 49.37371835 | V128: 59.65262158 | W128: 36.3127922 | X128: 54.16354283 | Y128: 26.93722079 | BA128: Shared among improved sanitation facilities | BB128: Yes | BC128: N/A | BD128: N/A | BE128: N/A | BF128: N/A | BG128: N/A | BH128: N/A | BI128: N/A | BJ128: N/A | BK128: N/A | BL128: N/A | BM128: N/A | BN128: N/A | BO128: N/A | BP128: N/A | BQ128: N/A | BR128: N/A | BS128: N/A | BT128: N/A | BU128: N/A | BV128: N/A | BW128: N/A | BX128: N/A | BY128: N/A
B129: No | C129: 52.4455637 | D129: 49.79747333 | E129: 45.32572166 | F129: 60.29451836 | G129: 55.66701668 | H129: 42.92830996 | I129: 46.71597254 | J129: 44.22782297 | K129: 48.41597962 | L129: 69.51541925 | M129: 53.20713159 | N129: 51.9305499 | O129: 45.21212158 | P129: 60.82213507 | Q129: 68.49385142 | R129: 63.75745678 | S129: 95.51516272 | T129: 49.46639028 | U129: 50.62628165 | V129: 40.34737842 | W129: 63.6872078 | X129: 45.83645717 | Y129: 73.06277921 | BB129: No | BC129: N/A | BD129: N/A | BE129: N/A | BF129: N/A | BG129: N/A | BH129: N/A | BI129: N/A | BJ129: N/A | BK129: N/A | BL129: N/A | BM129: N/A | BN129: N/A | BO129: N/A | BP129: N/A | BQ129: N/A | BR129: N/A | BS129: N/A | BT129: N/A | BU129: N/A | BV129: N/A | BW129: N/A | BX129: N/A | BY129: N/A
A130: Manually calculated ratios | B130: Improved latrines | C130: =(C155+C156)/(C155+C156+C157)*100 -> 41.48099748 | D130: =(D155+D156)/(D155+D156+D157)*100 -> 36.4331495 | E130: 53.70571663 | F130: 64.03862287 | G130: 88.64019603 | H130: 75.52178785 | I130: 88.1926658 | J130: 87.02288764 | K130: 92.59347904 | L130: 95.45265207 | M130: 37.94514967 | N130: 33.72990892 | O130: 44.83567195 | P130: 50.68499547 | Q130: 72.30247317 | R130: 90.94510937 | S130: 56.74831388 | T130: 80.15048111 | U130: 73.74938065 | V130: 88.36247708 | W130: 52.07283416 | X130: 38.48483893 | Y130: 65.32739354
B131: Other
B132: Other
C133: NATIONAL wealth index quintile | H133: URBAN wealth index quintile | M133: RURAL wealth index quintile | R133: SUB-REGIONS: | BA133: Raw numbers of respondents: | BB133: Use of sanitation facilities | BC133: NATIONAL wealth index quintile | BH133: URBAN wealth index quintile | BM133: RURAL wealth index quintile | BR133: SUB-REGIONS:
A134: Percentage based on weighted population | C134: Poorest | D134: Poor | E134: Middle | F134: Rich | G134: Richest | H134: Poorest | I134: Poor | J134: Middle | K134: Rich | L134: Richest | M134: Poorest | N134: Poor | O134: Middle | P134: Rich | Q134: Richest | R134: Agadez | S134: Diffa | T134: Dosso | U134: Maradi | V134: Niamey | W134: Tahoua | X134: Tillaberi | Y134: Zinder | BA134: Sanitation data, raw numbers (weighted) | BC134: Poorest | BD134: Poor | BE134: Middle | BF134: Rich | BG134: Richest | BH134: Poorest | BI134: Poor | BJ134: Middle | BK134: Rich | BL134: Richest | BM134: Poorest | BN134: Poor | BO134: Middle | BP134: Rich | BQ134: Richest | BR134: Agadez | BS134: Diffa | BT134: Dosso | BU134: Maradi | BV134: Niamey | BW134: Tahoua | BX134: Tillaberi | BY134: Zinder
A135: Sanitation type | B135: Sewer connection | C135: 0.02968228222 | D135: 0 | E135: 0.1348684531 | F135: 0.1222215697 | G135: 2.342090519 | H135: 0.4354039877 | I135: 0.3214112388 | J135: 0.972012532 | K135: 1.197007012 | L135: 10.91572721 | M135: 0.03551364864 | N135: 0 | O135: 0.03525057484 | P135: 0.1869634745 | Q135: 0.1733736562 | R135: 0.7378653347 | S135: 0.3264915906 | T135: 0.04225440169 | U135: 0.1733523267 | V135: 5.852137197 | W135: 0.01828203764 | X135: 0.1264664371 | Y135: 0.2388334831 | BA135: Sanitation type | BB135: Sewer connection | BC135: N/A | BD135: N/A | BE135: N/A | BF135: N/A | BG135: N/A | BH135: N/A | BI135: N/A | BJ135: N/A | BK135: N/A | BL135: N/A | BM135: N/A | BN135: N/A | BO135: N/A | BP135: N/A | BQ135: N/A | BR135: N/A | BS135: N/A | BT135: N/A | BU135: N/A | BV135: N/A | BW135: N/A | BX135: N/A | BY135: N/A
B136: Septic tank connection | C136: 0.4095899975 | D136: 0.4034683738 | E136: 0.5492575029 | F136: 0.8993531732 | G136: 9.111148767 | H136: 4.753938162 | I136: 8.226808878 | J136: 9.38488155 | K136: 13.75534938 | L136: 20.3064472 | M136: 0.1204741068 | N136: 0.09873645974 | O136: 0.3709358445 | P136: 0.3843149151 | Q136: 1.566300787 | R136: 14.01145791 | S136: 8.610036924 | T136: 0.6029442292 | U136: 1.073869791 | V136: 11.17451718 | W136: 2.617755005 | X136: 0.7877993595 | Y136: 0.1382827215 | BB136: Septic tank connection | BC136: N/A | BD136: N/A | BE136: N/A | BF136: N/A | BG136: N/A | BH136: N/A | BI136: N/A | BJ136: N/A | BK136: N/A | BL136: N/A | BM136: N/A | BN136: N/A | BO136: N/A | BP136: N/A | BQ136: N/A | BR136: N/A | BS136: N/A | BT136: N/A | BU136: N/A | BV136: N/A | BW136: N/A | BX136: N/A | BY136: N/A
B137: Improved latrines | C137: 4.670760629 | D137: 5.437615318 | E137: 8.690766639 | F137: 13.62780977 | G137: 53.27380289 | H137: 38.66817702 | I137: 63.73140412 | J137: 73.45021413 | K137: 77.93032658 | L137: 65.58759258 | M137: 3.785017175 | N137: 4.534668809 | O137: 5.718813545 | P137: 9.077444197 | Q137: 16.78141822 | R137: 33.82916689 | S137: 13.90707675 | T137: 11.97796398 | U137: 18.57230089 | V137: 67.3986138 | W137: 9.563417013 | X137: 6.577573092 | Y137: 15.22954514 | BB137: Improved latrines | BC137: N/A | BD137: N/A | BE137: N/A | BF137: N/A | BG137: N/A | BH137: N/A | BI137: N/A | BJ137: N/A | BK137: N/A | BL137: N/A | BM137: N/A | BN137: N/A | BO137: N/A | BP137: N/A | BQ137: N/A | BR137: N/A | BS137: N/A | BT137: N/A | BU137: N/A | BV137: N/A | BW137: N/A | BX137: N/A | BY137: N/A
B138: Unimproved facilities | C138: 6.912236743 | D138: 9.923236728 | E138: 8.151301458 | F138: 8.48512961 | G138: 7.378692478 | H138: 14.44344576 | I138: 9.796963772 | J138: 11.76970192 | K138: 6.406640115 | L138: 3.124581629 | M138: 6.401928268 | N138: 9.26002018 | O138: 7.576367351 | P138: 9.450973569 | Q138: 7.24246675 | R138: 3.743448251 | S138: 10.59951348 | T138: 6.626838284 | U138: 6.696036953 | V138: 9.526338452 | W138: 8.882666005 | X138: 10.68664293 | Y138: 8.128132412 | BB138: Unimproved facilities | BC138: N/A | BD138: N/A | BE138: N/A | BF138: N/A | BG138: N/A | BH138: N/A | BI138: N/A | BJ138: N/A | BK138: N/A | BL138: N/A | BM138: N/A | BN138: N/A | BO138: N/A | BP138: N/A | BQ138: N/A | BR138: N/A | BS138: N/A | BT138: N/A | BU138: N/A | BV138: N/A | BW138: N/A | BX138: N/A | BY138: N/A
B139: Open defecation | C139: 87.97773035 | D139: 84.23567958 | E139: 82.47380595 | F139: 76.86548588 | G139: 27.89426534 | H139: 41.69903507 | I139: 17.92341199 | J139: 4.423189868 | K139: 0.710676912 | L139: 0.06565137143 | M139: 89.6570668 | N139: 86.10657455 | O139: 86.29863268 | P139: 80.90030384 | Q139: 74.23644059 | R139: 47.67806162 | S139: 66.55688126 | T139: 80.7499991 | U139: 73.48444004 | V139: 6.048393377 | W139: 78.91787994 | X139: 81.82151818 | Y139: 76.26520625 | BB139: Open defecation | BC139: N/A | BD139: N/A | BE139: N/A | BF139: N/A | BG139: N/A | BH139: N/A | BI139: N/A | BJ139: N/A | BK139: N/A | BL139: N/A | BM139: N/A | BN139: N/A | BO139: N/A | BP139: N/A | BQ139: N/A | BR139: N/A | BS139: N/A | BT139: N/A | BU139: N/A | BV139: N/A | BW139: N/A | BX139: N/A | BY139: N/A
A140: Septic tank emptying practices | B140: Not emptied/treated and disposed in situ | C140: N/A | D140: N/A | E140: N/A | F140: N/A | G140: N/A | H140: N/A | I140: N/A | J140: N/A | K140: N/A | L140: N/A | M140: N/A | N140: N/A | O140: N/A | P140: N/A | Q140: N/A | R140: N/A | S140: N/A | T140: N/A | U140: N/A | V140: N/A | W140: N/A | X140: N/A | Y140: N/A | BA140: Septic tank emptying practices | BB140: Not emptied/treated and disposed in situ | BC140: N/A | BD140: N/A | BE140: N/A | BF140: N/A | BG140: N/A | BH140: N/A | BI140: N/A | BJ140: N/A | BK140: N/A | BL140: N/A | BM140: N/A | BN140: N/A | BO140: N/A | BP140: N/A | BQ140: N/A | BR140: N/A | BS140: N/A | BT140: N/A | BU140: N/A | BV140: N/A | BW140: N/A | BX140: N/A | BY140: N/A
B141: Emptied and buried on site | C141: N/A | D141: N/A | E141: N/A | F141: N/A | G141: N/A | H141: N/A | I141: N/A | J141: N/A | K141: N/A | L141: N/A | M141: N/A | N141: N/A | O141: N/A | P141: N/A | Q141: N/A | R141: N/A | S141: N/A | T141: N/A | U141: N/A | V141: N/A | W141: N/A | X141: N/A | Y141: N/A | BB141: Emptied and buried on site | BC141: N/A | BD141: N/A | BE141: N/A | BF141: N/A | BG141: N/A | BH141: N/A | BI141: N/A | BJ141: N/A | BK141: N/A | BL141: N/A | BM141: N/A | BN141: N/A | BO141: N/A | BP141: N/A | BQ141: N/A | BR141: N/A | BS141: N/A | BT141: N/A | BU141: N/A | BV141: N/A | BW141: N/A | BX141: N/A | BY141: N/A
B142: Emptied and discharged locally | C142: N/A | D142: N/A | E142: N/A | F142: N/A | G142: N/A | H142: N/A | I142: N/A | J142: N/A | K142: N/A | L142: N/A | M142: N/A | N142: N/A | O142: N/A | P142: N/A | Q142: N/A | R142: N/A | S142: N/A | T142: N/A | U142: N/A | V142: N/A | W142: N/A | X142: N/A | Y142: N/A | BB142: Emptied and discharged locally | BC142: N/A | BD142: N/A | BE142: N/A | BF142: N/A | BG142: N/A | BH142: N/A | BI142: N/A | BJ142: N/A | BK142: N/A | BL142: N/A | BM142: N/A | BN142: N/A | BO142: N/A | BP142: N/A | BQ142: N/A | BR142: N/A | BS142: N/A | BT142: N/A | BU142: N/A | BV142: N/A | BW142: N/A | BX142: N/A | BY142: N/A
B143: Emptied and removed offsite | C143: N/A | D143: N/A | E143: N/A | F143: N/A | G143: N/A | H143: N/A | I143: N/A | J143: N/A | K143: N/A | L143: N/A | M143: N/A | N143: N/A | O143: N/A | P143: N/A | Q143: N/A | R143: N/A | S143: N/A | T143: N/A | U143: N/A | V143: N/A | W143: N/A | X143: N/A | Y143: N/A | BB143: Emptied and removed offsite | BC143: N/A | BD143: N/A | BE143: N/A | BF143: N/A | BG143: N/A | BH143: N/A | BI143: N/A | BJ143: N/A | BK143: N/A | BL143: N/A | BM143: N/A | BN143: N/A | BO143: N/A | BP143: N/A | BQ143: N/A | BR143: N/A | BS143: N/A | BT143: N/A | BU143: N/A | BV143: N/A | BW143: N/A | BX143: N/A | BY143: N/A
A144: Latrine emptying practices | B144: Not emptied/treated and disposed in situ | C144: N/A | D144: N/A | E144: N/A | F144: N/A | G144: N/A | H144: N/A | I144: N/A | J144: N/A | K144: N/A | L144: N/A | M144: N/A | N144: N/A | O144: N/A | P144: N/A | Q144: N/A | R144: N/A | S144: N/A | T144: N/A | U144: N/A | V144: N/A | W144: N/A | X144: N/A | Y144: N/A | BA144: Latrine emptying practices | BB144: Not emptied/treated and disposed in situ | BC144: N/A | BD144: N/A | BE144: N/A | BF144: N/A | BG144: N/A | BH144: N/A | BI144: N/A | BJ144: N/A | BK144: N/A | BL144: N/A | BM144: N/A | BN144: N/A | BO144: N/A | BP144: N/A | BQ144: N/A | BR144: N/A | BS144: N/A | BT144: N/A | BU144: N/A | BV144: N/A | BW144: N/A | BX144: N/A | BY144: N/A
B145: Emptied and buried on site | C145: N/A | D145: N/A | E145: N/A | F145: N/A | G145: N/A | H145: N/A | I145: N/A | J145: N/A | K145: N/A | L145: N/A | M145: N/A | N145: N/A | O145: N/A | P145: N/A | Q145: N/A | R145: N/A | S145: N/A | T145: N/A | U145: N/A | V145: N/A | W145: N/A | X145: N/A | Y145: N/A | BB145: Emptied and buried on site | BC145: N/A | BD145: N/A | BE145: N/A | BF145: N/A | BG145: N/A | BH145: N/A | BI145: N/A | BJ145: N/A | BK145: N/A | BL145: N/A | BM145: N/A | BN145: N/A | BO145: N/A | BP145: N/A | BQ145: N/A | BR145: N/A | BS145: N/A | BT145: N/A | BU145: N/A | BV145: N/A | BW145: N/A | BX145: N/A | BY145: N/A
B146: Emptied and discharged locally | C146: N/A | D146: N/A | E146: N/A | F146: N/A | G146: N/A | H146: N/A | I146: N/A | J146: N/A | K146: N/A | L146: N/A | M146: N/A | N146: N/A | O146: N/A | P146: N/A | Q146: N/A | R146: N/A | S146: N/A | T146: N/A | U146: N/A | V146: N/A | W146: N/A | X146: N/A | Y146: N/A | BB146: Emptied and discharged locally | BC146: N/A | BD146: N/A | BE146: N/A | BF146: N/A | BG146: N/A | BH146: N/A | BI146: N/A | BJ146: N/A | BK146: N/A | BL146: N/A | BM146: N/A | BN146: N/A | BO146: N/A | BP146: N/A | BQ146: N/A | BR146: N/A | BS146: N/A | BT146: N/A | BU146: N/A | BV146: N/A | BW146: N/A | BX146: N/A | BY146: N/A
B147: Emptied and removed offsite | C147: N/A | D147: N/A | E147: N/A | F147: N/A | G147: N/A | H147: N/A | I147: N/A | J147: N/A | K147: N/A | L147: N/A | M147: N/A | N147: N/A | O147: N/A | P147: N/A | Q147: N/A | R147: N/A | S147: N/A | T147: N/A | U147: N/A | V147: N/A | W147: N/A | X147: N/A | Y147: N/A | BB147: Emptied and removed offsite | BC147: N/A | BD147: N/A | BE147: N/A | BF147: N/A | BG147: N/A | BH147: N/A | BI147: N/A | BJ147: N/A | BK147: N/A | BL147: N/A | BM147: N/A | BN147: N/A | BO147: N/A | BP147: N/A | BQ147: N/A | BR147: N/A | BS147: N/A | BT147: N/A | BU147: N/A | BV147: N/A | BW147: N/A | BX147: N/A | BY147: N/A
A148: Shared among improved sanitation facilities | B148: Yes | C148: 2.394189644 | D148: 2.932371598 | E148: 4.967719417 | F148: 5.736966239 | G148: 28.61981179 | H148: 24.7588483 | I148: 38.51349482 | J148: 46.34065739 | K148: 47.87026168 | L148: 29.43855474 | M148: 1.801894031 | N148: 2.227252434 | O148: 3.166452463 | P148: 3.780163503 | Q148: 5.789107306 | R148: 17.50692477 | S148: 1.024498526 | T148: 6.269649895 | U148: 9.725515874 | V148: 50.18010935 | W148: 4.386937835 | X148: 4.057845365 | Y148: 4.148526241 | BA148: Shared among improved sanitation facilities | BB148: Yes | BC148: N/A | BD148: N/A | BE148: N/A | BF148: N/A | BG148: N/A | BH148: N/A | BI148: N/A | BJ148: N/A | BK148: N/A | BL148: N/A | BM148: N/A | BN148: N/A | BO148: N/A | BP148: N/A | BQ148: N/A | BR148: N/A | BS148: N/A | BT148: N/A | BU148: N/A | BV148: N/A | BW148: N/A | BX148: N/A | BY148: N/A
B149: No | C149: 2.640439784 | D149: 2.908712093 | E149: 4.11830708 | F149: 8.711835293 | G149: 35.93666433 | H149: 18.62316524 | I149: 33.76612941 | J149: 36.74854561 | K149: 44.930302 | L149: 67.1301171 | M149: 2.048893689 | N149: 2.406152835 | O149: 2.613023863 | P149: 5.868559083 | Q149: 12.58542455 | R149: 30.79797665 | S149: 21.81910673 | T149: 6.137241141 | U149: 9.97224277 | V149: 33.94043393 | W149: 7.694032999 | X149: 3.433993523 | Y149: 11.25219484 | BB149: No | BC149: N/A | BD149: N/A | BE149: N/A | BF149: N/A | BG149: N/A | BH149: N/A | BI149: N/A | BJ149: N/A | BK149: N/A | BL149: N/A | BM149: N/A | BN149: N/A | BO149: N/A | BP149: N/A | BQ149: N/A | BR149: N/A | BS149: N/A | BT149: N/A | BU149: N/A | BV149: N/A | BW149: N/A | BX149: N/A | BY149: N/A
B150: DK/missing | C150: 94.96537057 | D150: 94.15891631 | E150: 90.9139735 | F150: 85.55119847 | G150: 35.44352388 | H150: 56.61798645 | I150: 27.72037577 | J150: 16.910797 | K150: 7.199436328 | L150: 3.431328159 | M150: 96.14921228 | N150: 95.36659473 | O150: 94.22052367 | P150: 90.35127741 | Q150: 81.62546815 | R150: 51.69509858 | S150: 77.15639474 | T150: 87.59310896 | U150: 80.30224136 | V150: 15.87945672 | W150: 87.91902917 | X150: 92.50816111 | Y150: 84.59927892 | BB150: DK/missing | BC150: N/A | BD150: N/A | BE150: N/A | BF150: N/A | BG150: N/A | BH150: N/A | BI150: N/A | BJ150: N/A | BK150: N/A | BL150: N/A | BM150: N/A | BN150: N/A | BO150: N/A | BP150: N/A | BQ150: N/A | BR150: N/A | BS150: N/A | BT150: N/A | BU150: N/A | BV150: N/A | BW150: N/A | BX150: N/A | BY150: N/A
A151: Shared among all sanitation facilities | B151: Yes | C151: 37.28541601 | D151: 31.280626 | E151: 40.97199278 | F151: 35.74182036 | G151: 44.20161191 | H151: 53.66497875 | I151: 52.51436644 | J151: 54.47803423 | K151: 51.73340874 | L151: 30.94761978 | M151: 35.76894354 | N151: 27.98006333 | O151: 38.03262393 | P151: 29.56289092 | Q151: 32.97140311 | R151: 36.7071818 | S151: 6.011612657 | T151: 54.2049458 | U151: 44.32729264 | V151: 58.76226722 | W151: 32.07592678 | X151: 44.66380959 | Y151: 18.91422959 | BA151: Shared among all sanitation facilities | BB151: Yes | BC151: N/A | BD151: N/A | BE151: N/A | BF151: N/A | BG151: N/A | BH151: N/A | BI151: N/A | BJ151: N/A | BK151: N/A | BL151: N/A | BM151: N/A | BN151: N/A | BO151: N/A | BP151: N/A | BQ151: N/A | BR151: N/A | BS151: N/A | BT151: N/A | BU151: N/A | BV151: N/A | BW151: N/A | BX151: N/A | BY151: N/A
B152: No | C152: 62.08738561 | D152: 68.50991979 | E152: 57.02958434 | F152: 62.88271813 | G152: 55.51240978 | H152: 45.17395161 | I152: 47.48563356 | J152: 44.62590243 | K152: 48.10436581 | L152: 68.81112667 | M152: 63.35879702 | N152: 72.01993667 | O152: 58.90969427 | P152: 69.70055114 | Q152: 66.45972826 | R152: 62.76992336 | S152: 93.98838734 | T152: 44.67156555 | U152: 54.81704272 | V152: 40.76665022 | W152: 67.2632113 | X152: 54.75695781 | Y152: 80.21809798 | BB152: No | BC152: N/A | BD152: N/A | BE152: N/A | BF152: N/A | BG152: N/A | BH152: N/A | BI152: N/A | BJ152: N/A | BK152: N/A | BL152: N/A | BM152: N/A | BN152: N/A | BO152: N/A | BP152: N/A | BQ152: N/A | BR152: N/A | BS152: N/A | BT152: N/A | BU152: N/A | BV152: N/A | BW152: N/A | BX152: N/A | BY152: N/A
A153: Type of toilet facility | B153: Flush to piped sewer system | C153: 0.02970381827 | D153: 0 | E153: 0.1348684531 | F153: 0.1222610579 | G153: 2.343602162 | H153: 0.4354039877 | I153: 0.3214112388 | J153: 0.9733608659 | K153: 1.197952835 | L153: 10.91572721 | M153: 0.03554448223 | N153: 0 | O153: 0.03525057484 | P153: 0.1870357254 | Q153: 0.1734334992 | R153: 0.7406447468 | S153: 0.3264915906 | T153: 0.04225440169 | U153: 0.1734038639 | V153: 5.854411532 | W153: 0.01829678854 | X153: 0.1265364862 | Y153: 0.2388334831 | BA153: Type of toilet facility | BB153: Flush to piped sewer system | BC153: 3.787891 | BD153: 0 | BE153: 17.21757 | BF153: 15.589895 | BG153: 298.83047 | BH153: 9.105815 | BI153: 6.715917 | BJ153: 20.312943 | BK153: 25.055092 | BL153: 228.244335 | BM153: 3.787891 | BN153: 0 | BO153: 3.76224 | BP153: 19.93941 | BQ153: 18.502183 | BR153: 9.10565 | BS153: 6.164107 | BT153: 3.268788 | BU153: 24.741932 | BV153: 248.950247 | BW153: 2.53946 | BX153: 9.411585 | BY153: 31.244057
B154: Flush to septic tank | C154: 0.4098871766 | D154: 0.4036025817 | E154: 0.5492575029 | F154: 0.8996437421 | G154: 9.117029328 | H154: 4.753938162 | I154: 8.226808878 | J154: 9.397899853 | K154: 13.76621826 | L154: 20.3064472 | M154: 0.1205787046 | N154: 0.09877573375 | O154: 0.3709358445 | P154: 0.3844634312 | Q154: 1.566841423 | R154: 14.06423667 | S154: 8.610036924 | T154: 0.6029442292 | U154: 1.07418905 | V154: 11.17885996 | W154: 2.619867146 | X154: 0.7882357173 | Y154: 0.1382827215 | BB154: Flush to septic tank | BC154: 52.269642 | BD154: 51.469607 | BE154: 70.119285 | BF154: 114.716425 | BG154: 1162.503689 | BH154: 99.421417 | BI154: 171.899918 | BJ154: 196.123566 | BK154: 287.919403 | BL154: 424.601261 | BM154: 12.849786 | BN154: 10.533869 | BO154: 39.589416 | BP154: 40.986683 | BQ154: 167.153329 | BR154: 172.90883 | BS154: 162.556067 | BT154: 46.643587 | BU154: 153.269436 | BV154: 475.364592 | BW154: 363.618337 | BX154: 58.627734 | BY154: 18.090065
B155: Ventilated Improved Pit latrine (VIP) | C155: 0.6418781871 | D155: 0.2028028516 | E155: 0.4487542614 | F155: 1.044127352 | G155: 6.591380243 | H155: 5.732083338 | I155: 9.491473259 | J155: 10.18252708 | K155: 9.233219102 | L155: 8.457398231 | M155: 0.6229648913 | N155: 0.1080538199 | O155: 0.1350227609 | P155: 0.2502531197 | Q155: 1.115001618 | R155: 0.7423631152 | S155: 0.4295896374 | T155: 0.07607906583 | U155: 4.845597805 | V155: 3.659742886 | W155: 0.8171990135 | X155: 0.1297440694 | Y155: 1.111437372 | BB155: Ventilated Improved Pit latrine (VIP) | BC155: 81.853605 | BD155: 25.862528 | BE155: 57.288845 | BF155: 133.139988 | BG155: 840.46059 | BH155: 119.877842 | BI155: 198.325195 | BJ155: 212.497851 | BK155: 193.112072 | BL155: 176.841469 | BM155: 66.387888 | BN155: 11.523324 | BO155: 14.410773 | BP155: 26.678858 | BQ155: 118.950284 | BR155: 9.126776 | BS155: 8.110581 | BT155: 5.885454 | BU155: 691.388581 | BV155: 155.625188 | BW155: 113.421227 | BX155: 9.65016 | BY155: 145.397589
B156: Pit latrine with slab | C156: 4.032271325 | D156: 5.23662121 | E156: 8.242012377 | F156: 12.58808538 | G156: 46.71680688 | H156: 32.93609368 | I156: 54.23993086 | J156: 63.36957402 | K156: 68.75868462 | L156: 57.13019435 | M156: 3.165338504 | N156: 4.428418727 | O156: 5.583790784 | P156: 8.830698999 | Q156: 15.672209 | R156: 33.21423244 | S156: 13.47748711 | T156: 11.90188491 | U156: 13.73222457 | V156: 63.76506426 | W156: 8.753934263 | X156: 6.451472304 | Y156: 14.11810776 | BB156: Pit latrine with slab | BC156: 514.203397 | BD156: 667.802556 | BE156: 1052.191389 | BF156: 1605.146665 | BG156: 5956.81536 | BH156: 688.808519 | BI156: 1133.348277 | BJ156: 1322.451508 | BK156: 1438.082635 | BL156: 1194.573936 | BM156: 337.322602 | BN156: 472.265616 | BO156: 595.94946 | BP156: 941.418692 | BQ156: 1671.938122 | BR156: 408.343105 | BS156: 254.452718 | BT156: 920.726292 | BU156: 1959.366758 | BV156: 2711.515651 | BW156: 1214.981845 | BX156: 479.850372 | BY156: 1846.922626
B157: Pit latrine without slab/open pit | C157: 6.594020966 | D157: 9.490451988 | E157: 7.491433662 | F157: 7.655273041 | G157: 6.831782674 | H157: 12.53317576 | I157: 8.532432724 | J157: 10.96830852 | K157: 6.238545909 | L157: 3.124581629 | M157: 6.195326735 | N157: 8.912933907 | O157: 7.036239064 | P157: 8.83549837 | Q157: 6.430820359 | R157: 3.380866337 | S157: 10.59951348 | T157: 2.966380475 | U157: 6.612656802 | V157: 8.879988023 | W157: 8.809147787 | X157: 10.51958632 | Y157: 8.083102606 | BB157: Pit latrine without slab/open pit | BC157: 840.882894 | BD157: 1210.274305 | BE157: 956.371045 | BF157: 976.148129 | BG157: 871.114074 | BH157: 262.11239 | BI157: 178.285956 | BJ157: 228.896223 | BK157: 130.478711 | BL157: 65.333994 | BM157: 660.221247 | BN157: 950.513599 | BO157: 750.967046 | BP157: 941.930341 | BQ157: 686.05094 | BR157: 41.565117 | BS157: 200.117054 | BT157: 229.478315 | BU157: 943.519373 | BV157: 377.608441 | BW157: 1222.645077 | BX157: 782.4303 | BY157: 1057.42677
B158: No facility/bush/field | C158: 88.04156282 | D158: 84.26369935 | E158: 82.47380595 | F158: 76.89032009 | G158: 27.912269 | H158: 41.69903507 | I158: 17.92341199 | J158: 4.429325527 | K158: 0.7112384578 | L158: 0.06565137143 | M158: 89.73490869 | N158: 86.14082483 | O158: 86.29863268 | P158: 80.93156726 | Q158: 74.26206458 | R158: 47.85765669 | S158: 66.55688126 | T158: 80.7499991 | U158: 73.50628675 | V158: 6.050743984 | W158: 78.981555 | X158: 81.86683867 | Y158: 76.26520625 | BB158: No facility/bush/field | BC158: 11227.23821 | BD158: 10745.76746 | BE158: 10528.76706 | BF158: 9804.52842 | BG158: 3559.066721 | BH158: 872.072167 | BI158: 374.51132 | BJ158: 92.435026 | BK158: 14.875498 | BL158: 1.372749 | BM158: 9562.835965 | BN158: 9186.42798 | BO158: 9210.521228 | BP158: 8627.911585 | BQ158: 7922.404354 | BR158: 588.372595 | BS158: 1256.582863 | BT158: 6246.796015 | BU158: 10488.16046 | BV158: 257.298996 | BW158: 10962.06032 | BX158: 6089.126813 | BY158: 9976.969814
B159: Bucket toilet | C159: 0.2291276384 | D159: 0.3433057776 | E159: 0.52726438 | F159: 0.7263722904 | G159: 0.4716880808 | H159: 1.1964787 | I159: 0.9704630744 | J159: 0.6790041275 | K159: 0 | L159: 0 | M159: 0.1253379925 | N159: 0.285226458 | O159: 0.4195306373 | P159: 0.5804830934 | Q159: 0.779629523 | R159: 0 | S159: 0 | T159: 3.455900433 | U159: 0.05564115805 | V159: 0.2110524669 | W159: 0 | X159: 0.04982049326 | Y159: 0.03906440741 | BB159: Bucket toilet | BC159: 29.21882 | BD159: 43.780229 | BE159: 67.3116 | BF159: 92.622033 | BG159: 60.144496 | BH159: 25.02254 | BI159: 20.277914 | BJ159: 14.17005 | BK159: 0 | BL159: 0 | BM159: 13.356972 | BN159: 30.417776 | BO159: 44.775864 | BP159: 61.883848 | BQ159: 83.172214 | BR159: 0 | BS159: 0 | BT159: 267.347434 | BU159: 7.939095 | BV159: 8.974696 | BW159: 0 | BX159: 3.70557 | BY159: 5.110383
B160: Other | C160: 0.02154806623 | D160: 0.05951623847 | E160: 0.1326034165 | F160: 0.07391704744 | G160: 0.01544163415 | H160: 0.7137912985 | I160: 0.294067974 | J160: 0 | K160: 0.09414081727 | L160: 0 | M160: 0 | N160: 0.02576652475 | O160: 0.1205976505 | P160: 0 | Q160: 0 | R160: 0 | S160: 0 | T160: 0.2045573757 | U160: 0 | V160: 0.4001368848 | W160: 0 | X160: 0.06776593827 | Y160: 0.005965398855 | BB160: Other | BC160: 2.747853 | BD160: 7.589836 | BE160: 16.928411 | BF160: 9.425397 | BG160: 1.968948 | BH160: 14.927864 | BI160: 6.144577 | BJ160: 0 | BK160: 1.968948 | BL160: 0 | BM160: 0 | BN160: 2.747853 | BO160: 12.871203 | BP160: 0 | BQ160: 0 | BR160: 0 | BS160: 0 | BT160: 15.824498 | BU160: 0 | BV160: 17.015233 | BW160: 0 | BX160: 5.040324 | BY160: 0.78039
BB161: Total | BC161: 12752.20231 | BD161: 12752.54652 | BE161: 12766.19521 | BF161: 12751.31695 | BG161: 12750.90435 | BH161: 2091.348554 | BI161: 2089.509074 | BJ161: 2086.887167 | BK161: 2091.492359 | BL161: 2090.967744 | BM161: 10656.76235 | BN161: 10664.43002 | BO161: 10672.84723 | BP161: 10660.74942 | BQ161: 10668.17143 | BR161: 1229.422073 | BS161: 1887.98339 | BT161: 7735.970383 | BU161: 14268.38563 | BV161: 4252.353044 | BW161: 13879.26626 | BX161: 7437.842858 | BY161: 13081.94169
A208: =A1026 -> Niger
A209: =A1034 -> 2012
A210: Access to hygiene facilities
A211: by wealth quintile and sub-national region
A212: Notes:
A213: WHO/UNICEF JMP customised wealth index excludes water,
A214: sanitation and hygiene assets.
A215: Survey used for analysis: | B215: =A1025 -> DHS12
A220: Access to handwashing | C220: NATIONAL wealth index quintile | H220: URBAN wealth index quintile | M220: RURAL wealth index quintile | R220: SUB-REGIONS: | BA220: Raw numbers of respondents: | BB220: Access to handwashing | BC220: NATIONAL wealth index quintile | BH220: URBAN wealth index quintile | BM220: RURAL wealth index quintile | BR220: SUB-REGIONS:
A221: Weighted percentage (used in graphs) | C221: Poorest | D221: Poor | E221: Middle | F221: Rich | G221: Richest | H221: Poorest | I221: Poor | J221: Middle | K221: Rich | L221: Richest | M221: Poorest | N221: Poor | O221: Middle | P221: Rich | Q221: Richest | R221: Agadez | S221: Diffa | T221: Dosso | U221: Maradi | V221: Niamey | W221: Tahoua | X221: Tillaberi | Y221: Zinder | BA221: Hygiene data, raw numbers (weighted) | BC221: Poorest | BD221: Poor | BE221: Middle | BF221: Rich | BG221: Richest | BH221: Poorest | BI221: Poor | BJ221: Middle | BK221: Rich | BL221: Richest | BM221: Poorest | BN221: Poor | BO221: Middle | BP221: Rich | BQ221: Richest | BR221: Agadez | BS221: Diffa | BT221: Dosso | BU221: Maradi | BV221: Niamey | BW221: Tahoua | BX221: Tillaberi | BY221: Zinder
A222: Hygiene ladder | B222: Basic | C222: N/A | D222: N/A | E222: N/A | F222: N/A | G222: N/A | H222: N/A | I222: N/A | J222: N/A | K222: N/A | L222: N/A | M222: N/A | N222: N/A | O222: N/A | P222: N/A | Q222: N/A | R222: N/A | S222: N/A | T222: N/A | U222: N/A | V222: N/A | W222: N/A | X222: N/A | Y222: N/A | BA222: Hygiene ladder | BB222: Basic | BC222: N/A | BD222: N/A | BE222: N/A | BF222: N/A | BG222: N/A | BH222: N/A | BI222: N/A | BJ222: N/A | BK222: N/A | BL222: N/A | BM222: N/A | BN222: N/A | BO222: N/A | BP222: N/A | BQ222: N/A | BR222: N/A | BS222: N/A | BT222: N/A | BU222: N/A | BV222: N/A | BW222: N/A | BX222: N/A | BY222: N/A
B223: Limited | C223: N/A | D223: N/A | E223: N/A | F223: N/A | G223: N/A | H223: N/A | I223: N/A | J223: N/A | K223: N/A | L223: N/A | M223: N/A | N223: N/A | O223: N/A | P223: N/A | Q223: N/A | R223: N/A | S223: N/A | T223: N/A | U223: N/A | V223: N/A | W223: N/A | X223: N/A | Y223: N/A | BB223: Limited | BC223: N/A | BD223: N/A | BE223: N/A | BF223: N/A | BG223: N/A | BH223: N/A | BI223: N/A | BJ223: N/A | BK223: N/A | BL223: N/A | BM223: N/A | BN223: N/A | BO223: N/A | BP223: N/A | BQ223: N/A | BR223: N/A | BS223: N/A | BT223: N/A | BU223: N/A | BV223: N/A | BW223: N/A | BX223: N/A | BY223: N/A
B224: No facility | C224: N/A | D224: N/A | E224: N/A | F224: N/A | G224: N/A | H224: N/A | I224: N/A | J224: N/A | K224: N/A | L224: N/A | M224: N/A | N224: N/A | O224: N/A | P224: N/A | Q224: N/A | R224: N/A | S224: N/A | T224: N/A | U224: N/A | V224: N/A | W224: N/A | X224: N/A | Y224: N/A | BB224: No facility | BC224: N/A | BD224: N/A | BE224: N/A | BF224: N/A | BG224: N/A | BH224: N/A | BI224: N/A | BJ224: N/A | BK224: N/A | BL224: N/A | BM224: N/A | BN224: N/A | BO224: N/A | BP224: N/A | BQ224: N/A | BR224: N/A | BS224: N/A | BT224: N/A | BU224: N/A | BV224: N/A | BW224: N/A | BX224: N/A | BY224: N/A
BA225: Observed handwashing place | BB225: Fixed | BC225: N/A | BD225: N/A | BE225: N/A | BF225: N/A | BG225: N/A | BH225: N/A | BI225: N/A | BJ225: N/A | BK225: N/A | BL225: N/A | BM225: N/A | BN225: N/A | BO225: N/A | BP225: N/A | BQ225: N/A | BR225: N/A | BS225: N/A | BT225: N/A | BU225: N/A | BV225: N/A | BW225: N/A | BX225: N/A | BY225: N/A
BB226: Mobile | BC226: N/A | BD226: N/A | BE226: N/A | BF226: N/A | BG226: N/A | BH226: N/A | BI226: N/A | BJ226: N/A | BK226: N/A | BL226: N/A | BM226: N/A | BN226: N/A | BO226: N/A | BP226: N/A | BQ226: N/A | BR226: N/A | BS226: N/A | BT226: N/A | BU226: N/A | BV226: N/A | BW226: N/A | BX226: N/A | BY226: N/A
BA227: Water / Soap | BB227: Water and soap | BC227: N/A | BD227: N/A | BE227: N/A | BF227: N/A | BG227: N/A | BH227: N/A | BI227: N/A | BJ227: N/A | BK227: N/A | BL227: N/A | BM227: N/A | BN227: N/A | BO227: N/A | BP227: N/A | BQ227: N/A | BR227: N/A | BS227: N/A | BT227: N/A | BU227: N/A | BV227: N/A | BW227: N/A | BX227: N/A | BY227: N/A
BB228: Water only | BC228: N/A | BD228: N/A | BE228: N/A | BF228: N/A | BG228: N/A | BH228: N/A | BI228: N/A | BJ228: N/A | BK228: N/A | BL228: N/A | BM228: N/A | BN228: N/A | BO228: N/A | BP228: N/A | BQ228: N/A | BR228: N/A | BS228: N/A | BT228: N/A | BU228: N/A | BV228: N/A | BW228: N/A | BX228: N/A | BY228: N/A
BB229: Soap only | BC229: N/A | BD229: N/A | BE229: N/A | BF229: N/A | BG229: N/A | BH229: N/A | BI229: N/A | BJ229: N/A | BK229: N/A | BL229: N/A | BM229: N/A | BN229: N/A | BO229: N/A | BP229: N/A | BQ229: N/A | BR229: N/A | BS229: N/A | BT229: N/A | BU229: N/A | BV229: N/A | BW229: N/A | BX229: N/A | BY229: N/A
BB230: Neither | BC230: N/A | BD230: N/A | BE230: N/A | BF230: N/A | BG230: N/A | BH230: N/A | BI230: N/A | BJ230: N/A | BK230: N/A | BL230: N/A | BM230: N/A | BN230: N/A | BO230: N/A | BP230: N/A | BQ230: N/A | BR230: N/A | BS230: N/A | BT230: N/A | BU230: N/A | BV230: N/A | BW230: N/A | BX230: N/A | BY230: N/A
BA259: Raw numbers of respondents: | BB259: Menstrual health and hygiene | BC259: NATIONAL wealth index quintile | BH259: URBAN wealth index quintile | BM259: RURAL wealth index quintile | BR259: SUB-REGIONS:
BA260: MHH data, raw numbers (weighted) | BC260: Poorest | BD260: Poor | BE260: Middle | BF260: Rich | BG260: Richest | BH260: Poorest | BI260: Poor | BJ260: Middle | BK260: Rich | BL260: Richest | BM260: Poorest | BN260: Poor | BO260: Middle | BP260: Rich | BQ260: Richest | BR260: Agadez | BS260: Diffa | BT260: Dosso | BU260: Maradi | BV260: Niamey | BW260: Tahoua | BX260: Tillaberi | BY260: Zinder
BA261: Private place to wash and change | BB261: Yes | BC261: N/A | BD261: N/A | BE261: N/A | BF261: N/A | BG261: N/A | BH261: N/A | BI261: N/A | BJ261: N/A | BK261: N/A | BL261: N/A | BM261: N/A | BN261: N/A | BO261: N/A | BP261: N/A | BQ261: N/A | BR261: N/A | BS261: N/A | BT261: N/A | BU261: N/A | BV261: N/A | BW261: N/A | BX261: N/A | BY261: N/A
BB262: No | BC262: N/A | BD262: N/A | BE262: N/A | BF262: N/A | BG262: N/A | BH262: N/A | BI262: N/A | BJ262: N/A | BK262: N/A | BL262: N/A | BM262: N/A | BN262: N/A | BO262: N/A | BP262: N/A | BQ262: N/A | BR262: N/A | BS262: N/A | BT262: N/A | BU262: N/A | BV262: N/A | BW262: N/A | BX262: N/A | BY262: N/A
BB263: DK/not sure/missing | BC263: N/A | BD263: N/A | BE263: N/A | BF263: N/A | BG263: N/A | BH263: N/A | BI263: N/A | BJ263: N/A | BK263: N/A | BL263: N/A | BM263: N/A | BN263: N/A | BO263: N/A | BP263: N/A | BQ263: N/A | BR263: N/A | BS263: N/A | BT263: N/A | BU263: N/A | BV263: N/A | BW263: N/A | BX263: N/A | BY263: N/A
BA264: Use of menstrual materials | BB264: Materials reusable | BC264: N/A | BD264: N/A | BE264: N/A | BF264: N/A | BG264: N/A | BH264: N/A | BI264: N/A | BJ264: N/A | BK264: N/A | BL264: N/A | BM264: N/A | BN264: N/A | BO264: N/A | BP264: N/A | BQ264: N/A | BR264: N/A | BS264: N/A | BT264: N/A | BU264: N/A | BV264: N/A | BW264: N/A | BX264: N/A | BY264: N/A
BB265: Materials not reusable | BC265: N/A | BD265: N/A | BE265: N/A | BF265: N/A | BG265: N/A | BH265: N/A | BI265: N/A | BJ265: N/A | BK265: N/A | BL265: N/A | BM265: N/A | BN265: N/A | BO265: N/A | BP265: N/A | BQ265: N/A | BR265: N/A | BS265: N/A | BT265: N/A | BU265: N/A | BV265: N/A | BW265: N/A | BX265: N/A | BY265: N/A
BB266: No materials used | BC266: N/A | BD266: N/A | BE266: N/A | BF266: N/A | BG266: N/A | BH266: N/A | BI266: N/A | BJ266: N/A | BK266: N/A | BL266: N/A | BM266: N/A | BN266: N/A | BO266: N/A | BP266: N/A | BQ266: N/A | BR266: N/A | BS266: N/A | BT266: N/A | BU266: N/A | BV266: N/A | BW266: N/A | BX266: N/A | BY266: N/A
BB267: DK/not sure/missing | BC267: N/A | BD267: N/A | BE267: N/A | BF267: N/A | BG267: N/A | BH267: N/A | BI267: N/A | BJ267: N/A | BK267: N/A | BL267: N/A | BM267: N/A | BN267: N/A | BO267: N/A | BP267: N/A | BQ267: N/A | BR267: N/A | BS267: N/A | BT267: N/A | BU267: N/A | BV267: N/A | BW267: N/A | BX267: N/A | BY267: N/A
BA268: Use of menstrual materials with private place to wash and change | BB268: Materials reusable | BC268: N/A | BD268: N/A | BE268: N/A | BF268: N/A | BG268: N/A | BH268: N/A | BI268: N/A | BJ268: N/A | BK268: N/A | BL268: N/A | BM268: N/A | BN268: N/A | BO268: N/A | BP268: N/A | BQ268: N/A | BR268: N/A | BS268: N/A | BT268: N/A | BU268: N/A | BV268: N/A | BW268: N/A | BX268: N/A | BY268: N/A
BB269: Materials not reusable | BC269: N/A | BD269: N/A | BE269: N/A | BF269: N/A | BG269: N/A | BH269: N/A | BI269: N/A | BJ269: N/A | BK269: N/A | BL269: N/A | BM269: N/A | BN269: N/A | BO269: N/A | BP269: N/A | BQ269: N/A | BR269: N/A | BS269: N/A | BT269: N/A | BU269: N/A | BV269: N/A | BW269: N/A | BX269: N/A | BY269: N/A
BB270: No materials used | BC270: N/A | BD270: N/A | BE270: N/A | BF270: N/A | BG270: N/A | BH270: N/A | BI270: N/A | BJ270: N/A | BK270: N/A | BL270: N/A | BM270: N/A | BN270: N/A | BO270: N/A | BP270: N/A | BQ270: N/A | BR270: N/A | BS270: N/A | BT270: N/A | BU270: N/A | BV270: N/A | BW270: N/A | BX270: N/A | BY270: N/A
BA271: Awareness of menstruation before menarche | BB271: Yes | BC271: N/A | BD271: N/A | BE271: N/A | BF271: N/A | BG271: N/A | BH271: N/A | BI271: N/A | BJ271: N/A | BK271: N/A | BL271: N/A | BM271: N/A | BN271: N/A | BO271: N/A | BP271: N/A | BQ271: N/A | BR271: N/A | BS271: N/A | BT271: N/A | BU271: N/A | BV271: N/A | BW271: N/A | BX271: N/A | BY271: N/A
BB272: No | BC272: N/A | BD272: N/A | BE272: N/A | BF272: N/A | BG272: N/A | BH272: N/A | BI272: N/A | BJ272: N/A | BK272: N/A | BL272: N/A | BM272: N/A | BN272: N/A | BO272: N/A | BP272: N/A | BQ272: N/A | BR272: N/A | BS272: N/A | BT272: N/A | BU272: N/A | BV272: N/A | BW272: N/A | BX272: N/A | BY272: N/A
BB273: DK/not sure/missing | BC273: N/A | BD273: N/A | BE273: N/A | BF273: N/A | BG273: N/A | BH273: N/A | BI273: N/A | BJ273: N/A | BK273: N/A | BL273: N/A | BM273: N/A | BN273: N/A | BO273: N/A | BP273: N/A | BQ273: N/A | BR273: N/A | BS273: N/A | BT273: N/A | BU273: N/A | BV273: N/A | BW273: N/A | BX273: N/A | BY273: N/A
BA274: Participation in (all) activities during menstruation | BB274: Yes | BC274: N/A | BD274: N/A | BE274: N/A | BF274: N/A | BG274: N/A | BH274: N/A | BI274: N/A | BJ274: N/A | BK274: N/A | BL274: N/A | BM274: N/A | BN274: N/A | BO274: N/A | BP274: N/A | BQ274: N/A | BR274: N/A | BS274: N/A | BT274: N/A | BU274: N/A | BV274: N/A | BW274: N/A | BX274: N/A | BY274: N/A
BB275: No | BC275: N/A | BD275: N/A | BE275: N/A | BF275: N/A | BG275: N/A | BH275: N/A | BI275: N/A | BJ275: N/A | BK275: N/A | BL275: N/A | BM275: N/A | BN275: N/A | BO275: N/A | BP275: N/A | BQ275: N/A | BR275: N/A | BS275: N/A | BT275: N/A | BU275: N/A | BV275: N/A | BW275: N/A | BX275: N/A | BY275: N/A
BB276: DK/not sure/missing/no such activity | BC276: N/A | BD276: N/A | BE276: N/A | BF276: N/A | BG276: N/A | BH276: N/A | BI276: N/A | BJ276: N/A | BK276: N/A | BL276: N/A | BM276: N/A | BN276: N/A | BO276: N/A | BP276: N/A | BQ276: N/A | BR276: N/A | BS276: N/A | BT276: N/A | BU276: N/A | BV276: N/A | BW276: N/A | BX276: N/A | BY276: N/A
BA277: Participation in specific activities during menstruation | BB277: Did not go to school (amongst those usually attending school) | BC277: N/A | BD277: N/A | BE277: N/A | BF277: N/A | BG277: N/A | BH277: N/A | BI277: N/A | BJ277: N/A | BK277: N/A | BL277: N/A | BM277: N/A | BN277: N/A | BO277: N/A | BP277: N/A | BQ277: N/A | BR277: N/A | BS277: N/A | BT277: N/A | BU277: N/A | BV277: N/A | BW277: N/A | BX277: N/A | BY277: N/A
BB278: Did not go to work (amongst those who usually work) | BC278: N/A | BD278: N/A | BE278: N/A | BF278: N/A | BG278: N/A | BH278: N/A | BI278: N/A | BJ278: N/A | BK278: N/A | BL278: N/A | BM278: N/A | BN278: N/A | BO278: N/A | BP278: N/A | BQ278: N/A | BR278: N/A | BS278: N/A | BT278: N/A | BU278: N/A | BV278: N/A | BW278: N/A | BX278: N/A | BY278: N/A
BB279: Did not participate in social activities | BC279: N/A | BD279: N/A | BE279: N/A | BF279: N/A | BG279: N/A | BH279: N/A | BI279: N/A | BJ279: N/A | BK279: N/A | BL279: N/A | BM279: N/A | BN279: N/A | BO279: N/A | BP279: N/A | BQ279: N/A | BR279: N/A | BS279: N/A | BT279: N/A | BU279: N/A | BV279: N/A | BW279: N/A | BX279: N/A | BY279: N/A
BB280: Did not cook food | BC280: N/A | BD280: N/A | BE280: N/A | BF280: N/A | BG280: N/A | BH280: N/A | BI280: N/A | BJ280: N/A | BK280: N/A | BL280: N/A | BM280: N/A | BN280: N/A | BO280: N/A | BP280: N/A | BQ280: N/A | BR280: N/A | BS280: N/A | BT280: N/A | BU280: N/A | BV280: N/A | BW280: N/A | BX280: N/A | BY280: N/A
BB281: Did not eat with others | BC281: N/A | BD281: N/A | BE281: N/A | BF281: N/A | BG281: N/A | BH281: N/A | BI281: N/A | BJ281: N/A | BK281: N/A | BL281: N/A | BM281: N/A | BN281: N/A | BO281: N/A | BP281: N/A | BQ281: N/A | BR281: N/A | BS281: N/A | BT281: N/A | BU281: N/A | BV281: N/A | BW281: N/A | BX281: N/A | BY281: N/A
BB282: Did not bathe in regular place | BC282: N/A | BD282: N/A | BE282: N/A | BF282: N/A | BG282: N/A | BH282: N/A | BI282: N/A | BJ282: N/A | BK282: N/A | BL282: N/A | BM282: N/A | BN282: N/A | BO282: N/A | BP282: N/A | BQ282: N/A | BR282: N/A | BS282: N/A | BT282: N/A | BU282: N/A | BV282: N/A | BW282: N/A | BX282: N/A | BY282: N/A
BB283: Did not participate in other activities | BC283: N/A | BD283: N/A | BE283: N/A | BF283: N/A | BG283: N/A | BH283: N/A | BI283: N/A | BJ283: N/A | BK283: N/A | BL283: N/A | BM283: N/A | BN283: N/A | BO283: N/A | BP283: N/A | BQ283: N/A | BR283: N/A | BS283: N/A | BT283: N/A | BU283: N/A | BV283: N/A | BW283: N/A | BX283: N/A | BY283: N/A
BB284: DK/not sure/missing/no such activity | BC284: N/A | BD284: N/A | BE284: N/A | BF284: N/A | BG284: N/A | BH284: N/A | BI284: N/A | BJ284: N/A | BK284: N/A | BL284: N/A | BM284: N/A | BN284: N/A | BO284: N/A | BP284: N/A | BQ284: N/A | BR284: N/A | BS284: N/A | BT284: N/A | BU284: N/A | BV284: N/A | BW284: N/A | BX284: N/A | BY284: N/A
BA339: Raw numbers of respondents: | BB339: Basic water, sanitation and hygiene | BC339: NATIONAL wealth index quintile | BH339: URBAN wealth index quintile | BM339: RURAL wealth index quintile | BR339: SUB-REGIONS:
BA340: WatSan data, raw numbers (weighted) | BC340: Poorest | BD340: Poor | BE340: Middle | BF340: Rich | BG340: Richest | BH340: Poorest | BI340: Poor | BJ340: Middle | BK340: Rich | BL340: Richest | BM340: Poorest | BN340: Poor | BO340: Middle | BP340: Rich | BQ340: Richest | BR340: Agadez | BS340: Diffa | BT340: Dosso | BU340: Maradi | BV340: Niamey | BW340: Tahoua | BX340: Tillaberi | BY340: Zinder
BA341: Use of Basic Water Sanitation and Hygiene | BB341: Yes | BC341: N/A | BD341: N/A | BE341: N/A | BF341: N/A | BG341: N/A | BH341: N/A | BI341: N/A | BJ341: N/A | BK341: N/A | BL341: N/A | BM341: N/A | BN341: N/A | BO341: N/A | BP341: N/A | BQ341: N/A | BR341: N/A | BS341: N/A | BT341: N/A | BU341: N/A | BV341: N/A | BW341: N/A | BX341: N/A | BY341: N/A
BB342: No | BC342: N/A | BD342: N/A | BE342: N/A | BF342: N/A | BG342: N/A | BH342: N/A | BI342: N/A | BJ342: N/A | BK342: N/A | BL342: N/A | BM342: N/A | BN342: N/A | BO342: N/A | BP342: N/A | BQ342: N/A | BR342: N/A | BS342: N/A | BT342: N/A | BU342: N/A | BV342: N/A | BW342: N/A | BX342: N/A | BY342: N/A
BA343: Use of Basic Water and Sanitation | BB343: Yes | BC343: N/A | BD343: N/A | BE343: N/A | BF343: N/A | BG343: N/A | BH343: N/A | BI343: N/A | BJ343: N/A | BK343: N/A | BL343: N/A | BM343: N/A | BN343: N/A | BO343: N/A | BP343: N/A | BQ343: N/A | BR343: N/A | BS343: N/A | BT343: N/A | BU343: N/A | BV343: N/A | BW343: N/A | BX343: N/A | BY343: N/A
BB344: No | BC344: N/A | BD344: N/A | BE344: N/A | BF344: N/A | BG344: N/A | BH344: N/A | BI344: N/A | BJ344: N/A | BK344: N/A | BL344: N/A | BM344: N/A | BN344: N/A | BO344: N/A | BP344: N/A | BQ344: N/A | BR344: N/A | BS344: N/A | BT344: N/A | BU344: N/A | BV344: N/A | BW344: N/A | BX344: N/A | BY344: N/A
BA345: Use of Basic Water and Hygiene | BB345: Yes | BC345: N/A | BD345: N/A | BE345: N/A | BF345: N/A | BG345: N/A | BH345: N/A | BI345: N/A | BJ345: N/A | BK345: N/A | BL345: N/A | BM345: N/A | BN345: N/A | BO345: N/A | BP345: N/A | BQ345: N/A | BR345: N/A | BS345: N/A | BT345: N/A | BU345: N/A | BV345: N/A | BW345: N/A | BX345: N/A | BY345: N/A
BB346: No | BC346: N/A | BD346: N/A | BE346: N/A | BF346: N/A | BG346: N/A | BH346: N/A | BI346: N/A | BJ346: N/A | BK346: N/A | BL346: N/A | BM346: N/A | BN346: N/A | BO346: N/A | BP346: N/A | BQ346: N/A | BR346: N/A | BS346: N/A | BT346: N/A | BU346: N/A | BV346: N/A | BW346: N/A | BX346: N/A | BY346: N/A
BA347: Use of Basic Sanitation and Hygiene | BB347: Yes | BC347: N/A | BD347: N/A | BE347: N/A | BF347: N/A | BG347: N/A | BH347: N/A | BI347: N/A | BJ347: N/A | BK347: N/A | BL347: N/A | BM347: N/A | BN347: N/A | BO347: N/A | BP347: N/A | BQ347: N/A | BR347: N/A | BS347: N/A | BT347: N/A | BU347: N/A | BV347: N/A | BW347: N/A | BX347: N/A | BY347: N/A
BB348: No | BC348: N/A | BD348: N/A | BE348: N/A | BF348: N/A | BG348: N/A | BH348: N/A | BI348: N/A | BJ348: N/A | BK348: N/A | BL348: N/A | BM348: N/A | BN348: N/A | BO348: N/A | BP348: N/A | BQ348: N/A | BR348: N/A | BS348: N/A | BT348: N/A | BU348: N/A | BV348: N/A | BW348: N/A | BX348: N/A | BY348: N/A
BA349: Use of Basic Water | BB349: Yes | BC349: N/A | BD349: N/A | BE349: N/A | BF349: N/A | BG349: N/A | BH349: N/A | BI349: N/A | BJ349: N/A | BK349: N/A | BL349: N/A | BM349: N/A | BN349: N/A | BO349: N/A | BP349: N/A | BQ349: N/A | BR349: N/A | BS349: N/A | BT349: N/A | BU349: N/A | BV349: N/A | BW349: N/A | BX349: N/A | BY349: N/A
BB350: No | BC350: N/A | BD350: N/A | BE350: N/A | BF350: N/A | BG350: N/A | BH350: N/A | BI350: N/A | BJ350: N/A | BK350: N/A | BL350: N/A | BM350: N/A | BN350: N/A | BO350: N/A | BP350: N/A | BQ350: N/A | BR350: N/A | BS350: N/A | BT350: N/A | BU350: N/A | BV350: N/A | BW350: N/A | BX350: N/A | BY350: N/A
BA351: Use of Basic Sanitation | BB351: Yes | BC351: N/A | BD351: N/A | BE351: N/A | BF351: N/A | BG351: N/A | BH351: N/A | BI351: N/A | BJ351: N/A | BK351: N/A | BL351: N/A | BM351: N/A | BN351: N/A | BO351: N/A | BP351: N/A | BQ351: N/A | BR351: N/A | BS351: N/A | BT351: N/A | BU351: N/A | BV351: N/A | BW351: N/A | BX351: N/A | BY351: N/A
BB352: No | BC352: N/A | BD352: N/A | BE352: N/A | BF352: N/A | BG352: N/A | BH352: N/A | BI352: N/A | BJ352: N/A | BK352: N/A | BL352: N/A | BM352: N/A | BN352: N/A | BO352: N/A | BP352: N/A | BQ352: N/A | BR352: N/A | BS352: N/A | BT352: N/A | BU352: N/A | BV352: N/A | BW352: N/A | BX352: N/A | BY352: N/A
BA353: Access to Basic Hygiene | BB353: Yes | BC353: N/A | BD353: N/A | BE353: N/A | BF353: N/A | BG353: N/A | BH353: N/A | BI353: N/A | BJ353: N/A | BK353: N/A | BL353: N/A | BM353: N/A | BN353: N/A | BO353: N/A | BP353: N/A | BQ353: N/A | BR353: N/A | BS353: N/A | BT353: N/A | BU353: N/A | BV353: N/A | BW353: N/A | BX353: N/A | BY353: N/A
BB354: No | BC354: N/A | BD354: N/A | BE354: N/A | BF354: N/A | BG354: N/A | BH354: N/A | BI354: N/A | BJ354: N/A | BK354: N/A | BL354: N/A | BM354: N/A | BN354: N/A | BO354: N/A | BP354: N/A | BQ354: N/A | BR354: N/A | BS354: N/A | BT354: N/A | BU354: N/A | BV354: N/A | BW354: N/A | BX354: N/A | BY354: N/A
C399: INITIAL (national) Wealth Index | H399: URBAN Wealth Index | M399: RURAL Wealth Index
C400: Component Matrix | H400: Component Matrix | M400: Component Matrix
E401: Component | J401: Component | O401: Component
B402: Note: The INITIAL (national) Wealth Index is based on the first component of the Principal Component Analysis (PCA) which has been obtained at national level. The final national-level (NATIONAL) Wealth Index is based on the URBAN and RURAL specific wealth indexes. Regression procedures are used to establish the relationships between the two sets of scores (urban and rural) and the initial (national) wealth factors. This allows best use of the available information for each area and a better precision of the FINAL (NATIONAL) Wealth Index. For dependency reasons, all WASH variables (contained in the generic MICS and DHS scripts) have been excluded from the sets of asset variables used in the PCAs. The PCA can extracts as many components as there are asset variables in the input. Only the first of the components is used to represent the Wealth Index. The scores represent the weights of the asset variables on the Wealth Index (correlations between the variables and the component). The communalities are the proportion of each variable's variance that can be explained by the component. Proportion of explained variance is the part of the model's total variance that is explained by the component. For more information on the procedure used: The DHS Wealth Index, DHS Comparative Reports No. 6, Shea Oscar Rutstein, Kiersten Johnson, ORC Macro International Inc., 2004. The DHS Wealth Index: Approaches for Rural and Urban Areas, Shea O. Rutstein, ORC Macro International Inc., 2008. MICS Methodological Paper No. 4, Review of options for reporting water, sanitation and hygiene coverage by wealth quintile, UNICEF, 2016. | E402: 1 | J402: 1 | O402: 1
C403: Has television | E403: 0.775225635 | H403: Has refrigerator | J403: 0.6891258322 | M403: sheep1 | O403: -0.4677429075
C404: Cement walls | E404: 0.7398933755 | H404: Oven | J404: 0.6821927552 | M404: Has television | O404: 0.436402952
C405: Has refrigerator | E405: 0.7258255372 | H405: Cane/palm/trunks/dirt/staw walls | J405: -0.6705082464 | M405: dairy1 | O405: -0.4305418543
C406: Has electricity | E406: 0.7258130245 | H406: Has bank account | J406: 0.6606087968 | M406: equine1 | O406: -0.4023491955
C407: VCR/DVD | E407: 0.721956279 | H407: Cement walls | J407: 0.6459071204 | M407: VCR/DVD | O407: 0.3961490249
C408: Cane/palm/trunks/dirt/staw walls | E408: -0.7088431143 | H408: Has television | J408: 0.6447404595 | M408: Cane/palm/trunks/dirt/staw walls | O408: -0.3927184265
C409: Earth, sand floor | E409: -0.6866085593 | H409: Computer | J409: 0.6420395425 | M409: goats1 | O409: -0.3798668785
C410: Has bank account | E410: 0.6725193687 | H410: Parabolic antenna | J410: 0.6409458628 | M410: camels1 | O410: -0.3772039796
C411: Oven | E411: 0.6718009319 | H411: VCR/DVD | J411: 0.6363125681 | M411: goats4 | O411: 0.3742967615
C412: Parabolic antenna | E412: 0.6616930782 | H412: Air conditioning | J412: 0.6285753938 | M412: Has refrigerator | O412: 0.3702492537
C413: Metal roof | E413: 0.6284913074 | H413: Has car/truck | J413: 0.6168605092 | M413: Cement walls | O413: 0.3659401928
C414: Computer | E414: 0.6224042118 | H414: Has electricity | J414: 0.5885587388 | M414: Parabolic antenna | O414: 0.345156253
C415: Has car/truck | E415: 0.6184168421 | H415: Earth, sand floor | J415: -0.5038698217 | M415: Earth, sand floor | O415: -0.3415048614
C416: Air conditioning | E416: 0.6057631005 | H416: Ceramic/mosaic floor | J416: 0.4963504689 | M416: Has electricity | O416: 0.3396729446
... 330 more rows

Sheet data_summary
A1: iso3 | B1: year | C1: data_source | D1: row | E1: var1 | F1: var2 | G1: varname | H1: total_q1 | I1: total_q2 | J1: total_q3 | K1: total_q4 | L1: total_q5 | M1: urban_q1 | N1: urban_q2 | O1: urban_q3 | P1: urban_q4 | Q1: urban_q5 | R1: rural_q1 | S1: rural_q2 | T1: rural_q3 | U1: rural_q4 | V1: rural_q5 | W1: region_1_name | X1: region_2_name | Y1: region_3_name | Z1: region_4_name | AA1: region_5_name | AB1: region_6_name | AC1: region_7_name | AD1: region_8_name | AE1: region_1 | AF1: region_2 | AG1: region_3 | AH1: region_4 | AI1: region_5 | AJ1: region_6 | AK1: region_7 | AL1: region_8 | AM1: n_total_q1 | AN1: n_total_q2 | AO1: n_total_q3 | AP1: n_total_q4 | AQ1: n_total_q5 | AR1: n_urban_q1 | AS1: n_urban_q2 | AT1: n_urban_q3 | AU1: n_urban_q4 | AV1: n_urban_q5 | AW1: n_rural_q1 | AX1: n_rural_q2 | AY1: n_rural_q3 | AZ1: n_rural_q4 | BA1: n_rural_q5 | BB1: n_region_1 | BC1: n_region_2 | BD1: n_region_3 | BE1: n_region_4 | BF1: n_region_5 | BG1: n_region_6 | BH1: n_region_7 | BI1: n_region_8
A2: NER | B2: 2006 | C2: NER_2006_DHS | D2: 16 | E2: Water | F2: Improved | G2: w_imp | H2: 46.88575073 | I2: 42.99680968 | J2: 45.80088898 | K2: 44.70396811 | L2: 82.56303999 | M2: 84.36462373 | N2: 91.07842963 | O2: 97.46336669 | P2: 95.84333692 | Q2: 97.25097028 | R2: 42.83214844 | S2: 42.59249804 | T2: 45.48401826 | U2: 42.42077726 | V2: 44.74280858 | W2: Agadez | X2: Diffa | Y2: Dosso | Z2: Maradi | AA2: Niamey | AB2: Tahoua | AC2: Tillabéri | AD2: Zinder | AE2: 68.60165337 | AF2: 66.11983537 | AG2: 31.83001582 | AH2: 58.37677522 | AI2: 94.18418948 | AJ2: 46.82478772 | AK2: 59.83552704 | AL2: 46.06136121
A3: NER | B3: 2006 | C3: NER_2006_DHS | D3: 17 | E3: Water | F3: Not Improved | H3: 53.11424927 | I3: 57.00319032 | J3: 54.19911102 | K3: 55.29603189 | L3: 17.43696001 | M3: 15.63537627 | N3: 8.921570374 | O3: 2.536633313 | P3: 4.156663076 | Q3: 2.749029716 | R3: 57.16785156 | S3: 57.40750196 | T3: 54.51598174 | U3: 57.57922274 | V3: 55.25719142 | W3: Agadez | X3: Diffa | Y3: Dosso | Z3: Maradi | AA3: Niamey | AB3: Tahoua | AC3: Tillabéri | AD3: Zinder | AE3: 31.39834663 | AF3: 33.88016463 | AG3: 68.16998418 | AH3: 41.62322478 | AI3: 5.815810522 | AJ3: 53.17521228 | AK3: 40.16447296 | AL3: 53.93863879
A4: NER | B4: 2006 | C4: NER_2006_DHS | D4: 18 | E4: Water ladder | F4: Basic | G4: w_bas | H4: 31.27279574 | I4: 27.64694862 | J4: 29.77057784 | K4: 31.33748164 | L4: 70.01345791 | M4: 67.32296974 | N4: 76.50588089 | O4: 88.59420032 | P4: 89.32599001 | Q4: 94.81969603 | R4: 28.18355367 | S4: 26.53512628 | T4: 29.883 | U4: 27.91287144 | V4: 30.38036703 | W4: Agadez | X4: Diffa | Y4: Dosso | Z4: Maradi | AA4: Niamey | AB4: Tahoua | AC4: Tillabéri | AD4: Zinder | AE4: 62.70191118 | AF4: 59.57397166 | AG4: 25.7504828 | AH4: 30.82293732 | AI4: 91.17029541 | AJ4: 35.96143697 | AK4: 46.43236898 | AL4: 28.9725962
A5: NER | B5: 2006 | C5: NER_2006_DHS | D5: 19 | E5: Water ladder | F5: Limited | G5: w_lim | H5: 15.61295499 | I5: 15.34986105 | J5: 16.03031114 | K5: 13.36648646 | L5: 12.54958208 | M5: 17.04165399 | N5: 14.57254874 | O5: 8.869166369 | P5: 6.517346911 | Q5: 2.431274257 | R5: 14.64859477 | S5: 16.05737176 | T5: 15.60101826 | U5: 14.50790582 | V5: 14.36244156 | W5: Agadez | X5: Diffa | Y5: Dosso | Z5: Maradi | AA5: Niamey | AB5: Tahoua | AC5: Tillabéri | AD5: Zinder | AE5: 5.89974219 | AF5: 6.545863701 | AG5: 6.079533021 | AH5: 27.55383791 | AI5: 3.013894063 | AJ5: 10.86335075 | AK5: 13.40315806 | AL5: 17.08876501
A6: NER | B6: 2006 | C6: NER_2006_DHS | D6: 20 | E6: Water ladder | F6: Unimproved | G6: w_unimp | H6: 51.82618632 | I6: 55.7273353 | J6: 52.68095879 | K6: 52.61966117 | L6: 17.13034765 | M6: 15.59509712 | N6: 8.861355341 | O6: 2.536633313 | P6: 4.156663076 | Q6: 2.749029716 | R6: 55.74561006 | S6: 56.4232301 | T6: 52.90324354 | U6: 55.46500017 | V6: 52.82872918 | W6: Agadez | X6: Diffa | Y6: Dosso | Z6: Maradi | AA6: Niamey | AB6: Tahoua | AC6: Tillabéri | AD6: Zinder | AE6: 31.02561882 | AF6: 33.88016463 | AG6: 68.16998418 | AH6: 41.53708765 | AI6: 5.815810522 | AJ6: 53.17521228 | AK6: 30.38485133 | AL6: 53.93863879
A7: NER | B7: 2006 | C7: NER_2006_DHS | D7: 21 | E7: Water ladder | F7: Surface water | G7: w_sur | H7: 1.288062947 | I7: 1.275855022 | J7: 1.518152226 | K7: 2.676370719 | L7: 0.3066123618 | M7: 0.0402791415 | N7: 0.06021503315 | O7: 0 | P7: 0 | Q7: 0 | R7: 1.422241497 | S7: 0.9842718615 | T7: 1.612738204 | U7: 2.114222571 | V7: 2.428462238 | W7: Agadez | X7: Diffa | Y7: Dosso | Z7: Maradi | AA7: Niamey | AB7: Tahoua | AC7: Tillabéri | AD7: Zinder | AE7: 0.372727801 | AF7: 0 | AG7: 0 | AH7: 0.08613713058 | AI7: 0 | AJ7: 0 | AK7: 9.779621625 | AL7: 0
A8: NER | B8: 2006 | C8: NER_2006_DHS | D8: 29 | E8: Piped water | F8: Yes | G8: w_pip | H8: 13.04849052 | I8: 6.451644882 | J8: 9.586782885 | K8: 14.23411658 | L8: 71.57070889 | M8: 78.36993164 | N8: 88.53099167 | O8: 94.58823277 | P8: 95.84333692 | Q8: 96.72131653 | R8: 5.914264238 | S8: 5.171917734 | T8: 9.081073652 | U8: 7.763893153 | V8: 12.68124253 | W8: Agadez | X8: Diffa | Y8: Dosso | Z8: Maradi | AA8: Niamey | AB8: Tahoua | AC8: Tillabéri | AD8: Zinder | AE8: 52.35414013 | AF8: 25.68463177 | AG8: 13.58912695 | AH8: 15.26788356 | AI8: 91.25507495 | AJ8: 20.31584573 | AK8: 6.030121686 | AL8: 22.75560504
A9: NER | B9: 2006 | C9: NER_2006_DHS | D9: 30 | E9: Piped water | F9: No | H9: 86.95150948 | I9: 93.54835512 | J9: 90.41321711 | K9: 85.76588342 | L9: 28.42929111 | M9: 21.63006836 | N9: 11.46900833 | O9: 5.411767228 | P9: 4.156663076 | Q9: 3.278683475 | R9: 94.08573576 | S9: 94.82808227 | T9: 90.91892635 | U9: 92.23610685 | V9: 87.31875747 | W9: Agadez | X9: Diffa | Y9: Dosso | Z9: Maradi | AA9: Niamey | AB9: Tahoua | AC9: Tillabéri | AD9: Zinder | AE9: 47.64585987 | AF9: 74.31536823 | AG9: 86.41087305 | AH9: 84.73211644 | AI9: 8.744925054 | AJ9: 79.68415427 | AK9: 93.96987831 | AL9: 77.24439496
A10: NER | B10: 2006 | C10: NER_2006_DHS | D10: 31 | E10: Piped water on premises | F10: Yes | G10: w_pop | H10: 0.559783089 | I10: 0.1655621508 | J10: 0.3527739384 | K10: 0.9000889335 | L10: 34.58200144 | M10: 8.764506751 | N10: 19.96882585 | O10: 33.51963138 | P10: 56.34772271 | Q10: 82.09102214 | R10: 0 | S10: 0.04775879696 | T10: 0 | U10: 0.02589548574 | V10: 0.5017670064 | W10: Agadez | X10: Diffa | Y10: Dosso | Z10: Maradi | AA10: Niamey | AB10: Tahoua | AC10: Tillabéri | AD10: Zinder | AE10: 27.8287566 | AF10: 7.560061568 | AG10: 3.324826279 | AH10: 4.559835362 | AI10: 43.57876449 | AJ10: 3.772397224 | AK10: 2.542902304 | AL10: 3.713538222
A11: NER | B11: 2006 | C11: NER_2006_DHS | D11: 32 | E11: Piped water on premises | F11: No | H11: 99.44021691 | I11: 99.83443785 | J11: 99.64722606 | K11: 99.09991107 | L11: 65.41799856 | M11: 91.23549325 | N11: 80.03117415 | O11: 66.48036862 | P11: 43.65227729 | Q11: 17.90897786 | R11: 100 | S11: 99.9522412 | T11: 100 | U11: 99.97410451 | V11: 99.49823299 | W11: Agadez | X11: Diffa | Y11: Dosso | Z11: Maradi | AA11: Niamey | AB11: Tahoua | AC11: Tillabéri | AD11: Zinder | AE11: 72.1712434 | AF11: 92.43993843 | AG11: 96.67517372 | AH11: 95.44016464 | AI11: 56.42123551 | AJ11: 96.22760278 | AK11: 97.4570977 | AL11: 96.28646178
A12: NER | B12: 2006 | C12: NER_2006_DHS | D12: 35 | E12: Water source on premises | F12: Yes | H12: 5.941462418 | I12: 5.499276031 | J12: 4.867861456 | K12: 10.7235681 | L12: 46.51688016 | M12: 23.44490769 | N12: 32.24841638 | O12: 43.03763871 | P12: 65.47393441 | Q12: 87.30229724 | R12: 4.397820401 | S12: 4.098393319 | T12: 5.289926891 | U12: 6.166106374 | V12: 14.56447868 | W12: Agadez | X12: Diffa | Y12: Dosso | Z12: Maradi | AA12: Niamey | AB12: Tahoua | AC12: Tillabéri | AD12: Zinder | AE12: 33.17825135 | AF12: 10.2297384 | AG12: 8.487726577 | AH12: 11.9462609 | AI12: 54.9106586 | AJ12: 7.315520059 | AK12: 17.87097459 | AL12: 10.13771207
A13: NER | B13: 2006 | C13: NER_2006_DHS | D13: 36 | E13: Water source on premises | F13: No | H13: 94.05853758 | I13: 94.50072397 | J13: 95.13213854 | K13: 89.2764319 | L13: 53.48311984 | M13: 76.55509231 | N13: 67.75158362 | O13: 56.96236129 | P13: 34.52606559 | Q13: 12.69770276 | R13: 95.6021796 | S13: 95.90160668 | T13: 94.71007311 | U13: 93.83389363 | V13: 85.43552132 | W13: Agadez | X13: Diffa | Y13: Dosso | Z13: Maradi | AA13: Niamey | AB13: Tahoua | AC13: Tillabéri | AD13: Zinder | AE13: 66.82174865 | AF13: 89.7702616 | AG13: 91.51227342 | AH13: 88.0537391 | AI13: 45.0893414 | AJ13: 92.68447994 | AK13: 82.12902541 | AL13: 89.86228793
A14: NER | B14: 2006 | C14: NER_2006_DHS | D14: 41 | E14: Water point at more than 30 minutes | F14: Yes | H14: 35.31176301 | I14: 33.8024775 | J14: 32.91595419 | K14: 25.94630798 | L14: 5.51452585 | M14: 9.810280851 | N14: 3.022399466 | O14: 1.32526052 | P14: 0.6956309176 | Q14: 0.2372622854 | R14: 38.14443655 | S14: 33.34555249 | T14: 37.17560307 | U14: 28.94302911 | V14: 21.36599515 | W14: Agadez | X14: Diffa | Y14: Dosso | Z14: Maradi | AA14: Niamey | AB14: Tahoua | AC14: Tillabéri | AD14: Zinder | AE14: 22.19591504 | AF14: 14.98409668 | AG14: 22.43196689 | AH14: 22.76470136 | AI14: 0.5594828471 | AJ14: 34.52992887 | AK14: 35.21271924 | AL14: 31.81017565
A15: NER | B15: 2006 | C15: NER_2006_DHS | D15: 42 | E15: Water point at more than 30 minutes | F15: No | G15: w_30min | H15: 64.68823699 | I15: 66.1975225 | J15: 67.08404581 | K15: 74.05369202 | L15: 94.48547415 | M15: 90.18971915 | N15: 96.97760053 | O15: 98.67473948 | P15: 99.30436908 | Q15: 99.76273771 | R15: 61.85556345 | S15: 66.65444751 | T15: 62.82439693 | U15: 71.05697089 | V15: 78.63400485 | W15: Agadez | X15: Diffa | Y15: Dosso | Z15: Maradi | AA15: Niamey | AB15: Tahoua | AC15: Tillabéri | AD15: Zinder | AE15: 77.80408496 | AF15: 85.01590332 | AG15: 77.56803311 | AH15: 77.23529864 | AI15: 99.44051715 | AJ15: 65.47007113 | AK15: 64.78728076 | AL15: 68.18982435
A16: NER | B16: 2006 | C16: NER_2006_DHS | D16: 58 | E16: Source of drinking water | F16: Piped into dwelling | H16: 0.1098680554 | I16: 0.04652566053 | J16: 0.3118963507 | K16: 0.7579852137 | L16: 25.84944232 | M16: 4.847406883 | N16: 13.97055993 | O16: 22.51894965 | P16: 39.81918749 | Q16: 67.31642264 | R16: 0 | S16: 0.04775879696 | T16: 0 | U16: 0 | V16: 0.4181855422 | W16: Agadez | X16: Diffa | Y16: Dosso | Z16: Maradi | AA16: Niamey | AB16: Tahoua | AC16: Tillabéri | AD16: Zinder | AE16: 24.82095601 | AF16: 3.657179882 | AG16: 1.646804384 | AH16: 3.762302917 | AI16: 31.59316856 | AJ16: 2.12471608 | AK16: 2.328982176 | AL16: 3.215919011
A17: NER | B17: 2006 | C17: NER_2006_DHS | D17: 59 | E17: Source of drinking water | F17: Piped into yard/plot | H17: 0.4499150336 | I17: 0.1190364902 | J17: 0.0408775877 | K17: 0.143460235 | L17: 8.732559118 | M17: 3.929862675 | N17: 6.034855049 | O17: 11.00068173 | P17: 16.52853522 | Q17: 14.77459949 | R17: 0 | S17: 0 | T17: 0 | U17: 0.02592429991 | V17: 0.08358146425 | W17: Agadez | X17: Diffa | Y17: Dosso | Z17: Maradi | AA17: Niamey | AB17: Tahoua | AC17: Tillabéri | AD17: Zinder | AE17: 3.065157894 | AF17: 3.902881686 | AG17: 1.682440974 | AH17: 0.7975324444 | AI17: 12.02488774 | AJ17: 1.647681144 | AK17: 0.2139201272 | AL17: 0.4976192116
A18: NER | B18: 2006 | C18: NER_2006_DHS | D18: 60 | E18: Source of drinking water | F18: Public tap | H18: 12.48870744 | I18: 6.286082731 | J18: 9.234008947 | K18: 13.35412323 | L18: 36.98870746 | M18: 69.70678376 | N18: 68.68779316 | O18: 61.06860139 | P18: 39.49561422 | Q18: 14.63029439 | R18: 5.914264238 | S18: 5.124158938 | T18: 9.081073652 | U18: 7.746607817 | V18: 12.17947552 | W18: Agadez | X18: Diffa | Y18: Dosso | Z18: Maradi | AA18: Niamey | AB18: Tahoua | AC18: Tillabéri | AD18: Zinder | AE18: 24.57593231 | AF18: 18.12457021 | AG18: 10.27794311 | AH18: 10.7080482 | AI18: 47.71929673 | AJ18: 16.5434485 | AK18: 3.487219383 | AL18: 19.04206682
A19: NER | B19: 2006 | C19: NER_2006_DHS | D19: 61 | E19: Source of drinking water | F19: Protected well | H19: 18.57684846 | I19: 21.86599521 | J19: 18.9721275 | K19: 25.86432093 | L19: 8.070704507 | M19: 4.939171025 | N19: 2.898784479 | O19: 1.90076836 | P19: 1.74910275 | Q19: 0.7545746164 | R19: 20.15381945 | S19: 21.54137682 | T19: 21.07639574 | U19: 21.94730454 | V19: 26.47289105 | W19: Agadez | X19: Diffa | Y19: Dosso | Z19: Maradi | AA19: Niamey | AB19: Tahoua | AC19: Tillabéri | AD19: Zinder | AE19: 17.55660914 | AF19: 30.34734639 | AG19: 20.63339422 | AH19: 24.23505303 | AI19: 2.826167349 | AJ19: 14.60568447 | AK19: 18.55775298 | AL19: 19.85637128
A20: NER | B20: 2006 | C20: NER_2006_DHS | D20: 62 | E20: Source of drinking water | F20: Open well | H20: 66.68465126 | I20: 70.31215172 | J20: 69.92293739 | K20: 56.7413982 | L20: 19.06135944 | M20: 15.06262178 | N20: 7.156336985 | O20: 2.466427376 | P20: 1.009794093 | Q20: 0.7487093574 | R20: 72.32052979 | S20: 72.26932406 | T20: 68.1445742 | U20: 68.09123241 | V20: 57.94552653 | W20: Agadez | X20: Diffa | Y20: Dosso | Z20: Maradi | AA20: Niamey | AB20: Tahoua | AC20: Tillabéri | AD20: Zinder | AE20: 27.84198838 | AF20: 43.85009337 | AG20: 65.60954859 | AH20: 60.0233567 | AI20: 4.531302352 | AJ20: 65.00976313 | AK20: 65.44492831 | AL20: 56.85929107
A21: NER | B21: 2006 | C21: NER_2006_DHS | D21: 63 | E21: Source of drinking water | F21: Spring | H21: 0.06731184895 | I21: 0.09435315915 | J21: 0 | K21: 0.1859811511 | L21: 0 | M21: 0.3786099578 | N21: 0 | O21: 0 | P21: 0 | Q21: 0 | R21: 0 | S21: 0.03310953066 | T21: 0.0852182055 | U21: 0.0747083614 | V21: 0.1515747554 | W21: Agadez | X21: Diffa | Y21: Dosso | Z21: Maradi | AA21: Niamey | AB21: Tahoua | AC21: Tillabéri | AD21: Zinder | AE21: 0.5358808755 | AF21: 0 | AG21: 0 | AH21: 0 | AI21: 0 | AJ21: 0 | AK21: 0.1217511445 | AL21: 0.1883306578
A22: NER | B22: 2006 | C22: NER_2006_DHS | D22: 64 | E22: Source of drinking water | F22: Surface water | H22: 1.288062947 | I22: 1.275855022 | J22: 1.518152226 | K22: 2.676370719 | L22: 0.3066123618 | M22: 0.0402791415 | N22: 0.06021503315 | O22: 0 | P22: 0 | Q22: 0 | R22: 1.422241497 | S22: 0.9842718615 | T22: 1.612738204 | U22: 2.114222571 | V22: 2.428462238 | W22: Agadez | X22: Diffa | Y22: Dosso | Z22: Maradi | AA22: Niamey | AB22: Tahoua | AC22: Tillabéri | AD22: Zinder | AE22: 0.372727801 | AF22: 0 | AG22: 0 | AH22: 0.08613713058 | AI22: 0 | AJ22: 0 | AK22: 9.779621625 | AL22: 0
A23: NER | B23: 2006 | C23: NER_2006_DHS | D23: 65 | E23: Source of drinking water | F23: Bottled water | H23: 0 | I23: 0 | J23: 0 | K23: 0 | L23: 0.05214799016 | M23: 0 | N23: 0 | O23: 0 | P23: 0 | Q23: 0.2899839492 | R23: 0 | S23: 0 | T23: 0 | U23: 0 | V23: 0 | W23: Agadez | X23: Diffa | Y23: Dosso | Z23: Maradi | AA23: Niamey | AB23: Tahoua | AC23: Tillabéri | AD23: Zinder | AE23: 0 | AF23: 0 | AG23: 0 | AH23: 0 | AI23: 0.1425160396 | AJ23: 0 | AK23: 0 | AL23: 0
A24: NER | B24: 2006 | C24: NER_2006_DHS | D24: 66 | E24: Source of drinking water | F24: Other | H24: 0.3346349664 | I24: 0 | J24: 0 | K24: 0.2763603226 | L24: 0.938466811 | M24: 1.095264775 | N24: 1.191455367 | O24: 1.044571492 | P24: 1.397766233 | Q24: 1.485415552 | R24: 0.1891450171 | S24: 0 | T24: 0 | U24: 0 | V24: 0.3203028921 | W24: Agadez | X24: Diffa | Y24: Dosso | Z24: Maradi | AA24: Niamey | AB24: Tahoua | AC24: Tillabéri | AD24: Zinder | AE24: 1.230747582 | AF24: 0.1179284584 | AG24: 0.1498687221 | AH24: 0.3875695727 | AI24: 1.162661224 | AJ24: 0.06870667626 | AK24: 0.06582426169 | AL24: 0.3404019498
A25: NER | B25: 2006 | C25: NER_2006_DHS | D25: 122 | E25: Sanitation | F25: Improved | G25: s_imp | H25: 2.959093848 | I25: 1.250586635 | J25: 2.865797551 | K25: 7.857302877 | L25: 67.171429 | M25: 34.14313939 | N25: 63.9460784 | O25: 79.73259783 | P25: 90.81458479 | Q25: 96.41395123 | R25: 1.125993884 | S25: 0.9370558297 | T25: 2.315558624 | U25: 2.546156856 | V25: 14.92889109 | W25: Agadez | X25: Diffa | Y25: Dosso | Z25: Maradi | AA25: Niamey | AB25: Tahoua | AC25: Tillabéri | AD25: Zinder | AE25: 39.93685655 | AF25: 12.3684804 | AG25: 10.44485596 | AH25: 15.08156249 | AI25: 79.66112401 | AJ25: 6.527682325 | AK25: 2.782150754 | AL25: 10.32482334
A26: NER | B26: 2006 | C26: NER_2006_DHS | D26: 123 | E26: Sanitation | F26: Not Improved | H26: 97.04090615 | I26: 98.74941337 | J26: 97.13420245 | K26: 92.14269712 | L26: 32.828571 | M26: 65.85686061 | N26: 36.0539216 | O26: 20.26740217 | P26: 9.185415205 | Q26: 3.586048774 | R26: 98.87400612 | S26: 99.06294417 | T26: 97.68444138 | U26: 97.45384314 | V26: 85.07110891 | W26: Agadez | X26: Diffa | Y26: Dosso | Z26: Maradi | AA26: Niamey | AB26: Tahoua | AC26: Tillabéri | AD26: Zinder | AE26: 60.06314345 | AF26: 87.6315196 | AG26: 89.55514404 | AH26: 84.91843751 | AI26: 20.33887599 | AJ26: 93.47231767 | AK26: 97.21784925 | AL26: 89.67517666
A27: NER | B27: 2006 | C27: NER_2006_DHS | D27: 124 | E27: Sanitation ladder | F27: Basic | G27: s_bas | H27: 1.551913449 | I27: 0.6227605458 | J27: 1.298943421 | K27: 4.737522926 | L27: 37.39233059 | M27: 14.65707271 | N27: 29.87303243 | O27: 35.26399222 | P27: 43.96877087 | Q27: 67.02256241 | R27: 0.5991090476 | S27: 0.4866182452 | T27: 1.04691318 | U27: 1.548626962 | V27: 10.22537248 | W27: Agadez | X27: Diffa | Y27: Dosso | Z27: Maradi | AA27: Niamey | AB27: Tahoua | AC27: Tillabéri | AD27: Zinder | AE27: 25.46272406 | AF27: 11.81377418 | AG27: 5.166693213 | AH27: 7.635234302 | AI27: 32.14117516 | AJ27: 4.157298607 | AK27: 1.275239339 | AL27: 7.543602882
A28: NER | B28: 2006 | C28: NER_2006_DHS | D28: 125 | E28: Sanitation ladder | F28: Limited | G28: s_lim | H28: 1.407180399 | I28: 0.6278260888 | J28: 1.56685413 | K28: 3.119779951 | L28: 29.77909842 | M28: 19.48606669 | N28: 34.07304597 | O28: 44.46860561 | P28: 46.84581393 | Q28: 29.39138881 | R28: 0.5268848366 | S28: 0.4504375844 | T28: 1.268645444 | U28: 0.9975298941 | V28: 4.703518608 | W28: Agadez | X28: Diffa | Y28: Dosso | Z28: Maradi | AA28: Niamey | AB28: Tahoua | AC28: Tillabéri | AD28: Zinder | AE28: 14.4741325 | AF28: 0.5547062205 | AG28: 5.278162748 | AH28: 7.446328185 | AI28: 47.51994885 | AJ28: 2.370383719 | AK28: 1.506911415 | AL28: 2.78122046
A29: NER | B29: 2006 | C29: NER_2006_DHS | D29: 126 | E29: Sanitation ladder | F29: Unimproved | G29: s_unimp | H29: 4.13459659 | I29: 2.13859472 | J29: 2.376593795 | K29: 4.301584371 | L29: 7.838132109 | M29: 10.64764337 | N29: 8.375340728 | O29: 11.51450817 | P29: 7.007783658 | Q29: 3.352365227 | R29: 1.841431186 | S29: 1.841059676 | T29: 2.848986755 | U29: 2.477335466 | V29: 5.637860424 | W29: Agadez | X29: Diffa | Y29: Dosso | Z29: Maradi | AA29: Niamey | AB29: Tahoua | AC29: Tillabéri | AD29: Zinder | AE29: 2.74501983 | AF29: 9.281793039 | AG29: 2.584521521 | AH29: 5.317588112 | AI29: 9.087386195 | AJ29: 5.706882786 | AK29: 4.268060222 | AL29: 5.306887439
A30: NER | B30: 2006 | C30: NER_2006_DHS | D30: 127 | E30: Sanitation ladder | F30: Open defecation | G30: s_od | H30: 92.90630956 | I30: 96.61081865 | J30: 94.75760865 | K30: 87.84111275 | L30: 24.99043889 | M30: 55.20921723 | N30: 27.67858087 | O30: 8.752893997 | P30: 2.177631547 | Q30: 0.2336835473 | R30: 97.03257493 | S30: 97.22188449 | T30: 94.83545462 | U30: 94.97650768 | V30: 79.43324848 | W30: Agadez | X30: Diffa | Y30: Dosso | Z30: Maradi | AA30: Niamey | AB30: Tahoua | AC30: Tillabéri | AD30: Zinder | AE30: 57.31812362 | AF30: 78.34972656 | AG30: 86.97062252 | AH30: 79.6008494 | AI30: 11.25148979 | AJ30: 87.76543489 | AK30: 92.94978902 | AL30: 84.36828922
A31: NER | B31: 2006 | C31: NER_2006_DHS | D31: 139 | E31: Sanitation ladder | F31: Open defecation | H31: 92.75100695 | I31: 96.61081865 | J31: 94.75760865 | K31: 87.84111275 | L31: 24.98377835 | M31: 55.20921723 | N31: 27.6376847 | O31: 8.752893997 | P31: 2.177631547 | Q31: 0.2336835473 | R31: 96.85247705 | S31: 97.22188449 | T31: 94.83545462 | U31: 94.97650768 | V31: 79.43324848 | W31: Agadez | X31: Diffa | Y31: Dosso | Z31: Maradi | AA31: Niamey | AB31: Tahoua | AC31: Tillabéri | AD31: Zinder | AE31: 57.31812362 | AF31: 78.34972656 | AG31: 86.75706488 | AH31: 79.6008494 | AI31: 11.24330175 | AJ31: 87.76543489 | AK31: 92.94978902 | AL31: 84.36828922
A32: NER | B32: 2006 | C32: NER_2006_DHS | D32: 151 | E32: Shared among all sanitation facilities | F32: Yes | H32: 39.5227176 | I32: 36.73768271 | J32: 22.11439755 | K32: 35.0958612 | L32: 39.0866504 | M32: 42.70502714 | N32: 57.21570335 | O32: 49.98492977 | P32: 46.74159829 | Q32: 23.99418561 | R32: 27.96391133 | S32: 20.3752057 | T32: 31.02898186 | U32: 27.56662744 | V32: 21.31441397 | W32: Agadez | X32: Diffa | Y32: Dosso | Z32: Maradi | AA32: Niamey | AB32: Tahoua | AC32: Tillabéri | AD32: Zinder | AE32: 27.56358038 | AF32: 13.24855991 | AG32: 43.79023409 | AH32: 29.02628416 | AI32: 55.81583796 | AJ32: 35.99968392 | AK32: 39.00777841 | AL32: 17.29206599
A33: NER | B33: 2006 | C33: NER_2006_DHS | D33: 152 | E33: Shared among all sanitation facilities | F33: No | H33: 56.49072529 | I33: 63.26231729 | J33: 75.60126508 | K33: 64.54831419 | L33: 59.62597473 | M33: 55.76735204 | N33: 42.03646375 | O33: 48.70687764 | P33: 52.09987401 | Q33: 75.630404 | R33: 66.13921063 | S33: 79.6247943 | T33: 66.03347236 | U33: 72.43337256 | V33: 76.16225515 | W33: Agadez | X33: Diffa | Y33: Dosso | Z33: Maradi | AA33: Niamey | AB33: Tahoua | AC33: Tillabéri | AD33: Zinder | AE33: 71.41986623 | AF33: 86.75144009 | AG33: 53.8905437 | AH33: 69.0178434 | AI33: 44.18416204 | AJ33: 62.56065696 | AK33: 59.58231843 | AL33: 79.4831301
A34: NER | B34: 2006 | C34: NER_2006_DHS | D34: 153 | E34: Type of toilet facility | F34: Flush toilet | H34: 0.02829900653 | I34: 0.02485749224 | J34: 0.1087255404 | K34: 0.1972085975 | L34: 6.010728621 | M34: 1.292330734 | N34: 1.388043451 | O34: 2.517750396 | P34: 3.205966318 | Q34: 26.04498963 | R34: 0 | S34: 0 | T34: 0 | U34: 0 | V34: 0.2116473993 | W34: Agadez | X34: Diffa | Y34: Dosso | Z34: Maradi | AA34: Niamey | AB34: Tahoua | AC34: Tillabéri | AD34: Zinder | AE34: 12.36654797 | AF34: 0.1903169097 | AG34: 0.008802345963 | AH34: 0.142150025 | AI34: 10.66156454 | AJ34: 0.3271579318 | AK34: 0.1119860775 | AL34: 0.3260041107 | AM34: 2.684052 | AN34: 2.300616 | AO34: 10.312742 | AP34: 18.543236 | AQ34: 565.616813 | AR34: 21.860064 | AS34: 23.532511 | AT34: 42.677528 | AU34: 54.195968 | AV34: 440.858033 | AW34: 0 | AX34: 0 | AY34: 0 | AZ34: 0 | BA34: 16.333355 | BB34: 147.880958 | BC34: 2.410296 | BD34: 0.567895 | BE34: 13.576311 | BF34: 367.266196 | BG34: 28.997704 | BH34: 7.465068 | BI34: 31.293031
